{"text_format":"1","workbook":"xlsx","n_sheets":24,"sheets":["Portada","Créditos","Presentación","Índice","Hoja1","Hoja2","Hoja3","Hoja4","Hoja5","Hoja6","Hoja7","Hoja8","Hoja9","Hoja10","Hoja11","Hoja12","Hoja13","Hoja14","Hoja15","Hoja16","Hoja17","Hoja18","Hoja19","Hoja20"],"not_rendered":{"charts":21,"images":4,"macros":1,"external_links":0,"defined_names":3,"comments":0,"pivot_tables":0},"unopened":[],"bounds":{"document_bytes":16777216,"sheet_cells":100000,"rows_first":2000,"rows_last":500,"rows_between":2000,"halvings":0,"cell_chars":16384,"cell_head_chars":4096},"cells_cut":0,"cells_raw":0,"read":"whole","date_system":"1900"}

{"sheet":"Portada","index":0,"n_rows":0,"n_cols":0,"rows_kept":0,"cut":false,"hidden":false,"merged":[]}

{"sheet":"Créditos","index":1,"n_rows":38,"n_cols":1,"rows_kept":38,"cut":false,"hidden":false,"merged":[]}
["CONSEJERÍA DE ECONOMÍA, HACIENDA Y EMPLEO"]
[]
["Consejera de Economía, Hacienda y Empleo"]
["Rocío Albert López-Ibor"]
[]
["Viceconsejero de Economía y Empleo"]
["Daniel Rodríguez Asensio"]
[]
["Directora General de Trabajo y Gerente del Instituto Regional"]
["de Seguridad y Salud en el Trabajo"]
["Silvia Marina Parra Rudilla"]
[]
["ELABORACIÓN"]
["Dirección"]
["Silvia Marina Parra Rudilla"]
["Directora General de Trabajo y Gerente del Instituto Regional de Seguridad y Salud en el Trabajo"]
[]
["Autoría"]
["Dolores Núñez Munaiz"]
["Daniel Renes Diliz"]
["Unidad Técnica de Estadística "]
[]
[]
["Unidad Técnica de Branding, Comunicación y Relaciones Institucionales"]
["Alberto Muñoz González"]
["Germán Blázquez López"]
["Carmen Zazo Martínez"]
["Paula Panadero Moya"]
["Rosa Rebollo Codón"]
[]
[]
["© Comunidad de Madrid, 2023"]
[]
["Edita: Instituto Regional de Seguridad y Salud en el Trabajo"]
["Ventura Rodríguez, 7. 28008 Madrid"]
["Tel.: 900 713 123 Fax.: 91 420 61 17"]
["irsst.estadistica@madrid.org"]
["www.comunidad.madrid"]

{"sheet":"Presentación","index":2,"n_rows":11,"n_cols":1,"rows_kept":11,"cut":false,"hidden":false,"merged":[]}
["Presentación"]
[]
[]
["El Instituto Regional de Seguridad y Salud en el Trabajo de la Comunidad de Madrid realiza estudios estadísticos de diversa índole que permiten analizar a fondo la accidentalidad laboral en la región, ofreciendo una información imprescindible para caracterizar los accidentes ocurridos en el ejercicio, y permitiendo diseñar e impulsar medidas específicas que contribuyan a reducir los índices de siniestralidad en nuestra comunidad autónoma. Así, en consonancia con lo establecido VI Plan director en prevención de riesgos laborales de la Comunidad de Madrid, los resultados obtenidos en este estudio relativo a la siniestralidad, nos permitirán asesorar con mayor efectividad tanto a los trabajadores como a los empresarios de la región, en aras de lograr una prevención más práctica y adaptarla a la cambiante realidad de nuestro ámbito laboral."]
["Así, con la publicación de este informe, la Consejería de Economía, Hacienda y Empleo, a través del Instituto Regional de Seguridad y Salud en el Trabajo, pretende realizar un análisis de las causas de los accidentes graves, muy graves y mortales que han sido investigados por el personal de este organismo, con el objetivo de sacar conclusiones que permitan tomar decisiones orientadas a la reducción de la siniestralidad laboral y mejorar la cultura preventiva de la población de la Región."]
["Nuestra sociedad no puede permitirse los costes humanos, así como sociales y económicos, que representan los accidentes de trabajo, por ello, el Instituto Regional de Seguridad y Salud en el Trabajo de la Comunidad de Madrid confía en que este documento se convierta en un útil instrumento para todos los que desde cualquier ámbito, público o privado, dedicamos importantes recursos para el diseño y elaboración de estrategias en la lucha contra la siniestralidad laboral."]
[]
[]
["Doña Silvia Marina Parra Rudilla"]
["Directora General de Trabajo"]
["y Gerente del Instituto Regional de Seguridad y Salud en el Trabajo"]

{"sheet":"Índice","index":3,"n_rows":92,"n_cols":4,"rows_kept":92,"cut":false,"hidden":false,"merged":[[90,1,90,8]]}
[]
[]
[null,2022]
[]
[null,"Índice"]
[]
[]
[null,"Accidentes investigados graves, muy graves y mortales"]
[]
[]
[null,"Tabla1.1","Bloque de causas y porcentaje . Año 2022 (*)"]
[null,null,"Gráfico 1.1","Porcentaje de accidentes graves, muy graves y mortales investigados según el número de causas detectadas"]
[]
[null,"Tabla 2.1","Causas y porcentaje. Ordenados por frecuencia . Año 2022 (*)"]
[]
[null,"Tabla3.1","Accidentes investigados según sector de actividad y porcentaje . Año 2022 (*)"]
[null,null,"Bloque de causa según sector de actividad por porcentaje . Año 2022 (*)"]
[null,null,"Gráfico 2.1","Accidentes investigados según sector año 2022"]
[null,null,"Gráfico 3.1","Bloques de causa según sector de actividad 2022"]
[null,null,"Gráfico 4.1","Sector de actividad según bloque de causa 2022"]
[]
[null,"Agricultura-graves","Causas y porcentaje. Ordenados por frecuencia . Año 2022 (*)"]
[null,null,"Gráfico 5.1","Sector agricultura según bloque de causa 2022"]
[]
[null,"Industria-graves","Causas y porcentaje. Ordenados por frecuencia . Año 2022 (*)"]
[null,null,"Gráfico 6.1","Sector industria según bloque de causa 2022"]
[]
[null,"Construcción-graves","Accidentes investigados del sector construcción según causas y porcentaje. Ordenados por frecuencia . Año 2022 (*)"]
[null,null,"Gráfico 7.1","Sector construcción según bloque de causa 2022"]
[]
[null,"Servicios-graves","Accidentes investigados del sector servicios según causas y porcentaje. Ordenados por frecuencia . Año 2022 (*)"]
[null,null,"Gráfico 8,1","Sector servicios según bloque de causa 2022"]
[]
[null,"Tabla 4.1","Accidentes investigados según sexo y gravedad por porcentaje . Año 2022 (*)"]
[null,null,"Bloque de causa según sexo por porcentaje . Año 2022 (*)"]
[null,null,"Gráfico 9.1","Accidentes investigados según sexo y gravedad"]
[null,null,"Gráfico 10.1","Bloques de causa según sexo"]
[]
[null,"Tabla 5.1","Accidentes investigados según sector de la actividad y nacionalidad por porcentaje . Año 2022 (*)"]
[null,null,"Bloque de causa y nacionalidad de los accidentes graves, muy graves y mortales investigados y porcentaje . Año 2022 (*)"]
[null,null,"Gráfico 11.1","Bloques de causa según nacionalidad"]
[]
[null,"Tabla 6.1","Accidentes investigados según grupos de edad y sexo por porcentaje . Año 2022 (*)"]
[null,null,"Bloque de causa según grupos de edad por porcentaje . Año 2022 (*)"]
[null,null,"Causas y grupo de edad y porcentaje. Ordenados por frecuencia . Año 2022 (*)"]
[null,null,"Gráfico 12.1","Bloques de causa según grupos de edad"]
[]
[null,"Tabla 7.1 ","Accidentes investigados según sector de actividad y ocupación por porcentaje . Año 2022 (*)"]
[null,null,"Bloque de causa según ocupación por porcentaje . Año 2022 (*)"]
[null,null,"Causa según ocupación más frecuente por porcentaje . Año 2022 (*) "]
[null,null,"Gráfico 13,1","Accidentes investigados según ocupación y sector"]
[]
[null,"Tabla 8.1","Accidentes investigados según tipo de contrato y sector de actividad . Año 2022 (*)"]
[null,null,"Bloque de causa según tipo de contrato . Año 2022 (*)"]
[null,null,"Gráfico 14,1","Tipo de contrato y sector de actividad"]
[null,null,"Gráfico 15,1","Tipo de contrato y bloque de causas"]
[]
[null,"Tabla 9.1","Accidentes investigados según lugar del accidente. Ordenados por frecuencia Año 2022 (*)"]
[null,null,"Bloque de causas según el lugar del accidente, mayor frecuencia. Año 2022 (*)"]
[null,null,"Gráfico 16,1","Bloque de causas  por lugar del accidente"]
[]
[null,"Tabla 10.1","Accidentes investigados según tipo de trabajo. Ordenados por frecuencia Año 2022 (*)"]
[null,null,"Bloque de causas y tipo de trabajo. Año 2022 (*)"]
[null,null,"Gráfico 17,1","Bloque de causas y tipo de trabajo"]
[]
[null,"Tabla 11.1","Accidentes investigados según desviación. Año 2022 (*)"]
[null,null,"Bloque de causa según desviación, mayor frecuencia. Año 2022 (*)"]
[null,null,"Causa  según  desviación mayor frecuencia. Año 2022 (*)"]
[null,null,"Gráfico 18,1","Bloque de causa y desviación"]
[]
[null,"Tabla 12.1","Accidentes investigados según forma del accidente. Año 2022 (*)"]
[null,null,"Bloque de causas según forma del accidente mayor frecuencia. Año 2022 (*)"]
[null,null,"Causas de los accidentes graves, muy graves y mortales investigados según forma del accidente de mayor frecuencia. Año 2022 (*)"]
[null,null,"Gráfico 19,1","Bloque de causas y forma del accidente"]
[]
[null,"Tabla 13.1","Accidentes investigados según organización preventiva. Año 2022 (*)"]
[null,null,"Bloque de causas según organización preventiva. Año 2022 (*)"]
[null,null,"Gráfico 20,1","Organización preventiva de la empresa"]
[]
[]
[null,"Tabla 14.1","Accidentes investigados según evaluación de riesgos. Año 2022 (*)"]
[null,null,"Bloque de causas según evaluación de riesgos. Año 2022 (*)"]
[null,null,"Accidentes investigados según asunción de medidas preventivas. Año 2022 (*)"]
[null,null,"Bloque de causas de los accidentes investigados según asunción de medidas preventivas. Año 2022 (*)"]
[null,null,"Gráfico 21,1","Evaluación de riesgos"]
[null,null,"Grafico 22,1","Bloques de causa y evaluación de riesgos"]
[]
[]
[null,"Bloques y causas por código"]
[null,"Bloques y causas por bloque"]
[null,"Nota: Las respuestas del campo causa y bloque se han elaborado en forma de multirespuesta. Ya que para cada accidente investigado hay 10 posibles respuestas de causa."]
[null,"(*) Accidentes asignados en 2022 para su investigación en el mismo periodo y durante el año 2023"]

{"sheet":"Hoja1","index":4,"n_rows":21,"n_cols":38,"rows_kept":21,"cut":false,"hidden":true,"merged":[[3,0,3,2],[4,0,5,0],[4,1,4,2],[15,0,15,4],[4,26,4,37],[5,26,5,27],[6,26,7,26]]}
[]
[]
[]
["Bloques de causas y porcentaje . (*)"]
[{"$f":"año_publi","v":2022},"Total",null,null,null,null,null,null,null,null,"% del N de columna","% de respuestas de la tabla",null,null,null,null,null,null,null,null,null,null,null,null,null,null,"Estadísticos"]
[null," Frecuencia"," Porcentaje",null,null,null,null,null,"bloque_inf","Prevención intrínseca",0.185,8.3000000000000004E-2,null,null,null,null,null,null,null,null,null,null,null,null,null,null,"",null,"Bloque1","Bloque2","Bloque3","Bloque4","Bloque5","Bloque6","Bloque7","Bloque8","Bloque9","Bloque10"]
["Total",194,1,null,null,null,null,null,null,"Protección, señalización",0.22800000000000001,0.10199999999999999,null,null,null,null,null,null,null,null,null,null,null,null,null,null,"N","Válido",194,150,109,67,40,27,21,15,7,5]
["Prevención intrínseca",39,0.20103092783505155,null,null,null,null,null,null,"Materiales, productos o agentes",9.5000000000000001E-2,4.2999999999999997E-2,null,null,null,null,null,null,null,null,null,null,null,null,null,null,null,"Perdidos",0,44,85,127,154,167,173,179,187,189]
["Protección, señalización",35,0.18041237113402062,null,null,null,null,null,null,"Espacios y superficies de trabajo",0.23799999999999999,0.106]
["Materiales, productos o agentes",17,8.7628865979381451E-2,null,null,null,null,null,null,"Organización del trabajo",0.55600000000000005,0.248,null,null,null,null,null,null,null,null,null,null,null,null,null,null,null,null,1,2,3,4,5,6,7,8,9,10]
["Espacios y superficies de trabajo",43,0.22164948453608246,null,null,null,null,null,null,"Gestión de la prevención",0.503,0.22500000000000001,null,null,null,null,null,null,null,null,null,null,null,null,null,null,null,null,{"$f":"AC7/$AC$7*100","v":100},{"$f":"AD7/$AC$7*100","v":77.319587628865989},56.185567010309278,34.536082474226802,20.618556701030926,13.917525773195877,10.824742268041238,7.731958762886598,3.608247422680412,2.5773195876288657]
["Organización del trabajo",107,0.55154639175257736,null,null,null,null,null,null,"Factores individuales",0.34399999999999997,0.154,null,null,null,null,null,null,null,null,null,null,null,null,null,null,null,null,null,{"$f":"AC11-AD11","v":22.680412371134011},{"$f":"AD11-AE11","v":21.134020618556711},21.649484536082475,13.917525773195877,6.7010309278350491,3.0927835051546388,3.0927835051546397,4.123711340206186,1.0309278350515463]
["Gestión de la prevención",94,0.4845360824742268]
["Factores individuales",75,0.38659793814432986]
["Otras causas",16,8.2474226804123696E-2]
["(*) Accidentes asignados en 2022 para su investigación en el mismo periodo y durante el año 2023"]
[]
[]
[]
[]
[null,null,null,null,null,null,null,null,null,"Otras causas",0.09,0.04]

{"sheet":"Hoja2","index":5,"n_rows":130,"n_cols":5,"rows_kept":130,"cut":false,"hidden":true,"merged":[[4,0,4,4],[5,0,6,1],[5,2,5,3],[5,4,6,4],[7,0,128,0]]}
[]
[]
[]
[]
["Causa de los accidentes graves, muy graves y mortales investigados ordenados por frecuencia. (*)"]
[{"$f":"año_publi","v":2022},null,"Respuestas",null,"Porcentaje de casos"]
[null,null,"Nº","Porcentaje"]
[null,"6102 Método de trabajo inadecuado",37,5.8176100628930819E-2,0.19072164948453607]
[null,"6304 Formación/información inadecuada o inexistente sobre la tarea",24,3.7735849056603772E-2,0.12371134020618557]
[null,"7203 Medidas preventivas propuestas en la planificación derivada de la evaluación de riesgos insuficientes o inadecuadas",24,3.7735849056603772E-2,0.12371134020618557]
[null,"7201 No identificación del/los riesgos que han materializado el accidente",21,3.3018867924528301E-2,0.10824742268041238]
[null,"8108 Permanencia del trabajador dentro de una zona peligrosa",21,3.3018867924528301E-2,0.10824742268041238]
[null,"8102 Incumplimiento de procedimientos e instrucciones de trabajo",20,3.1446540880503145E-2,0.10309278350515463]
[null,"7206 Formación/información inadecuada, inexistente sobre riesgos o medidas preventivas",16,2.5157232704402517E-2,8.247422680412371E-2]
[null,"8199 Otras causas relativas a los factores de comportamiento",16,2.5157232704402517E-2,8.247422680412371E-2]
[null,"7105 Procedimientos inexistentes, insuficientes o deficientes. para la coordinación de actividades realizadas por varias",15,2.358490566037736E-2,7.7319587628865982E-2]
[null,"6110 Ausencia de vigilancia, control y dirección de persona competente",14,2.20125786163522E-2,7.2164948453608241E-2]
[null,"7204 Falta de control del cumplimiento del Plan de seguridad y salud en Construcción.",14,2.20125786163522E-2,7.2164948453608241E-2]
[null,"1104 Ausencia/deficiencia de protecciones colectivas frente a caídas de personas",13,2.0440251572327043E-2,6.7010309278350513E-2]
[null,"6401 No poner a disposición de los trabajadores las máquinas, equipos y medios auxiliares necesarios o adecuados.",12,1.8867924528301886E-2,6.1855670103092786E-2]
[null,"1110 Pavimento deficiente o inadecuado (discontinuo, resbaladizo, inestable, con  pendiente excesiva, etc.)",11,1.7295597484276729E-2,5.6701030927835051E-2]
[null,"7202 Medidas preventivas propuestas en la planificación derivada de la evaluación de riesgos insuficientes o inadecuadas",11,1.7295597484276729E-2,5.6701030927835051E-2]
[null,"7208 No poner a disposición de los trabajadores las prendas o equipos de protección necesarios o ser estos inadecuados o",11,1.7295597484276729E-2,5.6701030927835051E-2]
[null,"7209 Falta de presencia de los recursos preventivos requeridos",11,1.7295597484276729E-2,5.6701030927835051E-2]
[null,"7102 Inexistencia o deficiencia de un procedimiento que regule la planificación de la implantación de las medidas preven",9,1.4150943396226415E-2,4.6391752577319589E-2]
[null,"8106 No utilización de equipos de protección individual puestas a disposición por la empresa y de uso obligatorio.",9,1.4150943396226415E-2,4.6391752577319589E-2]
[null,"6405 Utilización de la máquina de manera no prevista por el fabricante.",8,1.2578616352201259E-2,4.1237113402061855E-2]
[null,"9199 Otras causas",8,1.2578616352201259E-2,4.1237113402061855E-2]
[null,"4105 Partes del equipo accesibles peligrosas (atrapantes, cortantes, punzantes,etc.)",7,1.10062893081761E-2,3.608247422680412E-2]
[null,"6101 Método de trabajo  inexistente",7,1.10062893081761E-2,3.608247422680412E-2]
[null,"7101 Inexistencia o insuficiencia de un procedimiento que regule la realización de las actividades dirigidas a la identi",7,1.10062893081761E-2,3.608247422680412E-2]
[null,"7212 Asignación de tarea a un trabajador con falta de cualificación o experiencia",7,1.10062893081761E-2,3.608247422680412E-2]
[null,"1106 Falta de seguridad estructural o estabilidad de paramentos, etc.",6,9.433962264150943E-3,3.0927835051546393E-2]
[null,"1115 Deficiencia/ausencia de señalización u otro tipo de elementos necesarios para la delimitación de la zona de trabajo",6,9.433962264150943E-3,3.0927835051546393E-2]
[null,"5102 Materiales muy pesados, voluminosos, de gran superficie, inestables o con aristas/perfiles cortantes, en relación c",6,9.433962264150943E-3,3.0927835051546393E-2]
[null,"6104 Apremio de tiempo o ritmo de trabajo elevado",6,9.433962264150943E-3,3.0927835051546393E-2]
[null,"6305 Procedimientos inexistentes o insuficientes para formar o informar a los trabajadores  acerca de la utilización o m",6,9.433962264150943E-3,3.0927835051546393E-2]
[null,"6403 Selección de útiles, herramientas y medios auxiliares no adecuados al trabajo a realizar",6,9.433962264150943E-3,3.0927835051546393E-2]
[null,"7103 Procedimientos inexistentes, insuficientes o deficientes para informar a los trabajadores de los riesgos y las medi",6,9.433962264150943E-3,3.0927835051546393E-2]
[null,"8103 Incumplimiento de normas de seguridad establecidas",6,9.433962264150943E-3,3.0927835051546393E-2]
[null,"8299 Otras causas relativas a los factores intrinsecos, de salud o capacidades",6,9.433962264150943E-3,3.0927835051546393E-2]
[null,"1199 Otras causas relativas a la configuración de los espacios de trabajo",5,7.8616352201257862E-3,2.5773195876288658E-2]
[null,"3201 Ausencia y/o deficiencia de resguardos y de dispositivos de protección",5,7.8616352201257862E-3,2.5773195876288658E-2]
[null,"4102 Deficiente ubicación, defectos de estabilidad en equipos de trabajo debido a una incorrecta construcción, montaje y",5,7.8616352201257862E-3,2.5773195876288658E-2]
[null,"4106 Escalera de mano insegura (material no resistente, apoyos inadecuados ….)",5,7.8616352201257862E-3,2.5773195876288658E-2]
[null,"5104 Deficiente sistema de almacenamiento, empaquetado, paletizado, apilamiento atc",5,7.8616352201257862E-3,2.5773195876288658E-2]
[null,"6108 Sobrecarga trabajador (fatiga física o mental)",5,7.8616352201257862E-3,2.5773195876288658E-2]
[null,"6109 Existencia de interferencias o falta de coordinación entre trabajadores que realizan la misma o distintas tareas",5,7.8616352201257862E-3,2.5773195876288658E-2]
[null,"6201 Operación inhabitual para el operario que la realiza, sea ordinaria o esporádica",5,7.8616352201257862E-3,2.5773195876288658E-2]
[null,"6302 Instrucciones inexistentes",5,7.8616352201257862E-3,2.5773195876288658E-2]
[null,"6406 Utilización de útiles, herramientas y medios auxiliares de manera no prevista por el fabricante.",5,7.8616352201257862E-3,2.5773195876288658E-2]
[null,"6408 No comprobación del estado de las maquinas, herramientas, equipos o medios auxiliares antes de su utilización",5,7.8616352201257862E-3,2.5773195876288658E-2]
[null,"6499 Otras causas relativas a la selección y utilización de equipos y materiales",5,7.8616352201257862E-3,2.5773195876288658E-2]
[null,"7205 Mantenimiento preventivo inexistente o inadecuado o falta de revisiones periódicas oficiales.",5,7.8616352201257862E-3,2.5773195876288658E-2]
[null,"7210 Vigilancia de la salud inadecuada a los riesgos del puesto de trabajo",5,7.8616352201257862E-3,2.5773195876288658E-2]
[null,"8101 Realización de tareas no asignadas",5,7.8616352201257862E-3,2.5773195876288658E-2]
[null,"1103 Espacio insuficiente en lugares de trabajo o en las zonas de tránsito",4,6.2893081761006293E-3,2.0618556701030927E-2]
[null,"1105 Aberturas y huecos desprotegidos",4,6.2893081761006293E-3,2.0618556701030927E-2]
[null,"1299 Otras causas relativas al orden y limpieza",4,6.2893081761006293E-3,2.0618556701030927E-2]
[null,"1307 Causas relativas a la temperatura y condiciones termo higrométricas",4,6.2893081761006293E-3,2.0618556701030927E-2]
[null,"3102 Modificaciones realizadas en la maquina que dan lugar a situaciones de riesgo no previstas por el fabricante.",4,6.2893081761006293E-3,2.0618556701030927E-2]
[null,"3104 Defectos de estabilidad en equipos, maquinas o sus componentes",4,6.2893081761006293E-3,2.0618556701030927E-2]
[null,"3109 Órganos de accionamiento inseguros",4,6.2893081761006293E-3,2.0618556701030927E-2]
[null,"3111 Accesibilidad a órganos de la máquina peligrosos (atrapantes, cortantes, punzantes, o con posibilidad de ocasionar",4,6.2893081761006293E-3,2.0618556701030927E-2]
[null,"3302 Deficiencia/ausencia del manual de instrucciones de máquinas",4,6.2893081761006293E-3,2.0618556701030927E-2]
[null,"4199 Otras causas relativas al diseño, ubicación, construccion, montaje, y limpieza  de otros equipos de trabajo.",4,6.2893081761006293E-3,2.0618556701030927E-2]
[null,"7211 Ausencia/deficiencias de permisos y/o procedimientos de trabajo en intervenciones peligrosas (por ejemplo soldadura",4,6.2893081761006293E-3,2.0618556701030927E-2]
[null,"7299 Otras causas relativas a las actividades preventivas",4,6.2893081761006293E-3,2.0618556701030927E-2]
[null,"8105 Uso indebido o no utilización de medios auxiliares de trabajo o de seguridad puestos a disposición por la empresa y",4,6.2893081761006293E-3,2.0618556701030927E-2]
[null,"9299 Hechos no causales",4,6.2893081761006293E-3,2.0618556701030927E-2]
[null,"1109 Dificultad/deficiencia en el acceso al puesto de trabajo.",3,4.7169811320754715E-3,1.5463917525773196E-2]
[null,"1201 Orden y limpieza deficientes",3,4.7169811320754715E-3,1.5463917525773196E-2]
[null,"3101 Diseño incorrecto de la máquina o componente que hace que no se cumplan los principios de la prevención intrínseca",3,4.7169811320754715E-3,1.5463917525773196E-2]
[null,"4203 Ausencia/deficiencia de protecciones colectivas frente a caídas de personas y objetos desde equipos de trabajo",3,4.7169811320754715E-3,1.5463917525773196E-2]
[null,"4301 Deficiencia/ausencia del manual de instrucciones o señalización (nota: el fallo puede consistir en la inexistencia",3,4.7169811320754715E-3,1.5463917525773196E-2]
[null,"5105 Zonas de almacenamiento inadecuadas o no previstas.",3,4.7169811320754715E-3,1.5463917525773196E-2]
[null,"6103 Diseño inadecuado del trabajo o tarea",3,4.7169811320754715E-3,1.5463917525773196E-2]
[null,"6199 Otras causas relativas a los métodos de trabajo",3,4.7169811320754715E-3,1.5463917525773196E-2]
[null,"8104 Uso indebido de materiales, herramientas o útiles de trabajo, puestos a disposición por la empresa",3,4.7169811320754715E-3,1.5463917525773196E-2]
[null,"8109 Adopción de una postura inadecuada en el puesto de trabajo",3,4.7169811320754715E-3,1.5463917525773196E-2]
[null,"1101 Deficiente diseño ergonómico del puesto de trabajo.",2,3.1446540880503146E-3,1.0309278350515464E-2]
[null,"1111 Escaleras fijas, de servicio o escala inseguras por falta de anchura, peldaño desigual, huella insufiente etc o en",2,3.1446540880503146E-3,1.0309278350515464E-2]
[null,"1116 Vías de circulación deficientes (insuficentes, mal dimensionadas o faltas de separación entre ellas)",2,3.1446540880503146E-3,1.0309278350515464E-2]
[null,"1203 No delimitación entre las zonas de trabajo o tránsito y las de almacenamiento o no respetar las zonas establecidas.",2,3.1446540880503146E-3,1.0309278350515464E-2]
[null,"1305 Iluminación insuficiente o inapropiada",2,3.1446540880503146E-3,1.0309278350515464E-2]
[null,"1308 Causas relativas a los aspectos meteorológicos",2,3.1446540880503146E-3,1.0309278350515464E-2]
[null,"2101 Corte no debidamente previsto de suministro energético o de servicios (agua, electricidad, aire comprimido, gases e",2,3.1446540880503146E-3,1.0309278350515464E-2]
[null,"2103 Defectos en el diseño, construcción, montaje, mantenimiento o uso de instalaciones eléctricas (ubicación de celdas",2,3.1446540880503146E-3,1.0309278350515464E-2]
[null,"2201 Ausencia/deficiencia de medios para evitar los contactos eléctricos directos",2,3.1446540880503146E-3,1.0309278350515464E-2]
[null,"3113 Deficiencia de los medios de acceso al puesto de trabajo o de conducción de la maquina",2,3.1446540880503146E-3,1.0309278350515464E-2]
[null,"3199 Otras causas relativas al diseño, ubicación, construccion, montaje, mantenimiento reparación y limpieza de máquinas",2,3.1446540880503146E-3,1.0309278350515464E-2]
[null,"5106 Falta de planificación y/o vigilancia en operaciones de levantamiento de cargas",2,3.1446540880503146E-3,1.0309278350515464E-2]
[null,"6106 Trabajos solitarios sin las medidas de prevención adecuadas",2,3.1446540880503146E-3,1.0309278350515464E-2]
[null,"6301 Deficiencias en el sistema de comunicación a nivel horizontal o vertical, incluyendo la incomprensión del idioma.",2,3.1446540880503146E-3,1.0309278350515464E-2]
[null,"6306 Deficiencia/ausencia de información o señalización visual o acústica obligatoria o necesaria, incluyendo la utiliza",2,3.1446540880503146E-3,1.0309278350515464E-2]
[null,"7104 Deficiencias en la organización de los recursos obligatorios (organización preventiva) para la realización de las a",2,3.1446540880503146E-3,1.0309278350515464E-2]
[null,"7199 Otras causas relativas a la gestión de la prevención",2,3.1446540880503146E-3,1.0309278350515464E-2]
[null,"7999 Otras causas relativas a la gestión de la prevención",2,3.1446540880503146E-3,1.0309278350515464E-2]
[null,"8107 Retirada o anulación de protecciones o dispositivos de seguridad",2,3.1446540880503146E-3,1.0309278350515464E-2]
[null,"8999 Otras causas relativas a los factores personales-individuales",2,3.1446540880503146E-3,1.0309278350515464E-2]
[null,"1102 Superficies de trabajo habitualmente inestables, incluidos barcos.",1,1.5723270440251573E-3,5.1546391752577319E-3]
[null,"1112 Vías de evacuación o salida no señalizadas o señalizadas de forma insuficiente o incorrecta",1,1.5723270440251573E-3,5.1546391752577319E-3]
[null,"1999 Otras causas relativas a las condiciones de los espacios de trabajo",1,1.5723270440251573E-3,5.1546391752577319E-3]
[null,"2209 Generación de atmósferas peligrosas por deficiencias de ventilación, natural o forzada",1,1.5723270440251573E-3,5.1546391752577319E-3]
[null,"3115 Defectos o ausencia en el sistema de dirección de la maquina automotriz, en el mecanismo de embrague, en el sistema",1,1.5723270440251573E-3,5.1546391752577319E-3]
[null,"3202 Parada de emergencia inexistente, ineficaz o no accesible",1,1.5723270440251573E-3,5.1546391752577319E-3]
[null,"3203 Ausencia/deficiencia de protecciones colectivas frente a caídas de personas y objetos desde máquinas",1,1.5723270440251573E-3,5.1546391752577319E-3]
[null,"3205 Ausencia/deficiencia de estructura de protección contra caída de materiales (f.o.p.s.)",1,1.5723270440251573E-3,5.1546391752577319E-3]
[null,"3206 Ausencia de medios técnicos para la consignación (imposibilidad de puesta en marcha) de la máquina o vehículo",1,1.5723270440251573E-3,5.1546391752577319E-3]
[null,"3299 Otras causas relativas a los elementos y dispositivos de protección de máquinas.",1,1.5723270440251573E-3,5.1546391752577319E-3]
[null,"4101 Diseño incorrecto del equipo que hace que no se cumplan los principios de la prevención intrínseca y/o de la ergono",1,1.5723270440251573E-3,5.1546391752577319E-3]
[null,"4103 Resistencia mecánica insuficiente del equipo de trabajo",1,1.5723270440251573E-3,5.1546391752577319E-3]
[null,"4201 Ausencia/deficiencia de elementos de seguridad en los medios de elevación de cargas (pestillos de seguridad en ganc",1,1.5723270440251573E-3,5.1546391752577319E-3]
[null,"5101 Defectos en los materiales utilizados de forma general, excluídos los que conforman una máquina, instalación y equi",1,1.5723270440251573E-3,5.1546391752577319E-3]
[null,"5199 Otras causas relativas a la manipulación y almacenamiento de materiales",1,1.5723270440251573E-3,5.1546391752577319E-3]
[null,"5202 Ausencia o deficiencia en los procedimientos de manipulado o almacenamiento de productos químicos (sustancias o pre",1,1.5723270440251573E-3,5.1546391752577319E-3]
[null,"5206 Posibilidad de contacto o mezcla de productos químicos (sustancias o preparados) incompatibles o que pueden generar",1,1.5723270440251573E-3,5.1546391752577319E-3]
[null,"5399 Otras causas relativas a los agentes biologicos y seres vivos",1,1.5723270440251573E-3,5.1546391752577319E-3]
[null,"6107 Sobrecarga de la máquina o equipo (respecto a sus características técnicas)",1,1.5723270440251573E-3,5.1546391752577319E-3]
[null,"6111 No organizar el trabajo teniendo en cuenta las condiciones meteorológicas adversas.",1,1.5723270440251573E-3,5.1546391752577319E-3]
[null,"6203 Operación extraordinaria realizada en caso de incidentes, accidentes o emergencias.",1,1.5723270440251573E-3,5.1546391752577319E-3]
[null,"6299 Otras causas relativas a la organización de las tareas",1,1.5723270440251573E-3,5.1546391752577319E-3]
[null,"6409 Ausencia de medios organizativos o procedimientos para la consignación de máquinas, instalaciones y lugares de trab",1,1.5723270440251573E-3,5.1546391752577319E-3]
[null,"6999 Otras causas relativas a la organización del trabajo",1,1.5723270440251573E-3,5.1546391752577319E-3]
[null,"7108 No apreciar las características de los trabajadores para la realización de la tarea o en función de los riesgos",1,1.5723270440251573E-3,5.1546391752577319E-3]
[null,"7207 Inexistencia o inadecuación de plan y/o medidas de emergencia.",1,1.5723270440251573E-3,5.1546391752577319E-3]
[null,"8201 Incapacidad física o mental para la realización normal del trabajo.",1,1.5723270440251573E-3,5.1546391752577319E-3]
[null,"8203 Falta de cualificación y/o experiencia para la tarea realizada achacable al trabajador",1,1.5723270440251573E-3,5.1546391752577319E-3]
[null,"Total",{"$f":"SUM(C8:C128)","v":636},{"$f":"SUM(D8:D128)","v":1.0000000000000029},{"$f":"SUM(E8:E128)","v":3.2783505154639134}]
[null,{"$f":"Nota","v":"(*) Accidentes asignados en 2022 para su investigación en el mismo periodo y durante el año 2023"}]

{"sheet":"Hoja3","index":6,"n_rows":24,"n_cols":10,"rows_kept":24,"cut":false,"hidden":true,"merged":[[2,0,2,2],[15,0,15,9],[16,0,17,0]]}
[]
[]
["Accidentes investigados según sector de actividad y porcentaje .(*)"]
[{"$f":"año_publi","v":2022},"Frecuencia","Porcentaje"]
["Agricultura y ganadería",0,0]
["Industria, energía y minería",22,0.1134020618556701]
["Construcción",80,0.41237113402061859]
["Servicios",92,0.47422680412371138]
[{"$f":"Nota","v":"(*) Accidentes asignados en 2022 para su investigación en el mismo periodo y durante el año 2023"}]
[]
[]
[]
[]
[]
[]
["Bloques de causa de los accidentes graves, muy graves y mortales investigados según sector de actividad y porcentaje . (*)"]
[2022,"Total","Prevención intrínseca","Protección, señalización","Materiales, productos o agentes","Espacios y superficies de trabajo","Organización del trabajo","Gestión de la prevención","Factores individuales","Otras causas"]
[null,"Porcentaje","Porcentaje","Porcentaje","Porcentaje","Porcentaje","Porcentaje","Porcentaje","Porcentaje","Porcentaje"]
["Total",1,0.20103092783505155,0.18041237113402062,8.7628865979381451E-2,0.22164948453608246,0.55154639175257736,0.4845360824742268,0.38659793814432986,8.2474226804123696E-2]
["Agricultura y ganaderia",0,0,0,0,0,0,0,0,0]
["Industria",1,0.27272727272727271,9.0909090909090912E-2,0.13636363636363635,9.0909090909090912E-2,0.63636363636363635,0.59090909090909094,0.36363636363636365,4.5454545454545456E-2]
["Construcción",1,0.25,0.21249999999999999,6.25E-2,0.23749999999999999,0.58750000000000002,0.53749999999999998,0.41249999999999998,2.5000000000000001E-2]
["Servicios",1,0.14130434782608695,0.17391304347826086,9.7826086956521743E-2,0.2391304347826087,0.5,0.41304347826086951,0.36956521739130438,0.14130434782608695]
[{"$f":"Nota","v":"(*) Accidentes asignados en 2022 para su investigación en el mismo periodo y durante el año 2023"}]

{"sheet":"Hoja4","index":7,"n_rows":10,"n_cols":16376,"rows_kept":10,"cut":false,"hidden":true,"merged":[[5,0,5,4],[6,0,7,1],[6,2,6,3],[6,4,7,4]]}
[]
[]
[]
[]
[]
["Causas  de los accidentes graves y porcentaje. Ordenados por frecuencia . (*)"]
[{"$f":"año_publi","v":2022},null,"Respuestas",null,"Porcentaje de casos",null,null,null,null,null,null,null,null,null,null,null,null,null,null,null,null,null,null,null,null,null,null,null,null,null,null,null,null,null,null,null,null,null,null,null,null,null,null,null,null,null,null,null,null,null,null,null,null,null,null,null,null,null,null,null,null,null,null,null,null,null,null,null,null,null,null,null,null,null,null,null,null,null,null,null,null,null,null,null,null,null,null,null,null,null,null,null,null,null,null,null,null,null,null,null,null,null,null,null,null,null,null,null,null,null,null,null,null,null,null,null,null,null,null,null,null,null,null,null,null,null,null,null,null,null,null,null,null,null,null,null,null,null,null,null,null,null,null,null,null,null,null,null,null,null,null,null,null,null,null,null,null,null,null,null,null,null,null,null,null,null,null,null,null,null,null,null,null,null,null,null,null,null,null,null,null,null,null,null,null,null,null,null,null,null,null,null,null,null,null,null,null,null,null,null,null,null,null,null,null,null,null,null,null,null,null,null,null,null,null,null,null,null,null,null,null,null,null,null,null,null,null,null,null,null,null,null,null,null,null,null,null,null,null,null,null,null,null,null,null,null,null,null,null,null,null,null,null,null,null,null,null,null,null,null,null,null,null,null,null,null,null,null,null,null,null,null,null,null,null,null,null,null,null,null,null,null,null,null,null,null,null,null,null,null,null,null,null,null,null,null,null,null,null,null,null,null,null,null,null,null,null,null,null,null,null,null,null,null,null,null,null,null,null,null,null,null,null,null,null,null,null,null,null,null,null,null,null,null,null,null,null,null,null,null,null,null,null,null,null,null,null,null,null,null,null,null,null,null,null,null,null,null,null,null,null,null,null,null,null,null,null,null,null,null,null,null,null,null,null,null,null,null,null,null,null,null,null,null,null,null,null,null,null,null,null,null,null,null,null,null,null,null,null,null,null,null,null,null,null,null,null,null,null,null,null,null,null,null,null,null,null,null,null,null,null,null,null,null,null,null,null,null,null,null,null,null,null,null,null,null,null,null,null,null,null,null,null,null,null,null,null,null,null,null,null,null,null,null,null,null,null,null,null,null,null,null,null,null,null,null,null,null,null,null,null,null,null,null,null,null,null,null,null,null,null,null,null,null,null,null,null,null,null,null,null,null,null,null,null,null,null,null,null,null,null,null,null,null,null,null,null,null,null,null,null,null,null,null,null,null,null,null,null,null,null,null,null,null,null,null,null,null,null,null,null,null,null,null,null,null,null,null,null,null,null,null,null,null,null,null,null,null,null,null,null,null,null,null,null,null,null,null,null,null,null,null,null,null,null,null,null,null,null,null,null,null,null,null,null,null,null,null,null,null,null,null,null,null,null,null,null,null,null,null,null,null,null,null,null,null,null,null,null,null,null,null,null,null,null,null,null,null,null,null,null,null,null,null,null,null,null,null,null,null,null,null,null,null,null,null,null,null,null,null,null,null,null,null,null,null,null,null,null,null,null,null,null,null,null,null,null,null,null,null,null,null,null,null,null,null,null,null,null,null,null,null,null,null,null,null,null,null,null,null,null,null,null,null,null,null,null,null,null,null,null,null,null,null,null,null,null,null,null,null,null,null,null,null,null,null,null,null,null,null,null,null,null,null,null,null,null,null,null,null,null,null,null,null,null,null,null,null,null,null,null,null,null,null,null,null,null,null,null,null,null,null,null,null,null,null,null,null,null,null,null,null,null,null,null,null,null,null,null,null,null,null,null,null,null,null,null,null,null,null,null,null,null,null,null,null,null,null,null,null,null,null,null,null,null,null,null,null,null,null,null,null,null,null,null,null,null,null,null,null,null,null,null,null,null,null,null,null,null,null,null,null,null,null,null,null,null,null,null,null,null,null,null,null,null,null,null,null,null,null,null,null,null,null,null,null,null,null,null,null,null,null,null,null,null,null,null,null,null,null,null,null,null,null,null,null,null,null,null,null,null,null,null,null,null,null,null,null,null,null,null,null,null,null,null,null,null,null,null,null,null,null,null,null,null,null,null,null,null,null,null,null,null,null,null,null,null,null,null,null,null,null,null,null,null,null,null,null,null,null,null,null,null,null,null,null,null,null,null,null,null,null,null,null,null,null,null,null,null,null,null,null,null,null,null,null,null,null,null,null,null,null,null,null,null,null,null,null,null,null,null,null,null,null,null,null,null,null,null,null,null,null,null,null,null,null,null,null,null,null,null,null,null,null,null,null,null,null,null,null,null,null,null,null,null,null,null,null,null,null,null,null,null,null,null,null,null,null,null,null,null,null,null,null,null,null,null,null,null,null,null,null,null,null,null,null,null,null,null,null,null,null,null,null,null,null,null,null,null,null,null,null,null,null,null,null,null,null,null,null,null,null,null,null,null,null,null,null,null,null,null,null,null,null,null,null,null,null,null,null,null,null,null,null,null,null,null,null,null,null,null,null,null,null,null,null,null,null,null,null,null,null,null,null,null,null,null,null,null,null,null,null,null,null,null,null,null,null,null,null,null,null,null,null,null,null,null,null,null,null,null,null,null,null,null,null,null,null,null,null,null,null,null,null,null,null,null,null,null,null,null,null,null,null,null,null,null,null,null,null,null,null,null,null,null,null,null,null,null,null,null,null,null,null,null,null,null,null,null,null,null,null,null,null,null,null,null,null,null,null,null,null,null,null,null,null,null,null,null,null,null,null,null,null,null,null,null,null,null,null,null,null,null,null,null,null,null,null,null,null,null,null,null,null,null,null,null,null,null,null,null,null,null,null,null,null,null,null,null,null,null,null,null,null,null,null,null,null,null,null,null,null,null,null,null,null,null,null,null,null,null,null,null,null,null,null,null,null,null,null,null,null,null,null,null,null,null,null,null,null,null,null,null,null,null,null,null,null,null,null,null,null,null,null,null,null,null,null,null,null,null,null,null,null,null,null,null,null,null,null,null,null,null,null,null,null,null,null,null,null,null,null,null,null,null,null,null,null,null,null,null,null,null,null,null,null,null,null,null,null,null,null,null,null,null,null,null,null,null,null,null,null,null,null,null,null,null,null,null,null,null,null,null,null,null,null,null,null,null,null,null,null,null,null,null,null,null,null,null,null,null,null,null,null,null,null,null,null,null,null,null,null,null,null,null,null,null,null,null,null,null,null,null,null,null,null,null,null,null,null,null,null,null,null,null,null,null,null,null,null,null,null,null,null,null,null,null,null,null,null,null,null,null,null,null,null,null,null,null,null,null,null,null,null,null,null,null,null,null,null,null,null,null,null,null,null,null,null,null,null,null,null,null,null,null,null,null,null,null,null,null,null,null,null,null,null,null,null,null,null,null,null,null,null,null,null,null,null,null,null,null,null,null,null,null,null,null,null,null,null,null,null,null,null,null,null,null,null,null,null,null,null,null,null,null,null,null,null,null,null,null,null,null,null,null,null,null,null,null,null,null,null,null,null,null,null,null,null,null,null,null,null,null,null,null,null,null,null,null,null,null,null,null,null,null,null,null,null,null,null,null,null,null,null,null,null,null,null,null,null,null,null,null,null,null,null,null,null,null,null,null,null,null,null,null,null,null,null,null,null,null,null,null,null,null,null,null,null,null,null,null,null,null,null,null,null,null,null,null,null,null,null,null,null,null,null,null,null,null,null,null,null,null,null,null,null,null,null,null,null,null,null,null,null,null,null,null,null,null,null,null,null,null,null,null,null,null,null,null,null,null,null,null,null,null,null,null,null,null,null,null,null,null,null,null,null,null,null,null,null,null,null,null,null,null,null,null,null,null,null,null,null,null,null,null,null,null,null,null,null,null,null,null,null,null,null,null,null,null,null,null,null,null,null,null,null,null,null,null,null,null,null,null,null,null,null,null,null,null,null,null,null,null,null,null,null,null,null,null,null,null,null,null,null,null,null,null,null,null,null,null,null,null,null,null,null,null,null,null,null,null,null,null,null,null,null,null,null,null,null,null,null,null,null,null,null,null,null,null,null,null,null,null,null,null,null,null,null,null,null,null,null,null,null,null,null,null,null,null,null,null,null,null,null,null,null,null,null,null,null,null,null,null,null,null,null,null,null,null,null,null,null,null,null,null,null,null,null,null,null,null,null,null,null,null,null,null,null,null,null,null,null,null,null,null,null,null,null,null,null,null,null,null,null,null,null,null,null,null,null,null,null,null,null,null,null,null,null,null,null,null,null,null,null,null,null,null,null,null,null,null,null,null,null,null,null,null,null,null,null,null,null,null,null,null,null,null,null,null,null,null,null,null,null,null,null,null,null,null,null,null,null,null,null,null,null,null,null,null,null,null,null,null,null,null,null,null,null,null,null,null,null,null,null,null,null,null,null,null,null,null,null,null,null,null,null,null,null,null,null,null,null,null,null,null,null,null,null,null,null,null,null,null,null,null,null,null,null,null,null,null,null,null,null,null,null,null,null,null,null,null,null,null,null,null,null,null,null,null,null,null,null,null,null,null,null,null,null,null,null,null,null,null,null,null,null,null,null,null,null,null,null,null,null,null,null,null,null,null,null,null,null,null,null,null,null,null,null,null,null,null,null,null,null,null,null,null,null,null,null,null,null,null,null,null,null,null,null,null,null,null,null,null,null,null,null,null,null,null,null,null,null,null,null,null,null,null,null,null,null,null,null,null,null,null,null,null,null,null,null,null,null,null,null,null,null,null,null,null,null,null,null,null,null,null,null,null,null,null,null,null,null,null,null,null,null,null,null,null,null,null,null,null,null,null,null,null,null,null,null,null,null,null,null,null,null,null,null,null,null,null,null,null,null,null,null,null,null,null,null,null,null,null,null,null,null,null,null,null,null,null,null,null,null,null,null,null,null,null,null,null,null,null,null,null,null,null,null,null,null,null,null,null,null,null,null,null,null,null,null,null,null,null,null,null,null,null,null,null,null,null,null,null,null,null,null,null,null,null,null,null,null,null,null,null,null,null,null,null,null,null,null,null,null,null,null,null,null,null,null,null,null,null,null,null,null,null,null,null,null,null,null,null,null,null,null,null,null,null,null,null,null,null,null,null,null,null,null,null,null,null,null,null,null,null,null,null,null,null,null,null,null,null,null,null,null,null,null,null,null,null,null,null,null,null,null,null,null,null,null,null,null,null,null,null,null,null,null,null,null,null,null,null,null,null,null,null,null,null,null,null,null,null,null,null,null,null,null,null,null,null,null,null,null,null,null,null,null,null,null,null,null,null,null,null,null,null,null,null,null,null,null,null,null,null,null,null,null,null,null,null,null,null,null,null,null,null,null,null,null,null,null,null,null,null,null,null,null,null,null,null,null,null,null,null,null,null,null,null,null,null,null,null,null,null,null,null,null,null,null,null,null,null,null,null,null,null,null,null,null,null,null,null,null,null,null,null,null,null,null,null,null,null,null,null,null,null,null,null,null,null,null,null,null,null,null,null,null,null,null,null,null,null,null,null,null,null,null,null,null,null,null,null,null,null,null,null,null,null,null,null,null,null,null,null,null,null,null,null,null,null,null,null,null,null,null,null,null,null,null,null,null,null,null,null,null,null,null,null,null,null,null,null,null,null,null,null,null,null,null,null,null,null,null,null,null,null,null,null,null,null,null,null,null,null,null,null,null,null,null,null,null,null,null,null,null,null,null,null,null,null,null,null,null,null,null,null,null,null,null,null,null,null,null,null,null,null,null,null,null,null,null,null,null,null,null,null,null,null,null,null,null,null,null,null,null,null,null,null,null,null,null,null,null,null,null,null,null,null,null,null,null,null,null,null,null,null,null,null,null,null,null,null,null,null,null,null,null,null,null,null,null,null,null,null,null,null,null,null,null,null,null,null,null,null,null,null,null,null,null,null,null,null,null,null,null,null,null,null,null,null,null,null,null,null,null,null,null,null,null,null,null,null,null,null,null,null,null,null,null,null,null,null,null,null,null,null,null,null,null,null,null,null,null,null,null,null,null,null,null,null,null,null,null,null,null,null,null,null,null,null,null,null,null,null,null,null,null,null,null,null,null,null,null,null,null,null,null,null,null,null,null,null,null,null,null,null,null,null,null,null,null,null,null,null,null,null,null,null,null,null,null,null,null,null,null,null,null,null,null,null,null,null,null,null,null,null,null,null,null,null,null,null,null,null,null,null,null,null,null,null,null,null,null,null,null,null,null,null,null,null,null,null,null,null,null,null,null,null,null,null,null,null,null,null,null,null,null,null,null,null,null,null,null,null,null,null,null,null,null,null,null,null,null,null,null,null,null,null,null,null,null,null,null,null,null,null,null,null,null,null,null,null,null,null,null,null,null,null,null,null,null,null,null,null,null,null,null,null,null,null,null,null,null,null,null,null,null,null,null,null,null,null,null,null,null,null,null,null,null,null,null,null,null,null,null,null,null,null,null,null,null,null,null,null,null,null,null,null,null,null,null,null,null,null,null,null,null,null,null,null,null,null,null,null,null,null,null,null,null,null,null,null,null,null,null,null,null,null,null,null,null,null,null,null,null,null,null,null,null,null,null,null,null,null,null,null,null,null,null,null,null,null,null,null,null,null,null,null,null,null,null,null,null,null,null,null,null,null,null,null,null,null,null,null,null,null,null,null,null,null,null,null,null,null,null,null,null,null,null,null,null,null,null,null,null,null,null,null,null,null,null,null,null,null,null,null,null,null,null,null,null,null,null,null,null,null,null,null,null,null,null,null,null,null,null,null,null,null,null,null,null,null,null,null,null,null,null,null,null,null,null,null,null,null,null,null,null,null,null,null,null,null,null,null,null,null,null,null,null,null,null,null,null,null,null,null,null,null,null,null,null,null,null,null,null,null,null,null,null,null,null,null,null,null,null,null,null,null,null,null,null,null,null,null,null,null,null,null,null,null,null,null,null,null,null,null,null,null,null,null,null,null,null,null,null,null,null,null,null,null,null,null,null,null,null,null,null,null,null,null,null,null,null,null,null,null,null,null,null,null,null,null,null,null,null,null,null,null,null,null,null,null,null,null,null,null,null,null,null,null,null,null,null,null,null,null,null,null,null,null,null,null,null,null,null,null,null,null,null,null,null,null,null,null,null,null,null,null,null,null,null,null,null,null,null,null,null,null,null,null,null,null,null,null,null,null,null,null,null,null,null,null,null,null,null,null,null,null,null,null,null,null,null,null,null,null,null,null,null,null,null,null,null,null,null,null,null,null,null,null,null,null,null,null,null,null,null,null,null,null,null,null,null,null,null,null,null,null,null,null,null,null,null,null,null,null,null,null,null,null,null,null,null,null,null,null,null,null,null,null,null,null,null,null,null,null,null,null,null,null,null,null,null,null,null,null,null,null,null,null,null,null,null,null,null,null,null,null,null,null,null,null,null,null,null,null,null,null,null,null,null,null,null,null,null,null,null,null,null,null,null,null,null,null,null,null,null,null,null,null,null,null,null,null,null,null,null,null,null,null,null,null,null,null,null,null,null,null,null,null,null,null,null,null,null,null,null,null,null,null,null,null,null,null,null,null,null,null,null,null,null,null,null,null,null,null,null,null,null,null,null,null,null,null,null,null,null,null,null,null,null,null,null,null,null,null,null,null,null,null,null,null,null,null,null,null,null,null,null,null,null,null,null,null,null,null,null,null,null,null,null,null,null,null,null,null,null,null,null,null,null,null,null,null,null,null,null,null,null,null,null,null,null,null,null,null,null,null,null,null,null,null,null,null,null,null,null,null,null,null,null,null,null,null,null,null,null,null,null,null,null,null,null,null,null,null,null,null,null,null,null,null,null,null,null,null,null,null,null,null,null,null,null,null,null,null,null,null,null,null,null,null,null,null,null,null,null,null,null,null,null,null,null,null,null,null,null,null,null,null,null,null,null,null,null,null,null,null,null,null,null,null,null,null,null,null,null,null,null,null,null,null,null,null,null,null,null,null,null,null,null,null,null,null,null,null,null,null,null,null,null,null,null,null,null,null,null,null,null,null,null,null,null,null,null,null,null,null,null,null,null,null,null,null,null,null,null,null,null,null,null,null,null,null,null,null,null,null,null,null,null,null,null,null,null,null,null,null,null,null,null,null,null,null,null,null,null,null,null,null,null,null,null,null,null,null,null,null,null,null,null,null,null,null,null,null,null,null,null,null,null,null,null,null,null,null,null,null,null,null,null,null,null,null,null,null,null,null,null,null,null,null,null,null,null,null,null,null,null,null,null,null,null,null,null,null,null,null,null,null,null,null,null,null,null,null,null,null,null,null,null,null,null,null,null,null,null,null,null,null,null,null,null,null,null,null,null,null,null,null,null,null,null,null,null,null,null,null,null,null,null,null,null,null,null,null,null,null,null,null,null,null,null,null,null,null,null,null,null,null,null,null,null,null,null,null,null,null,null,null,null,null,null,null,null,null,null,null,null,null,null,null,null,null,null,null,null,null,null,null,null,null,null,null,null,null,null,null,null,null,null,null,null,null,null,null,null,null,null,null,null,null,null,null,null,null,null,null,null,null,null,null,null,null,null,null,null,null,null,null,null,null,null,null,null,null,null,null,null,null,null,null,null,null,null,null,null,null,null,null,null,null,null,null,null,null,null,null,null,null,null,null,null,null,null,null,null,null,null,null,null,null,null,null,null,null,null,null,null,null,null,null,null,null,null,null,null,null,null,null,null,null,null,null,null,null,null,null,null,null,null,null,null,null,null,null,null,null,null,null,null,null,null,null,null,null,null,null,null,null,null,null,null,null,null,null,null,null,null,null,null,null,null,null,null,null,null,null,null,null,null,null,null,null,null,null,null,null,null,null,null,null,null,null,null,null,null,null,null,null,null,null,null,null,null,null,null,null,null,null,null,null,null,null,null,null,null,null,null,null,null,null,null,null,null,null,null,null,null,null,null,null,null,null,null,null,null,null,null,null,null,null,null,null,null,null,null,null,null,null,null,null,null,null,null,null,null,null,null,null,null,null,null,null,null,null,null,null,null,null,null,null,null,null,null,null,null,null,null,null,null,null,null,null,null,null,null,null,null,null,null,null,null,null,null,null,null,null,null,null,null,null,null,null,null,null,null,null,null,null,null,null,null,null,null,null,null,null,null,null,null,null,null,null,null,null,null,null,null,null,null,null,null,null,null,null,null,null,null,null,null,null,null,null,null,null,null,null,null,null,null,null,null,null,null,null,null,null,null,null,null,null,null,null,null,null,null,null,null,null,null,null,null,null,null,null,null,null,null,null,null,null,null,null,null,null,null,null,null,null,null,null,null,null,null,null,null,null,null,null,null,null,null,null,null,null,null,null,null,null,null,null,null,null,null,null,null,null,null,null,null,null,null,null,null,null,null,null,null,null,null,null,null,null,null,null,null,null,null,null,null,null,null,null,null,null,null,null,null,null,null,null,null,null,null,null,null,null,null,null,null,null,null,null,null,null,null,null,null,null,null,null,null,null,null,null,null,null,null,null,null,null,null,null,null,null,null,null,null,null,null,null,null,null,null,null,null,null,null,null,null,null,null,null,null,null,null,null,null,null,null,null,null,null,null,null,null,null,null,null,null,null,null,null,null,null,null,null,null,null,null,null,null,null,null,null,null,null,null,null,null,null,null,null,null,null,null,null,null,null,null,null,null,null,null,null,null,null,null,null,null,null,null,null,null,null,null,null,null,null,null,null,null,null,null,null,null,null,null,null,null,null,null,null,null,null,null,null,null,null,null,null,null,null,null,null,null,null,null,null,null,null,null,null,null,null,null,null,null,null,null,null,null,null,null,null,null,null,null,null,null,null,null,null,null,null,null,null,null,null,null,null,null,null,null,null,null,null,null,null,null,null,null,null,null,null,null,null,null,null,null,null,null,null,null,null,null,null,null,null,null,null,null,null,null,null,null,null,null,null,null,null,null,null,null,null,null,null,null,null,null,null,null,null,null,null,null,null,null,null,null,null,null,null,null,null,null,null,null,null,null,null,null,null,null,null,null,null,null,null,null,null,null,null,null,null,null,null,null,null,null,null,null,null,null,null,null,null,null,null,null,null,null,null,null,null,null,null,null,null,null,null,null,null,null,null,null,null,null,null,null,null,null,null,null,null,null,null,null,null,null,null,null,null,null,null,null,null,null,null,null,null,null,null,null,null,null,null,null,null,null,null,null,null,null,null,null,null,null,null,null,null,null,null,null,null,null,null,null,null,null,null,null,null,null,null,null,null,null,null,null,null,null,null,null,null,null,null,null,null,null,null,null,null,null,null,null,null,null,null,null,null,null,null,null,null,null,null,null,null,null,null,null,null,null,null,null,null,null,null,null,null,null,null,null,null,null,null,null,null,null,null,null,null,null,null,null,null,null,null,null,null,null,null,null,null,null,null,null,null,null,null,null,null,null,null,null,null,null,null,null,null,null,null,null,null,null,null,null,null,null,null,null,null,null,null,null,null,null,null,null,null,null,null,null,null,null,null,null,null,null,null,null,null,null,null,null,null,null,null,null,null,null,null,null,null,null,null,null,null,null,null,null,null,null,null,null,null,null,null,null,null,null,null,null,null,null,null,null,null,null,null,null,null,null,null,null,null,null,null,null,null,null,null,null,null,null,null,null,null,null,null,null,null,null,null,null,null,null,null,null,null,null,null,null,null,null,null,null,null,null,null,null,null,null,null,null,null,null,null,null,null,null,null,null,null,null,null,null,null,null,null,null,null,null,null,null,null,null,null,null,null,null,null,null,null,null,null,null,null,null,null,null,null,null,null,null,null,null,null,null,null,null,null,null,null,null,null,null,null,null,null,null,null,null,null,null,null,null,null,null,null,null,null,null,null,null,null,null,null,null,null,null,null,null,null,null,null,null,null,null,null,null,null,null,null,null,null,null,null,null,null,null,null,null,null,null,null,null,null,null,null,null,null,null,null,null,null,null,null,null,null,null,null,null,null,null,null,null,null,null,null,null,null,null,null,null,null,null,null,null,null,null,null,null,null,null,null,null,null,null,null,null,null,null,null,null,null,null,null,null,null,null,null,null,null,null,null,null,null,null,null,null,null,null,null,null,null,null,null,null,null,null,null,null,null,null,null,null,null,null,null,null,null,null,null,null,null,null,null,null,null,null,null,null,null,null,null,null,null,null,null,null,null,null,null,null,null,null,null,null,null,null,null,null,null,null,null,null,null,null,null,null,null,null,null,null,null,null,null,null,null,null,null,null,null,null,null,null,null,null,null,null,null,null,null,null,null,null,null,null,null,null,null,null,null,null,null,null,null,null,null,null,null,null,null,null,null,null,null,null,null,null,null,null,null,null,null,null,null,null,null,null,null,null,null,null,null,null,null,null,null,null,null,null,null,null,null,null,null,null,null,null,null,null,null,null,null,null,null,null,null,null,null,null,null,null,null,null,null,null,null,null,null,null,null,null,null,null,null,null,null,null,null,null,null,null,null,null,null,null,null,null,null,null,null,null,null,null,null,null,null,null,null,null,null,null,null,null,null,null,null,null,null,null,null,null,null,null,null,null,null,null,null,null,null,null,null,null,null,null,null,null,null,null,null,null,null,null,null,null,null,null,null,null,null,null,null,null,null,null,null,null,null,null,null,null,null,null,null,null,null,null,null,null,null,null,null,null,null,null,null,null,null,null,null,null,null,null,null,null,null,null,null,null,null,null,null,null,null,null,null,null,null,null,null,null,null,null,null,null,null,null,null,null,null,null,null,null,null,null,null,null,null,null,null,null,null,null,null,null,null,null,null,null,null,null,null,null,null,null,null,null,null,null,null,null,null,null,null,null,null,null,null,null,null,null,null,null,null,null,null,null,null,null,null,null,null,null,null,null,null,null,null,null,null,null,null,null,null,null,null,null,null,null,null,null,null,null,null,null,null,null,null,null,null,null,null,null,null,null,null,null,null,null,null,null,null,null,null,null,null,null,null,null,null,null,null,null,null,null,null,null,null,null,null,null,null,null,null,null,null,null,null,null,null,null,null,null,null,null,null,null,null,null,null,null,null,null,null,null,null,null,null,null,null,null,null,null,null,null,null,null,null,null,null,null,null,null,null,null,null,null,null,null,null,null,null,null,null,null,null,null,null,null,null,null,null,null,null,null,null,null,null,null,null,null,null,null,null,null,null,null,null,null,null,null,null,null,null,null,null,null,null,null,null,null,null,null,null,null,null,null,null,null,null,null,null,null,null,null,null,null,null,null,null,null,null,null,null,null,null,null,null,null,null,null,null,null,null,null,null,null,null,null,null,null,null,null,null,null,null,null,null,null,null,null,null,null,null,null,null,null,null,null,null,null,null,null,null,null,null,null,null,null,null,null,null,null,null,null,null,null,null,null,null,null,null,null,null,null,null,null,null,null,null,null,null,null,null,null,null,null,null,null,null,null,null,null,null,null,null,null,null,null,null,null,null,null,null,null,null,null,null,null,null,null,null,null,null,null,null,null,null,null,null,null,null,null,null,null,null,null,null,null,null,null,null,null,null,null,null,null,null,null,null,null,null,null,null,null,null,null,null,null,null,null,null,null,null,null,null,null,null,null,null,null,null,null,null,null,null,null,null,null,null,null,null,null,null,null,null,null,null,null,null,null,null,null,null,null,null,null,null,null,null,null,null,null,null,null,null,null,null,null,null,null,null,null,null,null,null,null,null,null,null,null,null,null,null,null,null,null,null,null,null,null,null,null,null,null,null,null,null,null,null,null,null,null,null,null,null,null,null,null,null,null,null,null,null,null,null,null,null,null,null,null,null,null,null,null,null,null,null,null,null,null,null,null,null,null,null,null,null,null,null,null,null,null,null,null,null,null,null,null,null,null,null,null,null,null,null,null,null,null,null,null,null,null,null,null,null,null,null,null,null,null,null,null,null,null,null,null,null,null,null,null,null,null,null,null,null,null,null,null,null,null,null,null,null,null,null,null,null,null,null,null,null,null,null,null,null,null,null,null,null,null,null,null,null,null,null,null,null,null,null,null,null,null,null,null,null,null,null,null,null,null,null,null,null,null,null,null,null,null,null,null,null,null,null,null,null,null,null,null,null,null,null,null,null,null,null,null,null,null,null,null,null,null,null,null,null,null,null,null,null,null,null,null,null,null,null,null,null,null,null,null,null,null,null,null,null,null,null,null,null,null,null,null,null,null,null,null,null,null,null,null,null,null,null,null,null,null,null,null,null,null,null,null,null,null,null,null,null,null,null,null,null,null,null,null,null,null,null,null,null,null,null,null,null,null,null,null,null,null,null,null,null,null,null,null,null,null,null,null,null,null,null,null,null,null,null,null,null,null,null,null,null,null,null,null,null,null,null,null,null,null,null,null,null,null,null,null,null,null,null,null,null,null,null,null,null,null,null,null,null,null,null,null,null,null,null,null,null,null,null,null,null,null,null,null,null,null,null,null,null,null,null,null,null,null,null,null,null,null,null,null,null,null,null,null,null,null,null,null,null,null,null,null,null,null,null,null,null,null,null,null,null,null,null,null,null,null,null,null,null,null,null,null,null,null,null,null,null,null,null,null,null,null,null,null,null,null,null,null,null,null,null,null,null,null,null,null,null,null,null,null,null,null,null,null,null,null,null,null,null,null,null,null,null,null,null,null,null,null,null,null,null,null,null,null,null,null,null,null,null,null,null,null,null,null,null,null,null,null,null,null,null,null,null,null,null,null,null,null,null,null,null,null,null,null,null,null,null,null,null,null,null,null,null,null,null,null,null,null,null,null,null,null,null,null,null,null,null,null,null,null,null,null,null,null,null,null,null,null,null,null,null,null,null,null,null,null,null,null,null,null,null,null,null,null,null,null,null,null,null,null,null,null,null,null,null,null,null,null,null,null,null,null,null,null,null,null,null,null,null,null,null,null,null,null,null,null,null,null,null,null,null,null,null,null,null,null,null,null,null,null,null,null,null,null,null,null,null,null,null,null,null,null,null,null,null,null,null,null,null,null,null,null,null,null,null,null,null,null,null,null,null,null,null,null,null,null,null,null,null,null,null,null,null,null,null,null,null,null,null,null,null,null,null,null,null,null,null,null,null,null,null,null,null,null,null,null,null,null,null,null,null,null,null,null,null,null,null,null,null,null,null,null,null,null,null,null,null,null,null,null,null,null,null,null,null,null,null,null,null,null,null,null,null,null,null,null,null,null,null,null,null,null,null,null,null,null,null,null,null,null,null,null,null,null,null,null,null,null,null,null,null,null,null,null,null,null,null,null,null,null,null,null,null,null,null,null,null,null,null,null,null,null,null,null,null,null,null,null,null,null,null,null,null,null,null,null,null,null,null,null,null,null,null,null,null,null,null,null,null,null,null,null,null,null,null,null,null,null,null,null,null,null,null,null,null,null,null,null,null,null,null,null,null,null,null,null,null,null,null,null,null,null,null,null,null,null,null,null,null,null,null,null,null,null,null,null,null,null,null,null,null,null,null,null,null,null,null,null,null,null,null,null,null,null,null,null,null,null,null,null,null,null,null,null,null,null,null,null,null,null,null,null,null,null,null,null,null,null,null,null,null,null,null,null,null,null,null,null,null,null,null,null,null,null,null,null,null,null,null,null,null,null,null,null,null,null,null,null,null,null,null,null,null,null,null,null,null,null,null,null,null,null,null,null,null,null,null,null,null,null,null,null,null,null,null,null,null,null,null,null,null,null,null,null,null,null,null,null,null,null,null,null,null,null,null,null,null,null,null,null,null,null,null,null,null,null,null,null,null,null,null,null,null,null,null,null,null,null,null,null,null,null,null,null,null,null,null,null,null,null,null,null,null,null,null,null,null,null,null,null,null,null,null,null,null,null,null,null,null,null,null,null,null,null,null,null,null,null,null,null,null,null,null,null,null,null,null,null,null,null,null,null,null,null,null,null,null,null,null,null,null,null,null,null,null,null,null,null,null,null,null,null,null,null,null,null,null,null,null,null,null,null,null,null,null,null,null,null,null,null,null,null,null,null,null,null,null,null,null,null,null,null,null,null,null,null,null,null,null,null,null,null,null,null,null,null,null,null,null,null,null,null,null,null,null,null,null,null,null,null,null,null,null,null,null,null,null,null,null,null,null,null,null,null,null,null,null,null,null,null,null,null,null,null,null,null,null,null,null,null,null,null,null,null,null,null,null,null,null,null,null,null,null,null,null,null,null,null,null,null,null,null,null,null,null,null,null,null,null,null,null,null,null,null,null,null,null,null,null,null,null,null,null,null,null,null,null,null,null,null,null,null,null,null,null,null,null,null,null,null,null,null,null,null,null,null,null,null,null,null,null,null,null,null,null,null,null,null,null,null,null,null,null,null,null,null,null,null,null,null,null,null,null,null,null,null,null,null,null,null,null,null,null,null,null,null,null,null,null,null,null,null,null,null,null,null,null,null,null,null,null,null,null,null,null,null,null,null,null,null,null,null,null,null,null,null,null,null,null,null,null,null,null,null,null,null,null,null,null,null,null,null,null,null,null,null,null,null,null,null,null,null,null,null,null,null,null,null,null,null,null,null,null,null,null,null,null,null,null,null,null,null,null,null,null,null,null,null,null,null,null,null,null,null,null,null,null,null,null,null,null,null,null,null,null,null,null,null,null,null,null,null,null,null,null,null,null,null,null,null,null,null,null,null,null,null,null,null,null,null,null,null,null,null,null,null,null,null,null,null,null,null,null,null,null,null,null,null,null,null,null,null,null,null,null,null,null,null,null,null,null,null,null,null,null,null,null,null,null,null,null,null,null,null,null,null,null,null,null,null,null,null,null,null,null,null,null,null,null,null,null,null,null,null,null,null,null,null,null,null,null,null,null,null,null,null,null,null,null,null,null,null,null,null,null,null,null,null,null,null,null,null,null,null,null,null,null,null,null,null,null,null,null,null,null,null,null,null,null,null,null,null,null,null,null,null,null,null,null,null,null,null,null,null,null,null,null,null,null,null,null,null,null,null,null,null,null,null,null,null,null,null,null,null,null,null,null,null,null,null,null,null,null,null,null,null,null,null,null,null,null,null,null,null,null,null,null,null,null,null,null,null,null,null,null,null,null,null,null,null,null,null,null,null,null,null,null,null,null,null,null,null,null,null,null,null,null,null,null,null,null,null,null,null,null,null,null,null,null,null,null,null,null,null,null,null,null,null,null,null,null,null,null,null,null,null,null,null,null,null,null,null,null,null,null,null,null,null,null,null,null,null,null,null,null,null,null,null,null,null,null,null,null,null,null,null,null,null,null,null,null,null,null,null,null,null,null,null,null,null,null,null,null,null,null,null,null,null,null,null,null,null,null,null,null,null,null,null,null,null,null,null,null,null,null,null,null,null,null,null,null,null,null,null,null,null,null,null,null,null,null,null,null,null,null,null,null,null,null,null,null,null,null,null,null,null,null,null,null,null,null,null,null,null,null,null,null,null,null,null,null,null,null,null,null,null,null,null,null,null,null,null,null,null,null,null,null,null,null,null,null,null,null,null,null,null,null,null,null,null,null,null,null,null,null,null,null,null,null,null,null,null,null,null,null,null,null,null,null,null,null,null,null,null,null,null,null,null,null,null,null,null,null,null,null,null,null,null,null,null,null,null,null,null,null,null,null,null,null,null,null,null,null,null,null,null,null,null,null,null,null,null,null,null,null,null,null,null,null,null,null,null,null,null,null,null,null,null,null,null,null,null,null,null,null,null,null,null,null,null,null,null,null,null,null,null,null,null,null,null,null,null,null,null,null,null,null,null,null,null,null,null,null,null,null,null,null,null,null,null,null,null,null,null,null,null,null,null,null,null,null,null,null,null,null,null,null,null,null,null,null,null,null,null,null,null,null,null,null,null,null,null,null,null,null,null,null,null,null,null,null,null,null,null,null,null,null,null,null,null,null,null,null,null,null,null,null,null,null,null,null,null,null,null,null,null,null,null,null,null,null,null,null,null,null,null,null,null,null,null,null,null,null,null,null,null,null,null,null,null,null,null,null,null,null,null,null,null,null,null,null,null,null,null,null,null,null,null,null,null,null,null,null,null,null,null,null,null,null,null,null,null,null,null,null,null,null,null,null,null,null,null,null,null,null,null,null,null,null,null,null,null,null,null,null,null,null,null,null,null,null,null,null,null,null,null,null,null,null,null,null,null,null,null,null,null,null,null,null,null,null,null,null,null,null,null,null,null,null,null,null,null,null,null,null,null,null,null,null,null,null,null,null,null,null,null,null,null,null,null,null,null,null,null,null,null,null,null,null,null,null,null,null,null,null,null,null,null,null,null,null,null,null,null,null,null,null,null,null,null,null,null,null,null,null,null,null,null,null,null,null,null,null,null,null,null,null,null,null,null,null,null,null,null,null,null,null,null,null,null,null,null,null,null,null,null,null,null,null,null,null,null,null,null,null,null,null,null,null,null,null,null,null,null,null,null,null,null,null,null,null,null,null,null,null,null,null,null,null,null,null,null,null,null,null,null,null,null,null,null,null,null,null,null,null,null,null,null,null,null,null,null,null,null,null,null,null,null,null,null,null,null,null,null,null,null,null,null,null,null,null,null,null,null,null,null,null,null,null,null,null,null,null,null,null,null,null,null,null,null,null,null,null,null,null,null,null,null,null,null,null,null,null,null,null,null,null,null,null,null,null,null,null,null,null,null,null,null,null,null,null,null,null,null,null,null,null,null,null,null,null,null,null,null,null,null,null,null,null,null,null,null,null,null,null,null,null,null,null,null,null,null,null,null,null,null,null,null,null,null,null,null,null,null,null,null,null,null,null,null,null,null,null,null,null,null,null,null,null,null,null,null,null,null,null,null,null,null,null,null,null,null,null,null,null,null,null,null,null,null,null,null,null,null,null,null,null,null,null,null,null,null,null,null,null,null,null,null,null,null,null,null,null,null,null,null,null,null,null,null,null,null,null,null,null,null,null,null,null,null,null,null,null,null,null,null,null,null,null,null,null,null,null,null,null,null,null,null,null,null,null,null,null,null,null,null,null,null,null,null,null,null,null,null,null,null,null,null,null,null,null,null,null,null,null,null,null,null,null,null,null,null,null,null,null,null,null,null,null,null,null,null,null,null,null,null,null,null,null,null,null,null,null,null,null,null,null,null,null,null,null,null,null,null,null,null,null,null,null,null,null,null,null,null,null,null,null,null,null,null,null,null,null,null,null,null,null,null,null,null,null,null,null,null,null,null,null,null,null,null,null,null,null,null,null,null,null,null,null,null,null,null,null,null,null,null,null,null,null,null,null,null,null,null,null,null,null,null,null,null,null,null,null,null,null,null,null,null,null,null,null,null,null,null,null,null,null,null,null,null,null,null,null,null,null,null,null,null,null,null,null,null,null,null,null,null,null,null,null,null,null,null,null,null,null,null,null,null,null,null,null,null,null,null,null,null,null,null,null,null,null,null,null,null,null,null,null,null,null,null,null,null,null,null,null,null,null,null,null,null,null,null,null,null,null,null,null,null,null,null,null,null,null,null,null,null,null,null,null,null,null,null,null,null,null,null,null,null,null,null,null,null,null,null,null,null,null,null,null,null,null,null,null,null,null,null,null,null,null,null,null,null,null,null,null,null,null,null,null,null,null,null,null,null,null,null,null,null,null,null,null,null,null,null,null,null,null,null,null,null,null,null,null,null,null,null,null,null,null,null,null,null,null,null,null,null,null,null,null,null,null,null,null,null,null,null,null,null,null,null,null,null,null,null,null,null,null,null,null,null,null,null,null,null,null,null,null,null,null,null,null,null,null,null,null,null,null,null,null,null,null,null,null,null,null,null,null,null,null,null,null,null,null,null,null,null,null,null,null,null,null,null,null,null,null,null,null,null,null,null,null,null,null,null,null,null,null,null,null,null,null,null,null,null,null,null,null,null,null,null,null,null,null,null,null,null,null,null,null,null,null,null,null,null,null,null,null,null,null,null,null,null,null,null,null,null,null,null,null,null,null,null,null,null,null,null,null,null,null,null,null,null,null,null,null,null,null,null,null,null,null,null,null,null,null,null,null,null,null,null,null,null,null,null,null,null,null,null,null,null,null,null,null,null,null,null,null,null,null,null,null,null,null,null,null,null,null,null,null,null,null,null,null,null,null,null,null,null,null,null,null,null,null,null,null,null,null,null,null,null,null,null,null,null,null,null,null,null,null,null,null,null,null,null,null,null,null,null,null,null,null,null,null,null,null,null,null,null,null,null,null,null,null,null,null,null,null,null,null,null,null,null,null,null,null,null,null,null,null,null,null,null,null,null,null,null,null,null,null,null,null,null,null,null,null,null,null,null,null,null,null,null,null,null,null,null,null,null,null,null,null,null,null,null,null,null,null,null,null,null,null,null,null,null,null,null,null,null,null,null,null,null,null,null,null,null,null,null,null,null,null,null,null,null,null,null,null,null,null,null,null,null,null,null,null,null,null,null,null,null,null,null,null,null,null,null,null,null,null,null,null,null,null,null,null,null,null,null,null,null,null,null,null,null,null,null,null,null,null,null,null,null,null,null,null,null,null,null,null,null,null,null,null,null,null,null,null,null,null,null,null,null,null,null,null,null,null,null,null,null,null,null,null,null,null,null,null,null,null,null,null,null,null,null,null,null,null,null,null,null,null,null,null,null,null,null,null,null,null,null,null,null,null,null,null,null,null,null,null,null,null,null,null,null,null,null,null,null,null,null,null,null,null,null,null,null,null,null,null,null,null,null,null,null,null,null,null,null,null,null,null,null,null,null,null,null,null,null,null,null,null,null,null,null,null,null,null,null,null,null,null,null,null,null,null,null,null,null,null,null,null,null,null,null,null,null,null,null,null,null,null,null,null,null,null,null,null,null,null,null,null,null,null,null,null,null,null,null,null,null,null,null,null,null,null,null,null,null,null,null,null,null,null,null,null,null,null,null,null,null,null,null,null,null,null,null,null,null,null,null,null,null,null,null,null,null,null,null,null,null,null,null,null,null,null,null,null,null,null,null,null,null,null,null,null,null,null,null,null,null,null,null,null,null,null,null,null,null,null,null,null,null,null,null,null,null,null,null,null,null,null,null,null,null,null,null,null,null,null,null,null,null,null,null,null,null,null,null,null,null,null,null,null,null,null,null,null,null,null,null,null,null,null,null,null,null,null,null,null,null,null,null,null,null,null,null,null,null,null,null,null,null,null,null,null,null,null,null,null,null,null,null,null,null,null,null,null,null,null,null,null,null,null,null,null,null,null,null,null,null,null,null,null,null,null,null,null,null,null,null,null,null,null,null,null,null,null,null,null,null,null,null,null,null,null,null,null,null,null,null,null,null,null,null,null,null,null,null,null,null,null,null,null,null,null,null,null,null,null,null,null,null,null,null,null,null,null,null,null,null,null,null,null,null,null,null,null,null,null,null,null,null,null,null,null,null,null,null,null,null,null,null,null,null,null,null,null,null,null,null,null,null,null,null,null,null,null,null,null,null,null,null,null,null,null,null,null,null,null,null,null,null,null,null,null,null,null,null,null,null,null,null,null,null,null,null,null,null,null,null,null,null,null,null,null,null,null,null,null,null,null,null,null,null,null,null,null,null,null,null,null,null,null,null,null,null,null,null,null,null,null,null,null,null,null,null,null,null,null,null,null,null,null,null,null,null,null,null,null,null,null,null,null,null,null,null,null,null,null,null,null,null,null,null,null,null,null,null,null,null,null,null,null,null,null,null,null,null,null,null,null,null,null,null,null,null,null,null,null,null,null,null,null,null,null,null,null,null,null,null,null,null,null,null,null,null,null,null,null,null,null,null,null,null,null,null,null,null,null,null,null,null,null,null,null,null,null,null,null,null,null,null,null,null,null,null,null,null,null,null,null,null,null,null,null,null,null,null,null,null,null,null,null,null,null,null,null,null,null,null,null,null,null,null,null,null,null,null,null,null,null,null,null,null,null,null,null,null,null,null,null,null,null,null,null,null,null,null,null,null,null,null,null,null,null,null,null,null,null,null,null,null,null,null,null,null,null,null,null,null,null,null,null,null,null,null,null,null,null,null,null,null,null,null,null,null,null,null,null,null,null,null,null,null,null,null,null,null,null,null,null,null,null,null,null,null,null,null,null,null,null,null,null,null,null,null,null,null,null,null,null,null,null,null,null,null,null,null,null,null,null,null,null,null,null,null,null,null,null,null,null,null,null,null,null,null,null,null,null,null,null,null,null,null,null,null,null,null,null,null,null,null,null,null,null,null,null,null,null,null,null,null,null,null,null,null,null,null,null,null,null,null,null,null,null,null,null,null,null,null,null,null,null,null,null,null,null,null,null,null,null,null,null,null,null,null,null,null,null,null,null,null,null,null,null,null,null,null,null,null,null,null,null,null,null,null,null,null,null,null,null,null,null,null,null,null,null,null,null,null,null,null,null,null,null,null,null,null,null,null,null,null,null,null,null,null,null,null,null,null,null,null,null,null,null,null,null,null,null,null,null,null,null,null,null,null,null,null,null,null,null,null,null,null,null,null,null,null,null,null,null,null,null,null,null,null,null,null,null,null,null,null,null,null,null,null,null,null,null,null,null,null,null,null,null,null,null,null,null,null,null,null,null,null,null,null,null,null,null,null,null,null,null,null,null,null,null,null,null,null,null,null,null,null,null,null,null,null,null,null,null,null,null,null,null,null,null,null,null,null,null,null,null,null,null,null,null,null,null,null,null,null,null,null,null,null,null,null,null,null,null,null,null,null,null,null,null,null,null,null,null,null,null,null,null,null,null,null,null,null,null,null,null,null,null,null,null,null,null,null,null,null,null,null,null,null,null,null,null,null,null,null,null,null,null,null,null,null,null,null,null,null,null,null,null,null,null,null,null,null,null,null,null,null,null,null,null,null,null,null,null,null,null,null,null,null,null,null,null,null,null,null,null,null,null,null,null,null,null,null,null,null,null,null,null,null,null,null,null,null,null,null,null,null,null,null,null,null,null,null,null,null,null,null,null,null,null,null,null,null,null,null,null,null,null,null,null,null,null,null,null,null,null,null,null,null,null,null,null,null,null,null,null,null,null,null,null,null,null,null,null,null,null,null,null,null,null,null,null,null,null,null,null,null,null,null,null,null,null,null,null,null,null,null,null,null,null,null,null,null,null,null,null,null,null,null,null,null,null,null,null,null,null,null,null,null,null,null,null,null,null,null,null,null,null,null,null,null,null,null,null,null,null,null,null,null,null,null,null,null,null,null,null,null,null,null,null,null,null,null,null,null,null,null,null,null,null,null,null,null,null,null,null,null,null,null,null,null,null,null,null,null,null,null,null,null,null,null,null,null,null,null,null,null,null,null,null,null,null,null,null,null,null,null,null,null,null,null,null,null,null,null,null,null,null,null,null,null,null,null,null,null,null,null,null,null,null,null,null,null,null,null,null,null,null,null,null,null,null,null,null,null,null,null,null,null,null,null,null,null,null,null,null,null,null,null,null,null,null,null,null,null,null,null,null,null,null,null,null,null,null,null,null,null,null,null,null,null,null,null,null,null,null,null,null,null,null,null,null,null,null,null,null,null,null,null,null,null,null,null,null,null,null,null,null,null,null,null,null,null,null,null,null,null,null,null,null,null,null,null,null,null,null,null,null,null,null,null,null,null,null,null,null,null,null,null,null,null,null,null,null,null,null,null,null,null,null,null,null,null,null,null,null,null,null,null,null,null,null,null,null,null,null,null,null,null,null,null,null,null,null,null,null,null,null,null,null,null,null,null,null,null,null,null,null,null,null,null,null,null,null,null,null,null,null,null,null,null,null,null,null,null,null,null,null,null,null,null,null,null,null,null,null,null,null,null,null,null,null,null,null,null,null,null,null,null,null,null,null,null,null,null,null,null,null,null,null,null,null,null,null,null,null,null,null,null,null,null,null,null,null,null,null,null,null,null,null,null,null,null,null,null,null,null,null,null,null,null,null,null,null,null,null,null,null,null,null,null,null,null,null,null,null,null,null,null,null,null,null,null,null,null,null,null,null,null,null,null,null,null,null,null,null,null,null,null,null,null,null,null,null,null,null,null,null,null,null,null,null,null,null,null,null,null,null,null,null,null,null,null,null,null,null,null,null,null,null,null,null,null,null,null,null,null,null,null,null,null,null,null,null,null,null,null,null,null,null,null,null,null,null,null,null,null,null,null,null,null,null,null,null,null,null,null,null,null,null,null,null,null,null,null,null,null,null,null,null,null,null,null,null,null,null,null,null,null,null,null,null,null,null,null,null,null,null,null,null,null,null,null,null,null,null,null,null,null,null,null,null,null,null,null,null,null,null,null,null,null,null,null,null,null,null,null,null,null,null,null,null,null,null,null,null,null,null,null,null,null,null,null,null,null,null,null,null,null,null,null,null,null,null,null,null,null,null,null,null,null,null,null,null,null,null,null,null,null,null,null,null,null,null,null,null,null,null,null,null,null,null,null,null,null,null,null,null,null,null,null,null,null,null,null,null,null,null,null,null,null,null,null,null,null,null,null,null,null,null,null,null,null,null,null,null,null,null,null,null,null,null,null,null,null,null,null,null,null,null,null,null,null,null,null,null,null,null,null,null,null,null,null,null,null,null,null,null,null,null,null,null,null,null,null,null,null,null,null,null,null,null,null,null,null,null,null,null,null,null,null,null,null,null,null,null,null,null,null,null,null,null,null,null,null,null,null,null,null,null,null,null,null,null,null,null,null,null,null,null,null,null,null,null,null,null,null,null,null,null,null,null,null,null,null,null,null,null,null,null,null,null,null,null,null,null,null,null,null,null,null,null,null,null,null,null,null,null,null,null,null,null,null,null,null,null,null,null,null,null,null,null,null,null,null,null,null,null,null,null,null,null,null,null,null,null,null,null,null,null,null,null,null,null,null,null,null,null,null,null,null,null,null,null,null,null,null,null,null,null,null,null,null,null,null,null,null,null,null,null,null,null,null,null,null,null,null,null,null,null,null,null,null,null,null,null,null,null,null,null,null,null,null,null,null,null,null,null,null,null,null,null,null,null,null,null,null,null,null,null,null,null,null,null,null,null,null,null,null,null,null,null,null,null,null,null,null,null,null,null,null,null,null,null,null,null,null,null,null,null,null,null,null,null,null,null,null,null,null,null,null,null,null,null,null,null,null,null,null,null,null,null,null,null,null,null,null,null,null,null,null,null,null,null,null,null,null,null,null,null,null,null,null,null,null,null,null,null,null,null,null,null,null,null,null,null,null,null,null,null,null,null,null,null,null,null,null,null,null,null,null,null,null,null,null,null,null,null,null,null,null,null,null,null,null,null,null,null,null,null,null,null,null,null,null,null,null,null,null,null,null,null,null,null,null,null,null,null,null,null,null,null,null,null,null,null,null,null,null,null,null,null,null,null,null,null,null,null,null,null,null,null,null,null,null,null,null,null,null,null,null,null,null,null,null,null,null,null,null,null,null,null,null,null,null,null,null,null,null,null,null,null,null,null,null,null,null,null,null,null,null,null,null,null,null,null,null,null,null,null,null,null,null,null,null,null,null,null,null,null,null,null,null,null,null,null,null,null,null,null,null,null,null,null,null,null,null,null,null,null,null,null,null,null,null,null,null,null,null,null,null,null,null,null,null,null,null,null,null,null,null,null,null,null,null,null,null,null,null,null,null,null,null,null,null,null,null,null,null,null,null,null,null,null,null,null,null,null,null,null,null,null,null,null,null,null,null,null,null,null,null,null,null,null,null,null,null,null,null,null,null,null,null,null,null,null,null,null,null,null,null,null,null,null,null,null,null,null,null,null,null,null,null,null,null,null,null,null,null,null,null,null,null,null,null,null,null,null,null,null,null,null,null,null,null,null,null,null,null,null,null,null,null,null,null,null,null,null,null,null,null,null,null,null,null,null,null,null,null,null,null,null,null,null,null,null,null,null,null,null,null,null,null,null,null,null,null,null,null,null,null,null,null,null,null,null,null,null,null,null,null,null,null,null,null,null,null,null,null,null,null,null,null,null,null,null,null,null,null,null,null,null,null,null,null,null,null,null,null,null,null,null,null,null,null,null,null,null,null,null,null,null,null,null,null,null,null,null,null,null,null,null,null,null,null,null,null,null,null,null,null,null,null,null,null,null,null,null,null,null,null,null,null,null,null,null,null,null,null,null,null,null,null,null,null,null,null,null,null,null,null,null,null,null,null,null,null,null,null,null,null,null,null,null,null,null,null,null,null,null,null,null,null,null,null,null,null,null,null,null,null,null,null,null,null,null,null,null,null,null,null,null,null,null,null,null,null,null,null,null,null,null,null,null,null,null,null,null,null,null,null,null,null,null,null,null,null,null,null,null,null,null,null,null,null,null,null,null,null,null,null,null,null,null,null,null,null,null,null,null,null,null,null,null,null,null,null,null,null,null,null,null,null,null,null,null,null,null,null,null,null,null,null,null,null,null,null,null,null,null,null,null,null,null,null,null,null,null,null,null,null,null,null,null,null,null,null,null,null,null,null,null,null,null,null,null,null,null,null,null,null,null,null,null,null,null,null,null,null,null,null,null,null,null,null,null,null,null,null,null,null,null,null,null,null,null,null,null,null,null,null,null,null,null,null,null,null,null,null,null,null,null,null,null,null,null,null,null,null,null,null,null,null,null,null,null,null,null,null,null,null,null,null,null,null,null,null,null,null,null,null,null,null,null,null,null,null,null,null,null,null,null,null,null,null,null,null,null,null,null,null,null,null,null,null,null,null,null,null,null,null,null,null,null,null,null,null,null,null,null,null,null,null,null,null,null,null,null,null,null,null,null,null,null,null,null,null,null,null,null,null,null,null,null,null,null,null,null,null,null,null,null,null,null,null,null,null,null,null,null,null,null,null,null,null,null,null,null,null,null,null,null,null,null,null,null,null,null,null,null,null,null,null,null,null,null,null,null,null,null,null,null,null,null,null,null,null,null,null,null,null,null,null,null,null,null,null,null,null,null,null,null,null,null,null,null,null,null,null,null,null,null,null,null,null,null,null,null,null,null,null,null,null,null,null,null,null,null,null,null,null,null,null,null,null,null,null,null,null,null,null,null,null,null,null,null,null,null,null,null,null,null,null,null,null,null,null,null,null,null,null,null,null,null,null,null,null,null,null,null,null,null,null,null,null,null,null,null,null,null,null,null,null,null,null,null,null,null,null,null,null,null,null,null,null,null,null,null,null,null,null,null,null,null,null,null,null,null,null,null,null,null,null,null,null,null,null,null,null,null,null,null,null,null,null,null,null,null,null,null,null,null,null,null,null,null,null,null,null,null,null,null,null,null,null,null,null,null,null,null,null,null,null,null,null,null,null,null,null,null,null,null,null,null,null,null,null,null,null,null,null,null,null,null,null,null,null,null,null,null,null,null,null,null,null,null,null,null,null,null,null,null,null,null,null,null,null,null,null,null,null,null,null,null,null,null,null,null,null,null,null,null,null,null,null,null,null,null,null,null,null,null,null,null,null,null,null,null,null,null,null,null,null,null,null,null,null,null,null,null,null,null,null,null,null,null,null,null,null,null,null,null,null,null,null,null,null,null,null,null,null,null,null,null,null,null,null,null,null,null,null,null,null,null,null,null,null,null,null,null,null,null,null,null,null,null,null,null,null,null,null,null,null,null,null,null,null,null,null,null,null,null,null,null,null,null,null,null,null,null,null,null,null,null,null,null,null,null,null,null,null,null,null,null,null,null,null,null,null,null,null,null,null,null,null,null,null,null,null,null,null,null,null,null,null,null,null,null,null,null,null,null,null,null,null,null,null,null,null,null,null,null,null,null,null,null,null,null,null,null,null,null,null,null,null,null,null,null,null,null,null,null,null,null,null,null,null,null,null,null,null,null,null,null,null,null,null,null,null,null,null,null,null,null,null,null,null,null,null,null,null,null,null,null,null,null,null,null,null,null,null,null,null,null,null,null,null,null,null,null,null,null,null,null,null,null,null,null,null,null,null,null,null,null,null,null,null,null,null,null,null,null,null,null,null,null,null,null,null,null,null,null,null,null,null,null,null,null,null,null,null,null,null,null,null,null,null,null,null,null,null,null,null,null,null,null,null,null,null,null,null,null,null,null,null,null,null,null,null,null,null,null,null,null,null,null,null,null,null,null,null,null,null,null,null,null,null,null,null,null,null,null,null,null,null,null,null,null,null,null,null,null,null,null,null,null,null,null,null,null,null,null,null,null,null,null,null,null,null,null,null,null,null,null,null,null,null,null,null,null,null,null,null,null,null,null,null,null,null,null,null,null,null,null,null,null,null,null,null,null,null,null,null,null,null,null,null,null,null,null,null,null,null,null,null,null,null,null,null,null,null,null,null,null,null,null,null,null,null,null,null,null,null,null,null,null,null,null,null,null,null,null,null,null,null,null,null,null,null,null,null,null,null,null,null,null,null,null,null,null,null,null,null,null,null,null,null,null,null,null,null,null,null,null,null,null,null,null,null,null,null,null,null,null,null,null,null,null,null,null,null,null,null,null,null,null,null,null,null,null,null,null,null,null,null,null,null,null,null,null,null,null,null,null,null,null,null,null,null,null,null,null,null,null,null,null,null,null,null,null,null,null,null,null,null,null,null,null,null,null,null,null,null,null,null,null,null,null,null,null,null,null,null,null,null,null,null,null,null,null,null,null,null,null,null,null,null,null,null,null,null,null,null,null,null,null,null,null,null,null,null,null,null,null,null,null,null,null,null,null,null,null,null,null,null,null,null,null,null,null,null,null,null,null,null,null,null,null,null,null,null,null,null,null,null,null,null,null,null,null,null,null,null,null,null,null,null,null,null,null,null,null,null,null,null,null,null,null,null,null,null,null,null,null,null,null,null,null,null,null,null,null,null,null,null,null,null,null,null,null,null,null,null,null,null,null,null,null,null,null,null,null,null,null,null,null,null,null,null,null,null,null,null,null,null,null,null,null,null,null,null,null,null,null,null,null,null,null,null,null,null,null,null,null,null,null,null,null,null,null,null,null,null,null,null,null,null,null,null,null,null,null,null,null,null,null,null,null,null,null,null,null,null,null,null,null,null,null,null,null,null,null,null,null,null,null,null,null,null,null,null,null,null,null,null,null,null,null,null,null,null,null,null,null,null,null,null,null,null,null,null,null,null,null,null,null,null,null,null,null,null,null,null,null,null,null,null,null,null,null,null,null,null,null,null,null,null,null,null,null,null,null,null,null,null,null,null,null,null,null,null,null,null,null,null,null,null,null,null,null,null,null,null,null,null,null,null,null,null,null,null,null,null,null,null,null,null,null,null,null,null,null,null,null,null,null,null,null,null,null,null,null,null,null,null,null,null,null,null,null,null,null,null,null,null,null,null,null,null,null,null,null,null,null,null,null,null,null,null,null,null,null,null,null,null,null,null,null,null,null,null,null,null,null,null,null,null,null,null,null,null,null,null,null,null,null,null,null,null,null,null,null,null,null,null,null,null,null,null,null,null,null,null,null,null,null,null,null,null,null,null,null,null,null,null,null,null,null,null,null,null,null,null,null,null,null,null,null,null,null,null,null,null,null,null,null,null,null,null,null,null,null,null,null,null,null,null,null,null,null,null,null,null,null,null,null,null,null,null,null,null,null,null,null,null,null,null,null,null,null,null,null,null,null,null,null,null,null,null,null,null,null,null,null,null,null,null,null,null,null,null,null,null,null,null,null,null,null,null,null,null,null,null,null,null,null,null,null,null,null,null,null,null,null,null,null,null,null,null,null,null,null,null,null,null,null,null,null,null,null,null,null,null,null,null,null,null,null,null,null,null,null,null,null,null,null,null,null,null,null,null,null,null,null,null,null,null,null,null,null,null,null,null,null,null,null,null,null,null,null,null,null,null,null,null,null,null,null,null,null,null,null,null,null,null,null,null,null,null,null,null,null,null,null,null,null,null,null,null,null,null,null,null,null,null,null,null,null,null,null,null,null,null,null,null,null,null,null,null,null,null,null,null,null,null,null,null,null,null,null,null,null,null,null,null,null,null,null,null,null,null,null,null,null,null,null,null,null,null,null,null,null,null,null,null,null,null,null,null,null,null,null,null,null,null,null,null,null,null,null,null,null,null,null,null,null,null,null,null,null,null,null,null,null,null,null,null,null,null,null,null,null,null,null,null,null,null,null,null,null,null,null,null,null,null,null,null,null,null,null,null,null,null,null,null,null,null,null,null,null,null,null,null,null,null,null,null,null,null,null,null,null,null,null,null,null,null,null,null,null,null,null,null,null,null,null,null,null,null,null,null,null,null,null,null,null,null,null,null,null,null,null,null,null,null,null,null,null,null,null,null,null,null,null,null,null,null,null,null,null,null,null,null,null,null,null,null,null,null,null,null,null,null,null,null,null,null,null,null,null,null,null,null,null,null,null,null,null,null,null,null,null,null,null,null,null,null,null,null,null,null,null,null,null,null,null,null,null,null,null,null,null,null,null,null,null,null,null,null,null,null,null,null,null,null,null,null,null,null,null,null,null,null,null,null,null,null,null,null,null,null,null,null,null,null,null,null,null,null,null,null,null,null,null,null,null,null,null,null,null,null,null,null,null,null,null,null,null,null,null,null,null,null,null,null,null,null,null,null,null,null,null,null,null,null,null,null,null,null,null,null,null,null,null,null,null,null,null,null,null,null,null,null,null,null,null,null,null,null,null,null,null,null,null,null,null,null,null,null,null,null,null,null,null,null,null,null,null,null,null,null,null,null,null,null,null,null,null,null,null,null,null,null,null,null,null,null,null,null,null,null,null,null,null,null,null,null,null,null,null,null,null,null,null,null,null,null,null,null,null,null,null,null,null,null,null,null,null,null,null,null,null,null,null,null,null,null,null,null,null,null,null,null,null,null,null,null,null,null,null,null,null,null,null,null,null,null,null,null,null,null,null,null,null,null,null,null,null,null,null,null,null,null,null,null,null,null,null,null,null,null,null,null,null,null,null,null,null,null,null,null,null,null,null,null,null,null,null,null,null,null,null,null,null,null,null,null,null,null,null,null,null,null,null,null,null,null,null,null,null,null,null,null,null,null,null,null,null,null,null,null,null,null,null,null,null,null,null,null,null,null,null,null,null,null,null,null,null,null,null,null,null,null,null,null,null,null,null,null,null,null,null,null,null,null,null,null,null,null,null,null,null,null,null,null,null,null,null,null,null,null,null,null,null,null,null,null,null,null,null,null,null,null,null,null,null,null,null,null,null,null,null,null,null,null,null,null,null,null,null,null,null,null,null,null,null,null,null,null,null,null,null,null,null,null,null,null,null,null,null,null,null,null,null,null,null,null,null,null,null,null,null,null,null,null,null,null,null,null,null,null,null,null,null,null,null,null,null,null,null,null,null,null,null,null,null,null,null,null,null,null,null,null,null,null,null,null,null,null,null,null,null,null,null,null,null,null,null,null,null,null,null,null,null,null,null,null,null,null,null,null,null,null,null,null,null,null,null,null,null,null,null,null,null,null,null,null,null,null,null,null,null,null,null,null,null,null,null,null,null,null,null,null,null,null,null,null,null,null,null,null,null,null,null,null,null,null,null,null,null,null,null,null,null,null,null,null,null,null,null,null,null,null,null,null,null,null,null,null,null,null,null,null,null,null,null,null,null,null,null,null,null,null,null,null,null,null,null,null,null,null,null,null,null,null,null,null,null,null,null,null,null,null,null,null,null,null,null,null,null,null,null,null,null,null,null,null,null,null,null,null,null,null,null,null,null,null,null,null,null,null,null,null,null,null,null,null,null,null,null,null,null,null,null,null,null,null,null,null,null,null,null,null,null,null,null,null,null,null,null,null,null,null,null,null,null,null,null,null,null,null,null,null,null,null,null,null,null,null,null,null,null,null,null,null,null,null,null,null,null,null,null,null,null,null,null,null,null,null,null,null,null,null,null,null,null,null,null,null,null,null,null,null,null,null,null,null,null,null,null,null,null,null,null,null,null,null,null,null,null,null,null,null,null,null,null,null,null,null,null,null,null,null,null,null,null,null,null,null,null,null,null,null,null,null,null,null,null,null,null,null,null,null,null,null,null,null,null,null,null,null,null,null,null,null,null,null,null,null,null,null,null,null,null,null,null,null,null,null,null,null,null,null,null,null,null,null,null,null,null,null,null,null,null,null,null,null,null,null,null,null,null,null,null,null,null,null,null,null,null,null,null,null,null,null,null,null,null,null,null,null,null,null,null,null,null,null,null,null,null,null,null,null,null,null,null,null,null,null,null,null,null,null,null,null,null,null,null,null,null,null,null,null,null,null,null,null,null,null,null,null,null,null,null,null,null,null,null,null,null,null,null,null,null,null,null,null,null,null,null,null,null,null,null,null,null,null,null,null,null,null,null,null,null,null,null,null,null,null,null,null,null,null,null,null,null,null,null,null,null,null,null,null,null,null,null,null,null,null,null,null,null,null,null,null,null,null,null,null,null,null,null,null,null,null,null,null,null,null,null,null,null,null,null,null,null,null,null,null,null,null,null,null,null,null,null,null,null,null,null,null,null,null,null,null,null,null,null,null,null,null,null,null,null,null,null,null,null,null,null,null,null,null,null,null,null,null,null,null,null,null,null,null,null,null,null,null,null,null,null,null,null,null,null,null,null,null,null,null,null,null,null,null,null,null,null,null,null,null,null,null,null,null,null,null,null,null,null,null,null,null,null,null,null,null,null,null,null,null,null,null,null,null,null,null,null,null,null,null,null,null,null,null,null,null,null,null,null,null,null,null,null,null,null,null,null,null,null,null,null,null,null,null,null,null,null,null,null,null,null,null,null,null,null,null,null,null,null,null,null,null,null,null,null,null,null,null,null,null,null,null,null,null,null,null,null,null,null,null,null,null,null,null,null,null,null,null,null,null,null,null,null,null,null,null,null,null,null,null,null,null,null,null,null,null,null,null,null,null,null,null,null,null,null,null,null,null,null,null,null,null,null,null,null,null,null,null,null,null,null,null,null,null,null,null,null,null,null,null,null,null,null,null,null,null,null,null,null,null,null,null,null,null,null,null,null,null,null,null,null,null,null,null,null,null,null,null,null,null,null,null,null,null,null,null,null,null,null,null,null,null,null,null,null,null,null,null,null,null,null,null,null,null,null,null,null,null,null,null,null,null,null,null,null,null,null,null,null,null,null,null,null,null,null,null,null,null,null,null,null,null,null,null,null,null,null,null,null,null,null,null,null,null,null,null,null,null,null,null,null,null,null,null,null,null,null,null,null,null,null,null,null,null,null,null,null,null,null,null,null,null,null,null,null,null,null,null,null,null,null,null,null,null,null,null,null,null,null,null,null,null,null,null,null,null,null,null,null,null,null,null,null,null,null,null,null,null,null,null,null,null,null,null,null,null,null,null,null,null,null,null,null,null,null,null,null,null,null,null,null,null,null,null,null,null,null,null,null,null,null,null,null,null,null,null,null,null,null,null,null,null,null,null,null,null,null,null,null,null,null,null,null,null,null,null,null,null,null,null,null,null,null,null,null,null,null,null,null,null,null,null,null,null,null,null,null,null,null,null,null,null,null,null,null,null,null,null,null,null,null,null,null,null,null,null,null,null,null,null,null,null,null,null,null,null,null,null,null,null,null,null,null,null,null,null,null,null,null,null,null,null,null,null,null,null,null,null,null,null,null,null,null,null,null,null,null,null,null,null,null,null,null,null,null,null,null,null,null,null,null,null,null,null,null,null,null,null,null,null,null,null,null,null,null,null,null,null,null,null,null,null,null,null,null,null,null,null,null,null,null,null,null,null,null,null,null,null,null,null,null,null,null,null,null,null,null,null,null,null,null,null,null,null,null,null,null,null,null,null,null,null,null,null,null,null,null,null,null,null,null,null,null,null,null,null,null,null,null,null,null,null,null,null,null,null,null,null,null,null,null,null,null,null,null,null,null,null,null,null,null,null,null,null,null,null,null,null,null,null,null,null,null,null,null,null,null,null,null,null,null,null,null,null,null,null,null,null,null,null,null,null,null,null,null,null,null,null,null,null,null,null,null,null,null,null,null,null,null,null,null,null,null,null,null,null,null,null,null,null,null,null,null,null,null,null,null,null,null,null,null,null,null,null,null,null,null,null,null,null,null,null,null,null,null,null,null,null,null,null,null,null,null,null,null,null,null,null,null,null,null,null,null,null,null,null,null,null,null,null,null,null,null,null,null,null,null,null,null,null,null,null,null,null,null,null,null,null,null,null,null,null,null,null,null,null,null,null,null,null,null,null,null,null,null,null,null,null,null,null,null,null,null,null,null,null,null,null,null,null,null,null,null,null,null,null,null,null,null,null,null,null,null,null,null,null,null,null,null,null,null,null,null,null,null,null,null,null,null,null,null,null,null,null,null,null,null,null,null,null,null,null,null,null,null,null,null,null,null,null,null,null,null,null,null,null,null,null,null,null,null,null,null,null,null,null,null,null,null,null,null,null,null,null,null,null,null,null,null,null,null,null,null,null,null,null,null,null,null,null,null,null,null,null,null,null,null,null,null,null,null,null,null,null,null,null,null,null,null,null,null,null,null,null,null,null,null,null,null,null,null,null,null,null,null,null,null,null,null,null,null,null,null,null,null,null,null,null,null,null,null,null,null,null,null,null,null,null,null,null,null,null,null,null,null,null,null,null,null,null,null,null,null,null,null,null,null,null,null,null,null,null,null,null,null,null,null,null,null,null,null,null,null,null,null,null,null,null,null,null,null,null,null,null,null,null,null,null,null,null,null,null,null,null,null,null,null,null,null,null,null,null,null,null,null,null,null,null,null,null,null,null,null,null,null,null,null,null,null,null,null,null,null,null,null,null,null,null,null,null,null,null,null,null,null,null,null,null,null,null,null,null,null,null,null,null,null,null,null,null,null,null,null,null,null,null,null,null,null,null,null,null,null,null,null,null,null,null,null,null,null,null,null,null,null,null,null,null,null,null,null,null,null,null,null,null,null,null,null,null,null,null,null,null,null,null,null,null,null,null,null,null,null,null,null,null,null,null,null,null,null,null,null,null,null,null,null,null,null,null,null,null,null,null,null,null,null,null,null,null,null,null,null,null,null,null,null,null,null,null,null,null,null,null,null,null,null,null,null,null,null,null,null,null,null,null,null,null,null,null,null,null,null,null,null,null,null,null,null,null,null,null,null,null,null,null,null,null,null,null,null,null,null,null,null,null,null,null,null,null,null,null,null,null,null,null,null,null,null,null,null,null,null,null,null,null,null,null,null,null,null,null,null,null,null,null,null,null,null,null,null,null,null,null,null,null,null,null,null,null,null,null,null,null,null,null,null,null,null,null,null,null,null,null,null,null,null,null,null,null,null,null,null,null,null,null,null,null,null,null,null,null,null,null,null,null,null,null,null,null,null,null,null,null,null,null,null,null,null,null,null,null,null,null,null,null,null,null,null,null,null,null,null,null,null,null,null,null,null,null,null,null,null,null,null,null,null,null,null,null,null,null,null,null,null,null,null,null,null,null,null,null,null,null,null,null,null,null,null,null,null,null,null,null,null,null,null,null,null,null,null,null,null,null,null,null,null,null,null,null,null,null,null,null,null,null,null,null,null,null,null,null,null,null,null,null,null,null,null,null,null,null,null,null,null,null,null,null,null,null,null,null,null,null,null,null,null,null,null,null,null,null,null,null,null,null,null,null,null,null,null,null,null,null,null,null,null,null,null,null,null,null,null,null,null,null,null,null,null,null,null,null,null,null,null,null,null,null,null,null,null,null,null,null,null,null,null,null,null,null,null,null,null,null,null,null,null,null,null,null,null,null,null,null,null,null,null,null,null,null,null,null,null,null,null,null,null,null,null,null,null,null,null,null,null,null,null,null,null,null,null,null,null,null,null,null,null,null,null,null,null,null,null,null,null,null,null,null,null,null,null,null,null,null,null,null,null,null,null,null,null,null,null,null,null,null,null,null,null,null,null,null,null,null,null,null,null,null,null,null,null,null,null,null,null,null,null,null,null,null,null,null,null,null,null,null,null,null,null,null,null,null,null,null,null,null,null,null,null,null,null,null,null,null,null,null,null,null,null,null,null,null,null,null,null,null,null,null,null,null,null,null,null,null,null,null,null,null,null,null,null,null,null,null,null,null,null,null,null,null,null,null,null,null,null,null,null,null,null,null,null,null,null,null,null,null,null,null,null,null,null,null,null,null,null,null,null,null,null,null,null,null,null,null,null,null,null,null,null,null,null,null,null,null,null,null,null,null,null,null,null,null,null,null,null,null,null,null,null,null,null,null,null,null,null,null,null,null,null,null,null,null,null,null,null,null,null,null,null,null,null,null,null,null,null,null,null,null,null,null,null,null,null,null,null,null,null,null,null,null,null,null,null,null,null,null,null,null,null,null,null,null,null,null,null,null,null,null,null,null,null,null,null,null,null,null,null,null,null,null,null,null,null,null,null,null,null,null,null,null,null,null,null,null,null,null,null,null,null,null,null,null,null,null,null,null,null,null,null,null,null,null,null,null,null,null,null,null,null,null,null,null,null,null,null,null,null,null,null,null,null,null,null,null,null,null,null,null,null,null,null,null,null,null,null,null,null,null,null,null,null,null,null,null,null,null,null,null,null,null,null,null,null,null,null,null,null,null,null,null,null,null,null,null,null,null,null,null,null,null,null,null,null,null,null,null,null,null,null,null,null,null,null,null,null,null,null,null,null,null,null,null,null,null,null,null,null,null,null,null,null,null,null,null,null,null,null,null,null,null,null,null,null,null,null,null,null,null,null,null,null,null,null,null,null,null,null,null,null,null,null,null,null,null,null,null,null,null,null,null,null,null,null,null,null,null,null,null,null,null,null,null,null,null,null,null,null,null,null,null,null,null,null,null,null,null,null,null,null,null,null,null,null,null,null,null,null,null,null,null,null,null,null,null,null,null,null,null,null,null,null,null,null,null,null,null,null,null,null,null,null,null,null,null,null,null,null,null,null,null,null,null,null,null,null,null,null,null,null,null,null,null,null,null,null,null,null,null,null,null,null,null,null,null,null,null,null,null,null,null,null,null,null,null,null,null,null,null,null,null,null,null,null,null,null,null,null,null,null,null,null,null,null,null,null,null,null,null,null,null,null,null,null,null,null,null,null,null,null,null,null,null,null,null,null,null,null,null,null,null,null,null,null,null,null,null,null,null,null,null,null,null,null,null,null,null,null,null,null,null,null,null,null,null,null,null,null,null,null,null,null,null,null,null,null,null,null,null,null,null,null,null,null,null,null,null,null,null,null,null,null,null,null,null,null,null,null,null,null,null,null,null,null,null,null,null,null,null,null,null,null,null,null,null,null,null,null,null,null,null,null,null,null,null,null,null,null,null,null,null,null,null,null,null,null,null,null,null,null,null,null,null,null,null,null,null,null,null,null,null,null,null,null,null,null,null,null,null,null,null,null,null,null,null,null,null,null,null,null,null,null,null,null,null,null,null,null,null,null,null,null,null,null,null,null,null,null,null,null,null,null,null,null,null,null,null,null,null,null,null,null,null,null,null,null,null,null,null,null,null,null,null,null,null,null,null,null,null,null,null,null,null,null,null,null,null,null,null,null,null,null,null,null,null,null,null,null,null,null,null,null,null,null,null,null,null,null,null,null,null,null,null,null,null,null,null,null,null,null,null,null,null,null,null,null,null,null,null,null,null,null,null,null,null,null,null,null,null,null,null,null,null,null,null,null,null,null,null,null,null,null,null,null,null,null,null,null,null,null,null,null,null,null,null,null,null,null,null,null,null,null,null,null,null,null,null,null,null,null,null,null,null,null,null,null,null,null,null,null,null,null,null,null,null,null,null,null,null,null,null,null,null,null,null,null,null,null,null,null,null,null,null,null,null,null,null,null,null,null,null,null,null,null,null,null,null,null,null,null,null,null,null,null,null,null,null,null,null,null,null,null,null,null,null,null,null,null,null,null,null,null,null,null,null,null,null,null,null,null,null,null,null,null,null,null,null,null,null,null,null,null,null,null,null,null,null,null,null,null,null,null,null,null,null,null,null,null,null,null,null,null,null,null,null,null,null,null,null,null,null,null,null,null,null,null,null,null,null,null,null,null,null,null,null,null,null,null,null,null,null,null,null,null,null,null,null,null,null,null,null,null,null,null,null,null,null,null,null,null,null,null,null,null,null,null,null,null,null,null,null,null,null,null,null,null,null,null,null,null,null,null,null,null,null,null,null,null,null,null,null,null,null,null,null,null,null,null,null,null,null,null,null,null,null,null,null,null,null,null,null,null,null,null,null,null,null,null,null,null,null,null,null,null,null,null,null,null,null,null,"Bloque de causa de los accidentes investigados en el sector agricultura, por porcentaje . Año 2016 (*)"]
[null,null,"Nº","Porcentaje",null,null,null,null,null,null,null,null,null,null,null,null,null,null,null,null,null,null,null,null,null,null,null,null,null,null,null,null,null,null,null,null,null,null,null,null,null,null,null,null,null,null,null,null,null,null,null,null,null,null,null,null,null,null,null,null,null,null,null,null,null,null,null,null,null,null,null,null,null,null,null,null,null,null,null,null,null,null,null,null,null,null,null,null,null,null,null,null,null,null,null,null,null,null,null,null,null,null,null,null,null,null,null,null,null,null,null,null,null,null,null,null,null,null,null,null,null,null,null,null,null,null,null,null,null,null,null,null,null,null,null,null,null,null,null,null,null,null,null,null,null,null,null,null,null,null,null,null,null,null,null,null,null,null,null,null,null,null,null,null,null,null,null,null,null,null,null,null,null,null,null,null,null,null,null,null,null,null,null,null,null,null,null,null,null,null,null,null,null,null,null,null,null,null,null,null,null,null,null,null,null,null,null,null,null,null,null,null,null,null,null,null,null,null,null,null,null,null,null,null,null,null,null,null,null,null,null,null,null,null,null,null,null,null,null,null,null,null,null,null,null,null,null,null,null,null,null,null,null,null,null,null,null,null,null,null,null,null,null,null,null,null,null,null,null,null,null,null,null,null,null,null,null,null,null,null,null,null,null,null,null,null,null,null,null,null,null,null,null,null,null,null,null,null,null,null,null,null,null,null,null,null,null,null,null,null,null,null,null,null,null,null,null,null,null,null,null,null,null,null,null,null,null,null,null,null,null,null,null,null,null,null,null,null,null,null,null,null,null,null,null,null,null,null,null,null,null,null,null,null,null,null,null,null,null,null,null,null,null,null,null,null,null,null,null,null,null,null,null,null,null,null,null,null,null,null,null,null,null,null,null,null,null,null,null,null,null,null,null,null,null,null,null,null,null,null,null,null,null,null,null,null,null,null,null,null,null,null,null,null,null,null,null,null,null,null,null,null,null,null,null,null,null,null,null,null,null,null,null,null,null,null,null,null,null,null,null,null,null,null,null,null,null,null,null,null,null,null,null,null,null,null,null,null,null,null,null,null,null,null,null,null,null,null,null,null,null,null,null,null,null,null,null,null,null,null,null,null,null,null,null,null,null,null,null,null,null,null,null,null,null,null,null,null,null,null,null,null,null,null,null,null,null,null,null,null,null,null,null,null,null,null,null,null,null,null,null,null,null,null,null,null,null,null,null,null,null,null,null,null,null,null,null,null,null,null,null,null,null,null,null,null,null,null,null,null,null,null,null,null,null,null,null,null,null,null,null,null,null,null,null,null,null,null,null,null,null,null,null,null,null,null,null,null,null,null,null,null,null,null,null,null,null,null,null,null,null,null,null,null,null,null,null,null,null,null,null,null,null,null,null,null,null,null,null,null,null,null,null,null,null,null,null,null,null,null,null,null,null,null,null,null,null,null,null,null,null,null,null,null,null,null,null,null,null,null,null,null,null,null,null,null,null,null,null,null,null,null,null,null,null,null,null,null,null,null,null,null,null,null,null,null,null,null,null,null,null,null,null,null,null,null,null,null,null,null,null,null,null,null,null,null,null,null,null,null,null,null,null,null,null,null,null,null,null,null,null,null,null,null,null,null,null,null,null,null,null,null,null,null,null,null,null,null,null,null,null,null,null,null,null,null,null,null,null,null,null,null,null,null,null,null,null,null,null,null,null,null,null,null,null,null,null,null,null,null,null,null,null,null,null,null,null,null,null,null,null,null,null,null,null,null,null,null,null,null,null,null,null,null,null,null,null,null,null,null,null,null,null,null,null,null,null,null,null,null,null,null,null,null,null,null,null,null,null,null,null,null,null,null,null,null,null,null,null,null,null,null,null,null,null,null,null,null,null,null,null,null,null,null,null,null,null,null,null,null,null,null,null,null,null,null,null,null,null,null,null,null,null,null,null,null,null,null,null,null,null,null,null,null,null,null,null,null,null,null,null,null,null,null,null,null,null,null,null,null,null,null,null,null,null,null,null,null,null,null,null,null,null,null,null,null,null,null,null,null,null,null,null,null,null,null,null,null,null,null,null,null,null,null,null,null,null,null,null,null,null,null,null,null,null,null,null,null,null,null,null,null,null,null,null,null,null,null,null,null,null,null,null,null,null,null,null,null,null,null,null,null,null,null,null,null,null,null,null,null,null,null,null,null,null,null,null,null,null,null,null,null,null,null,null,null,null,null,null,null,null,null,null,null,null,null,null,null,null,null,null,null,null,null,null,null,null,null,null,null,null,null,null,null,null,null,null,null,null,null,null,null,null,null,null,null,null,null,null,null,null,null,null,null,null,null,null,null,null,null,null,null,null,null,null,null,null,null,null,null,null,null,null,null,null,null,null,null,null,null,null,null,null,null,null,null,null,null,null,null,null,null,null,null,null,null,null,null,null,null,null,null,null,null,null,null,null,null,null,null,null,null,null,null,null,null,null,null,null,null,null,null,null,null,null,null,null,null,null,null,null,null,null,null,null,null,null,null,null,null,null,null,null,null,null,null,null,null,null,null,null,null,null,null,null,null,null,null,null,null,null,null,null,null,null,null,null,null,null,null,null,null,null,null,null,null,null,null,null,null,null,null,null,null,null,null,null,null,null,null,null,null,null,null,null,null,null,null,null,null,null,null,null,null,null,null,null,null,null,null,null,null,null,null,null,null,null,null,null,null,null,null,null,null,null,null,null,null,null,null,null,null,null,null,null,null,null,null,null,null,null,null,null,null,null,null,null,null,null,null,null,null,null,null,null,null,null,null,null,null,null,null,null,null,null,null,null,null,null,null,null,null,null,null,null,null,null,null,null,null,null,null,null,null,null,null,null,null,null,null,null,null,null,null,null,null,null,null,null,null,null,null,null,null,null,null,null,null,null,null,null,null,null,null,null,null,null,null,null,null,null,null,null,null,null,null,null,null,null,null,null,null,null,null,null,null,null,null,null,null,null,null,null,null,null,null,null,null,null,null,null,null,null,null,null,null,null,null,null,null,null,null,null,null,null,null,null,null,null,null,null,null,null,null,null,null,null,null,null,null,null,null,null,null,null,null,null,null,null,null,null,null,null,null,null,null,null,null,null,null,null,null,null,null,null,null,null,null,null,null,null,null,null,null,null,null,null,null,null,null,null,null,null,null,null,null,null,null,null,null,null,null,null,null,null,null,null,null,null,null,null,null,null,null,null,null,null,null,null,null,null,null,null,null,null,null,null,null,null,null,null,null,null,null,null,null,null,null,null,null,null,null,null,null,null,null,null,null,null,null,null,null,null,null,null,null,null,null,null,null,null,null,null,null,null,null,null,null,null,null,null,null,null,null,null,null,null,null,null,null,null,null,null,null,null,null,null,null,null,null,null,null,null,null,null,null,null,null,null,null,null,null,null,null,null,null,null,null,null,null,null,null,null,null,null,null,null,null,null,null,null,null,null,null,null,null,null,null,null,null,null,null,null,null,null,null,null,null,null,null,null,null,null,null,null,null,null,null,null,null,null,null,null,null,null,null,null,null,null,null,null,null,null,null,null,null,null,null,null,null,null,null,null,null,null,null,null,null,null,null,null,null,null,null,null,null,null,null,null,null,null,null,null,null,null,null,null,null,null,null,null,null,null,null,null,null,null,null,null,null,null,null,null,null,null,null,null,null,null,null,null,null,null,null,null,null,null,null,null,null,null,null,null,null,null,null,null,null,null,null,null,null,null,null,null,null,null,null,null,null,null,null,null,null,null,null,null,null,null,null,null,null,null,null,null,null,null,null,null,null,null,null,null,null,null,null,null,null,null,null,null,null,null,null,null,null,null,null,null,null,null,null,null,null,null,null,null,null,null,null,null,null,null,null,null,null,null,null,null,null,null,null,null,null,null,null,null,null,null,null,null,null,null,null,null,null,null,null,null,null,null,null,null,null,null,null,null,null,null,null,null,null,null,null,null,null,null,null,null,null,null,null,null,null,null,null,null,null,null,null,null,null,null,null,null,null,null,null,null,null,null,null,null,null,null,null,null,null,null,null,null,null,null,null,null,null,null,null,null,null,null,null,null,null,null,null,null,null,null,null,null,null,null,null,null,null,null,null,null,null,null,null,null,null,null,null,null,null,null,null,null,null,null,null,null,null,null,null,null,null,null,null,null,null,null,null,null,null,null,null,null,null,null,null,null,null,null,null,null,null,null,null,null,null,null,null,null,null,null,null,null,null,null,null,null,null,null,null,null,null,null,null,null,null,null,null,null,null,null,null,null,null,null,null,null,null,null,null,null,null,null,null,null,null,null,null,null,null,null,null,null,null,null,null,null,null,null,null,null,null,null,null,null,null,null,null,null,null,null,null,null,null,null,null,null,null,null,null,null,null,null,null,null,null,null,null,null,null,null,null,null,null,null,null,null,null,null,null,null,null,null,null,null,null,null,null,null,null,null,null,null,null,null,null,null,null,null,null,null,null,null,null,null,null,null,null,null,null,null,null,null,null,null,null,null,null,null,null,null,null,null,null,null,null,null,null,null,null,null,null,null,null,null,null,null,null,null,null,null,null,null,null,null,null,null,null,null,null,null,null,null,null,null,null,null,null,null,null,null,null,null,null,null,null,null,null,null,null,null,null,null,null,null,null,null,null,null,null,null,null,null,null,null,null,null,null,null,null,null,null,null,null,null,null,null,null,null,null,null,null,null,null,null,null,null,null,null,null,null,null,null,null,null,null,null,null,null,null,null,null,null,null,null,null,null,null,null,null,null,null,null,null,null,null,null,null,null,null,null,null,null,null,null,null,null,null,null,null,null,null,null,null,null,null,null,null,null,null,null,null,null,null,null,null,null,null,null,null,null,null,null,null,null,null,null,null,null,null,null,null,null,null,null,null,null,null,null,null,null,null,null,null,null,null,null,null,null,null,null,null,null,null,null,null,null,null,null,null,null,null,null,null,null,null,null,null,null,null,null,null,null,null,null,null,null,null,null,null,null,null,null,null,null,null,null,null,null,null,null,null,null,null,null,null,null,null,null,null,null,null,null,null,null,null,null,null,null,null,null,null,null,null,null,null,null,null,null,null,null,null,null,null,null,null,null,null,null,null,null,null,null,null,null,null,null,null,null,null,null,null,null,null,null,null,null,null,null,null,null,null,null,null,null,null,null,null,null,null,null,null,null,null,null,null,null,null,null,null,null,null,null,null,null,null,null,null,null,null,null,null,null,null,null,null,null,null,null,null,null,null,null,null,null,null,null,null,null,null,null,null,null,null,null,null,null,null,null,null,null,null,null,null,null,null,null,null,null,null,null,null,null,null,null,null,null,null,null,null,null,null,null,null,null,null,null,null,null,null,null,null,null,null,null,null,null,null,null,null,null,null,null,null,null,null,null,null,null,null,null,null,null,null,null,null,null,null,null,null,null,null,null,null,null,null,null,null,null,null,null,null,null,null,null,null,null,null,null,null,null,null,null,null,null,null,null,null,null,null,null,null,null,null,null,null,null,null,null,null,null,null,null,null,null,null,null,null,null,null,null,null,null,null,null,null,null,null,null,null,null,null,null,null,null,null,null,null,null,null,null,null,null,null,null,null,null,null,null,null,null,null,null,null,null,null,null,null,null,null,null,null,null,null,null,null,null,null,null,null,null,null,null,null,null,null,null,null,null,null,null,null,null,null,null,null,null,null,null,null,null,null,null,null,null,null,null,null,null,null,null,null,null,null,null,null,null,null,null,null,null,null,null,null,null,null,null,null,null,null,null,null,null,null,null,null,null,null,null,null,null,null,null,null,null,null,null,null,null,null,null,null,null,null,null,null,null,null,null,null,null,null,null,null,null,null,null,null,null,null,null,null,null,null,null,null,null,null,null,null,null,null,null,null,null,null,null,null,null,null,null,null,null,null,null,null,null,null,null,null,null,null,null,null,null,null,null,null,null,null,null,null,null,null,null,null,null,null,null,null,null,null,null,null,null,null,null,null,null,null,null,null,null,null,null,null,null,null,null,null,null,null,null,null,null,null,null,null,null,null,null,null,null,null,null,null,null,null,null,null,null,null,null,null,null,null,null,null,null,null,null,null,null,null,null,null,null,null,null,null,null,null,null,null,null,null,null,null,null,null,null,null,null,null,null,null,null,null,null,null,null,null,null,null,null,null,null,null,null,null,null,null,null,null,null,null,null,null,null,null,null,null,null,null,null,null,null,null,null,null,null,null,null,null,null,null,null,null,null,null,null,null,null,null,null,null,null,null,null,null,null,null,null,null,null,null,null,null,null,null,null,null,null,null,null,null,null,null,null,null,null,null,null,null,null,null,null,null,null,null,null,null,null,null,null,null,null,null,null,null,null,null,null,null,null,null,null,null,null,null,null,null,null,null,null,null,null,null,null,null,null,null,null,null,null,null,null,null,null,null,null,null,null,null,null,null,null,null,null,null,null,null,null,null,null,null,null,null,null,null,null,null,null,null,null,null,null,null,null,null,null,null,null,null,null,null,null,null,null,null,null,null,null,null,null,null,null,null,null,null,null,null,null,null,null,null,null,null,null,null,null,null,null,null,null,null,null,null,null,null,null,null,null,null,null,null,null,null,null,null,null,null,null,null,null,null,null,null,null,null,null,null,null,null,null,null,null,null,null,null,null,null,null,null,null,null,null,null,null,null,null,null,null,null,null,null,null,null,null,null,null,null,null,null,null,null,null,null,null,null,null,null,null,null,null,null,null,null,null,null,null,null,null,null,null,null,null,null,null,null,null,null,null,null,null,null,null,null,null,null,null,null,null,null,null,null,null,null,null,null,null,null,null,null,null,null,null,null,null,null,null,null,null,null,null,null,null,null,null,null,null,null,null,null,null,null,null,null,null,null,null,null,null,null,null,null,null,null,null,null,null,null,null,null,null,null,null,null,null,null,null,null,null,null,null,null,null,null,null,null,null,null,null,null,null,null,null,null,null,null,null,null,null,null,null,null,null,null,null,null,null,null,null,null,null,null,null,null,null,null,null,null,null,null,null,null,null,null,null,null,null,null,null,null,null,null,null,null,null,null,null,null,null,null,null,null,null,null,null,null,null,null,null,null,null,null,null,null,null,null,null,null,null,null,null,null,null,null,null,null,null,null,null,null,null,null,null,null,null,null,null,null,null,null,null,null,null,null,null,null,null,null,null,null,null,null,null,null,null,null,null,null,null,null,null,null,null,null,null,null,null,null,null,null,null,null,null,null,null,null,null,null,null,null,null,null,null,null,null,null,null,null,null,null,null,null,null,null,null,null,null,null,null,null,null,null,null,null,null,null,null,null,null,null,null,null,null,null,null,null,null,null,null,null,null,null,null,null,null,null,null,null,null,null,null,null,null,null,null,null,null,null,null,null,null,null,null,null,null,null,null,null,null,null,null,null,null,null,null,null,null,null,null,null,null,null,null,null,null,null,null,null,null,null,null,null,null,null,null,null,null,null,null,null,null,null,null,null,null,null,null,null,null,null,null,null,null,null,null,null,null,null,null,null,null,null,null,null,null,null,null,null,null,null,null,null,null,null,null,null,null,null,null,null,null,null,null,null,null,null,null,null,null,null,null,null,null,null,null,null,null,null,null,null,null,null,null,null,null,null,null,null,null,null,null,null,null,null,null,null,null,null,null,null,null,null,null,null,null,null,null,null,null,null,null,null,null,null,null,null,null,null,null,null,null,null,null,null,null,null,null,null,null,null,null,null,null,null,null,null,null,null,null,null,null,null,null,null,null,null,null,null,null,null,null,null,null,null,null,null,null,null,null,null,null,null,null,null,null,null,null,null,null,null,null,null,null,null,null,null,null,null,null,null,null,null,null,null,null,null,null,null,null,null,null,null,null,null,null,null,null,null,null,null,null,null,null,null,null,null,null,null,null,null,null,null,null,null,null,null,null,null,null,null,null,null,null,null,null,null,null,null,null,null,null,null,null,null,null,null,null,null,null,null,null,null,null,null,null,null,null,null,null,null,null,null,null,null,null,null,null,null,null,null,null,null,null,null,null,null,null,null,null,null,null,null,null,null,null,null,null,null,null,null,null,null,null,null,null,null,null,null,null,null,null,null,null,null,null,null,null,null,null,null,null,null,null,null,null,null,null,null,null,null,null,null,null,null,null,null,null,null,null,null,null,null,null,null,null,null,null,null,null,null,null,null,null,null,null,null,null,null,null,null,null,null,null,null,null,null,null,null,null,null,null,null,null,null,null,null,null,null,null,null,null,null,null,null,null,null,null,null,null,null,null,null,null,null,null,null,null,null,null,null,null,null,null,null,null,null,null,null,null,null,null,null,null,null,null,null,null,null,null,null,null,null,null,null,null,null,null,null,null,null,null,null,null,null,null,null,null,null,null,null,null,null,null,null,null,null,null,null,null,null,null,null,null,null,null,null,null,null,null,null,null,null,null,null,null,null,null,null,null,null,null,null,null,null,null,null,null,null,null,null,null,null,null,null,null,null,null,null,null,null,null,null,null,null,null,null,null,null,null,null,null,null,null,null,null,null,null,null,null,null,null,null,null,null,null,null,null,null,null,null,null,null,null,null,null,null,null,null,null,null,null,null,null,null,null,null,null,null,null,null,null,null,null,null,null,null,null,null,null,null,null,null,null,null,null,null,null,null,null,null,null,null,null,null,null,null,null,null,null,null,null,null,null,null,null,null,null,null,null,null,null,null,null,null,null,null,null,null,null,null,null,null,null,null,null,null,null,null,null,null,null,null,null,null,null,null,null,null,null,null,null,null,null,null,null,null,null,null,null,null,null,null,null,null,null,null,null,null,null,null,null,null,null,null,null,null,null,null,null,null,null,null,null,null,null,null,null,null,null,null,null,null,null,null,null,null,null,null,null,null,null,null,null,null,null,null,null,null,null,null,null,null,null,null,null,null,null,null,null,null,null,null,null,null,null,null,null,null,null,null,null,null,null,null,null,null,null,null,null,null,null,null,null,null,null,null,null,null,null,null,null,null,null,null,null,null,null,null,null,null,null,null,null,null,null,null,null,null,null,null,null,null,null,null,null,null,null,null,null,null,null,null,null,null,null,null,null,null,null,null,null,null,null,null,null,null,null,null,null,null,null,null,null,null,null,null,null,null,null,null,null,null,null,null,null,null,null,null,null,null,null,null,null,null,null,null,null,null,null,null,null,null,null,null,null,null,null,null,null,null,null,null,null,null,null,null,null,null,null,null,null,null,null,null,null,null,null,null,null,null,null,null,null,null,null,null,null,null,null,null,null,null,null,null,null,null,null,null,null,null,null,null,null,null,null,null,null,null,null,null,null,null,null,null,null,null,null,null,null,null,null,null,null,null,null,null,null,null,null,null,null,null,null,null,null,null,null,null,null,null,null,null,null,null,null,null,null,null,null,null,null,null,null,null,null,null,null,null,null,null,null,null,null,null,null,null,null,null,null,null,null,null,null,null,null,null,null,null,null,null,null,null,null,null,null,null,null,null,null,null,null,null,null,null,null,null,null,null,null,null,null,null,null,null,null,null,null,null,null,null,null,null,null,null,null,null,null,null,null,null,null,null,null,null,null,null,null,null,null,null,null,null,null,null,null,null,null,null,null,null,null,null,null,null,null,null,null,null,null,null,null,null,null,null,null,null,null,null,null,null,null,null,null,null,null,null,null,null,null,null,null,null,null,null,null,null,null,null,null,null,null,null,null,null,null,null,null,null,null,null,null,null,null,null,null,null,null,null,null,null,null,null,null,null,null,null,null,null,null,null,null,null,null,null,null,null,null,null,null,null,null,null,null,null,null,null,null,null,null,null,null,null,null,null,null,null,null,null,null,null,null,null,null,null,null,null,null,null,null,null,null,null,null,null,null,null,null,null,null,null,null,null,null,null,null,null,null,null,null,null,null,null,null,null,null,null,null,null,null,null,null,null,null,null,null,null,null,null,null,null,null,null,null,null,null,null,null,null,null,null,null,null,null,null,null,null,null,null,null,null,null,null,null,null,null,null,null,null,null,null,null,null,null,null,null,null,null,null,null,null,null,null,null,null,null,null,null,null,null,null,null,null,null,null,null,null,null,null,null,null,null,null,null,null,null,null,null,null,null,null,null,null,null,null,null,null,null,null,null,null,null,null,null,null,null,null,null,null,null,null,null,null,null,null,null,null,null,null,null,null,null,null,null,null,null,null,null,null,null,null,null,null,null,null,null,null,null,null,null,null,null,null,null,null,null,null,null,null,null,null,null,null,null,null,null,null,null,null,null,null,null,null,null,null,null,null,null,null,null,null,null,null,null,null,null,null,null,null,null,null,null,null,null,null,null,null,null,null,null,null,null,null,null,null,null,null,null,null,null,null,null,null,null,null,null,null,null,null,null,null,null,null,null,null,null,null,null,null,null,null,null,null,null,null,null,null,null,null,null,null,null,null,null,null,null,null,null,null,null,null,null,null,null,null,null,null,null,null,null,null,null,null,null,null,null,null,null,null,null,null,null,null,null,null,null,null,null,null,null,null,null,null,null,null,null,null,null,null,null,null,null,null,null,null,null,null,null,null,null,null,null,null,null,null,null,null,null,null,null,null,null,null,null,null,null,null,null,null,null,null,null,null,null,null,null,null,null,null,null,null,null,null,null,null,null,null,null,null,null,null,null,null,null,null,null,null,null,null,null,null,null,null,null,null,null,null,null,null,null,null,null,null,null,null,null,null,null,null,null,null,null,null,null,null,null,null,null,null,null,null,null,null,null,null,null,null,null,null,null,null,null,null,null,null,null,null,null,null,null,null,null,null,null,null,null,null,null,null,null,null,null,null,null,null,null,null,null,null,null,null,null,null,null,null,null,null,null,null,null,null,null,null,null,null,null,null,null,null,null,null,null,null,null,null,null,null,null,null,null,null,null,null,null,null,null,null,null,null,null,null,null,null,null,null,null,null,null,null,null,null,null,null,null,null,null,null,null,null,null,null,null,null,null,null,null,null,null,null,null,null,null,null,null,null,null,null,null,null,null,null,null,null,null,null,null,null,null,null,null,null,null,null,null,null,null,null,null,null,null,null,null,null,null,null,null,null,null,null,null,null,null,null,null,null,null,null,null,null,null,null,null,null,null,null,null,null,null,null,null,null,null,null,null,null,null,null,null,null,null,null,null,null,null,null,null,null,null,null,null,null,null,null,null,null,null,null,null,null,null,null,null,null,null,null,null,null,null,null,null,null,null,null,null,null,null,null,null,null,null,null,null,null,null,null,null,null,null,null,null,null,null,null,null,null,null,null,null,null,null,null,null,null,null,null,null,null,null,null,null,null,null,null,null,null,null,null,null,null,null,null,null,null,null,null,null,null,null,null,null,null,null,null,null,null,null,null,null,null,null,null,null,null,null,null,null,null,null,null,null,null,null,null,null,null,null,null,null,null,null,null,null,null,null,null,null,null,null,null,null,null,null,null,null,null,null,null,null,null,null,null,null,null,null,null,null,null,null,null,null,null,null,null,null,null,null,null,null,null,null,null,null,null,null,null,null,null,null,null,null,null,null,null,null,null,null,null,null,null,null,null,null,null,null,null,null,null,null,null,null,null,null,null,null,null,null,null,null,null,null,null,null,null,null,null,null,null,null,null,null,null,null,null,null,null,null,null,null,null,null,null,null,null,null,null,null,null,null,null,null,null,null,null,null,null,null,null,null,null,null,null,null,null,null,null,null,null,null,null,null,null,null,null,null,null,null,null,null,null,null,null,null,null,null,null,null,null,null,null,null,null,null,null,null,null,null,null,null,null,null,null,null,null,null,null,null,null,null,null,null,null,null,null,null,null,null,null,null,null,null,null,null,null,null,null,null,null,null,null,null,null,null,null,null,null,null,null,null,null,null,null,null,null,null,null,null,null,null,null,null,null,null,null,null,null,null,null,null,null,null,null,null,null,null,null,null,null,null,null,null,null,null,null,null,null,null,null,null,null,null,null,null,null,null,null,null,null,null,null,null,null,null,null,null,null,null,null,null,null,null,null,null,null,null,null,null,null,null,null,null,null,null,null,null,null,null,null,null,null,null,null,null,null,null,null,null,null,null,null,null,null,null,null,null,null,null,null,null,null,null,null,null,null,null,null,null,null,null,null,null,null,null,null,null,null,null,null,null,null,null,null,null,null,null,null,null,null,null,null,null,null,null,null,null,null,null,null,null,null,null,null,null,null,null,null,null,null,null,null,null,null,null,null,null,null,null,null,null,null,null,null,null,null,null,null,null,null,null,null,null,null,null,null,null,null,null,null,null,null,null,null,null,null,null,null,null,null,null,null,null,null,null,null,null,null,null,null,null,null,null,null,null,null,null,null,null,null,null,null,null,null,null,null,null,null,null,null,null,null,null,null,null,null,null,null,null,null,null,null,null,null,null,null,null,null,null,null,null,null,null,null,null,null,null,null,null,null,null,null,null,null,null,null,null,null,null,null,null,null,null,null,null,null,null,null,null,null,null,null,null,null,null,null,null,null,null,null,null,null,null,null,null,null,null,null,null,null,null,null,null,null,null,null,null,null,null,null,null,null,null,null,null,null,null,null,null,null,null,null,null,null,null,null,null,null,null,null,null,null,null,null,null,null,null,null,null,null,null,null,null,null,null,null,null,null,null,null,null,null,null,null,null,null,null,null,null,null,null,null,null,null,null,null,null,null,null,null,null,null,null,null,null,null,null,null,null,null,null,null,null,null,null,null,null,null,null,null,null,null,null,null,null,null,null,null,null,null,null,null,null,null,null,null,null,null,null,null,null,null,null,null,null,null,null,null,null,null,null,null,null,null,null,null,null,null,null,null,null,null,null,null,null,null,null,null,null,null,null,null,null,null,null,null,null,null,null,null,null,null,null,null,null,null,null,null,null,null,null,null,null,null,null,null,null,null,null,null,null,null,null,null,null,null,null,null,null,null,null,null,null,null,null,null,null,null,null,null,null,null,null,null,null,null,null,null,null,null,null,null,null,null,null,null,null,null,null,null,null,null,null,null,null,null,null,null,null,null,null,null,null,null,null,null,null,null,null,null,null,null,null,null,null,null,null,null,null,null,null,null,null,null,null,null,null,null,null,null,null,null,null,null,null,null,null,null,null,null,null,null,null,null,null,null,null,null,null,null,null,null,null,null,null,null,null,null,null,null,null,null,null,null,null,null,null,null,null,null,null,null,null,null,null,null,null,null,null,null,null,null,null,null,null,null,null,null,null,null,null,null,null,null,null,null,null,null,null,null,null,null,null,null,null,null,null,null,null,null,null,null,null,null,null,null,null,null,null,null,null,null,null,null,null,null,null,null,null,null,null,null,null,null,null,null,null,null,null,null,null,null,null,null,null,null,null,null,null,null,null,null,null,null,null,null,null,null,null,null,null,null,null,null,null,null,null,null,null,null,null,null,null,null,null,null,null,null,null,null,null,null,null,null,null,null,null,null,null,null,null,null,null,null,null,null,null,null,null,null,null,null,null,null,null,null,null,null,null,null,null,null,null,null,null,null,null,null,null,null,null,null,null,null,null,null,null,null,null,null,null,null,null,null,null,null,null,null,null,null,null,null,null,null,null,null,null,null,null,null,null,null,null,null,null,null,null,null,null,null,null,null,null,null,null,null,null,null,null,null,null,null,null,null,null,null,null,null,null,null,null,null,null,null,null,null,null,null,null,null,null,null,null,null,null,null,null,null,null,null,null,null,null,null,null,null,null,null,null,null,null,null,null,null,null,null,null,null,null,null,null,null,null,null,null,null,null,null,null,null,null,null,null,null,null,null,null,null,null,null,null,null,null,null,null,null,null,null,null,null,null,null,null,null,null,null,null,null,null,null,null,null,null,null,null,null,null,null,null,null,null,null,null,null,null,null,null,null,null,null,null,null,null,null,null,null,null,null,null,null,null,null,null,null,null,null,null,null,null,null,null,null,null,null,null,null,null,null,null,null,null,null,null,null,null,null,null,null,null,null,null,null,null,null,null,null,null,null,null,null,null,null,null,null,null,null,null,null,null,null,null,null,null,null,null,null,null,null,null,null,null,null,null,null,null,null,null,null,null,null,null,null,null,null,null,null,null,null,null,null,null,null,null,null,null,null,null,null,null,null,null,null,null,null,null,null,null,null,null,null,null,null,null,null,null,null,null,null,null,null,null,null,null,null,null,null,null,null,null,null,null,null,null,null,null,null,null,null,null,null,null,null,null,null,null,null,null,null,null,null,null,null,null,null,null,null,null,null,null,null,null,null,null,null,null,null,null,null,null,null,null,null,null,null,null,null,null,null,null,null,null,null,null,null,null,null,null,null,null,null,null,null,null,null,null,null,null,null,null,null,null,null,null,null,null,null,null,null,null,null,null,null,null,null,null,null,null,null,null,null,null,null,null,null,null,null,null,null,null,null,null,null,null,null,null,null,null,null,null,null,null,null,null,null,null,null,null,null,null,null,null,null,null,null,null,null,null,null,null,null,null,null,null,null,null,null,null,null,null,null,null,null,null,null,null,null,null,null,null,null,null,null,null,null,null,null,null,null,null,null,null,null,null,null,null,null,null,null,null,null,null,null,null,null,null,null,null,null,null,null,null,null,null,null,null,null,null,null,null,null,null,null,null,null,null,null,null,null,null,null,null,null,null,null,null,null,null,null,null,null,null,null,null,null,null,null,null,null,null,null,null,null,null,null,null,null,null,null,null,null,null,null,null,null,null,null,null,null,null,null,null,null,null,null,null,null,null,null,null,null,null,null,null,null,null,null,null,null,null,null,null,null,null,null,null,null,null,null,null,null,null,null,null,null,null,null,null,null,null,null,null,null,null,null,null,null,null,null,null,null,null,null,null,null,null,null,null,null,null,null,null,null,null,null,null,null,null,null,null,null,null,null,null,null,null,null,null,null,null,null,null,null,null,null,null,null,null,null,null,null,null,null,null,null,null,null,null,null,null,null,null,null,null,null,null,null,null,null,null,null,null,null,null,null,null,null,null,null,null,null,null,null,null,null,null,null,null,null,null,null,null,null,null,null,null,null,null,null,null,null,null,null,null,null,null,null,null,null,null,null,null,null,null,null,null,null,null,null,null,null,null,null,null,null,null,null,null,null,null,null,null,null,null,null,null,null,null,null,null,null,null,null,null,null,null,null,null,null,null,null,null,null,null,null,null,null,null,null,null,null,null,null,null,null,null,null,null,null,null,null,null,null,null,null,null,null,null,null,null,null,null,null,null,null,null,null,null,null,null,null,null,null,null,null,null,null,null,null,null,null,null,null,null,null,null,null,null,null,null,null,null,null,null,null,null,null,null,null,null,null,null,null,null,null,null,null,null,null,null,null,null,null,null,null,null,null,null,null,null,null,null,null,null,null,null,null,null,null,null,null,null,null,null,null,null,null,null,null,null,null,null,null,null,null,null,null,null,null,null,null,null,null,null,null,null,null,null,null,null,null,null,null,null,null,null,null,null,null,null,null,null,null,null,null,null,null,null,null,null,null,null,null,null,null,null,null,null,null,null,null,null,null,null,null,null,null,null,null,null,null,null,null,null,null,null,null,null,null,null,null,null,null,null,null,null,null,null,null,null,null,null,null,null,null,null,null,null,null,null,null,null,null,null,null,null,null,null,null,null,null,null,null,null,null,null,null,null,null,null,null,null,null,null,null,null,null,null,null,null,null,null,null,null,null,null,null,null,null,null,null,null,null,null,null,null,null,null,null,null,null,null,null,null,null,null,null,null,null,null,null,null,null,null,null,null,null,null,null,null,null,null,null,null,null,null,null,null,null,null,null,null,null,null,null,null,null,null,null,null,null,null,null,null,null,null,null,null,null,null,null,null,null,null,null,null,null,null,null,null,null,null,null,null,null,null,null,null,null,null,null,null,null,null,null,null,null,null,null,null,null,null,null,null,null,null,null,null,null,null,null,null,null,null,null,null,null,null,null,null,null,null,null,null,null,null,null,null,null,null,null,null,null,null,null,null,null,null,null,null,null,null,null,null,null,null,null,null,null,null,null,null,null,null,null,null,null,null,null,null,null,null,null,null,null,null,null,null,null,null,null,null,null,null,null,null,null,null,null,null,null,null,null,null,null,null,null,null,null,null,null,null,null,null,null,null,null,null,null,null,null,null,null,null,null,null,null,null,null,null,null,null,null,null,null,null,null,null,null,null,null,null,null,null,null,null,null,null,null,null,null,null,null,null,null,null,null,null,null,null,null,null,null,null,null,null,null,null,null,null,null,null,null,null,null,null,null,null,null,null,null,null,null,null,null,null,null,null,null,null,null,null,null,null,null,null,null,null,null,null,null,null,null,null,null,null,null,null,null,null,null,null,null,null,null,null,null,null,null,null,null,null,null,null,null,null,null,null,null,null,null,null,null,null,null,null,null,null,null,null,null,null,null,null,null,null,null,null,null,null,null,null,null,null,null,null,null,null,null,null,null,null,null,null,null,null,null,null,null,null,null,null,null,null,null,null,null,null,null,null,null,null,null,null,null,null,null,null,null,null,null,null,null,null,null,null,null,null,null,null,null,null,null,null,null,null,null,null,null,null,null,null,null,null,null,null,null,null,null,null,null,null,null,null,null,null,null,null,null,null,null,null,null,null,null,null,null,null,null,null,null,null,null,null,null,null,null,null,null,null,null,null,null,null,null,null,null,null,null,null,null,null,null,null,null,null,null,null,null,null,null,null,null,null,null,null,null,null,null,null,null,null,null,null,null,null,null,null,null,null,null,null,null,null,null,null,null,null,null,null,null,null,null,null,null,null,null,null,null,null,null,null,null,null,null,null,null,null,null,null,null,null,null,null,null,null,null,null,null,null,null,null,null,null,null,null,null,null,null,null,null,null,null,null,null,null,null,null,null,null,null,null,null,null,null,null,null,null,null,null,null,null,null,null,null,null,null,null,null,null,null,null,null,null,null,null,null,null,null,null,null,null,null,null,null,null,null,null,null,null,null,null,null,null,null,null,null,null,null,null,null,null,null,null,null,null,null,null,null,null,null,null,null,null,null,null,null,null,null,null,null,null,null,null,null,null,null,null,null,null,null,null,null,null,null,null,null,null,null,null,null,null,null,null,null,null,null,null,null,null,null,null,null,null,null,null,null,null,null,null,null,null,null,null,null,null,null,null,null,null,null,null,null,null,null,null,null,null,null,null,null,null,null,null,null,null,null,null,null,null,null,null,null,null,null,null,null,null,null,null,null,null,null,null,null,null,null,null,null,null,null,null,null,null,null,null,null,null,null,null,null,null,null,null,null,null,null,null,null,null,null,null,null,null,null,null,null,null,null,null,null,null,null,null,null,null,null,null,null,null,null,null,null,null,null,null,null,null,null,null,null,null,null,null,null,null,null,null,null,null,null,null,null,null,null,null,null,null,null,null,null,null,null,null,null,null,null,null,null,null,null,null,null,null,null,null,null,null,null,null,null,null,null,null,null,null,null,null,null,null,null,null,null,null,null,null,null,null,null,null,null,null,null,null,null,null,null,null,null,null,null,null,null,null,null,null,null,null,null,null,null,null,null,null,null,null,null,null,null,null,null,null,null,null,null,null,null,null,null,null,null,null,null,null,null,null,null,null,null,null,null,null,null,null,null,null,null,null,null,null,null,null,null,null,null,null,null,null,null,null,null,null,null,null,null,null,null,null,null,null,null,null,null,null,null,null,null,null,null,null,null,null,null,null,null,null,null,null,null,null,null,null,null,null,null,null,null,null,null,null,null,null,null,null,null,null,null,null,null,null,null,null,null,null,null,null,null,null,null,null,null,null,null,null,null,null,null,null,null,null,null,null,null,null,null,null,null,null,null,null,null,null,null,null,null,null,null,null,null,null,null,null,null,null,null,null,null,null,null,null,null,null,null,null,null,null,null,null,null,null,null,null,null,null,null,null,null,null,null,null,null,null,null,null,null,null,null,null,null,null,null,null,null,null,null,null,null,null,null,null,null,null,null,null,null,null,null,null,null,null,null,null,null,null,null,null,null,null,null,null,null,null,null,null,null,null,null,null,null,null,null,null,null,null,null,null,null,null,null,null,null,null,null,null,null,null,null,null,null,null,null,null,null,null,null,null,null,null,null,null,null,null,null,null,null,null,null,null,null,null,null,null,null,null,null,null,null,null,null,null,null,null,null,null,null,null,null,null,null,null,null,null,null,null,null,null,null,null,null,null,null,null,null,null,null,null,null,null,null,null,null,null,null,null,null,null,null,null,null,null,null,null,null,null,null,null,null,null,null,null,null,null,null,null,null,null,null,null,null,null,null,null,null,null,null,null,null,null,null,null,null,null,null,null,null,null,null,null,null,null,null,null,null,null,null,null,null,null,null,null,null,null,null,null,null,null,null,null,null,null,null,null,null,null,null,null,null,null,null,null,null,null,null,null,null,null,null,null,null,null,null,null,null,null,null,null,null,null,null,null,null,null,null,null,null,null,null,null,null,null,null,null,null,null,null,null,null,null,null,null,null,null,null,null,null,null,null,null,null,null,null,null,null,null,null,null,null,null,null,null,null,null,null,null,null,null,null,null,null,null,null,null,null,null,null,null,null,null,null,null,null,null,null,null,null,null,null,null,null,null,null,null,null,null,null,null,null,null,null,null,null,null,null,null,null,null,null,null,null,null,null,null,null,null,null,null,null,null,null,null,null,null,null,null,null,null,null,null,null,null,null,null,null,null,null,null,null,null,null,null,null,null,null,null,null,null,null,null,null,null,null,null,null,null,null,null,null,null,null,null,null,null,null,null,null,null,null,null,null,null,null,null,null,null,null,null,null,null,null,null,null,null,null,null,null,null,null,null,null,null,null,null,null,null,null,null,null,null,null,null,null,null,null,null,null,null,null,null,null,null,null,null,null,null,null,null,null,null,null,null,null,null,null,null,null,null,null,null,null,null,null,null,null,null,null,null,null,null,null,null,null,null,null,null,null,null,null,null,null,null,null,null,null,null,null,null,null,null,null,null,null,null,null,null,null,null,null,null,null,null,null,null,null,null,null,null,null,null,null,null,null,null,null,null,null,null,null,null,null,null,null,null,null,null,null,null,null,null,null,null,null,null,null,null,null,null,null,null,null,null,null,null,null,null,null,null,null,null,null,null,null,null,null,null,null,null,null,null,null,null,null,null,null,null,null,null,null,null,null,null,null,null,null,null,null,null,null,null,null,null,null,null,null,null,null,null,null,null,null,null,null,null,null,null,null,null,null,null,null,null,null,null,null,null,null,null,null,null,null,null,null,null,null,null,null,null,null,null,null,null,null,null,null,null,null,null,null,null,null,null,null,null,null,null,null,null,null,null,null,null,null,null,null,null,null,null,null,null,null,null,null,null,null,null,null,null,null,null,null,null,null,null,null,null,null,null,null,null,null,null,null,null,null,null,null,null,null,null,null,null,null,null,null,null,null,null,null,null,null,null,null,null,null,null,null,null,null,null,null,null,null,null,null,null,null,null,null,null,null,null,null,null,null,null,null,null,null,null,null,null,null,null,null,null,null,null,null,null,null,null,null,null,null,null,null,null,null,null,null,null,null,null,null,null,null,null,null,null,null,null,null,null,null,null,null,null,null,null,null,null,null,null,null,null,null,null,null,null,null,null,null,null,null,null,null,null,null,null,null,null,null,null,null,null,null,null,null,null,null,null,null,null,null,null,null,null,null,null,null,null,null,null,null,null,null,null,null,null,null,null,null,null,null,null,null,null,null,null,null,null,null,null,null,null,null,null,null,null,null,null,null,null,null,null,null,null,null,null,null,null,null,null,null,null,null,null,null,null,null,null,null,null,null,null,null,null,null,null,null,null,null,null,null,null,null,null,null,null,null,null,null,null,null,null,null,null,null,null,null,null,null,null,null,null,null,null,null,null,null,null,null,null,null,null,null,null,null,null,null,null,null,null,null,null,null,null,null,null,null,null,null,null,null,null,null,null,null,null,null,null,null,null,null,null,null,null,null,null,null,null,null,null,null,null,null,null,null,null,null,null,null,null,null,null,null,null,null,null,null,null,null,null,null,null,null,null,null,null,null,null,null,null,null,null,null,null,null,null,null,null,null,null,null,null,null,null,null,null,null,null,null,null,null,null,null,null,null,null,null,null,null,null,null,null,null,null,null,null,null,null,null,null,null,null,null,null,null,null,null,null,null,null,null,null,null,null,null,null,null,null,null,null,null,null,null,null,null,null,null,null,null,null,null,null,null,null,null,null,null,null,null,null,null,null,null,null,null,null,null,null,null,null,null,null,null,null,null,null,null,null,null,null,null,null,null,null,null,null,null,null,null,null,null,null,null,null,null,null,null,null,null,null,null,null,null,null,null,null,null,null,null,null,null,null,null,null,null,null,null,null,null,null,null,null,null,null,null,null,null,null,null,null,null,null,null,null,null,null,null,null,null,null,null,null,null,null,null,null,null,null,null,null,null,null,null,null,null,null,null,null,null,null,null,null,null,null,null,null,null,null,null,null,null,null,null,null,null,null,null,null,null,null,null,null,null,null,null,null,null,null,null,null,null,null,null,null,null,null,null,null,null,null,null,null,null,null,null,null,null,null,null,null,null,null,null,null,null,null,null,null,null,null,null,null,null,null,null,null,null,null,null,null,null,null,null,null,null,null,null,null,null,null,null,null,null,null,null,null,null,null,null,null,null,null,null,null,null,null,null,null,null,null,null,null,null,null,null,null,null,null,null,null,null,null,null,null,null,null,null,null,null,null,null,null,null,null,null,null,null,null,null,null,null,null,null,null,null,null,null,null,null,null,null,null,null,null,null,null,null,null,null,null,null,null,null,null,null,null,null,null,null,null,null,null,null,null,null,null,null,null,null,null,null,null,null,null,null,null,null,null,null,null,null,null,null,null,null,null,null,null,null,null,null,null,null,null,null,null,null,null,null,null,null,null,null,null,null,null,null,null,null,null,null,null,null,null,null,null,null,null,null,null,null,null,null,null,null,null,null,null,null,null,null,null,null,null,null,null,null,null,null,null,null,null,null,null,null,null,null,null,null,null,null,null,null,null,null,null,null,null,null,null,null,null,null,null,null,null,null,null,null,null,null,null,null,null,null,null,null,null,null,null,null,null,null,null,null,null,null,null,null,null,null,null,null,null,null,null,null,null,null,null,null,null,null,null,null,null,null,null,null,null,null,null,null,null,null,null,null,null,null,null,null,null,null,null,null,null,null,null,null,null,null,null,null,null,null,null,null,null,null,null,null,null,null,null,null,null,null,null,null,null,null,null,null,null,null,null,null,null,null,null,null,null,null,null,null,null,null,null,null,null,null,null,null,null,null,null,null,null,null,null,null,null,null,null,null,null,null,null,null,null,null,null,null,null,null,null,null,null,null,null,null,null,null,null,null,null,null,null,null,null,null,null,null,null,null,null,null,null,null,null,null,null,null,null,null,null,null,null,null,null,null,null,null,null,null,null,null,null,null,null,null,null,null,null,null,null,null,null,null,null,null,null,null,null,null,null,null,null,null,null,null,null,null,null,null,null,null,null,null,null,null,null,null,null,null,null,null,null,null,null,null,null,null,null,null,null,null,null,null,null,null,null,null,null,null,null,null,null,null,null,null,null,null,null,null,null,null,null,null,null,null,null,null,null,null,null,null,null,null,null,null,null,null,null,null,null,null,null,null,null,null,null,null,null,null,null,null,null,null,null,null,null,null,null,null,null,null,null,null,null,null,null,null,null,null,null,null,null,null,null,null,null,null,null,null,null,null,null,null,null,null,null,null,null,null,null,null,null,null,null,null,null,null,null,null,null,null,null,null,null,null,null,null,null,null,null,null,null,null,null,null,null,null,null,null,null,null,null,null,null,null,null,null,null,null,null,null,null,null,null,null,null,null,null,null,null,null,null,null,null,null,null,null,null,null,null,null,null,null,null,null,null,null,null,null,null,null,null,null,null,null,null,null,null,null,null,null,null,null,null,null,null,null,null,null,null,null,null,null,null,null,null,null,null,null,null,null,null,null,null,null,null,null,null,null,null,null,null,null,null,null,null,null,null,null,null,null,null,null,null,null,null,null,null,null,null,null,null,null,null,null,null,null,null,null,null,null,null,null,null,null,null,null,null,null,null,null,null,null,null,null,null,null,null,null,null,null,null,null,null,null,null,null,null,null,null,null,null,null,null,null,null,null,null,null,null,null,null,null,null,null,null,null,null,null,null,null,null,null,null,null,null,null,null,null,null,null,null,null,null,null,null,null,null,null,null,null,null,null,null,null,null,null,null,null,null,null,null,null,null,null,null,null,null,null,null,null,null,null,null,null,null,null,null,null,null,null,null,null,null,null,null,null,null,null,null,null,null,null,null,null,null,null,null,null,null,null,null,null,null,null,null,null,null,null,null,null,null,null,null,null,null,null,null,null,null,null,null,null,null,null,null,null,null,null,null,null,null,null,null,null,null,null,null,null,null,null,null,null,null,null,null,null,null,null,null,null,null,null,null,null,null,null,null,null,null,null,null,null,null,null,null,null,null,null,null,null,null,null,null,null,null,null,null,null,null,null,null,null,null,null,null,null,null,null,null,null,null,null,null,null,null,null,null,null,null,null,null,null,null,null,null,null,null,null,null,null,null,null,null,null,null,null,null,null,null,null,null,null,null,null,null,null,null,null,null,null,null,null,null,null,null,null,null,null,null,null,null,null,null,null,null,null,null,null,null,null,null,null,null,null,null,null,null,null,null,null,null,null,null,null,null,null,null,null,null,null,null,null,null,null,null,null,null,null,null,null,null,null,null,null,null,null,null,null,null,null,null,null,null,null,null,null,null,null,null,null,null,null,null,null,null,null,null,null,null,null,null,null,null,null,null,null,null,null,null,null,null,null,null,null,null,null,null,null,null,null,null,null,null,null,null,null,null,null,null,null,null,null,null,null,null,null,null,null,null,null,null,null,null,null,null,null,null,null,null,null,null,null,null,null,null,null,null,null,null,null,null,null,null,null,null,null,null,null,null,null,null,null,null,null,null,null,null,null,null,null,null,null,null,null,null,null,null,null,null,null,null,null,null,null,null,null,null,null,null,null,null,null,null,null,null,null,null,null,null,null,null,null,null,null,null,null,null,null,null,null,null,null,null,null,null,null,null,null,null,null,null,null,null,null,null,null,null,null,null,null,null,null,null,null,null,null,null,null,null,null,null,null,null,null,null,null,null,null,null,null,null,null,null,null,null,null,null,null,null,null,null,null,null,null,null,null,null,null,null,null,null,null,null,null,null,null,null,null,null,null,null,null,null,null,null,null,null,null,null,null,null,null,null,null,null,null,null,null,null,null,null,null,null,null,null,null,null,null,null,null,null,null,null,null,null,null,null,null,null,null,null,null,null,null,null,null,null,null,null,null,null,null,null,null,null,null,null,null,null,null,null,null,null,null,null,null,null,null,null,null,null,null,null,null,null,null,null,null,null,null,null,null,null,null,null,null,null,null,null,null,null,null,null,null,null,null,null,null,null,null,null,null,null,null,null,null,null,null,null,null,null,null,null,null,null,null,null,null,null,null,null,null,null,null,null,null,null,null,null,null,null,null,null,null,null,null,null,null,null,null,null,null,null,null,null,null,null,null,null,null,null,null,null,null,null,null,null,null,null,null,null,null,null,null,null,null,null,null,null,null,null,null,null,null,null,null,null,null,null,null,null,null,null,null,null,null,null,null,null,null,null,null,null,null,null,null,null,null,null,null,null,null,null,null,null,null,null,null,null,null,null,null,null,null,null,null,null,null,null,null,null,null,null,null,null,null,null,null,null,null,null,null,null,null,null,null,null,null,null,null,null,null,null,null,null,null,null,null,null,null,null,null,null,null,null,null,null,null,null,null,null,null,null,null,null,null,null,null,null,null,null,null,null,null,null,null,null,null,null,null,null,null,null,null,null,null,null,null,null,null,null,null,null,null,null,null,null,null,null,null,null,null,null,null,null,null,null,null,null,null,null,null,null,null,null,null,null,null,null,null,null,null,null,null,null,null,null,null,null,null,null,null,null,null,null,null,null,null,null,null,null,null,null,null,null,null,null,null,null,null,null,null,null,null,null,null,null,null,null,null,null,null,null,null,null,null,null,null,null,null,null,null,null,null,null,null,null,null,null,null,null,null,null,null,null,null,null,null,null,null,null,null,null,null,null,null,null,null,null,null,null,null,null,null,null,null,null,null,null,null,null,null,null,null,null,null,null,null,null,null,null,null,null,null,null,null,null,null,null,null,null,null,null,null,null,null,null,null,null,null,null,null,null,null,null,null,null,null,null,null,null,null,null,null,null,null,null,null,null,null,null,null,null,null,null,null,null,null,null,null,null,null,null,null,null,null,null,null,null,null,null,null,null,null,null,null,null,null,null,null,null,null,null,null,null,null,null,null,null,null,null,null,null,null,null,null,null,null,null,null,null,null,null,null,null,null,null,null,null,null,null,null,null,null,null,null,null,null,null,null,null,null,null,null,null,null,null,null,null,null,null,null,null,null,null,null,null,null,null,null,null,null,null,null,null,null,null,null,null,null,null,null,null,null,null,null,null,null,null,null,null,null,null,null,null,null,null,null,null,null,null,null,null,null,null,null,null,null,null,null,null,null,null,null,null,null,null,null,null,null,null,null,null,null,null,null,null,null,null,null,null,null,null,null,null,null,null,null,null,null,null,null,null,null,null,null,null,null,null,null,null,null,null,null,null,null,null,null,null,null,null,null,null,null,null,null,null,null,null,null,null,null,null,null,null,null,null,null,null,null,null,null,null,null,null,null,null,null,null,null,null,null,null,null,null,null,null,null,null,null,null,null,null,null,null,null,null,null,null,null,null,null,null,null,null,null,null,null,null,null,null,null,null,null,null,null,null,null,null,null,null,null,null,null,null,null,null,null,null,null,null,null,null,null,null,null,null,null,null,null,null,null,null,null,null,null,null,null,null,null,null,null,null,null,null,null,null,null,null,null,null,null,null,null,null,null,null,null,null,null,null,null,null,null,null,null,null,null,null,null,null,null,null,null,null,null,null,null,null,null,null,null,null,null,null,null,null,null,null,null,null,null,null,null,null,null,null,null,null,null,null,null,null,null,null,null,null,null,null,null,null,null,null,null,null,null,null,null,null,null,null,null,null,null,null,null,null,null,null,null,null,null,null,null,null,null,null,null,null,null,null,null,null,null,null,null,null,null,null,null,null,null,null,null,null,null,null,null,null,null,null,null,null,null,null,null,null,null,null,null,null,null,null,null,null,null,null,null,null,null,null,null,null,null,null,null,null,null,null,null,null,null,null,null,null,null,null,null,null,null,null,null,null,null,null,null,null,null,null,null,null,null,null,null,null,null,null,null,null,null,null,null,null,null,null,null,null,null,null,null,null,null,null,null,null,null,null,null,null,null,null,null,null,null,null,null,null,null,null,null,null,null,null,null,null,null,null,null,null,null,null,null,null,null,null,null,null,null,null,null,null,null,null,null,null,null,null,null,null,null,null,null,null,null,null,null,null,null,null,null,null,null,null,null,null,null,null,null,null,null,null,null,null,null,null,null,null,null,null,null,null,null,null,null,null,null,null,null,null,null,null,null,null,null,null,null,null,null,null,null,null,null,null,null,null,null,null,null,null,null,null,null,null,null,null,null,null,null,null,null,null,null,null,null,null,null,null,null,null,null,null,null,null,null,null,null,null,null,null,null,null,null,null,null,null,null,null,null,null,null,null,null,null,null,null,null,null,null,null,null,null,null,null,null,null,null,null,null,null,null,null,null,null,null,null,null,null,null,null,null,null,null,null,null,null,null,null,null,null,null,null,null,null,null,null,null,null,null,null,null,null,null,null,null,null,null,null,null,null,null,null,null,null,null,null,null,null,null,null,null,null,null,null,null,null,null,null,null,null,null,null,null,null,null,null,null,null,null,null,null,null,null,null,null,null,null,null,null,null,null,null,null,null,null,null,null,null,null,null,null,null,null,null,null,null,null,null,null,null,null,null,null,null,null,null,null,null,null,null,null,null,null,null,null,null,null,null,null,null,null,null,null,null,null,null,null,null,null,null,null,null,null,null,null,null,null,null,null,null,null,null,null,null,null,null,null,null,null,null,null,null,null,null,null,null,null,null,null,null,null,null,null,null,null,null,null,null,null,null,null,null,null,null,null,null,null,null,null,null,null,null,null,null,null,null,null,null,null,null,null,null,null,null,null,null,null,null,null,null,null,null,null,null,null,null,null,null,null,null,null,null,null,null,null,null,null,null,null,null,null,null,null,null,null,null,null,null,null,null,null,null,null,null,null,null,null,null,null,null,null,null,null,null,null,null,null,null,null,null,null,null,null,null,null,null,null,null,null,null,null,null,null,null,null,null,null,null,null,null,null,null,null,null,null,null,null,null,null,null,null,null,null,null,null,null,null,null,null,null,null,null,null,null,null,null,null,null,null,null,null,null,null,null,null,null,null,null,null,null,null,null,null,null,null,null,null,null,null,null,null,null,null,null,null,null,null,null,null,null,null,null,null,null,null,null,null,null,null,null,null,null,null,null,null,null,null,null,null,null,null,null,null,null,null,null,null,null,null,null,null,null,null,null,null,null,null,null,null,null,null,null,null,null,null,null,null,null,null,null,null,null,null,null,null,null,null,null,null,null,null,null,null,null,null,null,null,null,null,null,null,null,null,null,null,null,null,null,null,null,null,null,null,null,null,null,null,null,null,null,null,null,null,null,null,null,null,null,null,null,null,null,null,null,null,null,null,null,null,null,null,null,null,null,null,null,null,null,null,null,null,null,null,null,null,null,null,null,null,null,null,null,null,null,null,null,null,null,null,null,null,null,null,null,null,null,null,null,null,null,null,null,null,null,null,null,null,null,null,null,null,null,null,null,null,null,null,null,null,null,null,null,null,null,null,null,null,null,null,null,null,null,null,null,null,null,null,null,null,null,null,null,null,null,null,null,null,null,null,null,null,null,null,null,null,null,null,null,null,null,null,null,null,null,null,null,null,null,null,null,null,null,null,null,null,null,null,null,null,null,null,null,null,null,null,null,null,null,null,null,null,null,null,null,null,null,null,null,null,null,null,null,null,null,null,null,null,null,null,null,null,null,null,null,null,null,null,null,null,null,null,null,null,null,null,null,null,null,null,null,null,null,null,null,null,null,null,null,null,null,null,null,null,null,null,null,null,null,null,null,null,null,null,null,null,null,null,null,null,null,null,null,null,null,null,null,null,null,null,null,null,null,null,null,null,null,null,null,null,null,null,null,null,null,null,null,null,null,null,null,null,null,null,null,null,null,null,null,null,null,null,null,null,null,null,null,null,null,null,null,null,null,null,null,null,null,null,null,null,null,null,null,null,null,null,null,null,null,null,null,null,null,null,null,null,null,null,null,null,null,null,null,null,null,null,null,null,null,null,null,null,null,null,null,null,null,null,null,null,null,null,null,null,null,null,null,null,null,null,null,null,null,null,null,null,null,null,null,null,null,null,null,null,null,null,null,null,null,null,null,null,null,null,null,null,null,null,null,null,null,null,null,null,null,null,null,null,null,null,null,null,null,null,null,null,null,null,null,null,null,null,null,null,null,null,null,null,null,null,null,null,null,null,null,null,null,null,null,null,null,null,null,null,null,null,null,null,null,null,null,null,null,null,null,null,null,null,null,null,null,null,null,null,null,null,null,null,null,null,null,null,null,null,null,null,null,null,null,null,null,null,null,null,null,null,null,null,null,null,null,null,null,null,null,null,null,null,null,null,null,null,null,null,null,null,null,null,null,null,null,null,null,null,null,null,null,null,null,null,null,null,null,null,null,null,null,null,null,null,null,null,null,null,null,null,null,null,null,null,null,null,null,null,null,null,null,null,null,null,null,null,null,null,null,null,null,null,null,null,null,null,null,null,null,null,null,null,null,null,null,null,null,null,null,null,null,null,null,null,null,null,null,null,null,null,null,null,null,null,null,null,null,null,null,null,null,null,null,null,null,null,null,null,null,null,null,null,null,null,null,null,null,null,null,null,null,null,null,null,null,null,null,null,null,null,null,null,null,null,null,null,null,null,null,null,null,null,null,null,null,null,null,null,null,null,null,null,null,null,null,null,null,null,null,null,null,null,null,null,null,null,null,null,null,null,null,null,null,null,null,null,null,null,null,null,null,null,null,null,null,null,null,null,null,null,null,null,null,null,null,null,null,null,null,null,null,null,null,null,null,null,null,null,null,null,null,null,null,null,null,null,null,null,null,null,null,null,null,null,null,null,null,null,null,null,null,null,null,null,null,null,null,null,null,null,null,null,null,null,null,null,null,null,null,null,null,null,null,null,null,null,null,null,null,null,null,null,null,null,null,null,null,null,null,null,null,null,null,null,null,null,null,null,null,null,null,null,null,null,null,null,null,null,null,null,null,null,null,null,null,null,null,null,null,null,null,null,null,null,null,null,null,null,null,null,null,null,null,null,null,null,null,null,null,null,null,null,null,null,null,null,null,null,null,null,null,null,null,null,null,null,null,null,null,null,null,null,null,null,null,null,null,null,null,null,null,null,null,null,null,null,null,null,null,null,null,null,null,null,null,null,null,null,null,null,null,null,null,null,null,null,null,null,null,null,null,null,null,null,null,null,null,null,null,null,null,null,null,null,null,null,null,null,null,null,null,null,null,null,null,null,null,null,null,null,null,null,null,null,null,null,null,null,null,null,null,null,null,null,null,null,null,null,null,null,null,null,null,null,null,null,null,null,null,null,null,null,null,null,null,null,null,null,null,null,null,null,null,null,null,null,null,null,null,null,null,null,null,null,null,null,null,null,null,null,null,null,null,null,null,null,null,null,null,null,null,null,null,null,null,null,null,null,null,null,null,null,null,null,null,null,null,null,null,null,null,null,null,null,null,null,null,null,null,null,null,null,null,null,null,null,null,null,null,null,null,null,null,null,null,null,null,null,null,null,null,null,null,null,null,null,null,null,null,null,null,null,null,null,null,null,null,null,null,null,null,null,null,null,null,null,null,null,null,null,null,null,null,null,null,null,null,null,null,null,null,null,null,null,null,null,null,null,null,null,null,null,null,null,null,null,null,null,null,null,null,null,null,null,null,null,null,null,null,null,null,null,null,null,null,null,null,null,null,null,null,null,null,null,null,null,null,null,null,null,null,null,null,null,null,null,null,null,null,null,null,null,null,null,null,null,null,null,null,null,null,null,null,null,null,null,null,null,null,null,null,null,null,null,null,null,null,null,null,null,null,null,null,null,null,null,null,null,null,null,null,null,null,null,null,null,null,null,null,null,null,null,null,null,null,null,null,null,null,null,null,null,null,null,null,null,null,null,null,null,null,null,null,null,null,null,null,null,null,null,null,null,null,null,null,null,null,null,null,null,null,null,null,null,null,null,null,null,null,null,null,null,null,null,null,null,null,null,null,null,null,null,null,null,null,null,null,null,null,null,null,null,null,null,null,null,null,null,null,null,null,null,null,null,null,null,null,null,null,null,null,null,null,null,null,null,null,null,null,null,null,null,null,null,null,null,null,null,null,null,null,null,null,null,null,null,null,null,null,null,null,null,null,null,null,null,null,null,null,null,null,null,null,null,null,null,null,null,null,null,null,null,null,null,null,null,null,null,null,null,null,null,null,null,null,null,null,null,null,null,null,null,null,null,null,null,null,null,null,null,null,null,null,null,null,null,null,null,null,null,null,null,null,null,null,null,null,null,null,null,null,null,null,null,null,null,null,null,null,null,null,null,null,null,null,null,null,null,null,null,null,null,null,null,null,null,null,null,null,null,null,null,null,null,null,null,null,null,null,null,null,null,null,null,null,null,null,null,null,null,null,null,null,null,null,null,null,null,null,null,null,null,null,null,null,null,null,null,null,null,null,null,null,null,null,null,null,null,null,null,null,null,null,null,null,null,null,null,null,null,null,null,null,null,null,null,null,null,null,null,null,null,null,null,null,null,null,null,null,null,null,null,null,null,null,null,null,null,null,null,null,null,null,null,null,null,null,null,null,null,null,null,null,null,null,null,null,null,null,null,null,null,null,null,null,null,null,null,null,null,null,null,null,null,null,null,null,null,null,null,null,null,null,null,null,null,null,null,null,null,null,null,null,null,null,null,null,null,null,null,null,null,null,null,null,null,null,null,null,null,null,null,null,null,null,null,null,null,null,null,null,null,null,null,null,null,null,null,null,null,null,null,null,null,null,null,null,null,null,null,null,null,null,null,null,null,null,null,null,null,null,null,null,null,null,null,null,null,null,null,null,null,null,null,null,null,null,null,null,null,null,null,null,null,null,null,null,null,null,null,null,null,null,null,null,null,null,null,null,null,null,null,null,null,null,null,null,null,null,null,null,null,null,null,null,null,null,null,null,null,null,null,null,null,null,null,null,null,null,null,null,null,null,null,null,null,null,null,null,null,null,null,null,null,null,null,null,null,null,null,null,null,null,null,null,null,null,null,null,null,null,null,null,null,null,null,null,null,null,null,null,null,null,null,null,null,null,null,null,null,null,null,null,null,null,null,null,null,null,null,null,null,null,null,null,null,null,null,null,null,null,null,null,null,null,null,null,null,null,null,null,null,null,null,null,null,null,null,null,null,null,null,null,null,null,null,null,null,null,null,null,null,null,null,null,null,null,null,null,null,null,null,null,null,null,null,null,null,null,null,null,null,null,null,null,null,null,null,null,null,null,null,null,null,null,null,null,null,null,null,null,null,null,null,null,null,null,null,null,null,null,null,null,null,null,null,null,null,null,null,null,null,null,null,null,null,null,null,null,null,null,null,null,null,null,null,null,null,null,null,null,null,null,null,null,null,null,null,null,null,null,null,null,null,null,null,null,null,null,null,null,null,null,null,null,null,null,null,null,null,null,null,null,null,null,null,null,null,null,null,null,null,null,null,null,null,null,null,null,null,null,null,null,null,null,null,null,null,null,null,null,null,null,null,null,null,null,null,null,null,null,null,null,null,null,null,null,null,null,null,null,null,null,null,null,null,null,null,null,null,null,null,null,null,null,null,null,null,null,null,null,null,null,null,null,null,null,null,null,null,null,null,null,null,null,null,null,null,null,null,null,null,null,null,null,null,null,null,null,null,null,null,null,null,null,null,null,null,null,null,null,null,null,null,null,null,null,null,null,null,null,null,null,null,null,null,null,null,null,null,null,null,null,null,null,null,null,null,null,null,null,null,null,null,null,null,null,null,null,null,null,null,null,null,null,null,null,null,null,null,null,null,null,null,null,null,null,null,null,null,null,null,null,null,null,null,null,null,null,null,null,null,null,null,null,null,null,null,null,null,null,null,null,null,null,null,null,null,null,null,null,null,null,null,null,null,null,null,null,null,null,null,null,null,null,null,null,null,null,null,null,null,null,null,null,null,null,null,null,null,null,null,null,null,null,null,null,null,null,null,null,null,null,null,null,null,null,null,null,null,null,null,null,null,null,null,null,null,null,null,null,null,null,null,null,null,null,null,null,null,null,null,null,null,null,null,null,null,null,null,null,null,null,null,null,null,null,null,null,null,null,null,null,null,null,null,null,null,null,null,null,null,null,null,null,null,null,null,null,null,null,null,null,null,null,null,null,null,null,null,null,null,null,null,null,null,null,null,null,null,null,null,null,null,null,null,null,null,null,null,null,null,null,null,null,null,null,null,null,null,null,null,null,null,null,null,null,null,null,null,null,null,null,null,null,null,null,null,null,null,null,null,null,null,null,null,null,null,null,null,null,null,null,null,null,null,null,null,null,null,null,null,null,null,null,null,null,null,null,null,null,null,null,null,null,null,null,null,null,null,null,null,null,null,null,null,null,null,null,null,null,null,null,null,null,null,null,null,null,null,null,null,null,null,null,null,null,null,null,null,null,null,null,null,null,null,null,null,null,null,null,null,null,null,null,null,null,null,null,null,null,null,null,null,null,null,null,null,null,null,null,null,null,null,null,null,null,null,null,null,null,null,null,null,null,null,null,null,null,null,null,null,null,null,null,null,null,null,null,null,null,null,null,null,null,null,null,null,null,null,null,null,null,null,null,null,null,null,null,null,null,null,null,null,null,null,null,null,null,null,null,null,null,null,null,null,null,null,null,null,null,null,null,null,null,null,null,null,null,null,null,null,null,null,null,null,null,null,null,null,null,null,null,null,null,null,null,null,null,null,null,null,null,null,null,null,null,null,null,null,null,null,null,null,null,null,null,null,null,null,null,null,null,null,null,null,null,null,null,null,null,null,null,null,null,null,null,null,null,null,null,null,null,null,null,null,null,null,null,null,null,null,null,null,null,null,null,null,null,null,null,null,null,null,null,null,null,null,null,null,null,null,null,null,null,null,null,null,null,null,null,null,null,null,null,null,null,null,null,null,null,null,null,null,null,null,null,null,null,null,null,null,null,null,null,null,null,null,null,null,null,null,null,null,null,null,null,null,null,null,null,null,null,null,null,null,null,null,null,null,null,null,null,null,null,null,null,null,null,null,null,null,null,null,null,null,null,null,null,null,null,null,null,null,null,null,null,null,null,null,null,null,null,null,null,null,null,null,null,null,null,null,null,null,null,null,null,null,null,null,null,null,null,null,null,null,null,null,null,null,null,null,null,null,null,null,null,null,null,null,null,null,null,null,null,null,null,null,null,null,null,null,null,null,null,null,null,null,null,null,null,null,null,null,null,null,null,null,null,null,null,null,null,null,null,null,null,null,null,null,null,null,null,null,null,null,null,null,null,null,null,null,null,null,null,null,null,null,null,null,null,null,null,null,null,null,null,null,null,null,null,null,null,null,null,null,null,null,null,null,null,null,null,null,null,null,null,null,null,null,null,null,null,null,null,null,null,null,null,null,null,null,null,null,null,null,null,null,null,null,null,null,null,null,null,null,null,null,null,null,null,null,null,null,null,null,null,null,null,null,null,null,null,null,null,null,null,null,null,null,null,null,null,null,null,null,null,null,null,null,null,null,null,null,null,null,null,null,null,null,null,null,null,null,null,null,null,null,null,null,null,null,null,null,null,null,null,null,null,null,null,null,null,null,null,null,null,null,null,null,null,null,null,null,null,null,null,null,null,null,null,null,null,null,null,null,null,null,null,null,null,null,null,null,null,null,null,null,null,null,null,null,null,null,null,null,null,null,null,null,null,null,null,null,null,null,null,null,null,null,null,null,null,null,null,null,null,null,null,null,null,null,null,null,null,null,null,null,null,null,null,null,null,null,null,null,null,null,null,null,null,null,null,null,null,null,null,null,null,null,null,null,null,null,null,null,null,null,null,null,null,null,null,null,null,null,null,null,null,null,null,null,null,null,null,null,null,null,null,null,null,null,null,null,null,null,null,null,null,null,null,null,null,null,null,null,null,null,null,null,null,null,null,null,null,null,null,null,null,null,null,null,null,null,null,null,null,null,null,null,null,null,null,null,null,null,null,null,null,null,null,null,null,null,null,null,null,null,null,null,null,null,null,null,null,null,null,null,null,null,null,null,null,null,null,null,null,null,null,null,null,null,null,null,null,null,null,null,null,null,null,null,null,null,null,null,null,null,null,null,null,null,null,null,null,null,null,null,null,null,null,null,null,null,null,null,null,null,null,null,null,null,null,null,null,null,null,null,null,null,null,null,null,null,null,null,null,null,null,null,null,null,null,null,null,null,null,null,null,null,null,null,null,null,null,null,null,null,null,null,null,null,null,null,null,null,null,null,null,null,null,null,null,null,null,null,null,null,null,null,null,null,null,null,null,null,null,null,null,null,null,null,null,null,null,null,null,null,null,null,null,null,null,null,null,null,null,null,null,null,null,null,null,null,null,null,null,null,null,null,null,null,null,null,null,null,null,null,null,null,null,null,null,null,null,null,null,null,null,null,null,null,null,null,null,null,null,null,null,null,null,null,null,null,null,null,null,null,null,null,null,null,null,null,null,null,null,null,null,null,null,null,null,null,null,null,null,null,null,null,null,null,null,null,null,null,null,null,null,null,null,null,null,null,null,null,null,null,null,null,null,null,null,null,null,null,null,null,null,null,null,null,null,null,null,null,null,null,null,null,null,null,null,null,null,null,null,null,null,null,null,null,null,null,null,null,null,null,null,null,null,null,null,null,null,null,null,null,null,null,null,null,null,null,null,null,null,null,null,null,null,null,null,null,null,null,null,null,null,null,null,null,null,null,null,null,null,null,null,null,null,null,null,null,null,null,null,null,null,null,null,null,null,null,null,null,null,null,null,null,null,null,null,null,null,null,null,null,null,null,null,null,null,null,null,null,null,null,null,null,null,null,null,null,null,null,null,null,null,null,null,null,null,null,null,null,null,null,null,null,null,null,null,null,null,null,null,null,null,null,null,null,null,null,null,null,null,null,null,null,null,null,null,null,null,null,null,null,null,null,null,null,null,null,null,null,null,null,null,null,null,null,null,null,null,null,null,null,null,null,null,null,null,null,null,null,null,null,null,null,null,null,null,null,null,null,null,null,null,null,null,null,null,null,null,null,null,null,null,null,null,null,null,null,null,null,null,null,null,null,null,null,null,null,null,null,null,null,null,null,null,null,null,null,null,null,null,null,null,null,null,null,null,null,null,null,null,null,null,null,null,null,null,null,null,null,null,null,null,null,null,null,null,null,null,null,null,null,null,null,null,null,null,null,null,null,null,null,null,null,null,null,null,null,null,null,null,null,null,null,null,null,null,null,null,null,null,null,null,null,null,null,null,null,null,null,null,null,null,null,null,null,null,null,null,null,null,null,null,null,null,null,null,null,null,null,null,null,null,null,null,null,null,null,null,null,null,null,null,null,null,null,null,null,null,null,null,null,null,null,null,null,null,null,null,null,null,null,null,null,null,null,null,null,null,null,null,null,null,null,null,null,null,null,null,null,null,null,null,null,null,null,null,null,null,null,null,null,null,null,null,null,null,null,null,null,null,null,null,null,null,null,null,null,null,null,null,null,null,null,null,null,null,null,null,null,null,null,null,null,null,null,null,null,null,null,null,null,null,null,null,null,null,null,null,null,null,null,null,null,null,null,null,null,null,null,null,null,null,null,null,null,null,null,null,null,null,null,null,null,null,null,null,null,null,null,null,null,null,null,null,null,null,null,null,null,null,null,null,null,null,null,null,null,null,null,null,null,null,null,null,null,null,null,null,null,null,null,null,null,null,null,null,null,null,null,null,null,null,null,null,null,null,null,null,null,null,null,null,null,null,null,null,null,null,null,null,null,null,null,null,null,null,null,null,null,null,null,null,null,null,null,null,null,null,null,null,null,null,null,null,null,null,null,null,null,null,null,null,null,null,null,null,null,null,null,null,null,null,null,null,null,null,null,null,null,null,null,null,null,null,null,null,null,null,null,null,null,null,null,null,null,null,null,null,null,null,null,null,null,null,null,null,null,null,null,null,null,null,null,null,null,null,null,null,null,null,null,null,null,null,null,null,null,null,null,null,null,null,null,null,null,null,null,null,null,null,null,null,null,null,null,null,null,null,null,null,null,null,null,null,null,null,null,null,null,null,null,null,null,null,null,null,null,null,null,null,null,null,null,null,null,null,null,null,null,null,null,null,null,null,null,null,null,null,null,null,null,null,null,null,null,null,null,null,null,null,null,null,null,null,null,null,null,null,null,null,null,null,null,null,null,null,null,null,null,null,null,null,null,null,null,null,null,null,null,null,null,null,null,null,null,null,null,null,null,null,null,null,null,null,null,null,null,null,null,null,null,null,null,null,null,null,null,null,null,null,null,null,null,null,null,null,null,null,null,null,null,null,null,null,null,null,null,null,null,null,null,null,null,null,null,null,null,null,null,null,null,null,null,null,null,null,null,null,null,null,null,null,null,null,null,null,null,null,null,null,null,null,null,null,null,null,null,null,null,null,null,null,null,null,null,null,null,null,null,null,null,null,null,null,null,null,null,null,null,null,null,null,null,null,null,null,null,null,null,null,null,null,null,null,null,null,null,null,null,null,null,null,null,null,null,null,null,null,null,null,null,null,null,null,null,null,null,null,null,null,null,null,null,null,null,null,null,null,null,null,null,null,null,null,null,null,null,null,null,null,null,null,null,null,null,null,null,null,null,null,null,null,null,null,null,null,null,null,null,null,null,null,null,null,null,null,null,null,null,null,null,null,null,null,null,null,null,null,null,null,null,null,null,null,null,null,null,null,null,null,null,null,null,null,null,null,null,null,null,null,null,null,null,null,null,null,null,null,null,null,null,null,null,null,null,null,null,null,null,null,null,null,null,null,null,null,null,null,null,null,null,null,null,null,null,null,null,null,null,null,null,null,null,null,null,null,null,null,null,null,null,null,null,null,null,null,null,null,null,null,null,null,null,null,null,null,null,null,null,null,null,null,null,null,null,null,null,null,null,null,null,null,null,null,null,null,null,null,null,null,null,null,null,null,null,null,null,null,null,null,null,null,null,null,null,null,null,null,null,null,null,null,null,null,null,null,null,null,null,null,null,null,null,null,null,null,null,null,null,null,null,null,null,null,null,null,null,null,null,null,null,null,null,null,null,null,null,null,null,null,null,null,null,null,null,null,null,null,null,null,null,null,null,null,null,null,null,null,null,null,null,null,null,null,null,null,null,null,null,null,null,null,null,null,null,null,null,null,null,null,null,null,null,null,null,null,null,null,null,null,null,null,null,null,null,null,null,null,null,null,null,null,null,null,null,null,null,null,null,null,null,null,null,null,null,null,null,null,null,null,null,null,null,null,null,null,null,null,null,null,null,null,null,null,null,null,null,null,null,null,null,null,null,null,null,null,null,null,null,null,null,null,null,null,null,null,null,null,null,null,null,null,null,null,null,null,null,null,null,null,null,null,null,null,null,null,null,null,null,null,null,null,null,null,null,null,null,null,null,null,null,null,null,null,null,null,null,null,null,null,null,null,null,null,null,null,null,null,null,null,null,null,null,null,null,null,null,null,null,null,null,null,null,null,null,null,null,null,null,null,null,null,null,null,null,null,null,null,null,null,null,null,null,null,null,null,null,null,null,null,null,null,null,null,null,null,null,null,null,null,null,null,null,null,null,null,null,null,null,null,null,null,null,null,null,null,null,null,null,null,null,null,null,null,null,null,null,null,null,null,null,null,null,null,null,null,null,null,null,null,null,null,null,null,null,null,null,null,null,null,null,null,null,null,null,null,"","Frecuencia","Porcentaje"]
[null,"Total",0,0,0]
[{"$f":"Nota","v":"(*) Accidentes asignados en 2022 para su investigación en el mismo periodo y durante el año 2023"}]

{"sheet":"Hoja5","index":8,"n_rows":55,"n_cols":5,"rows_kept":55,"cut":false,"hidden":true,"merged":[[8,0,53,0],[5,0,5,4],[6,0,7,1],[6,2,6,3],[6,4,7,4]]}
[]
[]
[]
[]
[]
["Causas y porcentajes de los accidentes investigados graves, muy graves, mortales del sector Industria (*)"]
[{"$f":"año_publi","v":2022},null,"Respuestas",null,"Porcentaje de casos"]
[null,null,"Nº","Porcentaje"]
[null,"1106 Falta de seguridad estructural o estabilidad de paramentos, etc.",1,1.4705882352941175E-2,4.5454545454545456E-2]
[null,"1110 Pavimento deficiente o inadecuado (discontinuo, resbaladizo, inestable, con  pendiente excesiva, etc.)",1,1.4705882352941175E-2,4.5454545454545456E-2]
[null,"1115 Deficiencia/ausencia de señalización u otro tipo de elementos necesarios para la delimitación de la zona de trabajo",1,1.4705882352941175E-2,4.5454545454545456E-2]
[null,"1116 Vías de circulación deficientes (insuficentes, mal dimensionadas o faltas de separación entre ellas)",1,1.4705882352941175E-2,4.5454545454545456E-2]
[null,"1201 Orden y limpieza deficientes",1,1.4705882352941175E-2,4.5454545454545456E-2]
[null,"1307 Causas relativas a la temperatura y condiciones termo higrométricas",1,1.4705882352941175E-2,4.5454545454545456E-2]
[null,"1308 Causas relativas a los aspectos meteorológicos",1,1.4705882352941175E-2,4.5454545454545456E-2]
[null,"3102 Modificaciones realizadas en la maquina que dan lugar a situaciones de riesgo no previstas por el fabricante.",1,1.4705882352941175E-2,4.5454545454545456E-2]
[null,"3109 Órganos de accionamiento inseguros",1,1.4705882352941175E-2,4.5454545454545456E-2]
[null,"3111 Accesibilidad a órganos de la máquina peligrosos (atrapantes, cortantes, punzantes, o con posibilidad de ocasionar",1,1.4705882352941175E-2,4.5454545454545456E-2]
[null,"3302 Deficiencia/ausencia del manual de instrucciones de máquinas",2,2.9411764705882349E-2,9.0909090909090912E-2]
[null,"4102 Deficiente ubicación, defectos de estabilidad en equipos de trabajo debido a una incorrecta construcción, montaje y",1,1.4705882352941175E-2,4.5454545454545456E-2]
[null,"4105 Partes del equipo accesibles peligrosas (atrapantes, cortantes, punzantes,etc.)",2,2.9411764705882349E-2,9.0909090909090912E-2]
[null,"4199 Otras causas relativas al diseño, ubicación, construccion, montaje, y limpieza  de otros equipos de trabajo.",2,2.9411764705882349E-2,9.0909090909090912E-2]
[null,"4201 Ausencia/deficiencia de elementos de seguridad en los medios de elevación de cargas (pestillos de seguridad en ganc",1,1.4705882352941175E-2,4.5454545454545456E-2]
[null,"4301 Deficiencia/ausencia del manual de instrucciones o señalización (nota: el fallo puede consistir en la inexistencia",1,1.4705882352941175E-2,4.5454545454545456E-2]
[null,"5102 Materiales muy pesados, voluminosos, de gran superficie, inestables o con aristas/perfiles cortantes, en relación c",1,1.4705882352941175E-2,4.5454545454545456E-2]
[null,"5104 Deficiente sistema de almacenamiento, empaquetado, paletizado, apilamiento atc",1,1.4705882352941175E-2,4.5454545454545456E-2]
[null,"5106 Falta de planificación y/o vigilancia en operaciones de levantamiento de cargas",1,1.4705882352941175E-2,4.5454545454545456E-2]
[null,"6101 Método de trabajo  inexistente",1,1.4705882352941175E-2,4.5454545454545456E-2]
[null,"6102 Método de trabajo inadecuado",2,2.9411764705882349E-2,9.0909090909090912E-2]
[null,"6108 Sobrecarga trabajador (fatiga física o mental)",1,1.4705882352941175E-2,4.5454545454545456E-2]
[null,"6109 Existencia de interferencias o falta de coordinación entre trabajadores que realizan la misma o distintas tareas",1,1.4705882352941175E-2,4.5454545454545456E-2]
[null,"6110 Ausencia de vigilancia, control y dirección de persona competente",2,2.9411764705882349E-2,9.0909090909090912E-2]
[null,"6199 Otras causas relativas a los métodos de trabajo",1,1.4705882352941175E-2,4.5454545454545456E-2]
[null,"6304 Formación/información inadecuada o inexistente sobre la tarea",3,4.4117647058823532E-2,0.13636363636363635]
[null,"6305 Procedimientos inexistentes o insuficientes para formar o informar a los trabajadores  acerca de la utilización ",3,4.4117647058823532E-2,0.13636363636363635]
[null,"6405 Utilización de la máquina de manera no prevista por el fabricante.",3,4.4117647058823532E-2,0.13636363636363635]
[null,"7105 Procedimientos inexistentes, insuficientes o deficientes. para la coordinación de actividades realizadas por varias",2,2.9411764705882349E-2,9.0909090909090912E-2]
[null,"7108 No apreciar las características de los trabajadores para la realización de la tarea o en función de los riesgos",1,1.4705882352941175E-2,4.5454545454545456E-2]
[null,"7199 Otras causas relativas a la gestión de la prevención",1,1.4705882352941175E-2,4.5454545454545456E-2]
[null,"7201 No identificación del/los riesgos que han materializado el accidente",1,1.4705882352941175E-2,4.5454545454545456E-2]
[null,"7203 Medidas preventivas propuestas en la planificación derivada de la evaluación de riesgos insuficientes o inadecuadas",3,4.4117647058823532E-2,0.13636363636363635]
[null,"7204 Falta de control del cumplimiento del Plan de seguridad y salud en Construcción.",1,1.4705882352941175E-2,4.5454545454545456E-2]
[null,"7205 Mantenimiento preventivo inexistente o inadecuado o falta de revisiones periódicas oficiales.",1,1.4705882352941175E-2,4.5454545454545456E-2]
[null,"7206 Formación/información inadecuada, inexistente sobre riesgos o medidas preventivas",4,5.8823529411764698E-2,0.18181818181818182]
[null,"7207 Inexistencia o inadecuación de plan y/o medidas de emergencia.",1,1.4705882352941175E-2,4.5454545454545456E-2]
[null,"7208 No poner a disposición de los trabajadores las prendas o equipos de protección necesarios o ser estos inadecuados",2,2.9411764705882349E-2,9.0909090909090912E-2]
[null,"7212 Asignación de tarea a un trabajador con falta de cualificación o experiencia",1,1.4705882352941175E-2,4.5454545454545456E-2]
[null,"8102 Incumplimiento de procedimientos e instrucciones de trabajo",3,4.4117647058823532E-2,0.13636363636363635]
[null,"8103 Incumplimiento de normas de seguridad establecidas",1,1.4705882352941175E-2,4.5454545454545456E-2]
[null,"8105 Uso indebido o no utilización de medios auxiliares de trabajo o de seguridad puestos a disposición por la empresa y",1,1.4705882352941175E-2,4.5454545454545456E-2]
[null,"8108 Permanencia del trabajador dentro de una zona peligrosa",3,4.4117647058823532E-2,0.13636363636363635]
[null,"8299 Otras causas relativas a los factores intrinsecos, de salud o capacidades",2,2.9411764705882349E-2,9.0909090909090912E-2]
[null,"9199 Otras causas",1,1.4705882352941175E-2,4.5454545454545456E-2]
[null,"Total",68,1,3.0909090909090908]
[null,{"$f":"Nota","v":"(*) Accidentes asignados en 2022 para su investigación en el mismo periodo y durante el año 2023"}]

{"sheet":"Hoja6","index":9,"n_rows":93,"n_cols":69,"rows_kept":93,"cut":false,"hidden":true,"merged":[[5,0,6,4],[7,2,7,3],[7,4,8,4],[9,0,92,0]]}
[]
[]
[]
[]
[null,null,null,null,null,null,null,null,null,null,null,null,null,null,null,null,null,null,null,null,null,null,null,null,null,null,null,null,null,null,null,null,null,null,null,null,null,null,null,null,null,null,null,null,null,null,null,null,null,null,null,null,null,null,null,null,null,null,null,null,null,null,null,null,null,null,"Bloque de causa de los accidentes graves, muy graves y mortales investigados del sector construcción y por porcentaje . Año 2014 (*)"]
["Causas de los accidentes investigados graves, muy graves y mortales sector Construcción y porcentaje. (*)",null,null,null,null,null,null,null,null,null,null,null,null,null,null,null,null,null,null,null,null,null,null,null,null,null,null,null,null,null,null,null,null,null,null,null,null,null,null,null,null,null,null,null,null,null,null,null,null,null,null,null,null,null,null,null,null,null,null,null,null,null,null,null,null,null,null,"Frecuencia","Porcentaje"]
[null,null,null,null,null,null,null,null,null,null,null,null,null,null,null,null,null,null,null,null,null,null,null,null,null,null,null,null,null,null,null,null,null,null,null,null,null,null,null,null,null,null,null,null,null,null,null,null,null,null,null,null,null,null,null,null,null,null,null,null,null,null,null,null,null,null,"Total",38,1]
[" ",{"$f":"año_publi","v":2022},"Respuestas",null,"Porcentaje de casos",null,null,null,null,null,null,null,null,null,null,null,null,null,null,null,null,null,null,null,null,null,null,null,null,null,null,null,null,null,null,null,null,null,null,null,null,null,null,null,null,null,null,null,null,null,null,null,null,null,null,null,null,null,null,null,null,null,null,null,null,null,"Prevención intrínseca",4,0.10526315789473685]
[null,null,"Nº","Porcentaje",null,null,null,null,null,null,null,null,null,null,null,null,null,null,null,null,null,null,null,null,null,null,null,null,null,null,null,null,null,null,null,null,null,null,null,null,null,null,null,null,null,null,null,null,null,null,null,null,null,null,null,null,null,null,null,null,null,null,null,null,null,null,"Protección, señalización",12,0.31578947368421051]
[null,"1103 Espacio insuficiente en lugares de trabajo o en las zonas de tránsito",1,3.4602076124567475E-3,1.2500000000000001E-2,null,null,null,null,null,null,null,null,null,null,null,null,null,null,null,null,null,null,null,null,null,null,null,null,null,null,null,null,null,null,null,null,null,null,null,null,null,null,null,null,null,null,null,null,null,null,null,null,null,null,null,null,null,null,null,null,null,null,null,null,null,"Materiales, productos o agentes",3,7.8947368421052627E-2]
[null,"1104 Ausencia/deficiencia de protecciones colectivas frente a caídas de personas",9,3.1141868512110725E-2,0.1125,null,null,null,null,null,null,null,null,null,null,null,null,null,null,null,null,null,null,null,null,null,null,null,null,null,null,null,null,null,null,null,null,null,null,null,null,null,null,null,null,null,null,null,null,null,null,null,null,null,null,null,null,null,null,null,null,null,null,null,null,null,"Espacios y superficies de trabajo",6,0.15789473684210525]
[null,"1105 Aberturas y huecos desprotegidos",3,1.0380622837370242E-2,3.7499999999999999E-2,null,null,null,null,null,null,null,null,null,null,null,null,null,null,null,null,null,null,null,null,null,null,null,null,null,null,null,null,null,null,null,null,null,null,null,null,null,null,null,null,null,null,null,null,null,null,null,null,null,null,null,null,null,null,null,null,null,null,null,null,null,"Organización del trabajo",23,0.60526315789473684]
[null,"1106 Falta de seguridad estructural o estabilidad de paramentos, etc.",4,1.384083044982699E-2,0.05,null,null,null,null,null,null,null,null,null,null,null,null,null,null,null,null,null,null,null,null,null,null,null,null,null,null,null,null,null,null,null,null,null,null,null,null,null,null,null,null,null,null,null,null,null,null,null,null,null,null,null,null,null,null,null,null,null,null,null,null,null,"Gestión de la prevención",22,0.57894736842105265]
[null,"1109 Dificultad/deficiencia en el acceso al puesto de trabajo.",2,6.920415224913495E-3,2.5000000000000001E-2,null,null,null,null,null,null,null,null,null,null,null,null,null,null,null,null,null,null,null,null,null,null,null,null,null,null,null,null,null,null,null,null,null,null,null,null,null,null,null,null,null,null,null,null,null,null,null,null,null,null,null,null,null,null,null,null,null,null,null,null,null,"Factores individuales",12,0.31578947368421051]
[null,"1110 Pavimento deficiente o inadecuado (discontinuo, resbaladizo, inestable, con  pendiente excesiva, etc.)",4,1.384083044982699E-2,0.05,null,null,null,null,null,null,null,null,null,null,null,null,null,null,null,null,null,null,null,null,null,null,null,null,null,null,null,null,null,null,null,null,null,null,null,null,null,null,null,null,null,null,null,null,null,null,null,null,null,null,null,null,null,null,null,null,null,null,null,null,null,"Otras causas",4,0.10526315789473685]
[null,"1115 Deficiencia/ausencia de señalización u otro tipo de elementos necesarios para la delimitación de la zona de trabajo",1,3.4602076124567475E-3,1.2500000000000001E-2,null,null,null,null,null,null,null,null,null,null,null,null,null,null,null,null,null,null,null,null,null,null,null,null,null,null,null,null,null,null,null,null,null,null,null,null,null,null,null,null,null,null,null,null,null,null,null,null,null,null,null,null,null,null,null,null,null,null,null,null,null,"(*) Accidentes asignados en 2014 para su investigación en el mismo periodo y durante el año 2015"]
[null,"1199 Otras causas relativas a la configuración de los espacios de trabajo",2,6.920415224913495E-3,2.5000000000000001E-2]
[null,"1201 Orden y limpieza deficientes",2,6.920415224913495E-3,2.5000000000000001E-2]
[null,"1299 Otras causas relativas al orden y limpieza",1,3.4602076124567475E-3,1.2500000000000001E-2]
[null,"2101 Corte no debidamente previsto de suministro energético o de servicios (agua, electricidad, aire comprimido, gases e",2,6.920415224913495E-3,2.5000000000000001E-2]
[null,"2103 Defectos en el diseño, construcción, montaje, mantenimiento o uso de instalaciones eléctricas (ubicación de celdas",2,6.920415224913495E-3,2.5000000000000001E-2]
[null,"2201 Ausencia/deficiencia de medios para evitar los contactos eléctricos directos",2,6.920415224913495E-3,2.5000000000000001E-2]
[null,"3102 Modificaciones realizadas en la maquina que dan lugar a situaciones de riesgo no previstas por el fabricante.",1,3.4602076124567475E-3,1.2500000000000001E-2]
[null,"3104 Defectos de estabilidad en equipos, maquinas o sus componentes",2,6.920415224913495E-3,2.5000000000000001E-2]
[null,"3109 Órganos de accionamiento inseguros",1,3.4602076124567475E-3,1.2500000000000001E-2]
[null,"3111 Accesibilidad a órganos de la máquina peligrosos (atrapantes, cortantes, punzantes, o con posibilidad de ocasionar",1,3.4602076124567475E-3,1.2500000000000001E-2]
[null,"3113 Deficiencia de los medios de acceso al puesto de trabajo o de conducción de la maquina",2,6.920415224913495E-3,2.5000000000000001E-2]
[null,"3199 Otras causas relativas al diseño, ubicación, construccion, montaje, mantenimiento reparación y limpieza de máquinas",2,6.920415224913495E-3,2.5000000000000001E-2]
[null,"3201 Ausencia y/o deficiencia de resguardos y de dispositivos de protección",1,3.4602076124567475E-3,1.2500000000000001E-2]
[null,"3206 Ausencia de medios técnicos para la consignación (imposibilidad de puesta en marcha) de la máquina o vehículo",1,3.4602076124567475E-3,1.2500000000000001E-2]
[null,"3299 Otras causas relativas a los elementos y dispositivos de protección de máquinas.",1,3.4602076124567475E-3,1.2500000000000001E-2]
[null,"4102 Deficiente ubicación, defectos de estabilidad en equipos de trabajo debido a una incorrecta construcción, montaje y",3,1.0380622837370242E-2,3.7499999999999999E-2]
[null,"4103 Resistencia mecánica insuficiente del equipo de trabajo",1,3.4602076124567475E-3,1.2500000000000001E-2]
[null,"4105 Partes del equipo accesibles peligrosas (atrapantes, cortantes, punzantes,etc.)",1,3.4602076124567475E-3,1.2500000000000001E-2]
[null,"4106 Escalera de mano insegura (material no resistente, apoyos inadecuados ….)",4,1.384083044982699E-2,0.05]
[null,"4199 Otras causas relativas al diseño, ubicación, construccion, montaje, y limpieza  de otros equipos de trabajo.",1,3.4602076124567475E-3,1.2500000000000001E-2]
[null,"4203 Ausencia/deficiencia de protecciones colectivas frente a caídas de personas y objetos desde equipos de trabajo",2,6.920415224913495E-3,2.5000000000000001E-2]
[null,"4301 Deficiencia/ausencia del manual de instrucciones o señalización (nota: el fallo puede consistir en la inexistencia",1,3.4602076124567475E-3,1.2500000000000001E-2]
[null,"5101 Defectos en los materiales utilizados de forma general, excluídos los que conforman una máquina, instalación y equi",1,3.4602076124567475E-3,1.2500000000000001E-2]
[null,"5102 Materiales muy pesados, voluminosos, de gran superficie, inestables o con aristas/perfiles cortantes, en relación c",3,1.0380622837370242E-2,3.7499999999999999E-2]
[null,"5104 Deficiente sistema de almacenamiento, empaquetado, paletizado, apilamiento atc",3,1.0380622837370242E-2,3.7499999999999999E-2]
[null,"5105 Zonas de almacenamiento inadecuadas o no previstas.",3,1.0380622837370242E-2,3.7499999999999999E-2]
[null,"5199 Otras causas relativas a la manipulación y almacenamiento de materiales",1,3.4602076124567475E-3,1.2500000000000001E-2]
[null,"6101 Método de trabajo  inexistente",5,1.7301038062283738E-2,6.25E-2]
[null,"6102 Método de trabajo inadecuado",20,6.9204152249134954E-2,0.25]
[null,"6103 Diseño inadecuado del trabajo o tarea",1,3.4602076124567475E-3,1.2500000000000001E-2]
[null,"6104 Apremio de tiempo o ritmo de trabajo elevado",2,6.920415224913495E-3,2.5000000000000001E-2]
[null,"6108 Sobrecarga trabajador (fatiga física o mental)",2,6.920415224913495E-3,2.5000000000000001E-2]
[null,"6109 Existencia de interferencias o falta de coordinación entre trabajadores que realizan la misma o distintas tareas",1,3.4602076124567475E-3,1.2500000000000001E-2]
[null,"6110 Ausencia de vigilancia, control y dirección de persona competente",9,3.1141868512110725E-2,0.1125]
[null,"6201 Operación inhabitual para el operario que la realiza, sea ordinaria o esporádica",3,1.0380622837370242E-2,3.7499999999999999E-2]
[null,"6301 Deficiencias en el sistema de comunicación a nivel horizontal o vertical, incluyendo la incomprensión del idioma.",1,3.4602076124567475E-3,1.2500000000000001E-2]
[null,"6302 Instrucciones inexistentes",4,1.384083044982699E-2,0.05]
[null,"6304 Formación/información inadecuada o inexistente sobre la tarea",4,1.384083044982699E-2,0.05]
[null,"6305 Procedimientos inexistentes o insuficientes para formar o informar a los trabajadores  acerca de la utilización o m",1,3.4602076124567475E-3,1.2500000000000001E-2]
[null,"6306 Deficiencia/ausencia de información o señalización visual o acústica obligatoria o necesaria, incluyendo la utiliza",1,3.4602076124567475E-3,1.2500000000000001E-2]
[null,"6401 No poner a disposición de los trabajadores las máquinas, equipos y medios auxiliares necesarios o adecuados.",6,2.0761245674740483E-2,7.4999999999999997E-2]
[null,"6403 Selección de útiles, herramientas y medios auxiliares no adecuados al trabajo a realizar",5,1.7301038062283738E-2,6.25E-2]
[null,"6405 Utilización de la máquina de manera no prevista por el fabricante.",3,1.0380622837370242E-2,3.7499999999999999E-2]
[null,"6406 Utilización de útiles, herramientas y medios auxiliares de manera no prevista por el fabricante.",4,1.384083044982699E-2,0.05]
[null,"6408 No comprobación del estado de las maquinas, herramientas, equipos o medios auxiliares antes de su utilización",3,1.0380622837370242E-2,3.7499999999999999E-2]
[null,"6409 Ausencia de medios organizativos o procedimientos para la consignación de máquinas, instalaciones y lugares de trab",1,3.4602076124567475E-3,1.2500000000000001E-2]
[null,"6499 Otras causas relativas a la selección y utilización de equipos y materiales",4,1.384083044982699E-2,0.05]
[null,"7101 Inexistencia o insuficiencia de un procedimiento que regule la realización de las actividades dirigidas a la identi",5,1.7301038062283738E-2,6.25E-2]
[null,"7102 Inexistencia o deficiencia de un procedimiento que regule la planificación de la implantación de las medidas preven",7,2.4221453287197228E-2,8.7499999999999994E-2]
[null,"7103 Procedimientos inexistentes, insuficientes o deficientes para informar a los trabajadores de los riesgos y las medi",2,6.920415224913495E-3,2.5000000000000001E-2]
[null,"7104 Deficiencias en la organización de los recursos obligatorios (organización preventiva) para la realización de las a",2,6.920415224913495E-3,2.5000000000000001E-2]
[null,"7105 Procedimientos inexistentes, insuficientes o deficientes. para la coordinación de actividades realizadas por varias",5,1.7301038062283738E-2,6.25E-2]
[null,"7201 No identificación del/los riesgos que han materializado el accidente",10,3.4602076124567477E-2,0.125]
[null,"7202 Medidas preventivas propuestas en la planificación derivada de la evaluación de riesgos insuficientes o inadecuadas",9,3.1141868512110725E-2,0.1125]
[null,"7203 Medidas preventivas propuestas en la planificación derivada de la evaluación de riesgos insuficientes o inadecuadas",12,4.1522491349480967E-2,0.15]
[null,"7204 Falta de control del cumplimiento del Plan de seguridad y salud en Construcción.",11,3.8062283737024222E-2,0.13750000000000001]
[null,"7205 Mantenimiento preventivo inexistente o inadecuado o falta de revisiones periódicas oficiales.",1,3.4602076124567475E-3,1.2500000000000001E-2]
[null,"7206 Formación/información inadecuada, inexistente sobre riesgos o medidas preventivas",4,1.384083044982699E-2,0.05]
[null,"7208 No poner a disposición de los trabajadores las prendas o equipos de protección necesarios o ser estos inadecuados o",2,6.920415224913495E-3,2.5000000000000001E-2]
[null,"7209 Falta de presencia de los recursos preventivos requeridos",10,3.4602076124567477E-2,0.125]
[null,"7210 Vigilancia de la salud inadecuada a los riesgos del puesto de trabajo",2,6.920415224913495E-3,2.5000000000000001E-2]
[null,"7211 Ausencia/deficiencias de permisos y/o procedimientos de trabajo en intervenciones peligrosas (por ejemplo soldadura",1,3.4602076124567475E-3,1.2500000000000001E-2]
[null,"7212 Asignación de tarea a un trabajador con falta de cualificación o experiencia",4,1.384083044982699E-2,0.05]
[null,"7299 Otras causas relativas a las actividades preventivas",3,1.0380622837370242E-2,3.7499999999999999E-2]
[null,"7999 Otras causas relativas a la gestión de la prevención",1,3.4602076124567475E-3,1.2500000000000001E-2]
[null,"8102 Incumplimiento de procedimientos e instrucciones de trabajo",9,3.1141868512110725E-2,0.1125]
[null,"8103 Incumplimiento de normas de seguridad establecidas",3,1.0380622837370242E-2,3.7499999999999999E-2]
[null,"8104 Uso indebido de materiales, herramientas o útiles de trabajo, puestos a disposición por la empresa",3,1.0380622837370242E-2,3.7499999999999999E-2]
[null,"8105 Uso indebido o no utilización de medios auxiliares de trabajo o de seguridad puestos a disposición por la empresa y",3,1.0380622837370242E-2,3.7499999999999999E-2]
[null,"8106 No utilización de equipos de protección individual puestas a disposición por la empresa y de uso obligatorio.",5,1.7301038062283738E-2,6.25E-2]
[null,"8108 Permanencia del trabajador dentro de una zona peligrosa",10,3.4602076124567477E-2,0.125]
[null,"8109 Adopción de una postura inadecuada en el puesto de trabajo",2,6.920415224913495E-3,2.5000000000000001E-2]
[null,"8199 Otras causas relativas a los factores de comportamiento",9,3.1141868512110725E-2,0.1125]
[null,"8203 Falta de cualificación y/o experiencia para la tarea realizada achacable al trabajador",1,3.4602076124567475E-3,1.2500000000000001E-2]
[null,"8299 Otras causas relativas a los factores intrinsecos, de salud o capacidades",1,3.4602076124567475E-3,1.2500000000000001E-2]
[null,"9199 Otras causas",1,3.4602076124567475E-3,1.2500000000000001E-2]
[null,"Total",289,1,3.6124999999999998]

{"sheet":"Hoja7","index":10,"n_rows":109,"n_cols":35,"rows_kept":109,"cut":false,"hidden":true,"merged":[[104,32,104,34],[105,32,105,34],[106,32,106,34],[107,32,107,34],[99,32,99,34],[100,32,100,34],[101,32,101,34],[102,32,102,34],[103,32,103,34],[88,32,88,34],[89,32,89,34],[90,32,90,34],[91,32,91,34],[92,32,92,34],[83,32,83,34],[84,32,84,34],[85,32,85,34],[86,32,86,34],[87,32,87,34],[78,32,78,34],[79,32,79,34],[80,32,80,34],[81,32,81,34],[82,32,82,34],[73,32,73,34],[74,32,74,34],[75,32,75,34],[76,32,76,34],[77,32,77,34],[68,32,68,34],[69,32,69,34],[70,32,70,34],[71,32,71,34],[72,32,72,34],[63,32,63,34],[64,32,64,34],[65,32,65,34],[66,32,66,34],[67,32,67,34],[58,32,58,34],[59,32,59,34],[60,32,60,34],[61,32,61,34],[62,32,62,34],[53,32,53,34],[54,32,54,34],[55,32,55,34],[56,32,56,34],[57,32,57,34],[48,32,48,34],[49,32,49,34],[50,32,50,34],[51,32,51,34],[52,32,52,34],[43,32,43,34],[44,32,44,34],[45,32,45,34],[46,32,46,34],[47,32,47,34],[38,32,38,34],[39,32,39,34],[40,32,40,34],[41,32,41,34],[42,32,42,34],[32,32,32,34],[33,32,33,34],[35,32,35,34],[36,32,36,34],[37,32,37,34],[27,32,27,34],[28,32,28,34],[29,32,29,34],[30,32,30,34],[31,32,31,34],[21,32,21,34],[22,32,22,34],[24,32,24,34],[25,32,25,34],[26,32,26,34],[9,32,9,34],[20,32,20,34],[4,0,4,4],[23,32,23,34],[34,32,34,34],[5,0,6,1],[5,2,5,3],[5,4,6,4],[12,32,12,34],[13,32,13,34],[14,32,14,34],[15,32,15,34],[16,32,16,34],[17,32,17,34],[18,32,18,34],[19,32,19,34]]}
[]
[]
[]
[]
["Causas de los accidentes investigados graves, muy graves y mortales sector Servicios y porcentaje. (*)"]
[{"$f":"año_publi","v":2022},null,"Respuestas",null,"Porcentaje de casos"]
[null,null,"Nº","Porcentaje"]
[null,"1101 Deficiente diseño ergonómico del puesto de trabajo.",2,7.1942446043165471E-3,2.1739130434782608E-2]
[null,"1102 Superficies de trabajo habitualmente inestables, incluidos barcos.",1,3.5971223021582736E-3,1.0869565217391304E-2]
[null,"1103 Espacio insuficiente en lugares de trabajo o en las zonas de tránsito",3,1.0791366906474819E-2,3.2608695652173912E-2,null,null,null,null,null,null,null,null,null,null,null,null,null,null,null,null,null,null,null,null,null,null,null,null,null,null,null,"Bloque de causas de los accidentes graves, muy graves y mortales investigados del sector servicios y porcentaje . Año 2014 (*)"]
[null,"1104 Ausencia/deficiencia de protecciones colectivas frente a caídas de personas",4,1.4388489208633094E-2,4.3478260869565216E-2,null,null,null,null,null,null,null,null,null,null,null,null,null,null,null,null,null,null,null,null,null,null,null,null,null,null,null,null,"Frecuencia","Porcentaje"]
[null,"1105 Aberturas y huecos desprotegidos",1,3.5971223021582736E-3,1.0869565217391304E-2,null,null,null,null,null,null,null,null,null,null,null,null,null,null,null,null,null,null,null,null,null,null,null,null,null,null,null,"Total",66,1]
[null,"1106 Falta de seguridad estructural o estabilidad de paramentos, etc.",1,3.5971223021582736E-3,1.0869565217391304E-2,null,null,null,null,null,null,null,null,null,null,null,null,null,null,null,null,null,null,null,null,null,null,null,null,null,null,null,"Prevención intrínseca",13,0.19696969696969696]
[null,"1109 Dificultad/deficiencia en el acceso al puesto de trabajo.",1,3.5971223021582736E-3,1.0869565217391304E-2,null,null,null,null,null,null,null,null,null,null,null,null,null,null,null,null,null,null,null,null,null,null,null,null,null,null,null,"Protección, señalización",11,0.16666666666666669]
[null,"1110 Pavimento deficiente o inadecuado (discontinuo, resbaladizo, inestable, con  pendiente excesiva, etc.)",6,2.1582733812949638E-2,6.5217391304347824E-2,null,null,null,null,null,null,null,null,null,null,null,null,null,null,null,null,null,null,null,null,null,null,null,null,null,null,null,"Materiales, productos o agentes",5,7.575757575757576E-2]
[null,"1111 Escaleras fijas, de servicio o escala inseguras por falta de anchura, peldaño desigual, huella insufiente etc o en",2,7.1942446043165471E-3,2.1739130434782608E-2,null,null,null,null,null,null,null,null,null,null,null,null,null,null,null,null,null,null,null,null,null,null,null,null,null,null,null,"Espacios y superficies de trabajo",8,0.12121212121212122]
[null,"1112 Vías de evacuación o salida no señalizadas o señalizadas de forma insuficiente o incorrecta",1,3.5971223021582736E-3,1.0869565217391304E-2,null,null,null,null,null,null,null,null,null,null,null,null,null,null,null,null,null,null,null,null,null,null,null,null,null,null,null,"Organización del trabajo",48,0.72727272727272729]
[null,"1115 Deficiencia/ausencia de señalización u otro tipo de elementos necesarios para la delimitación de la zona de trabajo",4,1.4388489208633094E-2,4.3478260869565216E-2,null,null,null,null,null,null,null,null,null,null,null,null,null,null,null,null,null,null,null,null,null,null,null,null,null,null,null,"Gestión de la prevención",32,0.48484848484848486]
[null,"1116 Vías de circulación deficientes (insuficentes, mal dimensionadas o faltas de separación entre ellas)",1,3.5971223021582736E-3,1.0869565217391304E-2,null,null,null,null,null,null,null,null,null,null,null,null,null,null,null,null,null,null,null,null,null,null,null,null,null,null,null,"Factores individuales",24,0.36363636363636365]
[null,"1199 Otras causas relativas a la configuración de los espacios de trabajo",3,1.0791366906474819E-2,3.2608695652173912E-2,null,null,null,null,null,null,null,null,null,null,null,null,null,null,null,null,null,null,null,null,null,null,null,null,null,null,null,"Otras causas",8,0.12121212121212122]
[null,"1203 No delimitación entre las zonas de trabajo o tránsito y las de almacenamiento o no respetar las zonas establecidas.",2,7.1942446043165471E-3,2.1739130434782608E-2,null,null,null,null,null,null,null,null,null,null,null,null,null,null,null,null,null,null,null,null,null,null,null,null,null,null,null,"(*) Accidentes asignados en 2014 para su investigación en el mismo periodo y durante el año 2015"]
[null,"1299 Otras causas relativas al orden y limpieza",3,1.0791366906474819E-2,3.2608695652173912E-2]
[null,"1305 Iluminación insuficiente o inapropiada",2,7.1942446043165471E-3,2.1739130434782608E-2]
[null,"1307 Causas relativas a la temperatura y condiciones termo higrométricas",3,1.0791366906474819E-2,3.2608695652173912E-2,null,null,null,null,null,null,null,null,null,null,null,null,null,null,null,null,null,null,null,null,null,null,null,null,null,null,null,"Bloque de causas de los accidentes graves, muy graves y mortales investigados del sector servicios y porcentaje . Año 2015 (*)"]
[null,"1308 Causas relativas a los aspectos meteorológicos",1,3.5971223021582736E-3,1.0869565217391304E-2,null,null,null,null,null,null,null,null,null,null,null,null,null,null,null,null,null,null,null,null,null,null,null,null,null,null,null," ","Frecuencia","Porcentaje"]
[null,"1999 Otras causas relativas a las condiciones de los espacios de trabajo",1,3.5971223021582736E-3,1.0869565217391304E-2,null,null,null,null,null,null,null,null,null,null,null,null,null,null,null,null,null,null,null,null,null,null,null,null,null,null,null,"Total",66,1]
[null,"2209 Generación de atmósferas peligrosas por deficiencias de ventilación, natural o forzada",1,3.5971223021582736E-3,1.0869565217391304E-2,null,null,null,null,null,null,null,null,null,null,null,null,null,null,null,null,null,null,null,null,null,null,null,null,null,null,null,"Prevención intrínseca",13,0.19696969696969696]
[null,"3101 Diseño incorrecto de la máquina o componente que hace que no se cumplan los principios de la prevención intrínseca",3,1.0791366906474819E-2,3.2608695652173912E-2,null,null,null,null,null,null,null,null,null,null,null,null,null,null,null,null,null,null,null,null,null,null,null,null,null,null,null,"Protección, señalización",11,0.16666666666666669]
[null,"3102 Modificaciones realizadas en la maquina que dan lugar a situaciones de riesgo no previstas por el fabricante.",2,7.1942446043165471E-3,2.1739130434782608E-2,null,null,null,null,null,null,null,null,null,null,null,null,null,null,null,null,null,null,null,null,null,null,null,null,null,null,null,"Materiales, productos o agentes",5,7.575757575757576E-2]
[null,"3104 Defectos de estabilidad en equipos, maquinas o sus componentes",2,7.1942446043165471E-3,2.1739130434782608E-2,null,null,null,null,null,null,null,null,null,null,null,null,null,null,null,null,null,null,null,null,null,null,null,null,null,null,null,"Espacios y superficies de trabajo",8,0.12121212121212122]
[null,"3109 Órganos de accionamiento inseguros",2,7.1942446043165471E-3,2.1739130434782608E-2,null,null,null,null,null,null,null,null,null,null,null,null,null,null,null,null,null,null,null,null,null,null,null,null,null,null,null,"Organización del trabajo",48,0.72727272727272729]
[null,"3111 Accesibilidad a órganos de la máquina peligrosos (atrapantes, cortantes, punzantes, o con posibilidad de ocasionar",2,7.1942446043165471E-3,2.1739130434782608E-2,null,null,null,null,null,null,null,null,null,null,null,null,null,null,null,null,null,null,null,null,null,null,null,null,null,null,null,"Gestión de la prevención",32,0.48484848484848486]
[null,"3115 Defectos o ausencia en el sistema de dirección de la maquina automotriz, en el mecanismo de embrague, en el sistema",1,3.5971223021582736E-3,1.0869565217391304E-2,null,null,null,null,null,null,null,null,null,null,null,null,null,null,null,null,null,null,null,null,null,null,null,null,null,null,null,"Factores individuales",24,0.36363636363636365]
[null,"3201 Ausencia y/o deficiencia de resguardos y de dispositivos de protección",4,1.4388489208633094E-2,4.3478260869565216E-2,null,null,null,null,null,null,null,null,null,null,null,null,null,null,null,null,null,null,null,null,null,null,null,null,null,null,null,"Otras causas",8,0.12121212121212122]
[null,"3202 Parada de emergencia inexistente, ineficaz o no accesible",1,3.5971223021582736E-3,1.0869565217391304E-2,null,null,null,null,null,null,null,null,null,null,null,null,null,null,null,null,null,null,null,null,null,null,null,null,null,null,null,"(*) Accidentes asignados en 2015 para su investigación en el mismo periodo y durante el año 2016"]
[null,"3203 Ausencia/deficiencia de protecciones colectivas frente a caídas de personas y objetos desde máquinas",1,3.5971223021582736E-3,1.0869565217391304E-2]
[null,"3205 Ausencia/deficiencia de estructura de protección contra caída de materiales (f.o.p.s.)",1,3.5971223021582736E-3,1.0869565217391304E-2]
[null,"3302 Deficiencia/ausencia del manual de instrucciones de máquinas",2,7.1942446043165471E-3,2.1739130434782608E-2]
[null,"4101 Diseño incorrecto del equipo que hace que no se cumplan los principios de la prevención intrínseca y/o de la ergono",1,3.5971223021582736E-3,1.0869565217391304E-2]
[null,"4102 Deficiente ubicación, defectos de estabilidad en equipos de trabajo debido a una incorrecta construcción, montaje y",1,3.5971223021582736E-3,1.0869565217391304E-2]
[null,"4105 Partes del equipo accesibles peligrosas (atrapantes, cortantes, punzantes,etc.)",4,1.4388489208633094E-2,4.3478260869565216E-2]
[null,"4106 Escalera de mano insegura (material no resistente, apoyos inadecuados ….)",1,3.5971223021582736E-3,1.0869565217391304E-2]
[null,"4203 Ausencia/deficiencia de protecciones colectivas frente a caídas de personas y objetos desde equipos de trabajo",1,3.5971223021582736E-3,1.0869565217391304E-2]
[null,"4301 Deficiencia/ausencia del manual de instrucciones o señalización (nota: el fallo puede consistir en la inexistencia",1,3.5971223021582736E-3,1.0869565217391304E-2]
[null,"5102 Materiales muy pesados, voluminosos, de gran superficie, inestables o con aristas/perfiles cortantes, en relación c",2,7.1942446043165471E-3,2.1739130434782608E-2]
[null,"5104 Deficiente sistema de almacenamiento, empaquetado, paletizado, apilamiento atc",1,3.5971223021582736E-3,1.0869565217391304E-2]
[null,"5106 Falta de planificación y/o vigilancia en operaciones de levantamiento de cargas",1,3.5971223021582736E-3,1.0869565217391304E-2]
[null,"5202 Ausencia o deficiencia en los procedimientos de manipulado o almacenamiento de productos químicos (sustancias o pre",1,3.5971223021582736E-3,1.0869565217391304E-2]
[null,"5206 Posibilidad de contacto o mezcla de productos químicos (sustancias o preparados) incompatibles o que pueden generar",1,3.5971223021582736E-3,1.0869565217391304E-2]
[null,"5399 Otras causas relativas a los agentes biologicos y seres vivos",1,3.5971223021582736E-3,1.0869565217391304E-2]
[null,"6101 Método de trabajo  inexistente",1,3.5971223021582736E-3,1.0869565217391304E-2]
[null,"6102 Método de trabajo inadecuado",15,5.3956834532374105E-2,0.16304347826086957]
[null,"6103 Diseño inadecuado del trabajo o tarea",2,7.1942446043165471E-3,2.1739130434782608E-2]
[null,"6104 Apremio de tiempo o ritmo de trabajo elevado",4,1.4388489208633094E-2,4.3478260869565216E-2]
[null,"6106 Trabajos solitarios sin las medidas de prevención adecuadas",2,7.1942446043165471E-3,2.1739130434782608E-2]
[null,"6107 Sobrecarga de la máquina o equipo (respecto a sus características técnicas)",1,3.5971223021582736E-3,1.0869565217391304E-2]
[null,"6108 Sobrecarga trabajador (fatiga física o mental)",2,7.1942446043165471E-3,2.1739130434782608E-2]
[null,"6109 Existencia de interferencias o falta de coordinación entre trabajadores que realizan la misma o distintas tareas",3,1.0791366906474819E-2,3.2608695652173912E-2]
[null,"6110 Ausencia de vigilancia, control y dirección de persona competente",3,1.0791366906474819E-2,3.2608695652173912E-2]
[null,"6111 No organizar el trabajo teniendo en cuenta las condiciones meteorológicas adversas.",1,3.5971223021582736E-3,1.0869565217391304E-2]
[null,"6199 Otras causas relativas a los métodos de trabajo",2,7.1942446043165471E-3,2.1739130434782608E-2]
[null,"6201 Operación inhabitual para el operario que la realiza, sea ordinaria o esporádica",2,7.1942446043165471E-3,2.1739130434782608E-2]
[null,"6203 Operación extraordinaria realizada en caso de incidentes, accidentes o emergencias.",1,3.5971223021582736E-3,1.0869565217391304E-2]
[null,"6299 Otras causas relativas a la organización de las tareas",1,3.5971223021582736E-3,1.0869565217391304E-2]
[null,"6301 Deficiencias en el sistema de comunicación a nivel horizontal o vertical, incluyendo la incomprensión del idioma.",1,3.5971223021582736E-3,1.0869565217391304E-2]
[null,"6302 Instrucciones inexistentes",1,3.5971223021582736E-3,1.0869565217391304E-2]
[null,"6304 Formación/información inadecuada o inexistente sobre la tarea",17,6.1151079136690649E-2,0.18478260869565216]
[null,"6305 Procedimientos inexistentes o insuficientes para formar o informar a los trabajadores  acerca de la utilización o m",2,7.1942446043165471E-3,2.1739130434782608E-2]
[null,"6306 Deficiencia/ausencia de información o señalización visual o acústica obligatoria o necesaria, incluyendo la utiliza",1,3.5971223021582736E-3,1.0869565217391304E-2]
[null,"6401 No poner a disposición de los trabajadores las máquinas, equipos y medios auxiliares necesarios o adecuados.",6,2.1582733812949638E-2,6.5217391304347824E-2]
[null,"6403 Selección de útiles, herramientas y medios auxiliares no adecuados al trabajo a realizar",1,3.5971223021582736E-3,1.0869565217391304E-2]
[null,"6405 Utilización de la máquina de manera no prevista por el fabricante.",2,7.1942446043165471E-3,2.1739130434782608E-2]
[null,"6406 Utilización de útiles, herramientas y medios auxiliares de manera no prevista por el fabricante.",1,3.5971223021582736E-3,1.0869565217391304E-2]
[null,"6408 No comprobación del estado de las maquinas, herramientas, equipos o medios auxiliares antes de su utilización",2,7.1942446043165471E-3,2.1739130434782608E-2]
[null,"6499 Otras causas relativas a la selección y utilización de equipos y materiales",1,3.5971223021582736E-3,1.0869565217391304E-2]
[null,"6999 Otras causas relativas a la organización del trabajo",1,3.5971223021582736E-3,1.0869565217391304E-2]
[null,"7101 Inexistencia o insuficiencia de un procedimiento que regule la realización de las actividades dirigidas a la identi",2,7.1942446043165471E-3,2.1739130434782608E-2]
[null,"7102 Inexistencia o deficiencia de un procedimiento que regule la planificación de la implantación de las medidas preven",2,7.1942446043165471E-3,2.1739130434782608E-2]
[null,"7103 Procedimientos inexistentes, insuficientes o deficientes para informar a los trabajadores de los riesgos y las medi",4,1.4388489208633094E-2,4.3478260869565216E-2]
[null,"7105 Procedimientos inexistentes, insuficientes o deficientes. para la coordinación de actividades realizadas por varias",8,2.8776978417266189E-2,8.6956521739130432E-2]
[null,"7199 Otras causas relativas a la gestión de la prevención",1,3.5971223021582736E-3,1.0869565217391304E-2]
[null,"7201 No identificación del/los riesgos que han materializado el accidente",10,3.5971223021582732E-2,0.10869565217391304]
[null,"7202 Medidas preventivas propuestas en la planificación derivada de la evaluación de riesgos insuficientes o inadecuadas",2,7.1942446043165471E-3,2.1739130434782608E-2]
[null,"7203 Medidas preventivas propuestas en la planificación derivada de la evaluación de riesgos insuficientes o inadecuadas",9,3.237410071942446E-2,9.7826086956521743E-2]
[null,"7204 Falta de control del cumplimiento del Plan de seguridad y salud en Construcción.",2,7.1942446043165471E-3,2.1739130434782608E-2]
[null,"7205 Mantenimiento preventivo inexistente o inadecuado o falta de revisiones periódicas oficiales.",3,1.0791366906474819E-2,3.2608695652173912E-2]
[null,"7206 Formación/información inadecuada, inexistente sobre riesgos o medidas preventivas",8,2.8776978417266189E-2,8.6956521739130432E-2]
[null,"7208 No poner a disposición de los trabajadores las prendas o equipos de protección necesarios o ser estos inadecuados o",7,2.5179856115107913E-2,7.6086956521739135E-2]
[null,"7209 Falta de presencia de los recursos preventivos requeridos",1,3.5971223021582736E-3,1.0869565217391304E-2]
[null,"7210 Vigilancia de la salud inadecuada a los riesgos del puesto de trabajo",3,1.0791366906474819E-2,3.2608695652173912E-2]
[null,"7211 Ausencia/deficiencias de permisos y/o procedimientos de trabajo en intervenciones peligrosas (por ejemplo soldadura",3,1.0791366906474819E-2,3.2608695652173912E-2]
[null,"7212 Asignación de tarea a un trabajador con falta de cualificación o experiencia",2,7.1942446043165471E-3,2.1739130434782608E-2]
[null,"7299 Otras causas relativas a las actividades preventivas",1,3.5971223021582736E-3,1.0869565217391304E-2]
[null,"7999 Otras causas relativas a la gestión de la prevención",1,3.5971223021582736E-3,1.0869565217391304E-2]
[null,"8101 Realización de tareas no asignadas",5,1.7985611510791366E-2,5.434782608695652E-2]
[null,"8102 Incumplimiento de procedimientos e instrucciones de trabajo",8,2.8776978417266189E-2,8.6956521739130432E-2]
[null,"8103 Incumplimiento de normas de seguridad establecidas",2,7.1942446043165471E-3,2.1739130434782608E-2]
[null,"8106 No utilización de equipos de protección individual puestas a disposición por la empresa y de uso obligatorio.",4,1.4388489208633094E-2,4.3478260869565216E-2]
[null,"8107 Retirada o anulación de protecciones o dispositivos de seguridad",2,7.1942446043165471E-3,2.1739130434782608E-2]
[null,"8108 Permanencia del trabajador dentro de una zona peligrosa",8,2.8776978417266189E-2,8.6956521739130432E-2]
[null,"8109 Adopción de una postura inadecuada en el puesto de trabajo",1,3.5971223021582736E-3,1.0869565217391304E-2]
[null,"8199 Otras causas relativas a los factores de comportamiento",7,2.5179856115107913E-2,7.6086956521739135E-2]
[null,"8201 Incapacidad física o mental para la realización normal del trabajo.",1,3.5971223021582736E-3,1.0869565217391304E-2]
[null,"8299 Otras causas relativas a los factores intrinsecos, de salud o capacidades",3,1.0791366906474819E-2,3.2608695652173912E-2]
[null,"8999 Otras causas relativas a los factores personales-individuales",2,7.1942446043165471E-3,2.1739130434782608E-2]
[null,"9199 Otras causas",6,2.1582733812949638E-2,6.5217391304347824E-2]
[null,"9299 Hechos no causales",4,1.4388489208633094E-2,4.3478260869565216E-2]
[null,"Total",278,1,3.0217391304347827]
[{"$f":"Nota","v":"(*) Accidentes asignados en 2022 para su investigación en el mismo periodo y durante el año 2023"}]

{"sheet":"Hoja8","index":11,"n_rows":41,"n_cols":17,"rows_kept":41,"cut":false,"hidden":true,"merged":[[16,12,16,16],[3,0,3,10],[4,0,5,0],[4,1,4,2],[4,3,4,4],[4,5,4,6],[4,7,4,8],[4,12,4,16],[5,13,5,14],[5,15,5,16],[4,9,4,10],[5,12,6,12]]}
[]
[]
[]
["Accidentes investigados según sexo  y gravedad por porcentaje . (*)"]
[{"$f":"año_publi","v":2022},"Total",null,"Grave",null,"Muy grave",null,"Mortal",null,null,null,null,"Bloque de causas de los accidentes graves, muy graves y mortales investigados según sexo y porcentaje . (*)"]
[null,"Frecuencia"," Porcentaje","Frecuencia"," Porcentaje","Frecuencia"," Porcentaje","Frecuencia"," Porcentaje",null,null,null,{"$f":"año_publi","v":2022},"Hombre",null,"Mujer"]
["Total",194,1,166,1,9,1,19,1,null,null,null,null," Frecuencia"," Porcentaje"," Frecuencia"," Porcentaje"]
["Hombre",174,0.89690721649484528,148,0.89156626506024095,7,0.77777777777777768,19,1,null,null,null,"Total",174,1,20,1]
["Mujer",20,0.10309278350515465,18,0.10843373493975904,2,0.22222222222222221,0,0,null,null,null,"Prevención intrínseca",39,0.22413793103448276,0,0]
[{"$f":"Nota","v":"(*) Accidentes asignados en 2022 para su investigación en el mismo periodo y durante el año 2023"},null,null,null,null,null,null,null,null,null,null,null,"Protección, señalización",34,0.1954022988505747,1,0.05]
[null,null,null,null,null,null,null,null,null,null,null,null,"Materiales, productos o agentes",15,8.6206896551724144E-2,2,0.1]
[null,null,null,null,null,null,null,null,null,null,null,null,"Espacios y superficies de trabajo",32,0.18390804597701149,11,0.55000000000000004]
[null,null,null,null,null,null,null,null,null,null,null,null,"Organización del trabajo",101,0.58045977011494254,6,0.3]
[null,null,null,null,null,null,null,null,null,null,null,null,"Gestión de la prevención",88,0.50574712643678166,6,0.3]
[null,null,null,null,null,null,null,null,null,null,null,null,"Factores individuales",70,0.40229885057471265,5,0.25]
[null,null,null,null,null,null,null,null,null,null,null,null,"Otras causas",13,7.4712643678160925E-2,3,0.15]
[null,null,null,null,null,null,null,null,null,null,null,null,{"$f":"Nota","v":"(*) Accidentes asignados en 2022 para su investigación en el mismo periodo y durante el año 2023"}]
[]
[]
[]
[]
[]
[]
[]
[]
[]
[]
[]
[]
[]
[]
[]
[]
[]
[]
[]
[]
[]
[]
[83,0.93258426966292129,14,1,14,1,111,0.94871794871794879]
[6,6.741573033707865E-2,0,0,0,0,6,5.1282051282051287E-2]

{"sheet":"Hoja9","index":12,"n_rows":26,"n_cols":9,"rows_kept":26,"cut":false,"hidden":true,"merged":[[15,7,15,8],[15,1,15,2],[15,3,15,4],[15,5,15,6],[15,0,16,0],[14,0,14,8],[4,0,4,8],[5,0,6,0],[5,1,5,2],[5,3,5,4],[5,5,5,6],[5,7,5,8]]}
[]
[]
[]
[]
["Accidentes graves, muy graves y mortales investigados según sector de la actividad y nacionalidad por porcentaje .  (*)"]
[{"$f":"año_publi","v":2022},"Total",null,"1_Españoles",null,"2_Extranjeros",null,"No consta"]
[null,"Frecuencia"," Porcentaje","Frecuencia"," Porcentaje","Frecuencia"," Porcentaje","Frecuencia"," Porcentaje"]
["Total",194,1,138,1,55,1,1,1]
["Industria, energía y minería",22,0.1134020618556701,18,0.13043478260869565,4,7.2727272727272724E-2,0,0]
["Construcción",80,0.41237113402061859,48,0.34782608695652173,31,0.56363636363636371,1,1]
["Servicios",92,0.47422680412371138,72,0.52173913043478259,20,0.36363636363636365,0,0]
[{"$f":"Nota","v":"(*) Accidentes asignados en 2022 para su investigación en el mismo periodo y durante el año 2023"}]
[]
[]
["Bloque de causa y nacionalidad de los accidentes graves, muy graves y mortales investigados y porcentaje .  (*)"]
[{"$f":"año_publi","v":2022},"Total",null,"1_Españoles",null,"2_Extranjeros",null,"No consta"]
[null,"Frecuencia","Porcentaje","Frecuencia","Porcentaje","Frecuencia","Porcentaje","Frecuencia"," Porcentaje"]
["Total",194,1,138,1,55,1,1,1]
["Prevención intrínseca",39,0.20103092783505155,26,0.18840579710144925,13,0.23636363636363636,0,0]
["Protección, señalización",35,0.18041237113402062,22,0.15942028985507245,13,0.23636363636363636,0,0]
["Materiales, productos o agentes",17,8.7628865979381451E-2,11,7.9710144927536225E-2,6,0.10909090909090909,0,0]
["Espacios y superficies de trabajo",43,0.22164948453608246,31,0.22463768115942029,12,0.21818181818181817,0,0]
["Organización del trabajo",107,0.55154639175257736,70,0.50724637681159424,36,0.65454545454545454,1,1]
["Gestión de la prevención",94,0.4845360824742268,59,0.42753623188405798,35,0.63636363636363635,0,0]
["Factores individuales",75,0.38659793814432986,52,0.3768115942028985,22,0.4,1,1]
["Otras causas",16,8.2474226804123696E-2,14,0.10144927536231885,2,3.6363636363636362E-2,0,0]

{"sheet":"Hoja10","index":13,"n_rows":163,"n_cols":11,"rows_kept":163,"cut":false,"hidden":true,"merged":[[24,0,24,10],[39,0,40,0],[38,0,38,5],[25,0,26,0],[25,3,25,4],[25,5,25,6],[25,1,25,2],[25,9,25,10],[25,7,25,8],[20,0,20,6],[22,0,22,7],[3,0,3,6],[4,0,5,0],[4,1,4,2],[4,3,4,4],[4,5,4,6]]}
[]
[]
[]
["Accidentes graves, muy graves y mortales investigados según grupos de edad y sexo por porcentaje . (*)"]
[{"$f":"año_publi","v":2022},"Total",null,"Hombre",null,"Mujer"]
[null," Frecuencia","Porcentaje"," Frecuencia","Porcentaje"," Frecuencia","Porcentaje"]
["Total",194,1,174,1,20,1]
["De 20 a 24 años",8,4.1237113402061848E-2,8,4.5977011494252873E-2,0,0]
["De 25 a 29 años",10,5.1546391752577324E-2,7,4.0229885057471264E-2,3,0.15]
["De 30 a 34 años",14,7.2164948453608255E-2,13,7.4712643678160925E-2,1,0.05]
["De 35 a 39 años",20,0.10309278350515465,19,0.10919540229885058,1,0.05]
["De 40 a 44 años",21,0.10824742268041238,21,0.12068965517241378,0,0]
["De 45 a 49 años",28,0.14432989690721651,26,0.14942528735632185,2,0.1]
["De 50 a 54 años",33,0.17010309278350516,26,0.14942528735632185,7,0.35]
["De 55 a 59 años",35,0.18041237113402062,31,0.17816091954022986,4,0.2]
["De 60 a 64 años",22,0.1134020618556701,21,0.12068965517241378,1,0.05]
["Mayor de 64",2,1.0309278350515462E-2,1,5.7471264367816091E-3,1,0.05]
["No consta",1,5.154639175257731E-3,1,5.7471264367816091E-3,0,0]
[{"$f":"Nota","v":"(*) Accidentes asignados en 2022 para su investigación en el mismo periodo y durante el año 2023"}]
[]
[]
[]
[]
[]
["Bloques de causa de los accidentes graves, muy graves y mortales investigados según grupos de edad y porcentaje . (*)"]
[{"$f":"año_publi","v":2022},"Total",null,"1_Menores de 25 años",null,"2_de 25 a 49 años",null,"3_50 años y más",null,"4_No consta"]
[null,"Frecuencia","Porcentaje","Frecuencia","Porcentaje","Frecuencia","Porcentaje","Frecuencia","Porcentaje","Frecuencia","Porcentaje"]
["Total",194,1,8,1,93,1,92,1,1,1]
["Prevención intrínseca",39,0.20103092783505155,3,0.375,23,0.24731182795698925,13,0.14130434782608695,0,0]
["Protección, señalización",35,0.18041237113402062,3,0.375,18,0.19354838709677419,14,0.15217391304347827,0,0]
["Materiales, productos o agentes",17,8.7628865979381451E-2,0,0,6,6.4516129032258063E-2,10,0.10869565217391304,1,1]
["Espacios y superficies de trabajo",43,0.22164948453608246,1,0.125,20,0.21505376344086019,21,0.22826086956521738,1,1]
["Organización del trabajo",107,0.55154639175257736,6,0.75,59,0.63440860215053763,41,0.44565217391304351,1,1]
["Gestión de la prevención",94,0.4845360824742268,6,0.75,49,0.5268817204301075,38,0.41304347826086951,1,1]
["Factores individuales",75,0.38659793814432986,2,0.25,33,0.35483870967741937,40,0.43478260869565216,0,0]
["Otras causas",16,8.2474226804123696E-2,1,0.125,7,7.5268817204301078E-2,8,8.6956521739130432E-2,0,0]
[{"$f":"Nota","v":"(*) Accidentes asignados en 2022 para su investigación en el mismo periodo y durante el año 2023"}]
[]
["Causa y grupos de edad de los accidentes graves, muy graves y mortales investigados y porcentaje . (*)"]
[{"$f":"año_publi","v":2022},"Total","1_Menores de 25 años","2_de 25 a 49 años","3_50 años y más","4_No consta"]
[null,"Porcentaje","Porcentaje","Porcentaje","Porcentaje","Porcentaje"]
["Total",1,1,1,1,1]
["6102 Método de trabajo inadecuado",0.19072164948453607,0.375,0.18279569892473119,0.17391304347826086,1]
["7203 Medidas preventivas propuestas en la planificación derivada de la evaluación de riesgos insuficientes o inadecuadas",0.12371134020618557,0,0.12903225806451613,0.13043478260869565,0]
["6304 Formación/información inadecuada o inexistente sobre la tarea",0.12371134020618557,0.375,0.17204301075268816,4.3478260869565216E-2,1]
["8108 Permanencia del trabajador dentro de una zona peligrosa",0.10824742268041238,0.125,0.12903225806451613,8.6956521739130432E-2,0]
["7201 No identificación del/los riesgos que han materializado el accidente",0.10824742268041238,0.125,0.11827956989247312,8.6956521739130432E-2,1]
["8102 Incumplimiento de procedimientos e instrucciones de trabajo",0.10309278350515465,0,0.1075268817204301,0.10869565217391304,0]
["8199 Otras causas relativas a los factores de comportamiento",8.2474226804123696E-2,0,6.4516129032258063E-2,0.10869565217391304,0]
["7206 Formación/información inadecuada, inexistente sobre riesgos o medidas preventivas",8.2474226804123696E-2,0.125,6.4516129032258063E-2,9.7826086956521743E-2,0]
["7105 Procedimientos inexistentes, insuficientes o deficientes. para la coordinación de actividades realizadas por varias",7.7319587628865982E-2,0.25,5.3763440860215048E-2,8.6956521739130432E-2,0]
["7204 Falta de control del cumplimiento del Plan de seguridad y salud en Construcción.",7.2164948453608255E-2,0.125,7.5268817204301078E-2,6.5217391304347824E-2,0]
["6110 Ausencia de vigilancia, control y dirección de persona competente",7.2164948453608255E-2,0.125,6.4516129032258063E-2,7.6086956521739135E-2,0]
["1104 Ausencia/deficiencia de protecciones colectivas frente a caídas de personas",6.7010309278350513E-2,0,7.5268817204301078E-2,6.5217391304347824E-2,0]
["6401 No poner a disposición de los trabajadores las máquinas, equipos y medios auxiliares necesarios o adecuados.",6.1855670103092786E-2,0.125,6.4516129032258063E-2,5.434782608695652E-2,0]
["7209 Falta de presencia de los recursos preventivos requeridos",5.6701030927835051E-2,0,5.3763440860215048E-2,6.5217391304347824E-2,0]
["7208 No poner a disposición de los trabajadores las prendas o equipos de protección necesarios o ser estos inadecuados o",5.6701030927835051E-2,0,7.5268817204301078E-2,4.3478260869565216E-2,0]
["7202 Medidas preventivas propuestas en la planificación derivada de la evaluación de riesgos insuficientes o inadecuadas",5.6701030927835051E-2,0.125,8.6021505376344079E-2,2.1739130434782608E-2,0]
["1110 Pavimento deficiente o inadecuado (discontinuo, resbaladizo, inestable, con  pendiente excesiva, etc.)",5.6701030927835051E-2,0,6.4516129032258063E-2,5.434782608695652E-2,0]
["8106 No utilización de equipos de protección individual puestas a disposición por la empresa y de uso obligatorio.",4.6391752577319589E-2,0,3.2258064516129031E-2,6.5217391304347824E-2,0]
["7102 Inexistencia o deficiencia de un procedimiento que regule la planificación de la implantación de las medidas preven",4.6391752577319589E-2,0.125,3.2258064516129031E-2,5.434782608695652E-2,0]
["9199 Otras causas",4.1237113402061848E-2,0,4.301075268817204E-2,4.3478260869565216E-2,0]
["6405 Utilización de la máquina de manera no prevista por el fabricante.",4.1237113402061848E-2,0,5.3763440860215048E-2,3.2608695652173912E-2,0]
["7212 Asignación de tarea a un trabajador con falta de cualificación o experiencia",3.6082474226804127E-2,0,5.3763440860215048E-2,1.0869565217391304E-2,1]
["7101 Inexistencia o insuficiencia de un procedimiento que regule la realización de las actividades dirigidas a la identi",3.6082474226804127E-2,0.125,2.150537634408602E-2,4.3478260869565216E-2,0]
["6101 Método de trabajo  inexistente",3.6082474226804127E-2,0.25,3.2258064516129031E-2,1.0869565217391304E-2,1]
["4105 Partes del equipo accesibles peligrosas (atrapantes, cortantes, punzantes,etc.)",3.6082474226804127E-2,0,6.4516129032258063E-2,1.0869565217391304E-2,0]
["8299 Otras causas relativas a los factores intrinsecos, de salud o capacidades",3.0927835051546393E-2,0,1.075268817204301E-2,5.434782608695652E-2,0]
["8103 Incumplimiento de normas de seguridad establecidas",3.0927835051546393E-2,0,3.2258064516129031E-2,3.2608695652173912E-2,0]
["7103 Procedimientos inexistentes, insuficientes o deficientes para informar a los trabajadores de los riesgos y las medi",3.0927835051546393E-2,0,3.2258064516129031E-2,3.2608695652173912E-2,0]
["6403 Selección de útiles, herramientas y medios auxiliares no adecuados al trabajo a realizar",3.0927835051546393E-2,0,6.4516129032258063E-2,0,0]
["6305 Procedimientos inexistentes o insuficientes para formar o informar a los trabajadores  acerca de la utilización o m",3.0927835051546393E-2,0,3.2258064516129031E-2,3.2608695652173912E-2,0]
["6104 Apremio de tiempo o ritmo de trabajo elevado",3.0927835051546393E-2,0,5.3763440860215048E-2,1.0869565217391304E-2,0]
["5102 Materiales muy pesados, voluminosos, de gran superficie, inestables o con aristas/perfiles cortantes, en relación c",3.0927835051546393E-2,0,1.075268817204301E-2,4.3478260869565216E-2,1]
["1115 Deficiencia/ausencia de señalización u otro tipo de elementos necesarios para la delimitación de la zona de trabajo",3.0927835051546393E-2,0,4.301075268817204E-2,2.1739130434782608E-2,0]
["1106 Falta de seguridad estructural o estabilidad de paramentos, etc.",3.0927835051546393E-2,0,1.075268817204301E-2,5.434782608695652E-2,0]
["8101 Realización de tareas no asignadas",2.5773195876288662E-2,0,3.2258064516129031E-2,2.1739130434782608E-2,0]
["7210 Vigilancia de la salud inadecuada a los riesgos del puesto de trabajo",2.5773195876288662E-2,0,3.2258064516129031E-2,2.1739130434782608E-2,0]
["7205 Mantenimiento preventivo inexistente o inadecuado o falta de revisiones periódicas oficiales.",2.5773195876288662E-2,0.25,0,3.2608695652173912E-2,0]
["6499 Otras causas relativas a la selección y utilización de equipos y materiales",2.5773195876288662E-2,0,2.150537634408602E-2,3.2608695652173912E-2,0]
["6408 No comprobación del estado de las maquinas, herramientas, equipos o medios auxiliares antes de su utilización",2.5773195876288662E-2,0,3.2258064516129031E-2,2.1739130434782608E-2,0]
["6406 Utilización de útiles, herramientas y medios auxiliares de manera no prevista por el fabricante.",2.5773195876288662E-2,0,4.301075268817204E-2,1.0869565217391304E-2,0]
["6302 Instrucciones inexistentes",2.5773195876288662E-2,0,3.2258064516129031E-2,1.0869565217391304E-2,1]
["6201 Operación inhabitual para el operario que la realiza, sea ordinaria o esporádica",2.5773195876288662E-2,0,1.075268817204301E-2,3.2608695652173912E-2,1]
["6109 Existencia de interferencias o falta de coordinación entre trabajadores que realizan la misma o distintas tareas",2.5773195876288662E-2,0,3.2258064516129031E-2,2.1739130434782608E-2,0]
["6108 Sobrecarga trabajador (fatiga física o mental)",2.5773195876288662E-2,0,3.2258064516129031E-2,2.1739130434782608E-2,0]
["5104 Deficiente sistema de almacenamiento, empaquetado, paletizado, apilamiento atc",2.5773195876288662E-2,0,4.301075268817204E-2,0,1]
["4106 Escalera de mano insegura (material no resistente, apoyos inadecuados ….)",2.5773195876288662E-2,0,5.3763440860215048E-2,0,0]
["4102 Deficiente ubicación, defectos de estabilidad en equipos de trabajo debido a una incorrecta construcción, montaje y",2.5773195876288662E-2,0,3.2258064516129031E-2,2.1739130434782608E-2,0]
["3201 Ausencia y/o deficiencia de resguardos y de dispositivos de protección",2.5773195876288662E-2,0.125,2.150537634408602E-2,2.1739130434782608E-2,0]
["1199 Otras causas relativas a la configuración de los espacios de trabajo",2.5773195876288662E-2,0,2.150537634408602E-2,3.2608695652173912E-2,0]
["9299 Hechos no causales",2.0618556701030924E-2,0,2.150537634408602E-2,2.1739130434782608E-2,0]
["8105 Uso indebido o no utilización de medios auxiliares de trabajo o de seguridad puestos a disposición por la empresa y",2.0618556701030924E-2,0.125,2.150537634408602E-2,1.0869565217391304E-2,0]
["7299 Otras causas relativas a las actividades preventivas",2.0618556701030924E-2,0.125,3.2258064516129031E-2,0,0]
["7211 Ausencia/deficiencias de permisos y/o procedimientos de trabajo en intervenciones peligrosas (por ejemplo soldadura",2.0618556701030924E-2,0,4.301075268817204E-2,0,0]
["3302 Deficiencia/ausencia del manual de instrucciones de máquinas",2.0618556701030924E-2,0,2.150537634408602E-2,2.1739130434782608E-2,0]
["3111 Accesibilidad a órganos de la máquina peligrosos (atrapantes, cortantes, punzantes, o con posibilidad de ocasionar",2.0618556701030924E-2,0,1.075268817204301E-2,3.2608695652173912E-2,0]
["3109 Órganos de accionamiento inseguros",2.0618556701030924E-2,0,3.2258064516129031E-2,1.0869565217391304E-2,0]
["3104 Defectos de estabilidad en equipos, maquinas o sus componentes",2.0618556701030924E-2,0,2.150537634408602E-2,2.1739130434782608E-2,0]
["3102 Modificaciones realizadas en la maquina que dan lugar a situaciones de riesgo no previstas por el fabricante.",2.0618556701030924E-2,0,1.075268817204301E-2,3.2608695652173912E-2,0]
["1307 Causas relativas a la temperatura y condiciones termo higrométricas",2.0618556701030924E-2,0,0,4.3478260869565216E-2,0]
["1299 Otras causas relativas al orden y limpieza",2.0618556701030924E-2,0,1.075268817204301E-2,3.2608695652173912E-2,0]
["1105 Aberturas y huecos desprotegidos",2.0618556701030924E-2,0,3.2258064516129031E-2,1.0869565217391304E-2,0]
["1103 Espacio insuficiente en lugares de trabajo o en las zonas de tránsito",2.0618556701030924E-2,0,1.075268817204301E-2,3.2608695652173912E-2,0]
["4199 Otras causas relativas al diseño, ubicación, construccion, montaje, y limpieza  de otros equipos de trabajo.",2.0618556701030927E-2,0,0,4.3478260869565216E-2,0]
["8109 Adopción de una postura inadecuada en el puesto de trabajo",1.5463917525773196E-2,0,1.075268817204301E-2,2.1739130434782608E-2,0]
["8104 Uso indebido de materiales, herramientas o útiles de trabajo, puestos a disposición por la empresa",1.5463917525773196E-2,0,0,3.2608695652173912E-2,0]
["6199 Otras causas relativas a los métodos de trabajo",1.5463917525773196E-2,0,2.150537634408602E-2,1.0869565217391304E-2,0]
["6103 Diseño inadecuado del trabajo o tarea",1.5463917525773196E-2,0,1.075268817204301E-2,2.1739130434782608E-2,0]
["5105 Zonas de almacenamiento inadecuadas o no previstas.",1.5463917525773196E-2,0.125,1.075268817204301E-2,0,1]
["4301 Deficiencia/ausencia del manual de instrucciones o señalización (nota: el fallo puede consistir en la inexistencia",1.5463917525773196E-2,0,1.075268817204301E-2,2.1739130434782608E-2,0]
["4203 Ausencia/deficiencia de protecciones colectivas frente a caídas de personas y objetos desde equipos de trabajo",1.5463917525773196E-2,0,1.075268817204301E-2,2.1739130434782608E-2,0]
["3101 Diseño incorrecto de la máquina o componente que hace que no se cumplan los principios de la prevención intrínseca",1.5463917525773196E-2,0,2.150537634408602E-2,1.0869565217391304E-2,0]
["1201 Orden y limpieza deficientes",1.5463917525773196E-2,0,3.2258064516129031E-2,0,0]
["1109 Dificultad/deficiencia en el acceso al puesto de trabajo.",1.5463917525773196E-2,0,2.150537634408602E-2,1.0869565217391304E-2,0]
["8999 Otras causas relativas a los factores personales-individuales",1.0309278350515462E-2,0,0,2.1739130434782608E-2,0]
["8107 Retirada o anulación de protecciones o dispositivos de seguridad",1.0309278350515462E-2,0,0,2.1739130434782608E-2,0]
["7999 Otras causas relativas a la gestión de la prevención",1.0309278350515462E-2,0.125,1.075268817204301E-2,0,0]
["7199 Otras causas relativas a la gestión de la prevención",1.0309278350515462E-2,0,1.075268817204301E-2,1.0869565217391304E-2,0]
["7104 Deficiencias en la organización de los recursos obligatorios (organización preventiva) para la realización de las a",1.0309278350515462E-2,0,2.150537634408602E-2,0,0]
["6306 Deficiencia/ausencia de información o señalización visual o acústica obligatoria o necesaria, incluyendo la utiliza",1.0309278350515462E-2,0.125,1.075268817204301E-2,0,0]
["6301 Deficiencias en el sistema de comunicación a nivel horizontal o vertical, incluyendo la incomprensión del idioma.",1.0309278350515462E-2,0.125,1.075268817204301E-2,0,0]
["6106 Trabajos solitarios sin las medidas de prevención adecuadas",1.0309278350515462E-2,0,0,2.1739130434782608E-2,0]
["5106 Falta de planificación y/o vigilancia en operaciones de levantamiento de cargas",1.0309278350515462E-2,0,1.075268817204301E-2,1.0869565217391304E-2,0]
["3199 Otras causas relativas al diseño, ubicación, construccion, montaje, mantenimiento reparación y limpieza de máquinas",1.0309278350515462E-2,0.125,1.075268817204301E-2,0,0]
["3113 Deficiencia de los medios de acceso al puesto de trabajo o de conducción de la maquina",1.0309278350515462E-2,0,1.075268817204301E-2,1.0869565217391304E-2,0]
["2201 Ausencia/deficiencia de medios para evitar los contactos eléctricos directos",1.0309278350515462E-2,0.125,1.075268817204301E-2,0,0]
["2103 Defectos en el diseño, construcción, montaje, mantenimiento o uso de instalaciones eléctricas (ubicación de celdas",1.0309278350515462E-2,0.125,1.075268817204301E-2,0,0]
["2101 Corte no debidamente previsto de suministro energético o de servicios (agua, electricidad, aire comprimido, gases e",1.0309278350515462E-2,0.125,1.075268817204301E-2,0,0]
["1308 Causas relativas a los aspectos meteorológicos",1.0309278350515462E-2,0,1.075268817204301E-2,1.0869565217391304E-2,0]
["1305 Iluminación insuficiente o inapropiada",1.0309278350515462E-2,0,2.150537634408602E-2,0,0]
["1203 No delimitación entre las zonas de trabajo o tránsito y las de almacenamiento o no respetar las zonas establecidas.",1.0309278350515462E-2,0,1.075268817204301E-2,1.0869565217391304E-2,0]
["1116 Vías de circulación deficientes (insuficentes, mal dimensionadas o faltas de separación entre ellas)",1.0309278350515462E-2,0,1.075268817204301E-2,1.0869565217391304E-2,0]
["1111 Escaleras fijas, de servicio o escala inseguras por falta de anchura, peldaño desigual, huella insufiente etc o en",1.0309278350515462E-2,0,0,2.1739130434782608E-2,0]
["1101 Deficiente diseño ergonómico del puesto de trabajo.",1.0309278350515462E-2,0,0,2.1739130434782608E-2,0]
["8203 Falta de cualificación y/o experiencia para la tarea realizada achacable al trabajador",5.154639175257731E-3,0,0,1.0869565217391304E-2,0]
["8201 Incapacidad física o mental para la realización normal del trabajo.",5.154639175257731E-3,0,0,1.0869565217391304E-2,0]
["7207 Inexistencia o inadecuación de plan y/o medidas de emergencia.",5.154639175257731E-3,0,0,1.0869565217391304E-2,0]
["7108 No apreciar las características de los trabajadores para la realización de la tarea o en función de los riesgos",5.154639175257731E-3,0,0,1.0869565217391304E-2,0]
["6999 Otras causas relativas a la organización del trabajo",5.154639175257731E-3,0,1.075268817204301E-2,0,0]
["6409 Ausencia de medios organizativos o procedimientos para la consignación de máquinas, instalaciones y lugares de trab",5.154639175257731E-3,0,1.075268817204301E-2,0,0]
["6299 Otras causas relativas a la organización de las tareas",5.154639175257731E-3,0,1.075268817204301E-2,0,0]
["6203 Operación extraordinaria realizada en caso de incidentes, accidentes o emergencias.",5.154639175257731E-3,0,1.075268817204301E-2,0,0]
["6111 No organizar el trabajo teniendo en cuenta las condiciones meteorológicas adversas.",5.154639175257731E-3,0,0,1.0869565217391304E-2,0]
["6107 Sobrecarga de la máquina o equipo (respecto a sus características técnicas)",5.154639175257731E-3,0,1.075268817204301E-2,0,0]
["5399 Otras causas relativas a los agentes biologicos y seres vivos",5.154639175257731E-3,0,0,1.0869565217391304E-2,0]
["5206 Posibilidad de contacto o mezcla de productos químicos (sustancias o preparados) incompatibles o que pueden generar",5.154639175257731E-3,0,0,1.0869565217391304E-2,0]
["5202 Ausencia o deficiencia en los procedimientos de manipulado o almacenamiento de productos químicos (sustancias o pre",5.154639175257731E-3,0,0,1.0869565217391304E-2,0]
["5199 Otras causas relativas a la manipulación y almacenamiento de materiales",5.154639175257731E-3,0,1.075268817204301E-2,0,0]
["5101 Defectos en los materiales utilizados de forma general, excluídos los que conforman una máquina, instalación y equi",5.154639175257731E-3,0,1.075268817204301E-2,0,0]
["4201 Ausencia/deficiencia de elementos de seguridad en los medios de elevación de cargas (pestillos de seguridad en ganc",5.154639175257731E-3,0,0,1.0869565217391304E-2,0]
["4103 Resistencia mecánica insuficiente del equipo de trabajo",5.154639175257731E-3,0,0,1.0869565217391304E-2,0]
["4101 Diseño incorrecto del equipo que hace que no se cumplan los principios de la prevención intrínseca y/o de la ergono",5.154639175257731E-3,0,0,1.0869565217391304E-2,0]
["3299 Otras causas relativas a los elementos y dispositivos de protección de máquinas.",5.154639175257731E-3,0,1.075268817204301E-2,0,0]
["3206 Ausencia de medios técnicos para la consignación (imposibilidad de puesta en marcha) de la máquina o vehículo",5.154639175257731E-3,0,1.075268817204301E-2,0,0]
["3205 Ausencia/deficiencia de estructura de protección contra caída de materiales (f.o.p.s.)",5.154639175257731E-3,0,0,1.0869565217391304E-2,0]
["3203 Ausencia/deficiencia de protecciones colectivas frente a caídas de personas y objetos desde máquinas",5.154639175257731E-3,0,0,1.0869565217391304E-2,0]
["3202 Parada de emergencia inexistente, ineficaz o no accesible",5.154639175257731E-3,0,1.075268817204301E-2,0,0]
["3115 Defectos o ausencia en el sistema de dirección de la maquina automotriz, en el mecanismo de embrague, en el sistema",5.154639175257731E-3,0,1.075268817204301E-2,0,0]
["2209 Generación de atmósferas peligrosas por deficiencias de ventilación, natural o forzada",5.154639175257731E-3,0,0,1.0869565217391304E-2,0]
["1999 Otras causas relativas a las condiciones de los espacios de trabajo",5.154639175257731E-3,0,0,1.0869565217391304E-2,0]
["1112 Vías de evacuación o salida no señalizadas o señalizadas de forma insuficiente o incorrecta",5.154639175257731E-3,0,1.075268817204301E-2,0,0]
["1102 Superficies de trabajo habitualmente inestables, incluidos barcos.",5.154639175257731E-3,0,1.075268817204301E-2,0,0]

{"sheet":"Hoja11","index":14,"n_rows":159,"n_cols":11,"rows_kept":159,"cut":false,"hidden":true,"merged":[[2,0,2,3],[39,0,40,0],[22,0,22,10],[23,0,24,0],[38,0,38,5],[3,3,3,4],[3,0,4,0],[3,1,3,2],[3,5,3,6],[3,7,3,8]]}
[]
[]
["Accidentes graves, muy graves y mortales investigados según sector de actividad y ocupación por porcentaje .(*)"]
[{"$f":"año_publi","v":2022},"Total",null,"Industria, energía y minería",null,"Construcción",null,"Servicios"]
[null,"Porcentaje","Frecuencia","Porcentaje","Frecuencia","Porcentaje","Frecuencia","Porcentaje","Frecuencia"]
["Total",1,194,1,22,1,80,1,92]
["1_Directores y gerentes",1.5463917525773196E-2,3,0,0,0,0,3.2608695652173912E-2,3]
["2_Técnicos y profesionales científicos e intelectuales",3.0927835051546393E-2,6,0,0,2.5000000000000001E-2,2,4.3478260869565216E-2,4]
["3_Técnicos y profesionales de apoyo",1.5463917525773196E-2,3,0,0,1.2500000000000001E-2,1,2.1739130434782608E-2,2]
["4_Empleados contables, administrativos y otros empelados de oficina",5.154639175257731E-3,1,0,0,0,0,1.0869565217391304E-2,1]
["5_Trabajadores de los servicios de restauración, personales, protección y vendedores",0.10824742268041238,21,0,0,0,0,0.22826086956521738,21]
["6_Tabajadores cualificados en el sector agrícola, ganadero, forestal y pesquero",2.0618556701030924E-2,4,0,0,0,0,4.3478260869565216E-2,4]
["7_Artesanos y trabajadores cualificados de las industrias manufactureras y la construcción ",0.42783505154639173,83,0.54545454545454541,12,0.73750000000000004,59,0.13043478260869565,12]
["8_Operadores de instalaciones y maquinaria, y montadores",0.15979381443298968,31,0.13636363636363635,3,8.7499999999999994E-2,7,0.22826086956521738,21]
["9_Ocupaciones elementales",0.21649484536082475,42,0.31818181818181818,7,0.13750000000000001,11,0.2608695652173913,24]
[{"$f":"Nota","v":"(*) Accidentes asignados en 2022 para su investigación en el mismo periodo y durante el año 2023"}]
[]
[]
[]
[]
[]
[]
["Bloque de causa de los accidentes graves, muy graves y mortales según ocupación y porcentaje .  (*)"]
[{"$f":"año_publi","v":2022},"Total","1_Directores y gerentes","2_Técnicos y profesionales científicos e intelectuales","3_Técnicos y profesionales de apoyo","4_Empleados contables, administrativos y otros empelados de oficina","5_Trabajadores de los servicios de restauración, personales, protección y vendedores","6_Tabajadores cualificados en el sector agrícola, ganadero, forestal y pesquero","7_Artesanos y trabajadores cualificados de las industrias manufactureras y la construccion (excepto los operadores de ma","8_Operadores de instalaciones y maquinaria, y montadores","9_Ocupaciones elementales"]
[null,"Porcentaje","Porcentaje","Porcentaje","Porcentaje","Porcentaje","Porcentaje","Porcentaje","Porcentaje","Porcentaje","Porcentaje"]
["Total",1,1,1,1,1,1,1,1,1,1]
["Prevención intrínseca",0.20103092783505155,0,0,0,0,4.7619047619047616E-2,0.25,0.27710843373493976,0.32258064516129031,9.5238095238095233E-2]
["Protección, señalización",0.18041237113402062,0.33333333333333337,0,0,1,0,0.5,0.19277108433734941,0.32258064516129031,0.11904761904761905]
["Materiales, productos o agentes",8.7628865979381451E-2,0,0.16666666666666669,0,0,0,0,8.4337349397590355E-2,3.2258064516129031E-2,0.19047619047619047]
["Espacios y superficies de trabajo",0.22164948453608246,0.66666666666666674,0.33333333333333337,0.33333333333333337,1,0.33333333333333337,0,0.16867469879518071,0.19354838709677419,0.23809523809523811]
["Organización del trabajo",0.55154639175257736,0.66666666666666674,0.33333333333333337,0.33333333333333337,0,0.33333333333333337,0.5,0.61445783132530118,0.4838709677419355,0.6428571428571429]
["Gestión de la prevención",0.4845360824742268,0.33333333333333337,0.16666666666666669,0.33333333333333337,1,9.5238095238095233E-2,0.75,0.51807228915662651,0.4838709677419355,0.6428571428571429]
["Factores individuales",0.38659793814432986,0.33333333333333337,0.33333333333333337,0.33333333333333337,0,0.47619047619047622,0.5,0.38554216867469882,0.41935483870967744,0.33333333333333337]
["Otras causas",8.2474226804123696E-2,0,0,0.33333333333333337,0,0.19047619047619047,0.25,3.614457831325301E-2,9.6774193548387094E-2,9.5238095238095233E-2]
[{"$f":"Nota","v":"(*) Accidentes asignados en 2022 para su investigación en el mismo periodo y durante el año 2023"}]
[]
[]
[]
["Causas de los accidentes graves, muy graves y mortales según las ocupaciones más frecuentes por porcentaje .(*)"]
[" ","7_Artesanos y trabajadores cualificados de las industrias manufactureras y la construccion (excepto los operadores de ma","8_Operadores de instalaciones y maquinaria, y montadores","9_Ocupaciones elementales","5_Trabajadores de los servicios de restauración, personales, protección y vendedores","3_Técnicos y profesionales de apoyo"]
[null,"Porcentaje","Porcentaje","Porcentaje","Porcentaje","Porcentaje"]
["Total",1,1,1,1,1]
["6102 Método de trabajo inadecuado",0.19277108433734941,0.22580645161290325,0.23809523809523811,0.14285714285714288,0]
["7203 Medidas preventivas propuestas en la planificación derivada de la evaluación de riesgos insuficientes o inadecuadas",0.14457831325301204,6.4516129032258063E-2,0.23809523809523811,0,0]
["8102 Incumplimiento de procedimientos e instrucciones de trabajo",0.14457831325301204,9.6774193548387094E-2,4.7619047619047616E-2,0.14285714285714288,0]
["7201 No identificación del/los riesgos que han materializado el accidente",0.12048192771084337,9.6774193548387094E-2,0.11904761904761905,4.7619047619047616E-2,0]
["1104 Ausencia/deficiencia de protecciones colectivas frente a caídas de personas",9.6385542168674704E-2,6.4516129032258063E-2,4.7619047619047616E-2,0,0]
["6304 Formación/información inadecuada o inexistente sobre la tarea",9.6385542168674704E-2,0.12903225806451613,0.14285714285714288,0.14285714285714288,0]
["8199 Otras causas relativas a los factores de comportamiento",9.6385542168674704E-2,9.6774193548387094E-2,4.7619047619047616E-2,9.5238095238095233E-2,0]
["6110 Ausencia de vigilancia, control y dirección de persona competente",8.4337349397590355E-2,9.6774193548387094E-2,9.5238095238095233E-2,0,0]
["6401 No poner a disposición de los trabajadores las máquinas, equipos y medios auxiliares necesarios o adecuados.",8.4337349397590355E-2,3.2258064516129031E-2,9.5238095238095233E-2,0,0]
["7204 Falta de control del cumplimiento del Plan de seguridad y salud en Construcción.",8.4337349397590355E-2,9.6774193548387094E-2,9.5238095238095233E-2,0,0]
["8108 Permanencia del trabajador dentro de una zona peligrosa",8.4337349397590355E-2,9.6774193548387094E-2,0.14285714285714288,9.5238095238095233E-2,0]
["7102 Inexistencia o deficiencia de un procedimiento que regule la planificación de la implantación de las medidas preven",7.2289156626506021E-2,0,4.7619047619047616E-2,4.7619047619047616E-2,0]
["7202 Medidas preventivas propuestas en la planificación derivada de la evaluación de riesgos insuficientes o inadecuadas",7.2289156626506021E-2,3.2258064516129031E-2,9.5238095238095233E-2,0,0]
["7208 No poner a disposición de los trabajadores las prendas o equipos de protección necesarios o ser estos inadecuados o",7.2289156626506021E-2,3.2258064516129031E-2,7.1428571428571438E-2,0,0]
["7209 Falta de presencia de los recursos preventivos requeridos",7.2289156626506021E-2,6.4516129032258063E-2,7.1428571428571438E-2,0,0]
["4102 Deficiente ubicación, defectos de estabilidad en equipos de trabajo debido a una incorrecta construcción, montaje y",6.0240963855421686E-2,0,0,0,0]
["7101 Inexistencia o insuficiencia de un procedimiento que regule la realización de las actividades dirigidas a la identi",6.0240963855421686E-2,0,2.3809523809523808E-2,0,0]
["7105 Procedimientos inexistentes, insuficientes o deficientes. para la coordinación de actividades realizadas por varias",6.0240963855421686E-2,9.6774193548387094E-2,9.5238095238095233E-2,0,0]
["4106 Escalera de mano insegura (material no resistente, apoyos inadecuados ….)",4.8192771084337352E-2,3.2258064516129031E-2,0,0,0]
["4199 Otras causas relativas al diseño, ubicación, construccion, montaje, y limpieza  de otros equipos de trabajo.",4.8192771084337352E-2,0,0,0,0]
["6101 Método de trabajo  inexistente",4.8192771084337352E-2,0,4.7619047619047616E-2,4.7619047619047616E-2,0]
["6403 Selección de útiles, herramientas y medios auxiliares no adecuados al trabajo a realizar",4.8192771084337352E-2,0,4.7619047619047616E-2,0,0]
["6499 Otras causas relativas a la selección y utilización de equipos y materiales",4.8192771084337352E-2,0,2.3809523809523808E-2,0,0]
["8106 No utilización de equipos de protección individual puestas a disposición por la empresa y de uso obligatorio.",4.8192771084337352E-2,9.6774193548387094E-2,0,0,0]
["1106 Falta de seguridad estructural o estabilidad de paramentos, etc.",3.614457831325301E-2,3.2258064516129031E-2,4.7619047619047616E-2,0,0]
["1110 Pavimento deficiente o inadecuado (discontinuo, resbaladizo, inestable, con  pendiente excesiva, etc.)",3.614457831325301E-2,6.4516129032258063E-2,2.3809523809523808E-2,9.5238095238095233E-2,0.33333333333333337]
["1201 Orden y limpieza deficientes",3.614457831325301E-2,0,0,0,0]
["3102 Modificaciones realizadas en la maquina que dan lugar a situaciones de riesgo no previstas por el fabricante.",3.614457831325301E-2,0,0,0,0]
["4105 Partes del equipo accesibles peligrosas (atrapantes, cortantes, punzantes,etc.)",3.614457831325301E-2,9.6774193548387094E-2,0,0,0]
["5102 Materiales muy pesados, voluminosos, de gran superficie, inestables o con aristas/perfiles cortantes, en relación c",3.614457831325301E-2,0,7.1428571428571438E-2,0,0]
["6108 Sobrecarga trabajador (fatiga física o mental)",3.614457831325301E-2,0,2.3809523809523808E-2,4.7619047619047616E-2,0]
["6305 Procedimientos inexistentes o insuficientes para formar o informar a los trabajadores  acerca de la utilización o m",3.614457831325301E-2,3.2258064516129031E-2,2.3809523809523808E-2,0,0]
["6405 Utilización de la máquina de manera no prevista por el fabricante.",3.614457831325301E-2,3.2258064516129031E-2,7.1428571428571438E-2,0,0]
["7206 Formación/información inadecuada, inexistente sobre riesgos o medidas preventivas",3.614457831325301E-2,6.4516129032258063E-2,0.23809523809523811,4.7619047619047616E-2,0]
["7212 Asignación de tarea a un trabajador con falta de cualificación o experiencia",3.614457831325301E-2,3.2258064516129031E-2,7.1428571428571438E-2,0,0]
["7299 Otras causas relativas a las actividades preventivas",3.614457831325301E-2,0,0,0,0.33333333333333337]
["8103 Incumplimiento de normas de seguridad establecidas",3.614457831325301E-2,3.2258064516129031E-2,0,4.7619047619047616E-2,0]
["8105 Uso indebido o no utilización de medios auxiliares de trabajo o de seguridad puestos a disposición por la empresa y",3.614457831325301E-2,0,2.3809523809523808E-2,0,0]
["8299 Otras causas relativas a los factores intrinsecos, de salud o capacidades",3.614457831325301E-2,0,4.7619047619047616E-2,4.7619047619047616E-2,0]
["1105 Aberturas y huecos desprotegidos",2.4096385542168676E-2,0,2.3809523809523808E-2,0,0]
["1109 Dificultad/deficiencia en el acceso al puesto de trabajo.",2.4096385542168676E-2,0,0,0,0.33333333333333337]
["1115 Deficiencia/ausencia de señalización u otro tipo de elementos necesarios para la delimitación de la zona de trabajo",2.4096385542168676E-2,3.2258064516129031E-2,4.7619047619047616E-2,0,0]
["1199 Otras causas relativas a la configuración de los espacios de trabajo",2.4096385542168676E-2,3.2258064516129031E-2,0,9.5238095238095233E-2,0]
["1307 Causas relativas a la temperatura y condiciones termo higrométricas",2.4096385542168676E-2,0,4.7619047619047616E-2,0,0]
["3104 Defectos de estabilidad en equipos, maquinas o sus componentes",2.4096385542168676E-2,3.2258064516129031E-2,0,4.7619047619047616E-2,0]
["3109 Órganos de accionamiento inseguros",2.4096385542168676E-2,3.2258064516129031E-2,2.3809523809523808E-2,0,0]
["3111 Accesibilidad a órganos de la máquina peligrosos (atrapantes, cortantes, punzantes, o con posibilidad de ocasionar",2.4096385542168676E-2,3.2258064516129031E-2,0,0,0]
["3199 Otras causas relativas al diseño, ubicación, construccion, montaje, mantenimiento reparación y limpieza de máquinas",2.4096385542168676E-2,0,0,0,0]
["4301 Deficiencia/ausencia del manual de instrucciones o señalización (nota: el fallo puede consistir en la inexistencia",2.4096385542168676E-2,0,0,0,0]
["5104 Deficiente sistema de almacenamiento, empaquetado, paletizado, apilamiento atc",2.4096385542168676E-2,0,7.1428571428571438E-2,0,0]
["6103 Diseño inadecuado del trabajo o tarea",2.4096385542168676E-2,3.2258064516129031E-2,0,0,0]
["6302 Instrucciones inexistentes",2.4096385542168676E-2,3.2258064516129031E-2,2.3809523809523808E-2,0,0]
["6306 Deficiencia/ausencia de información o señalización visual o acústica obligatoria o necesaria, incluyendo la utiliza",2.4096385542168676E-2,0,0,0,0]
["6406 Utilización de útiles, herramientas y medios auxiliares de manera no prevista por el fabricante.",2.4096385542168676E-2,0,7.1428571428571438E-2,0,0]
["6408 No comprobación del estado de las maquinas, herramientas, equipos o medios auxiliares antes de su utilización",2.4096385542168676E-2,3.2258064516129031E-2,4.7619047619047616E-2,0,0]
["7103 Procedimientos inexistentes, insuficientes o deficientes para informar a los trabajadores de los riesgos y las medi",2.4096385542168676E-2,3.2258064516129031E-2,2.3809523809523808E-2,4.7619047619047616E-2,0]
["7104 Deficiencias en la organización de los recursos obligatorios (organización preventiva) para la realización de las a",2.4096385542168676E-2,0,0,0,0]
["7205 Mantenimiento preventivo inexistente o inadecuado o falta de revisiones periódicas oficiales.",2.4096385542168676E-2,6.4516129032258063E-2,0,4.7619047619047616E-2,0]
["8104 Uso indebido de materiales, herramientas o útiles de trabajo, puestos a disposición por la empresa",2.4096385542168676E-2,0,2.3809523809523808E-2,0,0]
["8109 Adopción de una postura inadecuada en el puesto de trabajo",2.4096385542168676E-2,0,0,4.7619047619047616E-2,0]
["9199 Otras causas",2.4096385542168676E-2,6.4516129032258063E-2,2.3809523809523808E-2,9.5238095238095233E-2,0]
["1103 Espacio insuficiente en lugares de trabajo o en las zonas de tránsito",1.2048192771084338E-2,0,4.7619047619047616E-2,0,0]
["1299 Otras causas relativas al orden y limpieza",1.2048192771084338E-2,0,0,0.14285714285714288,0]
["2101 Corte no debidamente previsto de suministro energético o de servicios (agua, electricidad, aire comprimido, gases e",1.2048192771084338E-2,0,2.3809523809523808E-2,0,0]
["2209 Generación de atmósferas peligrosas por deficiencias de ventilación, natural o forzada",1.2048192771084338E-2,0,0,0,0]
["3113 Deficiencia de los medios de acceso al puesto de trabajo o de conducción de la maquina",1.2048192771084338E-2,0,2.3809523809523808E-2,0,0]
["3201 Ausencia y/o deficiencia de resguardos y de dispositivos de protección",1.2048192771084338E-2,9.6774193548387094E-2,0,0,0]
["3205 Ausencia/deficiencia de estructura de protección contra caída de materiales (f.o.p.s.)",1.2048192771084338E-2,0,0,0,0]
["3206 Ausencia de medios técnicos para la consignación (imposibilidad de puesta en marcha) de la máquina o vehículo",1.2048192771084338E-2,0,0,0,0]
["3299 Otras causas relativas a los elementos y dispositivos de protección de máquinas.",1.2048192771084338E-2,0,0,0,0]
["3302 Deficiencia/ausencia del manual de instrucciones de máquinas",1.2048192771084338E-2,6.4516129032258063E-2,0,0,0]
["4103 Resistencia mecánica insuficiente del equipo de trabajo",1.2048192771084338E-2,0,0,0,0]
["4201 Ausencia/deficiencia de elementos de seguridad en los medios de elevación de cargas (pestillos de seguridad en ganc",1.2048192771084338E-2,0,0,0,0]
["4203 Ausencia/deficiencia de protecciones colectivas frente a caídas de personas y objetos desde equipos de trabajo",1.2048192771084338E-2,3.2258064516129031E-2,2.3809523809523808E-2,0,0]
["5101 Defectos en los materiales utilizados de forma general, excluídos los que conforman una máquina, instalación y equi",1.2048192771084338E-2,0,0,0,0]
["5106 Falta de planificación y/o vigilancia en operaciones de levantamiento de cargas",1.2048192771084338E-2,0,2.3809523809523808E-2,0,0]
["5199 Otras causas relativas a la manipulación y almacenamiento de materiales",1.2048192771084338E-2,0,0,0,0]
["5206 Posibilidad de contacto o mezcla de productos químicos (sustancias o preparados) incompatibles o que pueden generar",1.2048192771084338E-2,0,0,0,0]
["6109 Existencia de interferencias o falta de coordinación entre trabajadores que realizan la misma o distintas tareas",1.2048192771084338E-2,6.4516129032258063E-2,4.7619047619047616E-2,0,0]
["6111 No organizar el trabajo teniendo en cuenta las condiciones meteorológicas adversas.",1.2048192771084338E-2,0,0,0,0]
["6199 Otras causas relativas a los métodos de trabajo",1.2048192771084338E-2,0,4.7619047619047616E-2,0,0]
["6201 Operación inhabitual para el operario que la realiza, sea ordinaria o esporádica",1.2048192771084338E-2,0,9.5238095238095233E-2,0,0]
["6301 Deficiencias en el sistema de comunicación a nivel horizontal o vertical, incluyendo la incomprensión del idioma.",1.2048192771084338E-2,0,2.3809523809523808E-2,0,0]
["6409 Ausencia de medios organizativos o procedimientos para la consignación de máquinas, instalaciones y lugares de trab",1.2048192771084338E-2,0,0,0,0]
["7199 Otras causas relativas a la gestión de la prevención",1.2048192771084338E-2,0,0,4.7619047619047616E-2,0]
["7210 Vigilancia de la salud inadecuada a los riesgos del puesto de trabajo",1.2048192771084338E-2,6.4516129032258063E-2,4.7619047619047616E-2,0,0]
["7211 Ausencia/deficiencias de permisos y/o procedimientos de trabajo en intervenciones peligrosas (por ejemplo soldadura",1.2048192771084338E-2,3.2258064516129031E-2,4.7619047619047616E-2,0,0]
["7999 Otras causas relativas a la gestión de la prevención",1.2048192771084338E-2,0,0,0,0.33333333333333337]
["8107 Retirada o anulación de protecciones o dispositivos de seguridad",1.2048192771084338E-2,0,2.3809523809523808E-2,0,0]
["1111 Escaleras fijas, de servicio o escala inseguras por falta de anchura, peldaño desigual, huella insufiente etc o en",0,0,4.7619047619047616E-2,0,0]
["1112 Vías de evacuación o salida no señalizadas o señalizadas de forma insuficiente o incorrecta",0,0,2.3809523809523808E-2,0,0]
["1116 Vías de circulación deficientes (insuficentes, mal dimensionadas o faltas de separación entre ellas)",0,3.2258064516129031E-2,2.3809523809523808E-2,0,0]
["1203 No delimitación entre las zonas de trabajo o tránsito y las de almacenamiento o no respetar las zonas establecidas.",0,0,4.7619047619047616E-2,0,0]
["1305 Iluminación insuficiente o inapropiada",0,0,4.7619047619047616E-2,0,0]
["1308 Causas relativas a los aspectos meteorológicos",0,3.2258064516129031E-2,2.3809523809523808E-2,0,0]
["1999 Otras causas relativas a las condiciones de los espacios de trabajo",0,0,2.3809523809523808E-2,0,0]
["2103 Defectos en el diseño, construcción, montaje, mantenimiento o uso de instalaciones eléctricas (ubicación de celdas",0,6.4516129032258063E-2,0,0,0]
["2201 Ausencia/deficiencia de medios para evitar los contactos eléctricos directos",0,6.4516129032258063E-2,0,0,0]
["3101 Diseño incorrecto de la máquina o componente que hace que no se cumplan los principios de la prevención intrínseca",0,6.4516129032258063E-2,0,0,0]
["3115 Defectos o ausencia en el sistema de dirección de la maquina automotriz, en el mecanismo de embrague, en el sistema",0,3.2258064516129031E-2,0,0,0]
["3202 Parada de emergencia inexistente, ineficaz o no accesible",0,3.2258064516129031E-2,0,0,0]
["3203 Ausencia/deficiencia de protecciones colectivas frente a caídas de personas y objetos desde máquinas",0,3.2258064516129031E-2,0,0,0]
["5105 Zonas de almacenamiento inadecuadas o no previstas.",0,6.4516129032258063E-2,2.3809523809523808E-2,0,0]
["6104 Apremio de tiempo o ritmo de trabajo elevado",0,9.6774193548387094E-2,4.7619047619047616E-2,4.7619047619047616E-2,0]
["6106 Trabajos solitarios sin las medidas de prevención adecuadas",0,0,2.3809523809523808E-2,4.7619047619047616E-2,0]
["6107 Sobrecarga de la máquina o equipo (respecto a sus características técnicas)",0,0,2.3809523809523808E-2,0,0]
["6203 Operación extraordinaria realizada en caso de incidentes, accidentes o emergencias.",0,0,2.3809523809523808E-2,0,0]
["6299 Otras causas relativas a la organización de las tareas",0,0,0,0,0.33333333333333337]
["6999 Otras causas relativas a la organización del trabajo",0,3.2258064516129031E-2,0,0,0]
["7108 No apreciar las características de los trabajadores para la realización de la tarea o en función de los riesgos",0,0,2.3809523809523808E-2,0,0]
["7207 Inexistencia o inadecuación de plan y/o medidas de emergencia.",0,0,2.3809523809523808E-2,0,0]
["8101 Realización de tareas no asignadas",0,6.4516129032258063E-2,0,9.5238095238095233E-2,0.33333333333333337]
["8201 Incapacidad física o mental para la realización normal del trabajo.",0,0,2.3809523809523808E-2,0,0]
["8203 Falta de cualificación y/o experiencia para la tarea realizada achacable al trabajador",0,0,2.3809523809523808E-2,0,0]
["8999 Otras causas relativas a los factores personales-individuales",0,0,2.3809523809523808E-2,4.7619047619047616E-2,0]
["9299 Hechos no causales",0,3.2258064516129031E-2,2.3809523809523808E-2,4.7619047619047616E-2,0]
["(*) Accidentes asignados en 2021 para su investigación en el mismo periodo y durante el año 2022"]

{"sheet":"Hoja12","index":15,"n_rows":27,"n_cols":9,"rows_kept":27,"cut":false,"hidden":true,"merged":[[16,0,17,0],[5,5,5,6],[5,7,5,8],[4,0,4,8],[5,0,6,0],[5,1,5,2],[5,3,5,4],[15,0,15,4]]}
[]
[]
[]
[]
["Accidentes graves, muy graves y mortales investigados según tipo de contrato y sector de actividad.(*)"]
[{"$f":"año_publi","v":2022},"Total",null,"Industria, energía y minería",null,"Construcción",null,"Servicios"]
[null,"Porcentaje","Frecuencia","Porcentaje","Frecuencia","Porcentaje","Frecuencia","Porcentaje","Frecuencia"]
["Total",1,194,1,22,1,80,1,92]
["Autónomos",0.11855670103092784,23,0,0,0.15,12,0.11956521739130435,11]
["Contrato Indefinido",0.65979381443298957,128,0.77272727272727271,17,0.63749999999999996,51,0.65217391304347827,60]
["Contrato Temporal",0.19587628865979384,38,0.22727272727272727,5,0.16250000000000001,13,0.21739130434782608,20]
["Sin contrato laboral",2.5773195876288662E-2,5,0,0,0.05,4,1.0869565217391304E-2,1]
[{"$f":"Nota","v":"(*) Accidentes asignados en 2022 para su investigación en el mismo periodo y durante el año 2023"}]
[]
[]
["Bloque de causa accidentes graves, muy graves y mortales según tipo de contrato. (*)"]
[{"$f":"año_publi","v":2022},"Total","Contrato Indefinido","Contrato Temporal","Autónomos","Sin contrato laboral"]
[null,"Porcentaje","Porcentaje","Porcentaje","Porcentaje","Porcentaje"]
["Total",1,1,1,1,1]
["Prevención intrínseca",0.20103092783505155,0.203125,0.15789473684210525,0.2608695652173913,0.2]
["Protección, señalización",0.18041237113402062,0.1875,0.13157894736842105,0.21739130434782608,0.2]
["Materiales, productos o agentes",8.7628865979381451E-2,9.375E-2,0.10526315789473685,0,0.2]
["Espacios y superficies de trabajo",0.22164948453608246,0.234375,0.15789473684210525,0.2608695652173913,0.2]
["Organización del trabajo",0.55154639175257736,0.546875,0.60526315789473684,0.39130434782608697,1]
["Gestión de la prevención",0.4845360824742268,0.4609375,0.60526315789473684,0.34782608695652173,0.8]
["Factores individuales",0.38659793814432986,0.375,0.5,0.30434782608695654,0.2]
["Otras causas",8.2474226804123696E-2,7.03125E-2,5.2631578947368425E-2,0.21739130434782608,0]

{"sheet":"Hoja13","index":16,"n_rows":34,"n_cols":13,"rows_kept":34,"cut":false,"hidden":true,"merged":[[4,7,4,12],[5,7,6,7],[34,0,34,2],[4,0,4,2]]}
[]
[]
[]
[]
["Accidentes graves, muy graves y mortales investigados según lugar del accidente ordenados por frecuencia.(*)",null,null,null,null,null,null,"Bloque de causas de los accidentes graves, muy graves y mortales investigados según lugar del accidente de mayor frecuencia (*)"]
[{"$f":"año_publi","v":2022},"Porcentaje","Frecuencia",null,null,null,null,{"$f":"año_publi","v":2022},"021 Obras - edificio en construcción","022 Obras - edificio en demolición, renovación o mantenimiento","011 Lugar de producción, taller, fábrica","013 Áreas destinadas principalmente a almacenamiento, carga, descarga","061 Lugares públicos, vías de acceso, de circulación, aeropuerto, estación, etc.)"]
["Total",1,194,null,null,null,null,null,"Porcentaje","Porcentaje","Porcentaje","Porcentaje","Porcentaje"]
["021 Obras - edificio en construcción",0.16494845360824739,32,null,null,null,null,"Total",1,1,1,1,1]
["022 Obras - edificio en demolición, renovación o mantenimiento",0.13917525773195877,27,null,null,null,null,"Prevención intrínseca",0.25,0.2592592592592593,0.38461538461538458,0,7.6923076923076927E-2]
["011 Lugar de producción, taller, fábrica",0.13402061855670103,26,null,null,null,null,"Protección, señalización",0.1875,0.14814814814814814,0.15384615384615385,0.25,7.6923076923076927E-2]
["013 Áreas destinadas principalmente a almacenamiento, carga, descarga",8.2474226804123696E-2,16,null,null,null,null,"Materiales, productos o agentes",6.25E-2,7.407407407407407E-2,3.8461538461538464E-2,0,0.38461538461538458]
["061 Lugares públicos, vías de acceso, de circulación, aeropuerto, estación, etc.)",6.7010309278350513E-2,13,null,null,null,null,"Espacios y superficies de trabajo",0.1875,0.14814814814814814,7.6923076923076927E-2,0.3125,7.6923076923076927E-2]
["072 Partes comunes, anexos, jardines colindantes privados",6.1855670103092786E-2,12,null,null,null,null,"Organización del trabajo",0.53125,0.74074074074074081,0.69230769230769229,0.6875,0.23076923076923075]
["044 Restaurantes, lugares de ocio, de alojamiento (incluidos museos, ferias etc.)",4.6391752577319589E-2,9,null,null,null,null,"Gestión de la prevención",0.5625,0.66666666666666674,0.42307692307692307,0.5625,0.61538461538461542]
["071 Domicilio privado",3.6082474226804127E-2,7,null,null,null,null,"Factores individuales",0.46875,0.37037037037037041,0.30769230769230771,0.3125,0.61538461538461542]
["012 Área de mantenimiento, taller de reparación",3.6082474226804127E-2,7,null,null,null,null,"Otras causas",3.125E-2,3.7037037037037035E-2,7.6923076923076927E-2,6.25E-2,7.6923076923076927E-2]
["043 Lugares de venta, pequeños o grandes (incluida la venta ambulante)",3.0927835051546393E-2,6,null,null,null,null,{"$f":"Nota","v":"(*) Accidentes asignados en 2022 para su investigación en el mismo periodo y durante el año 2023"}]
["042 Centros de enseñanza, escuelas, institutos, universidades, guarderías",3.0927835051546393E-2,6]
["041 Oficinas, salas de reunión, bibliotecas, etc.",3.0927835051546393E-2,6]
["092 Elevados - mástiles, torres, plataformas suspendidas",2.5773195876288662E-2,5]
["036 Jardines, parques, jardines florales, parques zoológicos",2.0618556701030924E-2,4]
["051 Centros sanitarios, clínicas, hospitales, centros geriátricos",1.5463917525773196E-2,3]
["091 Elevados - en una superficie fija (tejados, terrazas, etc.)",1.0309278350515462E-2,2]
["062 Medio de transporte terrestre: carretera o ferrocarril - privado o público",1.0309278350515462E-2,2]
["029 Otros Tipos de lugar conocidos del grupo 02 no mencionados anteriormente",1.0309278350515462E-2,2]
["023 Cantera, mina a cielo abierto, excavación, zanja",1.0309278350515462E-2,2]
["099 Otros Tipos de lugar conocidos del grupo 09, no mencionados anteriormente",5.154639175257731E-3,1]
["082 En el exterior - terrenos de deporte, piscinas, pistas de esquí",5.154639175257731E-3,1]
["079 Otros Tipos de lugar conocidos del grupo 07, no mencionados anteriormente",5.154639175257731E-3,1]
["069 Otros Tipos de lugar conocidos del grupo 06, no mencionados anteriormente",5.154639175257731E-3,1]
["063 Zona aneja a lugares públicos con acceso reservado al personal autorizado",5.154639175257731E-3,1]
["049 Otros Tipos de lugar conocidos del grupo 04, no mencionados anteriormente",5.154639175257731E-3,1]
["019 Otros Tipos de lugar conocidos del grupo 01 no mencionados anteriormente",5.154639175257731E-3,1]
[{"$f":"Nota","v":"(*) Accidentes asignados en 2022 para su investigación en el mismo periodo y durante el año 2023"}]

{"sheet":"Hoja14","index":17,"n_rows":34,"n_cols":10,"rows_kept":34,"cut":false,"hidden":true,"merged":[[1,4,2,8],[4,0,4,2]]}
[]
[null,null,null,null,"Bloque de causas de losaccidentes graves, muy graves y mortales investigados según tipo de trabajo de mayor frecuencia. (*)"]
[]
[null,null,null,null,null,"11 Producción, transformación, tratamiento - de todo tipo","12 Almacenamiento - de todo tipo","51 Instalación, colocación, preparación","24 Renovación, reparación, agregación, mantenimiento - de todo tipo de construc","52 Mantenimiento, reparación, reglaje, puesta a punto"]
["Accidentes graves, muy graves y mortales investigados según tipo de trabajo ordenados por frecuencia. (*)",null,null,null,{"$f":"año_publi","v":2022},"Porcentaje","Porcentaje","Porcentaje","Porcentaje","Porcentaje"]
[{"$f":"año_publi","v":2022},"Porcentaje","Frecuencia",null,"Total",1,1,1,1,1]
["Total",1,194,null,"Prevención intrínseca",0.29032258064516125,8.3333333333333343E-2,0.30434782608695654,0.21739130434782608,0.3]
["11 Producción, transformación, tratamiento - de todo tipo",0.15979381443298968,31,null,"Protección, señalización",0.12903225806451613,0.16666666666666669,0.17391304347826086,0.2608695652173913,0.3]
["12 Almacenamiento - de todo tipo",0.12371134020618557,24,null,"Materiales, productos o agentes",6.4516129032258063E-2,8.3333333333333343E-2,0.13043478260869565,4.3478260869565216E-2,0.05]
["51 Instalación, colocación, preparación",0.11855670103092784,23,null,"Espacios y superficies de trabajo",0.12903225806451613,0.25,0.21739130434782608,0.17391304347826086,0.25]
["24 Renovación, reparación, agregación, mantenimiento - de todo tipo de construc",0.11855670103092784,23,null,"Organización del trabajo",0.70967741935483875,0.625,0.60869565217391308,0.73913043478260876,0.5]
["52 Mantenimiento, reparación, reglaje, puesta a punto",0.10309278350515465,20,null,"Gestión de la prevención",0.61290322580645162,0.41666666666666663,0.43478260869565216,0.60869565217391308,0.55000000000000004]
["22 Nueva construcción - edificios",6.1855670103092786E-2,12,null,"Factores individuales",0.32258064516129031,0.33333333333333337,0.34782608695652173,0.39130434782608697,0.2]
["53 Limpieza de locales, de máquinas - industrial o manual",5.1546391752577324E-2,10,null,"Otras causas",6.4516129032258063E-2,4.1666666666666671E-2,0,4.3478260869565216E-2,0.1]
["41 Servicios, atención sanitaria, asistencia a personas",5.1546391752577324E-2,10,null,{"$f":"Nota","v":"(*) Accidentes asignados en 2022 para su investigación en el mismo periodo y durante el año 2023"}]
["61 Circulación, incluso en los medios de transporte",3.6082474226804127E-2,7]
["42 Actividades intelectuales, oficinas, enseñanza, tratamiento de la información",2.5773195876288662E-2,5]
["23 Nueva construcción - obras de fábrica, carreteras, puentes, presas, puertos",2.0618556701030924E-2,4]
["55 Vigilancia, inspección procesos de fabricación, locales, medios de transporte",1.5463917525773196E-2,3]
["43 Actividades comerciales - compra, venta, servicios relacionados",1.5463917525773196E-2,3]
["62 Actividades deportivas y artísticas",1.0309278350515462E-2,2]
["59 Otros Tipos de trabajo conocidos del grupo 5 no mencionados anteriormente",1.0309278350515462E-2,2]
["54 Gestión de residuos, desecho, tratamiento de residuos de todo tipo",1.0309278350515462E-2,2]
["49 Otros Tipos de trabajo conocidos del grupo 4 no mencionados anteriormente",1.0309278350515462E-2,2]
["25 Demolición de todo tipo de construcciones",1.0309278350515462E-2,2]
["21 Movimiento de tierras",1.0309278350515462E-2,2]
["99 Otros Tipos de trabajo no codificados en esta clasificación",5.154639175257731E-3,1]
["39 Otros Tipos de trabajo conocidos del grupo 3 no mencionados anteriormente",5.154639175257731E-3,1]
["34 Labores de tipo forestal",5.154639175257731E-3,1]
["32 Labores de tipo agrícola - con vegetales, horticultura",5.154639175257731E-3,1]
["29 Otros Tipos de trabajo conocidos del grupo 2 pero no mencionados anteriorme",5.154639175257731E-3,1]
["19 Otros Tipos de trabajo conocidos del grupo 1 no mencionados anteriormente",5.154639175257731E-3,1]
["10 Tareas de producción, transformación, almacenamiento",5.154639175257731E-3,1]
[{"$f":"Nota","v":"(*) Accidentes asignados en 2022 para su investigación en el mismo periodo y durante el año 2023"}]

{"sheet":"Hoja15","index":18,"n_rows":135,"n_cols":10,"rows_kept":135,"cut":false,"hidden":true,"merged":[[21,0,22,0],[4,4,5,4],[16,0,16,2],[3,0,3,2],[3,4,3,9]]}
[]
[]
[]
["Accidentes graves, muy graves y mortales investigados según desviación ordenados por frecuencia. (*)",null,null,null,"Bloque de causas de los accidentes graves, muy graves y mortales investigados según desviación de mayor frecuencia. (*)"]
[{"$f":"año_publi","v":2022},"Porcentaje","Frecuencia",null,{"$f":"año_publi","v":2022},"05_Resbalón o tropezón con caída (de personas)","04_Pérdida (total o parcial) de control de máquinas, medios de transporte -equipo de carga, herramienta manual, animal","03_Rotura, fractura, estallido, resbalón, caída, derrumbamiento de agente material","06_Movimiento del cuerpo sin esfuerzo físico (por lo general provoca una lesión externa)","02_Desviación por desbordamiento, vuelco, escape, derrame, vaporización, emanación"]
["Total",1,194,null,null,"Porcentaje","Porcentaje","Porcentaje","Porcentaje","Porcentaje"]
["05_Resbalón o tropezón con caída (de personas)",0.42268041237113402,82,null,"Total",1,1,1,1,1]
["04_Pérdida (total o parcial) de control de máquinas, medios de transporte -equipo de carga, herramienta manual, animal",0.18041237113402062,35,null,"Prevención intrínseca",0.18292682926829268,0.28571428571428575,0.11764705882352942,0.2,0.25]
["03_Rotura, fractura, estallido, resbalón, caída, derrumbamiento de agente material",0.1752577319587629,34,null,"Protección, señalización",0.15853658536585366,0.2,0.20588235294117649,0.25,0.25]
["06_Movimiento del cuerpo sin esfuerzo físico (por lo general provoca una lesión externa)",0.10309278350515465,20,null,"Materiales, productos o agentes",3.6585365853658541E-2,8.5714285714285715E-2,0.11764705882352942,0.05,0]
["07_Movimiento del cuerpo como consecuencia de o con esfuerzo físico (por lo general provoca una lesión interna)",5.1546391752577324E-2,10,null,"Espacios y superficies de trabajo",0.34146341463414637,2.8571428571428571E-2,0.17647058823529413,0.15,0.25]
["10_Otra desviación no codificada en esta clasificación",2.5773195876288662E-2,5,null,"Organización del trabajo",0.5,0.6,0.58823529411764708,0.5,0.5]
["02_Desviación por desbordamiento, vuelco, escape, derrame, vaporización, emanación",2.0618556701030924E-2,4,null,"Gestión de la prevención",0.3902439024390244,0.51428571428571435,0.61764705882352944,0.45,0.75]
["01_Desviación por problema eléctrico, explosión, fuego",2.0618556701030924E-2,4,null,"Factores individuales",0.34146341463414637,0.45714285714285713,0.32352941176470584,0.6,0.25]
[{"$f":"Nota","v":"(*) Accidentes asignados en 2022 para su investigación en el mismo periodo y durante el año 2023"},null,null,null,"Otras causas",7.3170731707317083E-2,0.11428571428571428,5.8823529411764712E-2,0.15,0.25]
[]
[]
[]
[]
[]
["Causas de los accidentes graves, muy graves y mortales investigados según desviación de mayor frecuencia. (*)"]
[2022,"05_Resbalón o tropezón con caída (de personas)","04_Pérdida (total o parcial) de control de máquinas, medios de transporte -equipo de carga, herramienta manual, animal","03_Rotura, fractura, estallido, resbalón, caída, derrumbamiento de agente material","06_Movimiento del cuerpo sin esfuerzo físico (por lo general provoca una lesión externa)","02_Desviación por desbordamiento, vuelco, escape, derrame, vaporización, emanación"]
[null,"Porcentaje","Porcentaje","Porcentaje","Porcentaje","Porcentaje"]
["Total",1,1,1,1,1]
["1101 Deficiente diseño ergonómico del puesto de trabajo.",2.4390243902439025E-2,0,0,0,0]
["1102 Superficies de trabajo habitualmente inestables, incluidos barcos.",1.2195121951219513E-2,0,0,0,0]
["1103 Espacio insuficiente en lugares de trabajo o en las zonas de tránsito",3.6585365853658541E-2,2.8571428571428571E-2,0,0,0]
["1104 Ausencia/deficiencia de protecciones colectivas frente a caídas de personas",0.10975609756097562,0,0.11764705882352942,0,0]
["1105 Aberturas y huecos desprotegidos",2.4390243902439025E-2,0,2.9411764705882356E-2,0,0.25]
["1106 Falta de seguridad estructural o estabilidad de paramentos, etc.",2.4390243902439025E-2,0,8.8235294117647065E-2,0.05,0]
["1109 Dificultad/deficiencia en el acceso al puesto de trabajo.",3.6585365853658541E-2,0,0,0,0]
["1110 Pavimento deficiente o inadecuado (discontinuo, resbaladizo, inestable, con  pendiente excesiva, etc.)",0.10975609756097562,0,0,0,0]
["1111 Escaleras fijas, de servicio o escala inseguras por falta de anchura, peldaño desigual, huella insufiente etc o en",1.2195121951219513E-2,0,0,0.05,0]
["1112 Vías de evacuación o salida no señalizadas o señalizadas de forma insuficiente o incorrecta",1.2195121951219513E-2,0,0,0,0]
["1115 Deficiencia/ausencia de señalización u otro tipo de elementos necesarios para la delimitación de la zona de trabajo",2.4390243902439025E-2,2.8571428571428571E-2,5.8823529411764712E-2,0.05,0]
["1116 Vías de circulación deficientes (insuficentes, mal dimensionadas o faltas de separación entre ellas)",1.2195121951219513E-2,0,0,0,0.25]
["1199 Otras causas relativas a la configuración de los espacios de trabajo",3.6585365853658541E-2,0,5.8823529411764712E-2,0,0]
["1201 Orden y limpieza deficientes",2.4390243902439025E-2,0,0,0,0]
["1203 No delimitación entre las zonas de trabajo o tránsito y las de almacenamiento o no respetar las zonas establecidas.",2.4390243902439025E-2,0,0,0,0]
["1299 Otras causas relativas al orden y limpieza",3.6585365853658541E-2,0,0,0.05,0]
["1305 Iluminación insuficiente o inapropiada",1.2195121951219513E-2,0,0,0.05,0]
["1308 Causas relativas a los aspectos meteorológicos",1.2195121951219513E-2,0,0,0,0]
["1999 Otras causas relativas a las condiciones de los espacios de trabajo",0,0,0,0.05,0]
["3101 Diseño incorrecto de la máquina o componente que hace que no se cumplan los principios de la prevención intrínseca",0,2.8571428571428571E-2,2.9411764705882356E-2,0.05,0]
["3102 Modificaciones realizadas en la maquina que dan lugar a situaciones de riesgo no previstas por el fabricante.",0,8.5714285714285715E-2,0,0.05,0]
["3104 Defectos de estabilidad en equipos, maquinas o sus componentes",2.4390243902439025E-2,0,5.8823529411764712E-2,0,0]
["3109 Órganos de accionamiento inseguros",0,8.5714285714285715E-2,0,0.05,0]
["3111 Accesibilidad a órganos de la máquina peligrosos (atrapantes, cortantes, punzantes, o con posibilidad de ocasionar",0,8.5714285714285715E-2,0,0.05,0]
["3113 Deficiencia de los medios de acceso al puesto de trabajo o de conducción de la maquina",2.4390243902439025E-2,0,0,0,0]
["3115 Defectos o ausencia en el sistema de dirección de la maquina automotriz, en el mecanismo de embrague, en el sistema",0,0,0,0.05,0]
["3199 Otras causas relativas al diseño, ubicación, construccion, montaje, mantenimiento reparación y limpieza de máquinas",0,2.8571428571428571E-2,0,0.05,0]
["3201 Ausencia y/o deficiencia de resguardos y de dispositivos de protección",0,5.7142857142857141E-2,0,0.15,0]
["3202 Parada de emergencia inexistente, ineficaz o no accesible",0,2.8571428571428571E-2,0,0,0]
["3203 Ausencia/deficiencia de protecciones colectivas frente a caídas de personas y objetos desde máquinas",1.2195121951219513E-2,0,0,0,0]
["3205 Ausencia/deficiencia de estructura de protección contra caída de materiales (f.o.p.s.)",0,0,2.9411764705882356E-2,0,0]
["3206 Ausencia de medios técnicos para la consignación (imposibilidad de puesta en marcha) de la máquina o vehículo",0,0,0,0.05,0]
["3299 Otras causas relativas a los elementos y dispositivos de protección de máquinas.",0,0,0,0.05,0]
["3302 Deficiencia/ausencia del manual de instrucciones de máquinas",1.2195121951219513E-2,8.5714285714285715E-2,0,0,0]
["4101 Diseño incorrecto del equipo que hace que no se cumplan los principios de la prevención intrínseca y/o de la ergono",0,0,0,0.05,0]
["4102 Deficiente ubicación, defectos de estabilidad en equipos de trabajo debido a una incorrecta construcción, montaje y",4.878048780487805E-2,0,2.9411764705882356E-2,0,0]
["4103 Resistencia mecánica insuficiente del equipo de trabajo",1.2195121951219513E-2,0,0,0,0]
["4105 Partes del equipo accesibles peligrosas (atrapantes, cortantes, punzantes,etc.)",0,0.11428571428571428,2.9411764705882356E-2,0.1,0]
["4106 Escalera de mano insegura (material no resistente, apoyos inadecuados ….)",6.097560975609756E-2,0,0,0,0]
["4199 Otras causas relativas al diseño, ubicación, construccion, montaje, y limpieza  de otros equipos de trabajo.",3.6585365853658541E-2,2.8571428571428571E-2,0,0,0]
["4201 Ausencia/deficiencia de elementos de seguridad en los medios de elevación de cargas (pestillos de seguridad en ganc",0,2.8571428571428571E-2,0,0,0]
["4203 Ausencia/deficiencia de protecciones colectivas frente a caídas de personas y objetos desde equipos de trabajo",2.4390243902439025E-2,0,0,0,0.25]
["4301 Deficiencia/ausencia del manual de instrucciones o señalización (nota: el fallo puede consistir en la inexistencia",0,5.7142857142857141E-2,2.9411764705882356E-2,0,0]
["5101 Defectos en los materiales utilizados de forma general, excluídos los que conforman una máquina, instalación y equi",0,0,2.9411764705882356E-2,0,0]
["5102 Materiales muy pesados, voluminosos, de gran superficie, inestables o con aristas/perfiles cortantes, en relación c",0,8.5714285714285715E-2,5.8823529411764712E-2,0,0]
["5104 Deficiente sistema de almacenamiento, empaquetado, paletizado, apilamiento atc",1.2195121951219513E-2,0,0.11764705882352942,0,0]
["5105 Zonas de almacenamiento inadecuadas o no previstas.",0,0,2.9411764705882356E-2,0,0]
["5106 Falta de planificación y/o vigilancia en operaciones de levantamiento de cargas",1.2195121951219513E-2,0,0,0,0]
["5199 Otras causas relativas a la manipulación y almacenamiento de materiales",0,0,2.9411764705882356E-2,0,0]
["5202 Ausencia o deficiencia en los procedimientos de manipulado o almacenamiento de productos químicos (sustancias o pre",0,0,0,0,0.25]
["5399 Otras causas relativas a los agentes biologicos y seres vivos",1.2195121951219513E-2,0,0,0,0]
["6101 Método de trabajo  inexistente",1.2195121951219513E-2,2.8571428571428571E-2,5.8823529411764712E-2,0,0]
["6102 Método de trabajo inadecuado",0.2073170731707317,0.25714285714285717,0.14705882352941177,0.1,0]
["6103 Diseño inadecuado del trabajo o tarea",1.2195121951219513E-2,2.8571428571428571E-2,0,0.05,0]
["6104 Apremio de tiempo o ritmo de trabajo elevado",1.2195121951219513E-2,5.7142857142857141E-2,2.9411764705882356E-2,0.1,0]
["6106 Trabajos solitarios sin las medidas de prevención adecuadas",2.4390243902439025E-2,0,0,0,0]
["6108 Sobrecarga trabajador (fatiga física o mental)",0,0,2.9411764705882356E-2,0,0]
["6109 Existencia de interferencias o falta de coordinación entre trabajadores que realizan la misma o distintas tareas",2.4390243902439025E-2,5.7142857142857141E-2,2.9411764705882356E-2,0,0]
["6110 Ausencia de vigilancia, control y dirección de persona competente",4.878048780487805E-2,8.5714285714285715E-2,0.20588235294117649,0,0]
["6199 Otras causas relativas a los métodos de trabajo",1.2195121951219513E-2,0,2.9411764705882356E-2,0,0]
["6201 Operación inhabitual para el operario que la realiza, sea ordinaria o esporádica",2.4390243902439025E-2,0,8.8235294117647065E-2,0,0]
["6299 Otras causas relativas a la organización de las tareas",0,0,0,0.05,0]
["6301 Deficiencias en el sistema de comunicación a nivel horizontal o vertical, incluyendo la incomprensión del idioma.",0,5.7142857142857141E-2,0,0,0]
["6302 Instrucciones inexistentes",1.2195121951219513E-2,5.7142857142857141E-2,5.8823529411764712E-2,0,0]
["6304 Formación/información inadecuada o inexistente sobre la tarea",8.5365853658536592E-2,0.22857142857142856,0.11764705882352942,0.15,0.25]
["6305 Procedimientos inexistentes o insuficientes para formar o informar a los trabajadores  acerca de la utilización o m",1.2195121951219513E-2,0,8.8235294117647065E-2,0.1,0]
["6306 Deficiencia/ausencia de información o señalización visual o acústica obligatoria o necesaria, incluyendo la utiliza",0,5.7142857142857141E-2,0,0,0]
["6401 No poner a disposición de los trabajadores las máquinas, equipos y medios auxiliares necesarios o adecuados.",8.5365853658536592E-2,5.7142857142857141E-2,5.8823529411764712E-2,0,0]
["6403 Selección de útiles, herramientas y medios auxiliares no adecuados al trabajo a realizar",6.097560975609756E-2,0,0,0,0]
["6405 Utilización de la máquina de manera no prevista por el fabricante.",2.4390243902439025E-2,5.7142857142857141E-2,8.8235294117647065E-2,0,0.25]
["6406 Utilización de útiles, herramientas y medios auxiliares de manera no prevista por el fabricante.",0,5.7142857142857141E-2,8.8235294117647065E-2,0,0]
["6408 No comprobación del estado de las maquinas, herramientas, equipos o medios auxiliares antes de su utilización",2.4390243902439025E-2,2.8571428571428571E-2,5.8823529411764712E-2,0,0]
["6409 Ausencia de medios organizativos o procedimientos para la consignación de máquinas, instalaciones y lugares de trab",0,0,0,0.05,0]
["6499 Otras causas relativas a la selección y utilización de equipos y materiales",2.4390243902439025E-2,2.8571428571428571E-2,0,0.05,0]
["6999 Otras causas relativas a la organización del trabajo",0,2.8571428571428571E-2,0,0,0]
["7101 Inexistencia o insuficiencia de un procedimiento que regule la realización de las actividades dirigidas a la identi",3.6585365853658541E-2,0,8.8235294117647065E-2,0.05,0]
["7102 Inexistencia o deficiencia de un procedimiento que regule la planificación de la implantación de las medidas preven",7.3170731707317083E-2,0,8.8235294117647065E-2,0,0]
["7103 Procedimientos inexistentes, insuficientes o deficientes para informar a los trabajadores de los riesgos y las medi",2.4390243902439025E-2,5.7142857142857141E-2,5.8823529411764712E-2,0,0]
["7104 Deficiencias en la organización de los recursos obligatorios (organización preventiva) para la realización de las a",2.4390243902439025E-2,0,0,0,0]
["7105 Procedimientos inexistentes, insuficientes o deficientes. para la coordinación de actividades realizadas por varias",6.097560975609756E-2,8.5714285714285715E-2,8.8235294117647065E-2,0.05,0]
["7199 Otras causas relativas a la gestión de la prevención",1.2195121951219513E-2,0,2.9411764705882356E-2,0,0]
["7201 No identificación del/los riesgos que han materializado el accidente",7.3170731707317083E-2,0.11428571428571428,0.20588235294117649,0.15,0]
["7202 Medidas preventivas propuestas en la planificación derivada de la evaluación de riesgos insuficientes o inadecuadas",6.097560975609756E-2,2.8571428571428571E-2,0.11764705882352942,0.05,0]
["7203 Medidas preventivas propuestas en la planificación derivada de la evaluación de riesgos insuficientes o inadecuadas",7.3170731707317083E-2,0.14285714285714288,0.17647058823529413,0.1,0]
["7204 Falta de control del cumplimiento del Plan de seguridad y salud en Construcción.",7.3170731707317083E-2,8.5714285714285715E-2,5.8823529411764712E-2,0.05,0.5]
["7205 Mantenimiento preventivo inexistente o inadecuado o falta de revisiones periódicas oficiales.",1.2195121951219513E-2,5.7142857142857141E-2,0,0.1,0]
["7206 Formación/información inadecuada, inexistente sobre riesgos o medidas preventivas",9.7560975609756101E-2,5.7142857142857141E-2,5.8823529411764712E-2,0,0]
["7208 No poner a disposición de los trabajadores las prendas o equipos de protección necesarios o ser estos inadecuados o",3.6585365853658541E-2,2.8571428571428571E-2,0.11764705882352942,0,0.25]
["7209 Falta de presencia de los recursos preventivos requeridos",8.5365853658536592E-2,0,8.8235294117647065E-2,0.05,0]
["7210 Vigilancia de la salud inadecuada a los riesgos del puesto de trabajo",1.2195121951219513E-2,0,5.8823529411764712E-2,0,0]
["7211 Ausencia/deficiencias de permisos y/o procedimientos de trabajo en intervenciones peligrosas (por ejemplo soldadura",1.2195121951219513E-2,2.8571428571428571E-2,5.8823529411764712E-2,0,0]
["7212 Asignación de tarea a un trabajador con falta de cualificación o experiencia",2.4390243902439025E-2,5.7142857142857141E-2,8.8235294117647065E-2,0,0]
["7299 Otras causas relativas a las actividades preventivas",0,0,5.8823529411764712E-2,0.1,0]
["7999 Otras causas relativas a la gestión de la prevención",1.2195121951219513E-2,0,0,0.05,0]
["8101 Realización de tareas no asignadas",3.6585365853658541E-2,0,0,0.1,0]
["8102 Incumplimiento de procedimientos e instrucciones de trabajo",7.3170731707317083E-2,0.2,0.14705882352941177,0.1,0]
["8103 Incumplimiento de normas de seguridad establecidas",1.2195121951219513E-2,5.7142857142857141E-2,5.8823529411764712E-2,0.05,0]
["8104 Uso indebido de materiales, herramientas o útiles de trabajo, puestos a disposición por la empresa",1.2195121951219513E-2,5.7142857142857141E-2,0,0,0]
["8105 Uso indebido o no utilización de medios auxiliares de trabajo o de seguridad puestos a disposición por la empresa y",1.2195121951219513E-2,5.7142857142857141E-2,0,0.05,0]
["8106 No utilización de equipos de protección individual puestas a disposición por la empresa y de uso obligatorio.",3.6585365853658541E-2,2.8571428571428571E-2,5.8823529411764712E-2,0.15,0]
["8107 Retirada o anulación de protecciones o dispositivos de seguridad",1.2195121951219513E-2,2.8571428571428571E-2,0,0,0]
["8108 Permanencia del trabajador dentro de una zona peligrosa",8.5365853658536592E-2,0.17142857142857143,0.11764705882352942,0.15,0.25]
["8109 Adopción de una postura inadecuada en el puesto de trabajo",2.4390243902439025E-2,0,0,0.05,0]
["8199 Otras causas relativas a los factores de comportamiento",0.12195121951219512,5.7142857142857141E-2,2.9411764705882356E-2,0.05,0]
["8201 Incapacidad física o mental para la realización normal del trabajo.",1.2195121951219513E-2,0,0,0,0]
["8203 Falta de cualificación y/o experiencia para la tarea realizada achacable al trabajador",1.2195121951219513E-2,0,0,0,0]
["8299 Otras causas relativas a los factores intrinsecos, de salud o capacidades",0,0,0,0.05,0]
["8999 Otras causas relativas a los factores personales-individuales",0,2.8571428571428571E-2,0,0.05,0]
["9199 Otras causas",4.878048780487805E-2,5.7142857142857141E-2,5.8823529411764712E-2,0,0]
["9299 Hechos no causales",2.4390243902439025E-2,0,2.9411764705882356E-2,0,0.25]
[{"$f":"Nota","v":"(*) Accidentes asignados en 2022 para su investigación en el mismo periodo y durante el año 2023"}]

{"sheet":"Hoja16","index":19,"n_rows":140,"n_cols":17,"rows_kept":140,"cut":false,"hidden":true,"merged":[[139,0,139,5],[17,0,17,4],[4,0,4,2],[4,8,4,15],[5,8,6,8],[14,0,15,1],[16,8,16,16]]}
[]
[]
[]
[]
["Accidentes investigados según forma del accidente ordenado por frecuencia. (*)",null,null,null,null,null,null,null,"Accidentes investigados según bloque de causas y forma del accidente. (*)"]
[{"$f":"año_publi","v":2022},"Porcentaje","Frecuencia",null,null,null,null,null,{"$f":"año_publi","v":2022},"Total","01_Contacto con corriente eléctrica, fuego, temperatura o sustancias peligrosas","02_Ahogamiento, quedar sepultado, quedar envuelto","03_Aplastamiento sobre o contra un objeto inmóvil (el trabajador está en movimiento vertical u horizontal)","04_Choque o golpe contra un objeto en movimiento, colisión","05_Contacto con \"agente material\" cortante, punzante, duro, rugoso","06_Quedar atrapado, ser aplastado, sufrir una amputación","07_Sobreesfuerzo físico, trauma psíquico, expoisición a radiaciones, ruido, luz o presión"]
["Total",1,194,null,null,null,null,null,null,"Porcentaje","Porcentaje","Porcentaje","Porcentaje","Porcentaje","Porcentaje","Porcentaje","Porcentaje"]
["03_Aplastamiento sobre o contra un objeto inmóvil (el trabajador está en movimiento vertical u horizontal)",0.52577319587628868,102,null,null,null,null,null,"Total",1,1,1,1,1,1,1,1]
["06_Quedar atrapado, ser aplastado, sufrir una amputación",0.1752577319587629,34,null,null,null,null,null,"Prevención intrínseca",0.20103092783505155,0.375,0,0.14705882352941177,6.25E-2,0.2,0.5,0]
["04_Choque o golpe contra un objeto en movimiento, colisión",0.16494845360824739,32,null,null,null,null,null,"Protección, señalización",0.18041237113402062,0.25,0,0.18627450980392157,0.1875,0.1,0.20588235294117649,0]
["05_Contacto con \"agente material\" cortante, punzante, duro, rugoso",5.1546391752577324E-2,10,null,null,null,null,null,"Materiales, productos o agentes",8.7628865979381451E-2,0.625,1,4.9019607843137261E-2,0.125,0,2.9411764705882356E-2,0.14285714285714288]
["01_Contacto con corriente eléctrica, fuego, temperatura o sustancias peligrosas",4.1237113402061848E-2,8,null,null,null,null,null,"Espacios y superficies de trabajo",0.22164948453608246,0.25,1,0.33333333333333337,0.125,0,2.9411764705882356E-2,0.14285714285714288]
["07_Sobreesfuerzo físico, trauma psíquico, expoisición a radiaciones, ruido, luz o presión",3.6082474226804127E-2,7,null,null,null,null,null,"Organización del trabajo",0.55154639175257736,0.25,1,0.49019607843137258,0.5625,0.7,0.73529411764705888,0.57142857142857151]
["02_Ahogamiento, quedar sepultado, quedar envuelto",5.154639175257731E-3,1,null,null,null,null,null,"Gestión de la prevención",0.4845360824742268,0.875,1,0.45098039215686275,0.40625,0.5,0.58823529411764708,0.28571428571428575]
[{"$f":"Nota","v":"(*) Accidentes asignados en 2022 para su investigación en el mismo periodo y durante el año 2023"},null,null,null,null,null,null,null,"Factores individuales",0.38659793814432986,0.25,0,0.32352941176470584,0.53125,0.7,0.32352941176470584,0.7142857142857143]
[null,null,null,null,null,null,null,null,"Otras causas",8.2474226804123696E-2,0.125,0,6.8627450980392149E-2,0.125,0.1,2.9411764705882356E-2,0.28571428571428575]
[null,null,null,null,null,null,null,null,{"$f":"Nota","v":"(*) Accidentes asignados en 2022 para su investigación en el mismo periodo y durante el año 2023"}]
["Causas de los accidentes graves, muy graves y mortales investigados según forma del accidente de mayor frecuencia. (*)"]
[{"$f":"año_publi","v":2022},"03_Aplastamiento sobre o contra un objeto inmóvil (el trabajador está en movimiento vertical u horizontal)","06_Quedar atrapado, ser aplastado, sufrir una amputación","04_Choque o golpe contra un objeto en movimiento, colisión","01_Contacto con corriente eléctrica, fuego, temperatura o sustancias peligrosas","05_Contacto con \"agente material\" cortante, punzante, duro, rugoso"]
[null,"Porcentaje","Porcentaje","Porcentaje","Porcentaje","Porcentaje"]
["Total",1,1,1,1,1]
["1101 Deficiente diseño ergonómico del puesto de trabajo.",0.18627450980392157,0.29411764705882354,0.125,0,0.2]
["1102 Superficies de trabajo habitualmente inestables, incluidos barcos.",0.12745098039215685,0,0,0,0]
["1103 Espacio insuficiente en lugares de trabajo o en las zonas de tránsito",0.10784313725490197,0,0,0,0]
["1104 Ausencia/deficiencia de protecciones colectivas frente a caídas de personas",0.10784313725490197,8.8235294117647065E-2,0.125,0,0.2]
["1105 Aberturas y huecos desprotegidos",9.8039215686274522E-2,0.14705882352941177,0.125,0.375,0.1]
["1106 Falta de seguridad estructural o estabilidad de paramentos, etc.",9.8039215686274522E-2,5.8823529411764712E-2,3.125E-2,0.375,0]
["1109 Dificultad/deficiencia en el acceso al puesto de trabajo.",9.8039215686274522E-2,2.9411764705882356E-2,0,0,0]
["1110 Pavimento deficiente o inadecuado (discontinuo, resbaladizo, inestable, con  pendiente excesiva, etc.)",9.8039215686274522E-2,2.9411764705882356E-2,3.125E-2,0,0.3]
["1111 Escaleras fijas, de servicio o escala inseguras por falta de anchura, peldaño desigual, huella insufiente etc o en",8.8235294117647065E-2,5.8823529411764712E-2,9.375E-2,0,0]
["1112 Vías de evacuación o salida no señalizadas o señalizadas de forma insuficiente o incorrecta",8.8235294117647065E-2,0.17647058823529413,0.125,0.125,0.3]
["1115 Deficiencia/ausencia de señalización u otro tipo de elementos necesarios para la delimitación de la zona de trabajo",8.8235294117647065E-2,0,0,0,0]
["1116 Vías de circulación deficientes (insuficentes, mal dimensionadas o faltas de separación entre ellas)",8.8235294117647065E-2,0.14705882352941177,0,0,0]
["1199 Otras causas relativas a la configuración de los espacios de trabajo",7.8431372549019607E-2,5.8823529411764712E-2,3.125E-2,0,0]
["1201 Orden y limpieza deficientes",7.8431372549019607E-2,0.11764705882352942,0,0.375,0]
["1203 No delimitación entre las zonas de trabajo o tránsito y las de almacenamiento o no respetar las zonas establecidas.",7.8431372549019607E-2,5.8823529411764712E-2,0.3125,0,0.1]
["1299 Otras causas relativas al orden y limpieza",6.8627450980392149E-2,0.14705882352941177,0.1875,0,0.2]
["1305 Iluminación insuficiente o inapropiada",5.8823529411764712E-2,2.9411764705882356E-2,0,0,0]
["1307 Causas relativas a la temperatura y condiciones termo higrométricas",5.8823529411764712E-2,8.8235294117647065E-2,6.25E-2,0,0]
["1308 Causas relativas a los aspectos meteorológicos",4.9019607843137261E-2,0,0,0,0]
["2101 Corte no debidamente previsto de suministro energético o de servicios (agua, electricidad, aire comprimido, gases e",4.9019607843137261E-2,0,0,0,0]
["2103 Defectos en el diseño, construcción, montaje, mantenimiento o uso de instalaciones eléctricas (ubicación de celdas",4.9019607843137261E-2,0,0,0,0]
["2201 Ausencia/deficiencia de medios para evitar los contactos eléctricos directos",4.9019607843137261E-2,2.9411764705882356E-2,9.375E-2,0.125,0.1]
["2209 Generación de atmósferas peligrosas por deficiencias de ventilación, natural o forzada",4.9019607843137261E-2,2.9411764705882356E-2,6.25E-2,0,0.1]
["3101 Diseño incorrecto de la máquina o componente que hace que no se cumplan los principios de la prevención intrínseca",3.9215686274509803E-2,0,0,0,0]
["3102 Modificaciones realizadas en la maquina que dan lugar a situaciones de riesgo no previstas por el fabricante.",3.9215686274509803E-2,0,6.25E-2,0,0]
["3104 Defectos de estabilidad en equipos, maquinas o sus componentes",3.9215686274509803E-2,0,0,0,0]
["3109 Órganos de accionamiento inseguros",3.9215686274509803E-2,2.9411764705882356E-2,0,0,0]
["3111 Accesibilidad a órganos de la máquina peligrosos (atrapantes, cortantes, punzantes, o con posibilidad de ocasionar",3.9215686274509803E-2,2.9411764705882356E-2,3.125E-2,0,0]
["3113 Deficiencia de los medios de acceso al puesto de trabajo o de conducción de la maquina",3.9215686274509803E-2,2.9411764705882356E-2,3.125E-2,0,0]
["3115 Defectos o ausencia en el sistema de dirección de la maquina automotriz, en el mecanismo de embrague, en el sistema",3.9215686274509803E-2,0,9.375E-2,0,0.1]
["3199 Otras causas relativas al diseño, ubicación, construccion, montaje, mantenimiento reparación y limpieza de máquinas",2.9411764705882356E-2,2.9411764705882356E-2,0,0,0]
["3201 Ausencia y/o deficiencia de resguardos y de dispositivos de protección",2.9411764705882356E-2,0,0,0,0]
["3202 Parada de emergencia inexistente, ineficaz o no accesible",2.9411764705882356E-2,0,6.25E-2,0,0]
["3203 Ausencia/deficiencia de protecciones colectivas frente a caídas de personas y objetos desde máquinas",2.9411764705882356E-2,0,0,0,0]
["3205 Ausencia/deficiencia de estructura de protección contra caída de materiales (f.o.p.s.)",2.9411764705882356E-2,0,0,0,0]
["3206 Ausencia de medios técnicos para la consignación (imposibilidad de puesta en marcha) de la máquina o vehículo",2.9411764705882356E-2,5.8823529411764712E-2,0,0,0]
["3299 Otras causas relativas a los elementos y dispositivos de protección de máquinas.",2.9411764705882356E-2,2.9411764705882356E-2,0,0,0]
["3302 Deficiencia/ausencia del manual de instrucciones de máquinas",2.9411764705882356E-2,2.9411764705882356E-2,3.125E-2,0,0]
["4101 Diseño incorrecto del equipo que hace que no se cumplan los principios de la prevención intrínseca y/o de la ergono",2.9411764705882356E-2,2.9411764705882356E-2,3.125E-2,0,0]
["4102 Deficiente ubicación, defectos de estabilidad en equipos de trabajo debido a una incorrecta construcción, montaje y",2.9411764705882353E-2,2.9411764705882356E-2,0,0,0]
["4103 Resistencia mecánica insuficiente del equipo de trabajo",1.9607843137254902E-2,0,0,0,0]
["4105 Partes del equipo accesibles peligrosas (atrapantes, cortantes, punzantes,etc.)",1.9607843137254902E-2,0,0.125,0,0]
["4106 Escalera de mano insegura (material no resistente, apoyos inadecuados ….)",1.9607843137254902E-2,2.9411764705882356E-2,3.125E-2,0,0]
["4199 Otras causas relativas al diseño, ubicación, construccion, montaje, y limpieza  de otros equipos de trabajo.",1.9607843137254902E-2,0,0,0,0]
["4201 Ausencia/deficiencia de elementos de seguridad en los medios de elevación de cargas (pestillos de seguridad en ganc",1.9607843137254902E-2,8.8235294117647065E-2,3.125E-2,0,0]
["4203 Ausencia/deficiencia de protecciones colectivas frente a caídas de personas y objetos desde equipos de trabajo",1.9607843137254902E-2,5.8823529411764712E-2,3.125E-2,0,0.1]
["4301 Deficiencia/ausencia del manual de instrucciones o señalización (nota: el fallo puede consistir en la inexistencia",1.9607843137254902E-2,0,0,0,0]
["5101 Defectos en los materiales utilizados de forma general, excluídos los que conforman una máquina, instalación y equi",1.9607843137254902E-2,2.9411764705882356E-2,0,0,0.1]
["5102 Materiales muy pesados, voluminosos, de gran superficie, inestables o con aristas/perfiles cortantes, en relación c",1.9607843137254902E-2,8.8235294117647065E-2,3.125E-2,0,0]
["5104 Deficiente sistema de almacenamiento, empaquetado, paletizado, apilamiento atc",1.9607843137254902E-2,0.11764705882352942,6.25E-2,0,0]
["5105 Zonas de almacenamiento inadecuadas o no previstas.",1.9607843137254902E-2,2.9411764705882356E-2,0,0,0.2]
["5106 Falta de planificación y/o vigilancia en operaciones de levantamiento de cargas",1.9607843137254902E-2,0,0,0,0]
["5199 Otras causas relativas a la manipulación y almacenamiento de materiales",1.9607843137254902E-2,0,0,0,0]
["5202 Ausencia o deficiencia en los procedimientos de manipulado o almacenamiento de productos químicos (sustancias o pre",1.9607843137254902E-2,5.8823529411764712E-2,3.125E-2,0,0]
["5206 Posibilidad de contacto o mezcla de productos químicos (sustancias o preparados) incompatibles o que pueden generar",1.9607843137254902E-2,0,3.125E-2,0.25,0]
["5399 Otras causas relativas a los agentes biologicos y seres vivos",1.9607843137254902E-2,0,0.125,0,0]
["6101 Método de trabajo  inexistente",1.9607843137254902E-2,0,0,0,0]
["6102 Método de trabajo inadecuado",1.9607843137254902E-2,0,0,0.125,0.1]
["6103 Diseño inadecuado del trabajo o tarea",9.8039215686274508E-3,0,0,0,0]
["6104 Apremio de tiempo o ritmo de trabajo elevado",9.8039215686274508E-3,0,0,0,0]
["6106 Trabajos solitarios sin las medidas de prevención adecuadas",9.8039215686274508E-3,0,3.125E-2,0,0]
["6108 Sobrecarga trabajador (fatiga física o mental)",9.8039215686274508E-3,0,3.125E-2,0,0]
["6109 Existencia de interferencias o falta de coordinación entre trabajadores que realizan la misma o distintas tareas",9.8039215686274508E-3,0,0,0.125,0]
["6110 Ausencia de vigilancia, control y dirección de persona competente",9.8039215686274508E-3,5.8823529411764712E-2,3.125E-2,0,0.1]
["6111 No organizar el trabajo teniendo en cuenta las condiciones meteorológicas adversas.",9.8039215686274508E-3,0,0,0,0]
["6199 Otras causas relativas a los métodos de trabajo",9.8039215686274508E-3,5.8823529411764712E-2,0,0,0.1]
["6201 Operación inhabitual para el operario que la realiza, sea ordinaria o esporádica",9.8039215686274508E-3,0,0,0,0]
["6299 Otras causas relativas a la organización de las tareas",9.8039215686274508E-3,5.8823529411764712E-2,0,0,0]
["6301 Deficiencias en el sistema de comunicación a nivel horizontal o vertical, incluyendo la incomprensión del idioma.",9.8039215686274508E-3,0,0,0,0]
["6302 Instrucciones inexistentes",9.8039215686274508E-3,2.9411764705882356E-2,6.25E-2,0,0]
["6304 Formación/información inadecuada o inexistente sobre la tarea",9.8039215686274508E-3,0,9.375E-2,0,0]
["6305 Procedimientos inexistentes o insuficientes para formar o informar a los trabajadores  acerca de la utilización o m",9.8039215686274508E-3,2.9411764705882356E-2,0,0,0]
["6306 Deficiencia/ausencia de información o señalización visual o acústica obligatoria o necesaria, incluyendo la utiliza",9.8039215686274508E-3,0,0,0,0]
["6401 No poner a disposición de los trabajadores las máquinas, equipos y medios auxiliares necesarios o adecuados.",9.8039215686274508E-3,2.9411764705882356E-2,3.125E-2,0,0]
["6403 Selección de útiles, herramientas y medios auxiliares no adecuados al trabajo a realizar",9.8039215686274508E-3,2.9411764705882356E-2,0,0,0]
["6405 Utilización de la máquina de manera no prevista por el fabricante.",9.8039215686274508E-3,2.9411764705882356E-2,3.125E-2,0,0]
["6406 Utilización de útiles, herramientas y medios auxiliares de manera no prevista por el fabricante.",9.8039215686274508E-3,5.8823529411764712E-2,3.125E-2,0,0]
["6408 No comprobación del estado de las maquinas, herramientas, equipos o medios auxiliares antes de su utilización",9.8039215686274508E-3,2.9411764705882356E-2,0,0,0.1]
["6409 Ausencia de medios organizativos o procedimientos para la consignación de máquinas, instalaciones y lugares de trab",9.8039215686274508E-3,0,0,0,0]
["6499 Otras causas relativas a la selección y utilización de equipos y materiales",9.8039215686274508E-3,5.8823529411764712E-2,0,0,0.1]
["6999 Otras causas relativas a la organización del trabajo",9.8039215686274508E-3,2.9411764705882356E-2,0,0,0]
["7101 Inexistencia o insuficiencia de un procedimiento que regule la realización de las actividades dirigidas a la identi",9.8039215686274508E-3,0,0,0,0]
["7102 Inexistencia o deficiencia de un procedimiento que regule la planificación de la implantación de las medidas preven",9.8039215686274508E-3,0,0,0,0]
["7103 Procedimientos inexistentes, insuficientes o deficientes para informar a los trabajadores de los riesgos y las medi",9.8039215686274508E-3,0,0,0.25,0]
["7104 Deficiencias en la organización de los recursos obligatorios (organización preventiva) para la realización de las a",9.8039215686274508E-3,2.9411764705882356E-2,0,0,0]
["7105 Procedimientos inexistentes, insuficientes o deficientes. para la coordinación de actividades realizadas por varias",0,0,3.125E-2,0,0]
["7108 No apreciar las características de los trabajadores para la realización de la tarea o en función de los riesgos",0,2.9411764705882356E-2,3.125E-2,0,0]
["7199 Otras causas relativas a la gestión de la prevención",0,0,0,0.5,0]
["7201 No identificación del/los riesgos que han materializado el accidente",0,5.8823529411764712E-2,0,0,0]
["7202 Medidas preventivas propuestas en la planificación derivada de la evaluación de riesgos insuficientes o inadecuadas",0,0,0,0.25,0]
["7203 Medidas preventivas propuestas en la planificación derivada de la evaluación de riesgos insuficientes o inadecuadas",0,0,0,0.25,0]
["7204 Falta de control del cumplimiento del Plan de seguridad y salud en Construcción.",0,0,0,0.125,0]
["7205 Mantenimiento preventivo inexistente o inadecuado o falta de revisiones periódicas oficiales.",0,8.8235294117647065E-2,0,0,0]
["7206 Formación/información inadecuada, inexistente sobre riesgos o medidas preventivas",0,8.8235294117647065E-2,0,0,0.1]
["7207 Inexistencia o inadecuación de plan y/o medidas de emergencia.",0,8.8235294117647065E-2,0,0,0.1]
["7208 No poner a disposición de los trabajadores las prendas o equipos de protección necesarios o ser estos inadecuados o",0,8.8235294117647065E-2,0,0,0.1]
["7209 Falta de presencia de los recursos preventivos requeridos",0,2.9411764705882356E-2,0,0,0]
["7210 Vigilancia de la salud inadecuada a los riesgos del puesto de trabajo",0,5.8823529411764712E-2,0,0,0]
["7211 Ausencia/deficiencias de permisos y/o procedimientos de trabajo en intervenciones peligrosas (por ejemplo soldadura",0,2.9411764705882356E-2,0,0,0]
["7212 Asignación de tarea a un trabajador con falta de cualificación o experiencia",0,0,3.125E-2,0,0]
["7299 Otras causas relativas a las actividades preventivas",0,0,0,0,0.1]
["7999 Otras causas relativas a la gestión de la prevención",0,2.9411764705882356E-2,0,0,0]
["8101 Realización de tareas no asignadas",0,2.9411764705882356E-2,0,0,0]
["8102 Incumplimiento de procedimientos e instrucciones de trabajo",0,0.17647058823529413,0,0,0.1]
["8103 Incumplimiento de normas de seguridad establecidas",0,2.9411764705882356E-2,0,0,0]
["8104 Uso indebido de materiales, herramientas o útiles de trabajo, puestos a disposición por la empresa",0,0,0,0.25,0]
["8105 Uso indebido o no utilización de medios auxiliares de trabajo o de seguridad puestos a disposición por la empresa y",0,0,3.125E-2,0,0]
["8106 No utilización de equipos de protección individual puestas a disposición por la empresa y de uso obligatorio.",0,0,3.125E-2,0,0]
["8107 Retirada o anulación de protecciones o dispositivos de seguridad",0,0,0,0.125,0]
["8108 Permanencia del trabajador dentro de una zona peligrosa",0,0,0,0.125,0]
["8109 Adopción de una postura inadecuada en el puesto de trabajo",0,2.9411764705882356E-2,0,0,0]
["8199 Otras causas relativas a los factores de comportamiento",0,5.8823529411764712E-2,0,0,0]
["8201 Incapacidad física o mental para la realización normal del trabajo.",0,2.9411764705882356E-2,3.125E-2,0,0]
["8203 Falta de cualificación y/o experiencia para la tarea realizada achacable al trabajador",0,0,0,0,0.1]
["8299 Otras causas relativas a los factores intrinsecos, de salud o capacidades",0,0,3.125E-2,0,0]
["8999 Otras causas relativas a los factores personales-individuales",0,0,0,0.125,0]
["9199 Otras causas",0,0,0,0.125,0]
["9299 Hechos no causales",0,0,3.125E-2,0,0.2]
[{"$f":"Nota","v":"(*) Accidentes asignados en 2022 para su investigación en el mismo periodo y durante el año 2023"}]

{"sheet":"Hoja17","index":20,"n_rows":43,"n_cols":8,"rows_kept":43,"cut":false,"hidden":true,"merged":[[15,0,15,3],[31,0,32,0],[42,0,42,3]]}
[]
[]
[]
[]
[]
[]
["Accidentes graves, muy graves y mortales investigados según organización preventiva. (*)"]
[{"$f":"año_publi","v":2022},"Frecuencia","Porcentaje"]
["Total",194,1]
["01_Asunción personal por el empresario",6,3.0927835051546393E-2]
["02_Servicio de prevención propio",16,8.2474226804123696E-2]
["03_Servicio de prevención ajeno",150,0.77319587628865971]
["05_Servicio de prevención mancomunado",12,6.1855670103092786E-2]
["07_Ninguna",6,3.0927835051546393E-2]
["09_No consta",4,2.0618556701030924E-2]
[{"$f":"Nota","v":"(*) Accidentes asignados en 2022 para su investigación en el mismo periodo y durante el año 2023"}]
[]
[]
[]
[]
[]
[]
[]
[]
[]
[]
[]
[]
[]
[]
["Bloque de causas de accidentes graves, muy graves y mortales investigados según organización preventiva.(*)"]
[{"$f":"año_publi","v":2022},"Total","01_Asunción personal por el empresario","02_Servicio de prevención propio","03_Servicio de prevención ajeno","05_Servicio de prevención mancomunado","07_Ninguna","09_No consta"]
[null,"Porcentaje","Porcentaje","Porcentaje","Porcentaje","Porcentaje","Porcentaje","Porcentaje"]
["Total",1,1,1,1,1,1,1]
["Prevención intrínseca",0.20103092783505155,0,0.25,0.22,8.3333333333333343E-2,0.16666666666666669,0]
["Protección, señalización",0.18041237113402062,0,0.1875,0.18666666666666668,8.3333333333333343E-2,0.33333333333333337,0.25]
["Materiales, productos o agentes",8.7628865979381451E-2,0,0.125,8.6666666666666656E-2,8.3333333333333343E-2,0,0.25]
["Espacios y superficies de trabajo",0.22164948453608246,0.16666666666666669,0.25,0.22,0.25,0.16666666666666669,0.25]
["Organización del trabajo",0.55154639175257736,0.5,0.5,0.56000000000000005,0.33333333333333337,0.66666666666666674,1]
["Gestión de la prevención",0.4845360824742268,0.5,0.375,0.5,0.41666666666666663,0.33333333333333337,0.75]
["Factores individuales",0.38659793814432986,0.5,0.3125,0.36666666666666664,0.66666666666666674,0.33333333333333337,0.5]
["Otras causas",8.2474226804123696E-2,0.33333333333333337,0.125,6.6666666666666666E-2,8.3333333333333343E-2,0.16666666666666669,0]
[{"$f":"Nota","v":"(*) Accidentes asignados en 2022 para su investigación en el mismo periodo y durante el año 2023"}]

{"sheet":"Hoja18","index":21,"n_rows":50,"n_cols":11,"rows_kept":50,"cut":false,"hidden":true,"merged":[[35,0,35,5],[23,0,23,5]]}
[]
[]
[]
[]
[]
[]
[]
["Accidentes graves, muy graves y mortales investigados según evaluación de riesgos. (*)"]
[{"$f":"año_publi","v":2022},"Frecuencia","Porcentaje"]
["Total",194,1]
["1_Habían sido detectados los riesgos en la ERL",91,0.46907216494845355]
["2_No habían sido detectados los riesgos en la ERL",102,0.52577319587628868]
["4_No consta",1,5.154639175257731E-3]
[{"$f":"Nota","v":"(*) Accidentes asignados en 2022 para su investigación en el mismo periodo y durante el año 2023"}]
[]
[]
[]
[]
[]
[]
[]
[]
[]
["Bloque de causas de los accidentes graves, muy graves y mortales investigados según evaluación de riesgos. (*)"]
[{"$f":"año_publi","v":2022},"Total","1_Habían sido detectados los riesgos en la ERL","2_No habían sido detectados los riesgos en la ERL","4_No consta"]
[null,"Porcentaje","Porcentaje","Porcentaje","Porcentaje"]
["Total",1,1,1,1]
["Prevención intrínseca",0.20103092783505155,0.13186813186813187,0.26470588235294118,0]
["Protección, señalización",0.18041237113402062,0.15384615384615385,0.20588235294117649,0]
["Materiales, productos o agentes",8.7628865979381451E-2,8.7912087912087919E-2,8.8235294117647065E-2,0]
["Espacios y superficies de trabajo",0.22164948453608246,0.18681318681318682,0.24509803921568629,1]
["Organización del trabajo",0.55154639175257736,0.49450549450549453,0.59803921568627449,1]
["Gestión de la prevención",0.4845360824742268,0.48351648351648352,0.48039215686274511,1]
["Factores individuales",0.38659793814432986,0.47252747252747257,0.31372549019607843,0]
["Otras causas",8.2474226804123696E-2,9.8901098901098911E-2,6.8627450980392149E-2,0]
[{"$f":"Nota","v":"(*) Accidentes asignados en 2022 para su investigación en el mismo periodo y durante el año 2023"}]
[]
["Accidentes graves, muy graves y mortales investigados según asunción de medidas preventivas. (*)",null,null,null,null,null,null,"Bloque de causas de los accidentes graves, muy graves y mortales investigados según asunción de medidas preventivas. (*)"]
[{"$f":"año_publi","v":2022},"Frecuencia","Porcentaje",null,null,null,null,{"$f":"año_publi","v":2022},"Total","1_Habían sido previstas medidas preventivas","2_No habían sido previstas medidas preventivas"]
["Total",194,1,null,null,null,null,null,"Porcentaje","Porcentaje","Porcentaje"]
["1_Habían sido previstas medidas preventivas",87,0.44845360824742264,null,null,null,null,"Total",1,1,1]
["2_No habían sido previstas medidas preventivas",107,0.55154639175257736,null,null,null,null,"Prevención intrínseca",0.20103092783505155,0.13793103448275862,0.25233644859813081]
[{"$f":"Nota","v":"(*) Accidentes asignados en 2022 para su investigación en el mismo periodo y durante el año 2023"},null,null,null,null,null,null,"Protección, señalización",0.18041237113402062,0.14942528735632185,0.20560747663551404]
[null,null,null,null,null,null,null,"Materiales, productos o agentes",8.7628865979381451E-2,8.0459770114942528E-2,9.3457943925233641E-2]
[null,null,null,null,null,null,null,"Espacios y superficies de trabajo",0.22164948453608246,0.1954022988505747,0.24299065420560748]
[null,null,null,null,null,null,null,"Organización del trabajo",0.55154639175257736,0.50574712643678166,0.58878504672897192]
[null,null,null,null,null,null,null,"Gestión de la prevención",0.4845360824742268,0.47126436781609193,0.49532710280373832]
[null,null,null,null,null,null,null,"Factores individuales",0.38659793814432986,0.45977011494252873,0.32710280373831779]
[null,null,null,null,null,null,null,"Otras causas",8.2474226804123696E-2,0.10344827586206896,6.5420560747663559E-2]
[null,null,null,null,null,null,null,{"$f":"Nota","v":"(*) Accidentes asignados en 2022 para su investigación en el mismo periodo y durante el año 2023"}]

{"sheet":"Hoja19","index":22,"n_rows":227,"n_cols":3,"rows_kept":227,"cut":false,"hidden":true,"merged":[]}
[]
["Ordenados por Código de causa"]
[]
["Literal de Bloque","Código Bloque"]
["Prevención intrínseca",1]
["Protección señalización",2]
["Materiales, productos o agentes",3]
["Espacios y superficies de trabajo",4]
["Organización del trabajo",5]
["Gestión de la prevención",6]
["Factores individuales",7]
["Otras causas",8]
[]
[]
[]
["Literal de Causa","Bloque","Causa Código"]
["'1101 Deficiente diseño ergonómico del puesto de trabajo.'",4,1101]
["'1102 Superficies de trabajo habitualmente inestables, incluidos barcos.'",4,1102]
["'1103 Espacio insuficiente en lugares de trabajo o en las zonas de tránsito'",4,1103]
["'1104 Ausencia/deficiencia de protecciones colectivas frente a caídas de personas'",2,1104]
["'1105 Aberturas y huecos desprotegidos'",4,1105]
["'1106 Falta de seguridad estructural o estabilidad de paramentos, etc.'",4,1106]
["'1107 Ausencia de señalización de límite de sobrecarga de uso de las superficies de trabajo'",2,1107]
["'1108 Falta/deficiencia de entibación o taludes inadecuados'",4,1108]
["'1109 Dificultad/deficiencia en el acceso al puesto de trabajo.'",4,1109]
["'1110 Pavimento deficiente o inadecuado (discontinuo, resbaladizo, inestable, con  pendiente excesiva, etc.)'",4,1110]
["'1111 Escaleras fijas, de servicio o escala inseguras por falta de anchura, peldaño desigual, huella insufiente etc o en mal estado.'",4,1111]
["'1112 Vías de evacuación o salida no señalizadas o señalizadas de forma insuficiente o incorrecta'",2,1112]
["'1113 Ausencia de vías de evacuación o insuficientes en número, mal dimensionadas, obstruidas o incorrectamente distribuida'",1,1113]
["'1114 Inexistencia, insuficiencia o ineficacia de sectorización o aislamiento de áreas de riesgos, como por ejemplo zonificación de atmósferas explosivas, espacios confinados, zonas extremadamente calientes o frias etc'",1,1114]
["'1115 Deficiencia/ausencia de señalización u otro tipo de elementos necesarios para la delimitación de la zona de trabajo (ej.: Maniobras o trabajos próximos a instalaciones de a.t., área de obra, movimientos de vehículos, etc...)'",2,1115]
["'1116 Vías de circulación deficientes (insuficentes, mal dimensionadas o faltas de separación entre ellas)'",1,1116]
["'1117 Diseño incorrecto de ventanas (sistema de cierre inseguro, falta previsión situaciones de limpieza y mantenimiento)'",1,1117]
["'1118 Diseño incorrecto de puertas y pontones (sistema de cierre inseguro, sin parada de emergencia, falta previsión situaciones de limpieza y mantenimiento)'",1,1118]
["'1199 Otras causas relativas a la configuración de los espacios de trabajo'",4,1199]
["'1201 Orden y limpieza deficientes'",4,1201]
["'1202 Ausencia o deficiencia de medios para drenaje de líquidos.'",4,1202]
["'1203 No delimitación entre las zonas de trabajo o tránsito y las de almacenamiento o no respetar las zonas establecidas.'",4,1203]
["'1299 Otras causas relativas al orden y limpieza'",4,1299]
["'1301 Causas relativas al nivel de ruido ambiental'",3,1301]
["'1302 Causas relativas a vibraciones'",3,1302]
["'1303 Causas relativas a radiaciones ionizantes'",3,1303]
["'1304 Causas relativas a radiaciones no ionizantes'",3,1304]
["'1305 Iluminación insuficiente o inapropiada'",3,1305]
["'1306 Deslumbramientos'",3,1306]
["'1307 Causas relativas a la temperatura y condiciones termo higrométricas '",3,1307]
["'1308 Causas relativas a los aspectos meteorológicos'",3,1308]
["'1309 Ausencia/deficiencia de protecciones para evitar la generación y propagación de agentes físicos.'",3,1309]
["'1399 Otras causas relativas a los agentes físicos en el ambiente'",3,1399]
["'1999 Otras causas relativas a las condiciones de los espacios de trabajo'",8,1999]
["'2101 Corte no debidamente previsto de suministro energético o de servicios (agua, electricidad, aire comprimido, gases etc.)'",1,2101]
["'2102 No uso de muy baja tensión de funcionamiento (compatible con el MI BT 036) estando establecido su uso obligatorio.'",1,2102]
["'2103 Defectos en el diseño, construcción, montaje, mantenimiento o uso de instalaciones eléctricas (ubicación de celdas de alta tensión, transformadores, aparallaje o instalaciones de baja tensión)'",1,2103]
["'2104 Ausencia/deficiencia de sistemas para evitar la generación de electricidad estática'",1,2104]
["'2105 Sistemas de detección de incendios-transmisión de alarma inexistentes, insuficientes o ineficaces'",1,2105]
["'2106 Almacenamiento de Sustancias y/o Preparados inflamables (“Clasificados como Clases A y B en la MIE-APQ 1”) en coexistencia con focos de ignición de distinta etiología (eléctricos, térmicos, mecánicos...), sin el control preciso.'",1,2106]
["'2107 Inexistencia de instalación anti-explosiva en atmósferas potencialmente explosivas (aplicable a equipos eléctricos, instrumentos neumáticos e hidráulicos).'",1,2107]
["'2108 Dificultad para efectuar un adecuado mantenimiento o limpieza de instalaciones de servicio o protección'",1,2108]
["'2109 Instalación de servicio o protección en mal estado-por otra causa'",2,2109]
["'2110 Ausencia de cubeto de retención de una Instalación de Almacenamiento de Productos Químicos'",1,2110]
["'2111 Tanques o Depósitos inadecuados (por diseño, construcción, ubicación, mantenimiento, uso etc) por ejemplo no estancos, fabricados con material inadecuado para la naturaleza de la sustancia almacenada.'",1,2111]
["'2112 Sistemas de conducción de sustancias o preparados inadecuados (por diseño, construcción, ubicación, mantenimiento, uso etc) por ejemplo no estancos, fabricados con material inadecuado para la naturaleza de la sustancia transportado.'",1,2112]
["'2199 Otras causas relativas al diseño, construcción, montaje, manteniemiento, reparación y limpieza de instalaciones de servicio y protección'",1,2199]
["'2201 Ausencia/deficiencia de medios para evitar los contactos eléctricos directos (defectos en el aislamiento de las partes activas, barreras o envolventes inexistentes o ineficaces, ausencia o deficiencia en los medios para obstaculizar el paso o incumplimiento en cuanto a las distancias que conforman el volumen de accesibilidad)'",2,2201]
["'2202 Deficiencias de aislamiento o inadecuado grado de protección (i.p.) en conductores, tomas de corriente, aparatos  o conexiones eléctricas defectuosas de la instalación'",2,2202]
["'2203 Ausencia o no funcionamiento de elementos constituyentes del sistema de prevención contra contactos indirectos (interruptores diferenciales por ser inadecuados o haber sido \"puenteados”, puesta a tierra, etc.) incluyendo dispositivos para la eliminación de electricidad estática'",2,2203]
["'2204 Ausencia o no funcionamiento de dispositivos para la eliminación de la electricidad estática'",1,2204]
["'2205 Imposibilidad de corte omnipolar simultáneo en Instalaciones eléctricas'",1,2205]
["'2206 Ausencia de protección contra sobre-intensidad, sobrecarga y cortocircuito en instalaciones eléctricas'",2,2206]
["'2207 Ausencia de protección contra sobrepresión(válvulas de presión,venteos, discos de rotura, válvulas de descarga,…)'",2,2207]
["'2208 Inexistencia, insuficiencia o ineficacia de medios de extinción.'",2,2208]
["'2209 Generación de atmósferas peligrosas por deficiencias de ventilación, natural o forzada'",1,2209]
["'2210 Dispositivos enclavamiento violados (puenteados, anulados, etc.)'",2,2210]
["'2299 Otras causas relativas los elementos y dispositivos de protección de instalaciones de servicio y protección'",2,2299]
["'2301 Defectos o insuficiencias en la identificación de conductores activos y de protección'",2,2301]
["'2302 Conducciones de fluidos peligrosos deficientemente señalizadas (inflamables, tóxicos, corrosivos, etc.)  '",2,2302]
["'2303 Medios de lucha contra incendios no señalizados o señalizados incorrectamente (pulsadores de alarma, extintores, bie´s...).'",2,2303]
["'2399 Otras causas relativas a la señalización e información de protección de instalaciones de servicio y protección'",2,2399]
["'2999 Otras causas relativas a las instalaciones de servicio y protección'",2,2999]
["'3101 Diseño incorrecto de la máquina o componente que hace que no se cumplan los principios de la prevención intrínseca y/o de la ergonomía'",1,3101]
["'3102 Modificaciones realizadas en la maquina que dan lugar a situaciones de riesgo no previstas por el fabricante.'",6,3102]
["'3103 Deficiente ubicación de la máquina'",4,3103]
["'3104 Defectos de estabilidad en equipos, maquinas o sus componentes  '",1,3104]
["'3105 Resistencia mecánica insuficiente de la máquina  '",1,3105]
["'3106 Diseño incorrecto de la máquina frente a presión interna o temperatura o agresión química'",1,3106]
["'3107 Focos de ignición no controlados (por causa mecánica, eléctrica, térmica o química)  '",1,3107]
["'3108 Fallos en el sistema neumático, hidráulico o eléctrico'",1,3108]
["'3109 Órganos de accionamiento inseguros (incorrecto diseño, no visibles o identificables, que posibilitan arranques intempestivos, imposibilitan la detención de partes móviles, variación incontrolada de velocidad, mal funcionamiento del modo manual, etc.).'",1,3109]
["'3110 Falta de dispositivos de parada, puesta en marcha y control en el punto de operación (en este epígrafe no se contempla la parada de emergencia).'",1,3110]
["'3111 Accesibilidad a órganos de la máquina peligrosos (atrapantes, cortantes, punzantes, o con posibilidad de ocasionar un contacto eléctrico)'",1,3111]
["'3112 Accesibilidad o falta de medios de aislamiento a zonas de la máquina en las que puede haber sustancias peligrosas por perdidas, fugas etc. o a zonas extremadamente calientes/frías'",1,3112]
["'3113 Deficiencia de los medios de acceso al puesto de trabajo o de conducción de la maquina'",1,3113]
["'3114 Visibilidad insuficiente en el puesto de conducción de la máquina ya sea por un mal diseño o por no disponer de de dispositivos auxiliares que mejoren la visibilidad cuando el campo de visión no es directo (espejos, cámaras de T.V.)'",1,3114]
["'3115 Defectos o ausencia en el sistema de dirección de la maquina automotriz, en el mecanismo de embrague, en el sistema de cambio de velocidades o en el sistema de frenos '",1,3115]
["'3116 Dificultad para efectuar un adecuado mantenimiento, reglaje o limpieza (accesibilidad a partes internas, dificultad de manipulación, dificultad de supervisión, ausencia de medios de diagnóstico)'",1,3116]
["'3117 Ausencia/deficiencia de elementos de montaje de máquinas'",1,3117]
["'3118 Deficiencia en el dispositivo de enganche/desenganche entre maquinas'",1,3118]
["'3119 Categoria insuficiente del dispositivo de mando o de protección '",1,3119]
["'3199 Otras causas relativas al diseño, ubicación, construccion, montaje, mantenimiento reparación y limpieza de máquinas.'",1,3199]
["'3201 Ausencia y/o deficiencia de resguardos y de dispositivos de protección (nota: el fallo puede consistir en la inexistencia de resguardos o de dispositivos de protección, en su mala instalación, en su aplicación en lugar de otros mas adecuados al riesgo que'",2,3201]
["'3202 Parada de emergencia inexistente, ineficaz o no accesible'",2,3202]
["'3203 Ausencia/deficiencia de protecciones colectivas frente a caídas de personas y objetos desde máquinas'",2,3203]
["'3204 Ausencia/deficiencia de protecciones antivuelco en maquinas automotrices (r.o.p.s.)'",2,3204]
["'3205 Ausencia/deficiencia de estructura de protección contra caída de materiales (f.o.p.s.)  '",2,3205]
["'3206 Ausencia de medios técnicos para la consignación (imposibilidad de puesta en marcha) de la máquina o vehículo'",2,3206]
["'3207 Ausencia de dispositivos que eviten que los trabajadores no autorizados utilicen los equipos de trabajo'",2,3207]
["'3208 Ausencia/deficiencia o falta de uso de dispositivos que mantengan a los conductores o a los trabajadores transportados en su posición correcta durante el desplazamiento.'",2,3208]
["'3299 Otras causas relativas a los elementos y dispositivos de protección de máquinas.'",2,3299]
["'3301 Ausencia de alarmas (puesta en marcha de maquinas peligrosas o marcha atrás de vehículos, etc.)'",2,3301]
["'3302 Deficiencia/ausencia del manual de instrucciones de máquinas '",6,3302]
["'3399 Otras causas relativas a la señalización e información de máquinas.'",2,3399]
["'3999 Otras causas relativas a las máquinas.'",8,3999]
["'4101 Diseño incorrecto del equipo que hace que no se cumplan los principios de la prevención intrínseca y/o de la ergonomía'",1,4101]
["'4102 Deficiente ubicación, defectos de estabilidad en equipos de trabajo debido a una incorrecta construcción, montaje y mantenimiento .'",1,4102]
["'4103 Resistencia mecánica insuficiente del equipo de trabajo  '",1,4103]
["'4104 Diseño incorrecto  del equipo de trabajo frente a presión interna o temperatura o agresión química'",1,4104]
["'4105 Partes del equipo accesibles peligrosas (atrapantes, cortantes, punzantes,etc.)'",1,4105]
["'4106 Escalera de mano insegura (material no resistente, apoyos inadecuados ….)'",1,4106]
["'4199 Otras causas relativas al diseño, ubicación, construccion, montaje, y limpieza  de otros equipos de trabajo.'",1,4199]
["'4201 Ausencia/deficiencia de elementos de seguridad en los medios de elevación de cargas (pestillos de seguridad en ganchos, etc) '",2,4201]
["'4202 Ausencia de elementos de protección de herramientas (protectores de empuñaduras, etc)'",2,4202]
["'4203 Ausencia/deficiencia de protecciones colectivas frente a caídas de personas y objetos desde equipos de trabajo'",2,4203]
["'4299 Otras causas relativas a los elementos y dispositivos de protección de otros equipos de trabajo'",2,4299]
["'4301 Deficiencia/ausencia del manual de instrucciones o señalización (nota: el fallo puede consistir en la inexistencia del manual de instrucciones o en la insuficiente o ininteligible información contenida en el o en la utilización de un idioma incomprensible'",2,4301]
["'4302 Falta de señalización e información acerca de la carga máxima en eslingas y otros accesorios de elevación'",2,4302]
["'4399 Otras causas relativas a la señalización e información de otros equipos de trabajo'",2,4399]
["'4999 Otras causas relativas a otros equipos de trabajo'",8,4999]
["'5101 Defectos en los materiales utilizados de forma general, excluídos los que conforman una máquina, instalación y equipo.'",3,5101]
["'5102 Materiales muy pesados, voluminosos, de gran superficie, inestables o con aristas/perfiles cortantes, en relación con los medios utilizados en su manejo.'",3,5102]
["'5103 No mecanización o automatización de las operaciones de carga/descarga                                '",5,5103]
["'5104 Deficiente sistema de almacenamiento, empaquetado, paletizado, apilamiento atc'",5,5104]
["'5105 Zonas de almacenamiento inadecuadas o no previstas.'",4,5105]
["'5106 Falta de planificación y/o vigilancia en operaciones de levantamiento de cargas'",5,5106]
["'5199 Otras causas relativas a la manipulación y almacenamiento de materiales '",3,5199]
["'5201 Inhalación, ingestión o contacto con productos químicos (sustancias o preparados) presentes en el puesto de trabajo.'",3,5201]
["'5202 Ausencia o deficiencia en los procedimientos de manipulado o almacenamiento de productos químicos (sustancias o preparados).'",5,5202]
["'5203 Presencia de productos químicos (sustancias o preparados) en el ambiente (tóxicos, irritantes, inflamables, etc...) en cualquier estado (polvos, vapores, gases, etc.), cuyo control o eliminación no está garantizado'",3,5203]
["'5204 Productos químicos (sustancias o preparados) capaces de producir reacciones peligrosas (exotérmicas, tóxicas, etc) cuyo control o eliminación no está garantizado'",3,5204]
["'5205 Productos químicos (sustancias o preparados) inflamable o explosiva, en cualquier estado físico, cuyo control o eliminación no está garantizado'",3,5205]
["'5206 Posibilidad de contacto o mezcla de productos químicos (sustancias o preparados) incompatibles o que pueden generar una reacción con desprendimiento de productos tóxicos, corrosivos y/o calor'",3,5206]
["'5207 Fugas o derrames de productos químicos (sustancias o preparados) (durante su fabricación, transporte, almacenamiento y manipulación).'",3,5207]
["'5208 Deficiente envasado y etiquetado de los productos químicos (sustancias o preparados) utilizados en caso de trasvase en la propia empresa'",5,5208]
["'5209 Deficiente envasado y etiquetado de los productos químicos (sustancias o preparados) utilizados (excluido los trasvasados en la propia empresa)'",6,5209]
["'5210 Ausencia/deficiencia de protecciones para evitar la generación y propagación de agentes químicos (estará incluida la ausencia/deficiencia de dispositivos de  encapsulamiento de la fuente y en general de aquellos que eviten o minimizen la liberación de agentes)'",2,5210]
["'5299 Otras causas relativas a los productos químicos'",3,5299]
["'5301 Contacto o presencia de animales'",3,5301]
["'5302 Agentes biológicos o seres vivos susceptibles de originar cualquier tipo de infección, alergia o toxicidad, cuyo control o eliminación no está garantizado'",3,5302]
["'5303 Ausencia/deficiencia de protecciones para evitar la generación y propagación de agentes biológicos (estará incluida la ausencia/deficiencia de dispositivos de  encapsulamiento de la fuente y en general de aquellos que eviten o minimizen la liberación de agentes)'",2,5303]
["'5304 Deficiencia de medidas de higiene personal adecuadas para la prevención de enfermedades infecciosas'",5,5304]
["'5399 Otras causas relativas a los agentes biologicos y seres vivos'",3,5399]
["'5999 Otras causas relativas a materiales y agentes contaminantes'",8,5999]
["'6101 Método de trabajo  inexistente '",5,6101]
["'6102 Método de trabajo inadecuado'",5,6102]
["'6103 Diseño inadecuado del trabajo o tarea'",5,6103]
["'6104 Apremio de tiempo o ritmo de trabajo elevado'",5,6104]
["'6105 Trabajo monótono o rutinario, sin medidas para evitar su efecto nocivo'",5,6105]
["'6106 Trabajos solitarios sin las medidas de prevención adecuadas'",5,6106]
["'6107 Sobrecarga de la máquina o equipo (respecto a sus características técnicas)'",5,6107]
["'6108 Sobrecarga trabajador (fatiga física o mental)'",5,6108]
["'6109 Existencia de interferencias o falta de coordinación entre trabajadores que realizan la misma o distintas tareas'",5,6109]
["'6110 Ausencia de vigilancia, control y dirección de persona competente'",5,6110]
["'6111 No organizar el trabajo teniendo en cuenta las condiciones meteorológicas adversas.'",5,6111]
["'6199 Otras causas relativas a los métodos de trabajo'",5,6199]
["'6201 Operación inhabitual para el operario que la realiza, sea ordinaria o esporádica'",5,6201]
["'6202 Operación destinada a evitar averías o incidentes o recuperar incidentes.'",5,6202]
["'6203 Operación extraordinaria realizada en caso de incidentes, accidentes o emergencias.'",5,6203]
["'6299 Otras causas relativas a la organización de las tareas'",5,6299]
["'6301 Deficiencias en el sistema de comunicación a nivel horizontal o vertical, incluyendo la incomprensión del idioma.'",5,6301]
["'6302 Instrucciones inexistentes'",5,6302]
["'6303 Instrucciones respecto a la tarea confusas, contradictorias o insuficientes'",5,6303]
["'6304 Formación/información inadecuada o inexistente sobre la tarea'",5,6304]
["'6305 Procedimientos inexistentes o insuficientes para formar o informar a los trabajadores  acerca de la utilización o manipulación de maquinaria, equipos, productos, materias primas y útiles de trabajo.'",5,6305]
["'6306 Deficiencia/ausencia de información o señalización visual o acústica obligatoria o necesaria, incluyendo la utilización de un idioma incomprensible para el trabajador'",2,6306]
["'6307 Falta de señalista en caso necesario para organizar la circulación de personas y/o vehículos, así como manejo de cargas.'",2,6307]
["'6308 Deficiencia/ausencia de señalización de \"prohibido maniobra\" en los órganos de accionamiento, en caso de trabajos a efectuar sin tensión, sin presión o sin otras energías.'",2,6308]
["'6399 Otras causas relativas a la formación, información, instrucciones y señalización sobre la tarea'",5,6399]
["'6401 No poner a disposición de los trabajadores las máquinas, equipos y medios auxiliares necesarios o adecuados.'",5,6401]
["'6402 Selección de máquinas no adecuadas al trabajo a realizar'",5,6402]
["'6403 Selección de útiles, herramientas y medios auxiliares no adecuados al trabajo a realizar'",5,6403]
["'6404 Selección de materiales no adecuados al trabajo a realizar'",5,6404]
["'6405 Utilización de la máquina de manera no prevista por el fabricante.'",5,6405]
["'6406 Utilización de útiles, herramientas y medios auxiliares de manera no prevista por el fabricante.'",5,6406]
["'6407 Utilización de materiales en general de manera no prevista por el fabricante..'",5,6407]
["'6408 No comprobación del estado de las maquinas, herramientas, equipos o medios auxiliares antes de su utilización'",5,6408]
["'6409 Ausencia de medios organizativos o procedimientos para la consignación de máquinas, instalaciones y lugares de trabajo.'",5,6409]
["'6499 Otras causas relativas a la selección y utilización de equipos y materiales'",5,6499]
["'6999 Otras causas relativas a la organización del trabajo'",8,6999]
["'7101 Inexistencia o insuficiencia de un procedimiento que regule la realización de las actividades dirigidas a la identificación y evaluación de riesgos, incluidas las referidas a los estudios requeridos en las Obras de Construcción'",6,7101]
["'7102 Inexistencia o deficiencia de un procedimiento que regule la planificación de la implantación de las medidas preventivas propuestas, incluidas las referidas a los planes de seguridad en las Obras de Construcción'",6,7102]
["'7103 Procedimientos inexistentes, insuficientes o deficientes para informar a los trabajadores de los riesgos y las medidas preventivas'",6,7103]
["'7104 Deficiencias en la organización de los recursos obligatorios (organización preventiva) para la realización de las actividades preventivas exigidas por la normativa'",6,7104]
["'7105 Procedimientos inexistentes, insuficientes o deficientes. para la coordinación de actividades realizadas por varias empresas '",6,7105]
["'7106 Inadecuada política de compras desde el punto de vista de la prevención.'",6,7106]
["'7107 Sistema inadecuado de asignación de tareas por otras razones que no sean la falta de cualificación o experiencia'",5,7107]
["'7108 No apreciar las características de los trabajadores para la realización de la tarea o en función de los riesgos '",6,7108]
["'7199 Otras causas relativas a la gestión de la prevención'",6,7199]
["'7201 No identificación del/los riesgos que han materializado el accidente'",6,7201]
["'7202 Medidas preventivas propuestas en la planificación derivada de la evaluación de riesgos insuficientes o inadecuadas, incluidas las referidas al Plan de Seguridad y salud en el Trabajo en Obras de Construcción'",6,7202]
["7203 No ejecución de medidas preventivas propuestas en la planificación derivada de la evaluación de riesgos. '",6,7203]
["'7204 Falta de control del cumplimiento del Plan de seguridad y salud en Construcción.'",6,7204]
["'7205 Mantenimiento preventivo inexistente o inadecuado o falta de revisiones periódicas oficiales.'",6,7205]
["'7206 Formación/información inadecuada, inexistente sobre riesgos o medidas preventivas'",6,7206]
["'7207 Inexistencia o inadecuación de plan y/o medidas de emergencia.'",6,7207]
["'7208 No poner a disposición de los trabajadores las prendas o equipos de protección necesarios o ser estos inadecuados o mal mantenidos, o no supervisar su correcta utilización.'",6,7208]
["'7209 Falta de presencia de los recursos preventivos requeridos'",6,7209]
["'7210 Vigilancia de la salud inadecuada a los riesgos del puesto de trabajo'",6,7210]
["'7211 Ausencia/deficiencias de permisos y/o procedimientos de trabajo en intervenciones peligrosas (por ejemplo soldaduras en zonas de riesgo, trabajos en tensión, espacios confinados etc.)'",6,7211]
["'7212 Asignación de tarea a un trabajador con falta de cualificación o experiencia'",6,7212]
["'7299 Otras causas relativas a las actividades preventivas'",6,7299]
["'7999 Otras causas relativas a la gestión de la prevención'",8,7999]
["'8101 Realización de tareas no asignadas'",7,8101]
["'8102 Incumplimiento de procedimientos e instrucciones de trabajo'",7,8102]
["'8103 Incumplimiento de normas de seguridad establecidas'",7,8103]
["'8104 Uso indebido de materiales, herramientas o útiles de trabajo, puestos a disposición por la empresa'",7,8104]
["'8105 Uso indebido o no utilización de medios auxiliares de trabajo o de seguridad puestos a disposición por la empresa y de uso obligatorio (empujadores, distanciadores, etc.)'",7,8105]
["'8106 No utilización de equipos de protección individual puestas a disposición por la empresa y de uso obligatorio.'",7,8106]
["'8107 Retirada o anulación de protecciones o dispositivos de seguridad'",7,8107]
["'8108 Permanencia del trabajador dentro de una zona peligrosa'",7,8108]
["'8109 Adopción de una postura inadecuada en el puesto de trabajo'",7,8109]
["'8199 Otras causas relativas a los factores de comportamiento'",7,8199]
["'8201 Incapacidad física o mental para la realización normal del trabajo.'",7,8201]
["'8202 Deficiente asimilación de órdenes recibidas.'",7,8202]
["'8203 Falta de cualificación y/o experiencia para la tarea realizada achacable al trabajador'",7,8203]
["'8299 Otras causas relativas a los factores intrinsecos, de salud o capacidades'",7,8299]
["'8999 Otras causas relativas a los factores personales-individuales'",8,8999]
["'9199 Otras causas '",8,9199]
["'9299 Hechos no causales'",8,9299]

{"sheet":"Hoja20","index":23,"n_rows":227,"n_cols":3,"rows_kept":227,"cut":false,"hidden":true,"merged":[]}
[]
["Ordenados por bloque"]
[]
["Literal de Bloque","Código Bloque"]
["Prevención intrínseca",1]
["Protección señalización",2]
["Materiales, productos o agentes",3]
["Espacios y superficies de trabajo",4]
["Organización del trabajo",5]
["Gestión de la prevención",6]
["Factores individuales",7]
["Otras causas",8]
[]
[]
[]
["Literal de Causa","Bloque","Causa Código"]
["1113 Ausencia de vías de evacuación o insuficientes en número, mal dimensionadas, obstruidas o incorrectamente distribuida",1,1113]
["1114 Inexistencia, insuficiencia o ineficacia de sectorización o aislamiento de áreas de riesgos, como por ejemplo zonificación de atmósferas explosivas, espacios confinados, zonas extremadamente calientes o frias etc",1,1114]
["1116 Vías de circulación deficientes (insuficentes, mal dimensionadas o faltas de separación entre ellas)",1,1116]
["1117 Diseño incorrecto de ventanas (sistema de cierre inseguro, falta previsión situaciones de limpieza y mantenimiento)",1,1117]
["1118 Diseño incorrecto de puertas y pontones (sistema de cierre inseguro, sin parada de emergencia, falta previsión situaciones de limpieza y mantenimiento)",1,1118]
["2101 Corte no debidamente previsto de suministro energético o de servicios (agua, electricidad, aire comprimido, gases etc.)",1,2101]
["2102 No uso de muy baja tensión de funcionamiento (compatible con el MI BT 036) estando establecido su uso obligatorio.",1,2102]
["2103 Defectos en el diseño, construcción, montaje, mantenimiento o uso de instalaciones eléctricas (ubicación de celdas de alta tensión, transformadores, aparallaje o instalaciones de baja tensión)",1,2103]
["2104 Ausencia/deficiencia de sistemas para evitar la generación de electricidad estática",1,2104]
["2105 Sistemas de detección de incendios-transmisión de alarma inexistentes, insuficientes o ineficaces",1,2105]
["2106 Almacenamiento de Sustancias y/o Preparados inflamables (“Clasificados como Clases A y B en la MIE-APQ 1”) en coexistencia con focos de ignición de distinta etiología (eléctricos, térmicos, mecánicos...), sin el control preciso.",1,2106]
["2107 Inexistencia de instalación anti-explosiva en atmósferas potencialmente explosivas (aplicable a equipos eléctricos, instrumentos neumáticos e hidráulicos).",1,2107]
["2108 Dificultad para efectuar un adecuado mantenimiento o limpieza de instalaciones de servicio o protección",1,2108]
["2110 Ausencia de cubeto de retención de una Instalación de Almacenamiento de Productos Químicos",1,2110]
["2111 Tanques o Depósitos inadecuados (por diseño, construcción, ubicación, mantenimiento, uso etc) por ejemplo no estancos, fabricados con material inadecuado para la naturaleza de la sustancia almacenada.",1,2111]
["2112 Sistemas de conducción de sustancias o preparados inadecuados (por diseño, construcción, ubicación, mantenimiento, uso etc) por ejemplo no estancos, fabricados con material inadecuado para la naturaleza de la sustancia transportado.",1,2112]
["2199 Otras causas relativas al diseño, construcción, montaje, manteniemiento, reparación y limpieza de instalaciones de servicio y protección",1,2199]
["2204 Ausencia o no funcionamiento de dispositivos para la eliminación de la electricidad estática",1,2204]
["2205 Imposibilidad de corte omnipolar simultáneo en Instalaciones eléctricas",1,2205]
["2209 Generación de atmósferas peligrosas por deficiencias de ventilación, natural o forzada",1,2209]
["3101 Diseño incorrecto de la máquina o componente que hace que no se cumplan los principios de la prevención intrínseca y/o de la ergonomía",1,3101]
["3104 Defectos de estabilidad en equipos, maquinas o sus componentes  ",1,3104]
["3105 Resistencia mecánica insuficiente de la máquina  ",1,3105]
["3106 Diseño incorrecto de la máquina frente a presión interna o temperatura o agresión química",1,3106]
["3107 Focos de ignición no controlados (por causa mecánica, eléctrica, térmica o química)  ",1,3107]
["3108 Fallos en el sistema neumático, hidráulico o eléctrico",1,3108]
["3109 Órganos de accionamiento inseguros (incorrecto diseño, no visibles o identificables, que posibilitan arranques intempestivos, imposibilitan la detención de partes móviles, variación incontrolada de velocidad, mal funcionamiento del modo manual, etc.).",1,3109]
["3110 Falta de dispositivos de parada, puesta en marcha y control en el punto de operación (en este epígrafe no se contempla la parada de emergencia).",1,3110]
["3111 Accesibilidad a órganos de la máquina peligrosos (atrapantes, cortantes, punzantes, o con posibilidad de ocasionar un contacto eléctrico)",1,3111]
["3112 Accesibilidad o falta de medios de aislamiento a zonas de la máquina en las que puede haber sustancias peligrosas por perdidas, fugas etc. o a zonas extremadamente calientes/frías",1,3112]
["3113 Deficiencia de los medios de acceso al puesto de trabajo o de conducción de la maquina",1,3113]
["3114 Visibilidad insuficiente en el puesto de conducción de la máquina ya sea por un mal diseño o por no disponer de de dispositivos auxiliares que mejoren la visibilidad cuando el campo de visión no es directo (espejos, cámaras de T.V.)",1,3114]
["3115 Defectos o ausencia en el sistema de dirección de la maquina automotriz, en el mecanismo de embrague, en el sistema de cambio de velocidades o en el sistema de frenos ",1,3115]
["3116 Dificultad para efectuar un adecuado mantenimiento, reglaje o limpieza (accesibilidad a partes internas, dificultad de manipulación, dificultad de supervisión, ausencia de medios de diagnóstico)",1,3116]
["3117 Ausencia/deficiencia de elementos de montaje de máquinas",1,3117]
["3118 Deficiencia en el dispositivo de enganche/desenganche entre maquinas",1,3118]
["3119 Categoria insuficiente del dispositivo de mando o de protección ",1,3119]
["3199 Otras causas relativas al diseño, ubicación, construccion, montaje, mantenimiento reparación y limpieza de máquinas.",1,3199]
["4101 Diseño incorrecto del equipo que hace que no se cumplan los principios de la prevención intrínseca y/o de la ergonomía",1,4101]
["4102 Deficiente ubicación, defectos de estabilidad en equipos de trabajo debido a una incorrecta construcción, montaje y mantenimiento .",1,4102]
["4103 Resistencia mecánica insuficiente del equipo de trabajo  ",1,4103]
["4104 Diseño incorrecto  del equipo de trabajo frente a presión interna o temperatura o agresión química",1,4104]
["4105 Partes del equipo accesibles peligrosas (atrapantes, cortantes, punzantes,etc.)",1,4105]
["4106 Escalera de mano insegura (material no resistente, apoyos inadecuados ….)",1,4106]
["4199 Otras causas relativas al diseño, ubicación, construccion, montaje, y limpieza  de otros equipos de trabajo.",1,4199]
["1104 Ausencia/deficiencia de protecciones colectivas frente a caídas de personas",2,1104]
["1107 Ausencia de señalización de límite de sobrecarga de uso de las superficies de trabajo",2,1107]
["1112 Vías de evacuación o salida no señalizadas o señalizadas de forma insuficiente o incorrecta",2,1112]
["1115 Deficiencia/ausencia de señalización u otro tipo de elementos necesarios para la delimitación de la zona de trabajo (ej.: Maniobras o trabajos próximos a instalaciones de a.t., área de obra, movimientos de vehículos, etc...)",2,1115]
["2109 Instalación de servicio o protección en mal estado-por otra causa",2,2109]
["2201 Ausencia/deficiencia de medios para evitar los contactos eléctricos directos (defectos en el aislamiento de las partes activas, barreras o envolventes inexistentes o ineficaces, ausencia o deficiencia en los medios para obstaculizar el paso o incumplimiento en cuanto a las distancias que conforman el volumen de accesibilidad)",2,2201]
["2202 Deficiencias de aislamiento o inadecuado grado de protección (i.p.) en conductores, tomas de corriente, aparatos  o conexiones eléctricas defectuosas de la instalación",2,2202]
["2203 Ausencia o no funcionamiento de elementos constituyentes del sistema de prevención contra contactos indirectos (interruptores diferenciales por ser inadecuados o haber sido \"puenteados”, puesta a tierra, etc.) incluyendo dispositivos para la eliminación de electricidad estática",2,2203]
["2206 Ausencia de protección contra sobre-intensidad, sobrecarga y cortocircuito en instalaciones eléctricas",2,2206]
["2207 Ausencia de protección contra sobrepresión(válvulas de presión,venteos, discos de rotura, válvulas de descarga,…)",2,2207]
["2208 Inexistencia, insuficiencia o ineficacia de medios de extinción.",2,2208]
["2210 Dispositivos enclavamiento violados (puenteados, anulados, etc.)",2,2210]
["2299 Otras causas relativas los elementos y dispositivos de protección de instalaciones de servicio y protección",2,2299]
["2301 Defectos o insuficiencias en la identificación de conductores activos y de protección",2,2301]
["2302 Conducciones de fluidos peligrosos deficientemente señalizadas (inflamables, tóxicos, corrosivos, etc.)  ",2,2302]
["2303 Medios de lucha contra incendios no señalizados o señalizados incorrectamente (pulsadores de alarma, extintores, bie´s...).",2,2303]
["2399 Otras causas relativas a la señalización e información de protección de instalaciones de servicio y protección",2,2399]
["2999 Otras causas relativas a las instalaciones de servicio y protección",2,2999]
["3201 Ausencia y/o deficiencia de resguardos y de dispositivos de protección (nota: el fallo puede consistir en la inexistencia de resguardos o de dispositivos de protección, en su mala instalación, en su aplicación en lugar de otros mas adecuados al riesgo que",2,3201]
["3202 Parada de emergencia inexistente, ineficaz o no accesible",2,3202]
["3203 Ausencia/deficiencia de protecciones colectivas frente a caídas de personas y objetos desde máquinas",2,3203]
["3204 Ausencia/deficiencia de protecciones antivuelco en maquinas automotrices (r.o.p.s.)",2,3204]
["3205 Ausencia/deficiencia de estructura de protección contra caída de materiales (f.o.p.s.)  ",2,3205]
["3206 Ausencia de medios técnicos para la consignación (imposibilidad de puesta en marcha) de la máquina o vehículo",2,3206]
["3207 Ausencia de dispositivos que eviten que los trabajadores no autorizados utilicen los equipos de trabajo",2,3207]
["3208 Ausencia/deficiencia o falta de uso de dispositivos que mantengan a los conductores o a los trabajadores transportados en su posición correcta durante el desplazamiento.",2,3208]
["3299 Otras causas relativas a los elementos y dispositivos de protección de máquinas.",2,3299]
["3301 Ausencia de alarmas (puesta en marcha de maquinas peligrosas o marcha atrás de vehículos, etc.)",2,3301]
["3399 Otras causas relativas a la señalización e información de máquinas.",2,3399]
["4201 Ausencia/deficiencia de elementos de seguridad en los medios de elevación de cargas (pestillos de seguridad en ganchos, etc) ",2,4201]
["4202 Ausencia de elementos de protección de herramientas (protectores de empuñaduras, etc)",2,4202]
["4203 Ausencia/deficiencia de protecciones colectivas frente a caídas de personas y objetos desde equipos de trabajo",2,4203]
["4299 Otras causas relativas a los elementos y dispositivos de protección de otros equipos de trabajo",2,4299]
["4301 Deficiencia/ausencia del manual de instrucciones o señalización (nota: el fallo puede consistir en la inexistencia del manual de instrucciones o en la insuficiente o ininteligible información contenida en el o en la utilización de un idioma incomprensible",2,4301]
["4302 Falta de señalización e información acerca de la carga máxima en eslingas y otros accesorios de elevación",2,4302]
["4399 Otras causas relativas a la señalización e información de otros equipos de trabajo",2,4399]
["5210 Ausencia/deficiencia de protecciones para evitar la generación y propagación de agentes químicos (estará incluida la ausencia/deficiencia de dispositivos de  encapsulamiento de la fuente y en general de aquellos que eviten o minimizen la liberación de agentes)",2,5210]
["5303 Ausencia/deficiencia de protecciones para evitar la generación y propagación de agentes biológicos (estará incluida la ausencia/deficiencia de dispositivos de  encapsulamiento de la fuente y en general de aquellos que eviten o minimizen la liberación de agentes)",2,5303]
["6306 Deficiencia/ausencia de información o señalización visual o acústica obligatoria o necesaria, incluyendo la utilización de un idioma incomprensible para el trabajador",2,6306]
["6307 Falta de señalista en caso necesario para organizar la circulación de personas y/o vehículos, así como manejo de cargas.",2,6307]
["6308 Deficiencia/ausencia de señalización de \"prohibido maniobra\" en los órganos de accionamiento, en caso de trabajos a efectuar sin tensión, sin presión o sin otras energías.",2,6308]
["1301 Causas relativas al nivel de ruido ambiental",3,1301]
["1302 Causas relativas a vibraciones",3,1302]
["1303 Causas relativas a radiaciones ionizantes",3,1303]
["1304 Causas relativas a radiaciones no ionizantes",3,1304]
["1305 Iluminación insuficiente o inapropiada",3,1305]
["1306 Deslumbramientos",3,1306]
["1307 Causas relativas a la temperatura y condiciones termo higrométricas ",3,1307]
["1308 Causas relativas a los aspectos meteorológicos",3,1308]
["1309 Ausencia/deficiencia de protecciones para evitar la generación y propagación de agentes físicos.",3,1309]
["1399 Otras causas relativas a los agentes físicos en el ambiente",3,1399]
["5101 Defectos en los materiales utilizados de forma general, excluídos los que conforman una máquina, instalación y equipo.",3,5101]
["5102 Materiales muy pesados, voluminosos, de gran superficie, inestables o con aristas/perfiles cortantes, en relación con los medios utilizados en su manejo.",3,5102]
["5199 Otras causas relativas a la manipulación y almacenamiento de materiales ",3,5199]
["5201 Inhalación, ingestión o contacto con productos químicos (sustancias o preparados) presentes en el puesto de trabajo.",3,5201]
["5203 Presencia de productos químicos (sustancias o preparados) en el ambiente (tóxicos, irritantes, inflamables, etc...) en cualquier estado (polvos, vapores, gases, etc.), cuyo control o eliminación no está garantizado",3,5203]
["5204 Productos químicos (sustancias o preparados) capaces de producir reacciones peligrosas (exotérmicas, tóxicas, etc) cuyo control o eliminación no está garantizado",3,5204]
["5205 Productos químicos (sustancias o preparados) inflamable o explosiva, en cualquier estado físico, cuyo control o eliminación no está garantizado",3,5205]
["5206 Posibilidad de contacto o mezcla de productos químicos (sustancias o preparados) incompatibles o que pueden generar una reacción con desprendimiento de productos tóxicos, corrosivos y/o calor",3,5206]
["5207 Fugas o derrames de productos químicos (sustancias o preparados) (durante su fabricación, transporte, almacenamiento y manipulación).",3,5207]
["5299 Otras causas relativas a los productos químicos",3,5299]
["5301 Contacto o presencia de animales",3,5301]
["5302 Agentes biológicos o seres vivos susceptibles de originar cualquier tipo de infección, alergia o toxicidad, cuyo control o eliminación no está garantizado",3,5302]
["5399 Otras causas relativas a los agentes biologicos y seres vivos",3,5399]
["1101 Deficiente diseño ergonómico del puesto de trabajo.",4,1101]
["1102 Superficies de trabajo habitualmente inestables, incluidos barcos.",4,1102]
["1103 Espacio insuficiente en lugares de trabajo o en las zonas de tránsito",4,1103]
["1105 Aberturas y huecos desprotegidos",4,1105]
["1106 Falta de seguridad estructural o estabilidad de paramentos, etc.",4,1106]
["1108 Falta/deficiencia de entibación o taludes inadecuados",4,1108]
["1109 Dificultad/deficiencia en el acceso al puesto de trabajo.",4,1109]
["1110 Pavimento deficiente o inadecuado (discontinuo, resbaladizo, inestable, con  pendiente excesiva, etc.)",4,1110]
["1111 Escaleras fijas, de servicio o escala inseguras por falta de anchura, peldaño desigual, huella insufiente etc o en mal estado.",4,1111]
["1199 Otras causas relativas a la configuración de los espacios de trabajo",4,1199]
["1201 Orden y limpieza deficientes",4,1201]
["1202 Ausencia o deficiencia de medios para drenaje de líquidos.",4,1202]
["1203 No delimitación entre las zonas de trabajo o tránsito y las de almacenamiento o no respetar las zonas establecidas.",4,1203]
["1299 Otras causas relativas al orden y limpieza",4,1299]
["3103 Deficiente ubicación de la máquina",4,3103]
["5105 Zonas de almacenamiento inadecuadas o no previstas.",4,5105]
["5103 No mecanización o automatización de las operaciones de carga/descarga                                ",5,5103]
["5104 Deficiente sistema de almacenamiento, empaquetado, paletizado, apilamiento atc",5,5104]
["5106 Falta de planificación y/o vigilancia en operaciones de levantamiento de cargas",5,5106]
["5202 Ausencia o deficiencia en los procedimientos de manipulado o almacenamiento de productos químicos (sustancias o preparados).",5,5202]
["5208 Deficiente envasado y etiquetado de los productos químicos (sustancias o preparados) utilizados en caso de trasvase en la propia empresa",5,5208]
["5304 Deficiencia de medidas de higiene personal adecuadas para la prevención de enfermedades infecciosas",5,5304]
["6101 Método de trabajo  inexistente ",5,6101]
["6102 Método de trabajo inadecuado",5,6102]
["6103 Diseño inadecuado del trabajo o tarea",5,6103]
["6104 Apremio de tiempo o ritmo de trabajo elevado",5,6104]
["6105 Trabajo monótono o rutinario, sin medidas para evitar su efecto nocivo",5,6105]
["6106 Trabajos solitarios sin las medidas de prevención adecuadas",5,6106]
["6107 Sobrecarga de la máquina o equipo (respecto a sus características técnicas)",5,6107]
["6108 Sobrecarga trabajador (fatiga física o mental)",5,6108]
["6109 Existencia de interferencias o falta de coordinación entre trabajadores que realizan la misma o distintas tareas",5,6109]
["6110 Ausencia de vigilancia, control y dirección de persona competente",5,6110]
["6111 No organizar el trabajo teniendo en cuenta las condiciones meteorológicas adversas.",5,6111]
["6199 Otras causas relativas a los métodos de trabajo",5,6199]
["6201 Operación inhabitual para el operario que la realiza, sea ordinaria o esporádica",5,6201]
["6202 Operación destinada a evitar averías o incidentes o recuperar incidentes.",5,6202]
["6203 Operación extraordinaria realizada en caso de incidentes, accidentes o emergencias.",5,6203]
["6299 Otras causas relativas a la organización de las tareas",5,6299]
["6301 Deficiencias en el sistema de comunicación a nivel horizontal o vertical, incluyendo la incomprensión del idioma.",5,6301]
["6302 Instrucciones inexistentes",5,6302]
["6303 Instrucciones respecto a la tarea confusas, contradictorias o insuficientes",5,6303]
["6304 Formación/información inadecuada o inexistente sobre la tarea",5,6304]
["6305 Procedimientos inexistentes o insuficientes para formar o informar a los trabajadores  acerca de la utilización o manipulación de maquinaria, equipos, productos, materias primas y útiles de trabajo.",5,6305]
["6399 Otras causas relativas a la formación, información, instrucciones y señalización sobre la tarea",5,6399]
["6401 No poner a disposición de los trabajadores las máquinas, equipos y medios auxiliares necesarios o adecuados.",5,6401]
["6402 Selección de máquinas no adecuadas al trabajo a realizar",5,6402]
["6403 Selección de útiles, herramientas y medios auxiliares no adecuados al trabajo a realizar",5,6403]
["6404 Selección de materiales no adecuados al trabajo a realizar",5,6404]
["6405 Utilización de la máquina de manera no prevista por el fabricante.",5,6405]
["6406 Utilización de útiles, herramientas y medios auxiliares de manera no prevista por el fabricante.",5,6406]
["6407 Utilización de materiales en general de manera no prevista por el fabricante..",5,6407]
["6408 No comprobación del estado de las maquinas, herramientas, equipos o medios auxiliares antes de su utilización",5,6408]
["6409 Ausencia de medios organizativos o procedimientos para la consignación de máquinas, instalaciones y lugares de trabajo.",5,6409]
["6499 Otras causas relativas a la selección y utilización de equipos y materiales",5,6499]
["7107 Sistema inadecuado de asignación de tareas por otras razones que no sean la falta de cualificación o experiencia",5,7107]
["3102 Modificaciones realizadas en la maquina que dan lugar a situaciones de riesgo no previstas por el fabricante.",6,3102]
["3302 Deficiencia/ausencia del manual de instrucciones de máquinas ",6,3302]
["5209 Deficiente envasado y etiquetado de los productos químicos (sustancias o preparados) utilizados (excluido los trasvasados en la propia empresa)",6,5209]
["7101 Inexistencia o insuficiencia de un procedimiento que regule la realización de las actividades dirigidas a la identificación y evaluación de riesgos, incluidas las referidas a los estudios requeridos en las Obras de Construcción",6,7101]
["7102 Inexistencia o deficiencia de un procedimiento que regule la planificación de la implantación de las medidas preventivas propuestas, incluidas las referidas a los planes de seguridad en las Obras de Construcción",6,7102]
["7103 Procedimientos inexistentes, insuficientes o deficientes para informar a los trabajadores de los riesgos y las medidas preventivas",6,7103]
["7104 Deficiencias en la organización de los recursos obligatorios (organización preventiva) para la realización de las actividades preventivas exigidas por la normativa",6,7104]
["7105 Procedimientos inexistentes, insuficientes o deficientes. para la coordinación de actividades realizadas por varias empresas ",6,7105]
["7106 Inadecuada política de compras desde el punto de vista de la prevención.",6,7106]
["7108 No apreciar las características de los trabajadores para la realización de la tarea o en función de los riesgos ",6,7108]
["7199 Otras causas relativas a la gestión de la prevención",6,7199]
["7201 No identificación del/los riesgos que han materializado el accidente",6,7201]
["7202 Medidas preventivas propuestas en la planificación derivada de la evaluación de riesgos insuficientes o inadecuadas, incluidas las referidas al Plan de Seguridad y salud en el Trabajo en Obras de Construcción",6,7202]
["7203 No ejecución de medidas preventivas propuestas en la planificación derivada de la evaluación de riesgos. ",6,7203]
["7204 Falta de control del cumplimiento del Plan de seguridad y salud en Construcción.",6,7204]
["7205 Mantenimiento preventivo inexistente o inadecuado o falta de revisiones periódicas oficiales.",6,7205]
["7206 Formación/información inadecuada, inexistente sobre riesgos o medidas preventivas",6,7206]
["7207 Inexistencia o inadecuación de plan y/o medidas de emergencia.",6,7207]
["7208 No poner a disposición de los trabajadores las prendas o equipos de protección necesarios o ser estos inadecuados o mal mantenidos, o no supervisar su correcta utilización.",6,7208]
["7209 Falta de presencia de los recursos preventivos requeridos",6,7209]
["7210 Vigilancia de la salud inadecuada a los riesgos del puesto de trabajo",6,7210]
["7211 Ausencia/deficiencias de permisos y/o procedimientos de trabajo en intervenciones peligrosas (por ejemplo soldaduras en zonas de riesgo, trabajos en tensión, espacios confinados etc.)",6,7211]
["7212 Asignación de tarea a un trabajador con falta de cualificación o experiencia",6,7212]
["7299 Otras causas relativas a las actividades preventivas",6,7299]
["8101 Realización de tareas no asignadas",7,8101]
["8102 Incumplimiento de procedimientos e instrucciones de trabajo",7,8102]
["8103 Incumplimiento de normas de seguridad establecidas",7,8103]
["8104 Uso indebido de materiales, herramientas o útiles de trabajo, puestos a disposición por la empresa",7,8104]
["8105 Uso indebido o no utilización de medios auxiliares de trabajo o de seguridad puestos a disposición por la empresa y de uso obligatorio (empujadores, distanciadores, etc.)",7,8105]
["8106 No utilización de equipos de protección individual puestas a disposición por la empresa y de uso obligatorio.",7,8106]
["8107 Retirada o anulación de protecciones o dispositivos de seguridad",7,8107]
["8108 Permanencia del trabajador dentro de una zona peligrosa",7,8108]
["8109 Adopción de una postura inadecuada en el puesto de trabajo",7,8109]
["8199 Otras causas relativas a los factores de comportamiento",7,8199]
["8201 Incapacidad física o mental para la realización normal del trabajo.",7,8201]
["8202 Deficiente asimilación de órdenes recibidas.",7,8202]
["8203 Falta de cualificación y/o experiencia para la tarea realizada achacable al trabajador",7,8203]
["8299 Otras causas relativas a los factores intrinsecos, de salud o capacidades",7,8299]
["1999 Otras causas relativas a las condiciones de los espacios de trabajo",8,1999]
["3999 Otras causas relativas a las máquinas.",8,3999]
["4999 Otras causas relativas a otros equipos de trabajo",8,4999]
["5999 Otras causas relativas a materiales y agentes contaminantes",8,5999]
["6999 Otras causas relativas a la organización del trabajo",8,6999]
["7999 Otras causas relativas a la gestión de la prevención",8,7999]
["8999 Otras causas relativas a los factores personales-individuales",8,8999]
["9199 Otras causas ",8,9199]
["9299 Hechos no causales",8,9299]